Workbook

Sheet Auction-Rank (hidden)
A1: PLAYERNAME | B1: IDPLAYER | C1: MC Pos | D1: OF Positions | E1: TEAM | F1: Age | G1: RotoChamp (Projected Value) | H1: CBS (Projected Value) | I1: ESPN (Avg Mock Draft Value) | J1: Yahoo (Projected Value) | K1: Yahoo (Avg Mock Draft Value) | L1: FantasyPros (Projected Value) | M1: Average of All Options | N1: Imported Values | O1: RotoChamp | P1: Yahoo Staff | Q1: ESPN - T. Cockcroft | R1: ESPN - E. Karabell | S1: FantasyPros Avg | T1: Mr. Cheatsheet | U1: Team In Sheet? | V1: Rank Chosen | W1: Filtered-Rank | X1: Chosen Auction | Y1: Filtered Auction | Z1: Adjusted Filter | AA1: =IFERROR(IF(VLOOKUP(A2,'Name Sort'!$D$2:$E$936,2,FALSE)="",A2,""),"") -> CJ Abrams | AB1: =IFERROR(INDEX($AA$1:$AA$955,SMALL(IF($AA$1:$AA$955<>"",ROW($AA$1:$AA$955)),ROW(AA1))),"") -> CJ Abrams
A2: CJ Abrams | B2: abramcj01 | C2: SS | E2: SD | F2: 21 | N2: =IFERROR(VLOOKUP(A2,'Import (Values)'!$B$2:$C$999,2,FALSE)/3120,"") ->  | S2: 717.5 | U2: =IFERROR(INDEX('Guts-2'!$K$1:$K$30,MATCH(E2,'Guts-2'!$J$1:$J$30,0)),TRUE) -> TRUE | V2: =IFERROR(IF(OR(U2=FALSE,INDEX('Player Notes'!$I$3:$I$999,MATCH(A2,'Player Notes'!$A$3:$A$999,0),1)="Yes"),"",IFERROR(CHOOSE('Guts-2'!$D$27,O2,P2,Q2,R2,S2,T2),"")),"") -> 717.5 | W2: =IFERROR(RANK(V2,$V$2:$V$955,1),"") -> 627 | X2: =IFERROR(IF(OR(U2=FALSE,INDEX('Player Notes'!$I$3:$I$999,MATCH(A2,'Player Notes'!$A$3:$A$999,0),1)="Yes"),"",CHOOSE('Guts-2'!$D$26,G2,H2,I2,J2,K2,L2,M2,N2)),"") ->  | Y2: =IF(U2=FALSE,"",IFERROR(IF(INDEX('Auction-Rank'!$G$1:$N$955,MATCH($A2,'Auction-Rank'!$A$1:$A$955,0),'Guts-2'!$D$26)="","",INDEX('Auction-Rank'!$G$1:$N$955,MATCH($A2,'Auction-Rank'!$A$1:$A$955,0),'Guts-2'!$D$26)),"")) ->  | Z2: =IF(Y2="","",IF(U2=FALSE,"",Y2*(SUMIF($X$2:$X$955,"<>""",$X$2:$X$955)/SUMIF($Y$2:$Y$955,"<>""",$Y$2:$Y$955)))) ->  | AA2: =IFERROR(IF(VLOOKUP(A3,'Name Sort'!$D$2:$E$936,2,FALSE)="",A3,""),"") -> Jose Abreu | AB2: =IFERROR(INDEX($AA$1:$AA$955,SMALL(IF($AA$1:$AA$955<>"",ROW($AA$1:$AA$955)),ROW(AA2))),"") -> Jose Abreu
A3: Jose Abreu | B3: abreujo02 | C3: 1B | E3: CHW | F3: 35 | G3: 0.005055555556 | H3: 0.005 | I3: 0.00375 | J3: 0.005 | K3: 0.005222222222 | L3: 0.005833333333 | M3: 0.004976851852 | N3: =IFERROR(VLOOKUP(A3,'Import (Values)'!$B$2:$C$999,2,FALSE)/3120,"") ->  | O3: 57 | P3: 62.7 | Q3: 66 | R3: 61 | S3: 60.2 | U3: =IFERROR(INDEX('Guts-2'!$K$1:$K$30,MATCH(E3,'Guts-2'!$J$1:$J$30,0)),TRUE) -> TRUE | V3: =IFERROR(IF(OR(U3=FALSE,INDEX('Player Notes'!$I$3:$I$999,MATCH(A3,'Player Notes'!$A$3:$A$999,0),1)="Yes"),"",IFERROR(CHOOSE('Guts-2'!$D$27,O3,P3,Q3,R3,S3,T3),"")),"") -> 60.2 | W3: =IFERROR(RANK(V3,$V$2:$V$955,1),"") -> 58 | X3: =IFERROR(IF(OR(U3=FALSE,INDEX('Player Notes'!$I$3:$I$999,MATCH(A3,'Player Notes'!$A$3:$A$999,0),1)="Yes"),"",CHOOSE('Guts-2'!$D$26,G3,H3,I3,J3,K3,L3,M3,N3)),"") -> 0.004976851852 | Y3: =IF(U3=FALSE,"",IFERROR(IF(INDEX('Auction-Rank'!$G$1:$N$955,MATCH($A3,'Auction-Rank'!$A$1:$A$955,0),'Guts-2'!$D$26)="","",INDEX('Auction-Rank'!$G$1:$N$955,MATCH($A3,'Auction-Rank'!$A$1:$A$955,0),'Guts-2'!$D$26)),"")) -> 0.004976851852 | Z3: =IF(Y3="","",IF(U3=FALSE,"",Y3*(SUMIF($X$2:$X$955,"<>""",$X$2:$X$955)/SUMIF($Y$2:$Y$955,"<>""",$Y$2:$Y$955)))) -> 0.004976851852 | AA3: =IFERROR(IF(VLOOKUP(A4,'Name Sort'!$D$2:$E$936,2,FALSE)="",A4,""),"") -> Ronald Acuna Jr. | AB3: =IFERROR(INDEX($AA$1:$AA$955,SMALL(IF($AA$1:$AA$955<>"",ROW($AA$1:$AA$955)),ROW(AA3))),"") -> Ronald Acuna Jr.
A4: Ronald Acuna Jr. | B4: acunaro01 | C4: OF | D4: RF | E4: ATL | F4: 24 | G4: 0.01166666667 | H4: 0.008611111111 | I4: 0.006305555556 | J4: 0.009722222222 | K4: 0.01211111111 | L4: 0.01166666667 | M4: 0.01001388889 | N4: =IFERROR(VLOOKUP(A4,'Import (Values)'!$B$2:$C$999,2,FALSE)/3120,"") ->  | O4: 4 | P4: 26.3 | Q4: 49 | R4: 12 | S4: 15.4 | U4: =IFERROR(INDEX('Guts-2'!$K$1:$K$30,MATCH(E4,'Guts-2'!$J$1:$J$30,0)),TRUE) -> TRUE | V4: =IFERROR(IF(OR(U4=FALSE,INDEX('Player Notes'!$I$3:$I$999,MATCH(A4,'Player Notes'!$A$3:$A$999,0),1)="Yes"),"",IFERROR(CHOOSE('Guts-2'!$D$27,O4,P4,Q4,R4,S4,T4),"")),"") -> 15.4 | W4: 14 | X4: =IFERROR(IF(OR(U4=FALSE,INDEX('Player Notes'!$I$3:$I$999,MATCH(A4,'Player Notes'!$A$3:$A$999,0),1)="Yes"),"",CHOOSE('Guts-2'!$D$26,G4,H4,I4,J4,K4,L4,M4,N4)),"") -> 0.01001388889 | Y4: =IF(U4=FALSE,"",IFERROR(IF(INDEX('Auction-Rank'!$G$1:$N$955,MATCH($A4,'Auction-Rank'!$A$1:$A$955,0),'Guts-2'!$D$26)="","",INDEX('Auction-Rank'!$G$1:$N$955,MATCH($A4,'Auction-Rank'!$A$1:$A$955,0),'Guts-2'!$D$26)),"")) -> 0.01001388889 | Z4: =IF(Y4="","",IF(U4=FALSE,"",Y4*(SUMIF($X$2:$X$955,"<>""",$X$2:$X$955)/SUMIF($Y$2:$Y$955,"<>""",$Y$2:$Y$955)))) -> 0.01001388889 | AA4: =IFERROR(IF(VLOOKUP(A5,'Name Sort'!$D$2:$E$936,2,FALSE)="",A5,""),"") -> Willy Adames | AB4: =IFERROR(INDEX($AA$1:$AA$955,SMALL(IF($AA$1:$AA$955<>"",ROW($AA$1:$AA$955)),ROW(AA4))),"") -> Willy Adames
A5: Willy Adames | B5: adamewi01 | C5: SS | E5: MIL | F5: 26 | G5: 0.002011111111 | H5: 0.003333333333 | I5: 0.0003333333333 | J5: 0.001666666667 | K5: 0.0009166666667 | L5: 0.002222222222 | M5: 0.001747222222 | N5: =IFERROR(VLOOKUP(A5,'Import (Values)'!$B$2:$C$999,2,FALSE)/3120,"") ->  | O5: 145 | P5: 133.7 | Q5: 210 | R5: 106 | S5: 127.3 | U5: =IFERROR(INDEX('Guts-2'!$K$1:$K$30,MATCH(E5,'Guts-2'!$J$1:$J$30,0)),TRUE) -> TRUE | V5: =IFERROR(IF(OR(U5=FALSE,INDEX('Player Notes'!$I$3:$I$999,MATCH(A5,'Player Notes'!$A$3:$A$999,0),1)="Yes"),"",IFERROR(CHOOSE('Guts-2'!$D$27,O5,P5,Q5,R5,S5,T5),"")),"") -> 127.3 | W5: 121 | X5: =IFERROR(IF(OR(U5=FALSE,INDEX('Player Notes'!$I$3:$I$999,MATCH(A5,'Player Notes'!$A$3:$A$999,0),1)="Yes"),"",CHOOSE('Guts-2'!$D$26,G5,H5,I5,J5,K5,L5,M5,N5)),"") -> 0.001747222222 | Y5: =IF(U5=FALSE,"",IFERROR(IF(INDEX('Auction-Rank'!$G$1:$N$955,MATCH($A5,'Auction-Rank'!$A$1:$A$955,0),'Guts-2'!$D$26)="","",INDEX('Auction-Rank'!$G$1:$N$955,MATCH($A5,'Auction-Rank'!$A$1:$A$955,0),'Guts-2'!$D$26)),"")) -> 0.001747222222 | Z5: =IF(Y5="","",IF(U5=FALSE,"",Y5*(SUMIF($X$2:$X$955,"<>""",$X$2:$X$955)/SUMIF($Y$2:$Y$955,"<>""",$Y$2:$Y$955)))) -> 0.001747222222 | AA5: =IFERROR(IF(VLOOKUP(A6,'Name Sort'!$D$2:$E$936,2,FALSE)="",A6,""),"") -> Riley Adams | AB5: =IFERROR(INDEX($AA$1:$AA$955,SMALL(IF($AA$1:$AA$955<>"",ROW($AA$1:$AA$955)),ROW(AA5))),"") -> Riley Adams
A6: Riley Adams | B6: adamsri03 | C6: C | E6: WAS | F6: 25 | N6: =IFERROR(VLOOKUP(A6,'Import (Values)'!$B$2:$C$999,2,FALSE)/3120,"") ->  | S6: 702 | U6: =IFERROR(INDEX('Guts-2'!$K$1:$K$30,MATCH(E6,'Guts-2'!$J$1:$J$30,0)),TRUE) -> TRUE | V6: =IFERROR(IF(OR(U6=FALSE,INDEX('Player Notes'!$I$3:$I$999,MATCH(A6,'Player Notes'!$A$3:$A$999,0),1)="Yes"),"",IFERROR(CHOOSE('Guts-2'!$D$27,O6,P6,Q6,R6,S6,T6),"")),"") -> 702 | W6: 618 | X6: =IFERROR(IF(OR(U6=FALSE,INDEX('Player Notes'!$I$3:$I$999,MATCH(A6,'Player Notes'!$A$3:$A$999,0),1)="Yes"),"",CHOOSE('Guts-2'!$D$26,G6,H6,I6,J6,K6,L6,M6,N6)),"") ->  | Y6: =IF(U6=FALSE,"",IFERROR(IF(INDEX('Auction-Rank'!$G$1:$N$955,MATCH($A6,'Auction-Rank'!$A$1:$A$955,0),'Guts-2'!$D$26)="","",INDEX('Auction-Rank'!$G$1:$N$955,MATCH($A6,'Auction-Rank'!$A$1:$A$955,0),'Guts-2'!$D$26)),"")) ->  | Z6: =IF(Y6="","",IF(U6=FALSE,"",Y6*(SUMIF($X$2:$X$955,"<>""",$X$2:$X$955)/SUMIF($Y$2:$Y$955,"<>""",$Y$2:$Y$955)))) ->  | AA6: =IFERROR(IF(VLOOKUP(A7,'Name Sort'!$D$2:$E$936,2,FALSE)="",A7,""),"") -> Jo Adell | AB6: =IFERROR(INDEX($AA$1:$AA$955,SMALL(IF($AA$1:$AA$955<>"",ROW($AA$1:$AA$955)),ROW(AA6))),"") -> Jo Adell
A7: Jo Adell | B7: adelljo01 | C7: OF | D7: LF,RF | E7: LAA | F7: 22 | H7: 0.0008333333333 | I7: 2.777777778e-05 | J7: 0 | K7: 0.0003611111111 | M7: 0.0003055555556 | N7: =IFERROR(VLOOKUP(A7,'Import (Values)'!$B$2:$C$999,2,FALSE)/3120,"") ->  | P7: 193.7 | R7: 247 | S7: 201.6 | U7: =IFERROR(INDEX('Guts-2'!$K$1:$K$30,MATCH(E7,'Guts-2'!$J$1:$J$30,0)),TRUE) -> TRUE | V7: =IFERROR(IF(OR(U7=FALSE,INDEX('Player Notes'!$I$3:$I$999,MATCH(A7,'Player Notes'!$A$3:$A$999,0),1)="Yes"),"",IFERROR(CHOOSE('Guts-2'!$D$27,O7,P7,Q7,R7,S7,T7),"")),"") -> 201.6 | W7: 201 | X7: =IFERROR(IF(OR(U7=FALSE,INDEX('Player Notes'!$I$3:$I$999,MATCH(A7,'Player Notes'!$A$3:$A$999,0),1)="Yes"),"",CHOOSE('Guts-2'!$D$26,G7,H7,I7,J7,K7,L7,M7,N7)),"") -> 0.0003055555556 | Y7: =IF(U7=FALSE,"",IFERROR(IF(INDEX('Auction-Rank'!$G$1:$N$955,MATCH($A7,'Auction-Rank'!$A$1:$A$955,0),'Guts-2'!$D$26)="","",INDEX('Auction-Rank'!$G$1:$N$955,MATCH($A7,'Auction-Rank'!$A$1:$A$955,0),'Guts-2'!$D$26)),"")) -> 0.0003055555556 | Z7: =IF(Y7="","",IF(U7=FALSE,"",Y7*(SUMIF($X$2:$X$955,"<>""",$X$2:$X$955)/SUMIF($Y$2:$Y$955,"<>""",$Y$2:$Y$955)))) -> 0.0003055555556 | AA7: =IFERROR(IF(VLOOKUP(A8,'Name Sort'!$D$2:$E$936,2,FALSE)="",A8,""),"") -> Ehire Adrianza | AB7: =IFERROR(INDEX($AA$1:$AA$955,SMALL(IF($AA$1:$AA$955<>"",ROW($AA$1:$AA$955)),ROW(AA7))),"") -> Ehire Adrianza
A8: Ehire Adrianza | B8: adriaeh01 | C8: OF | D8: LF,RF | E8: WAS | F8: 32 | N8: =IFERROR(VLOOKUP(A8,'Import (Values)'!$B$2:$C$999,2,FALSE)/3120,"") ->  | S8: 1149.5 | U8: =IFERROR(INDEX('Guts-2'!$K$1:$K$30,MATCH(E8,'Guts-2'!$J$1:$J$30,0)),TRUE) -> TRUE | V8: =IFERROR(IF(OR(U8=FALSE,INDEX('Player Notes'!$I$3:$I$999,MATCH(A8,'Player Notes'!$A$3:$A$999,0),1)="Yes"),"",IFERROR(CHOOSE('Guts-2'!$D$27,O8,P8,Q8,R8,S8,T8),"")),"") -> 1149.5 | W8: 736 | X8: =IFERROR(IF(OR(U8=FALSE,INDEX('Player Notes'!$I$3:$I$999,MATCH(A8,'Player Notes'!$A$3:$A$999,0),1)="Yes"),"",CHOOSE('Guts-2'!$D$26,G8,H8,I8,J8,K8,L8,M8,N8)),"") ->  | Y8: =IF(U8=FALSE,"",IFERROR(IF(INDEX('Auction-Rank'!$G$1:$N$955,MATCH($A8,'Auction-Rank'!$A$1:$A$955,0),'Guts-2'!$D$26)="","",INDEX('Auction-Rank'!$G$1:$N$955,MATCH($A8,'Auction-Rank'!$A$1:$A$955,0),'Guts-2'!$D$26)),"")) ->  | Z8: =IF(Y8="","",IF(U8=FALSE,"",Y8*(SUMIF($X$2:$X$955,"<>""",$X$2:$X$955)/SUMIF($Y$2:$Y$955,"<>""",$Y$2:$Y$955)))) ->  | AA8: =IFERROR(IF(VLOOKUP(A9,'Name Sort'!$D$2:$E$936,2,FALSE)="",A9,""),"") -> Jesus Aguilar | AB8: =IFERROR(INDEX($AA$1:$AA$955,SMALL(IF($AA$1:$AA$955<>"",ROW($AA$1:$AA$955)),ROW(AA8))),"") -> Jesus Aguilar
A9: Jesus Aguilar | B9: aguilje01 | C9: 1B | E9: MIA | F9: 31 | H9: 0.0002777777778 | I9: 0.0001944444444 | J9: 0.0002777777778 | K9: 0.0003055555556 | L9: 0.0008333333333 | M9: 0.0003777777778 | N9: =IFERROR(VLOOKUP(A9,'Import (Values)'!$B$2:$C$999,2,FALSE)/3120,"") ->  | P9: 213.3 | Q9: 230 | R9: 245 | S9: 232.6 | U9: =IFERROR(INDEX('Guts-2'!$K$1:$K$30,MATCH(E9,'Guts-2'!$J$1:$J$30,0)),TRUE) -> TRUE | V9: =IFERROR(IF(OR(U9=FALSE,INDEX('Player Notes'!$I$3:$I$999,MATCH(A9,'Player Notes'!$A$3:$A$999,0),1)="Yes"),"",IFERROR(CHOOSE('Guts-2'!$D$27,O9,P9,Q9,R9,S9,T9),"")),"") -> 232.6 | W9: 225 | X9: =IFERROR(IF(OR(U9=FALSE,INDEX('Player Notes'!$I$3:$I$999,MATCH(A9,'Player Notes'!$A$3:$A$999,0),1)="Yes"),"",CHOOSE('Guts-2'!$D$26,G9,H9,I9,J9,K9,L9,M9,N9)),"") -> 0.0003777777778 | Y9: =IF(U9=FALSE,"",IFERROR(IF(INDEX('Auction-Rank'!$G$1:$N$955,MATCH($A9,'Auction-Rank'!$A$1:$A$955,0),'Guts-2'!$D$26)="","",INDEX('Auction-Rank'!$G$1:$N$955,MATCH($A9,'Auction-Rank'!$A$1:$A$955,0),'Guts-2'!$D$26)),"")) -> 0.0003777777778 | Z9: =IF(Y9="","",IF(U9=FALSE,"",Y9*(SUMIF($X$2:$X$955,"<>""",$X$2:$X$955)/SUMIF($Y$2:$Y$955,"<>""",$Y$2:$Y$955)))) -> 0.0003777777778 | AA9: =IFERROR(IF(VLOOKUP(A10,'Name Sort'!$D$2:$E$936,2,FALSE)="",A10,""),"") -> Nick Ahmed | AB9: =IFERROR(INDEX($AA$1:$AA$955,SMALL(IF($AA$1:$AA$955<>"",ROW($AA$1:$AA$955)),ROW(AA9))),"") -> Nick Ahmed
A10: Nick Ahmed | B10: ahmedni01 | C10: SS | E10: ARI | F10: 32 | N10: =IFERROR(VLOOKUP(A10,'Import (Values)'!$B$2:$C$999,2,FALSE)/3120,"") ->  | S10: 411.8 | U10: =IFERROR(INDEX('Guts-2'!$K$1:$K$30,MATCH(E10,'Guts-2'!$J$1:$J$30,0)),TRUE) -> TRUE | V10: =IFERROR(IF(OR(U10=FALSE,INDEX('Player Notes'!$I$3:$I$999,MATCH(A10,'Player Notes'!$A$3:$A$999,0),1)="Yes"),"",IFERROR(CHOOSE('Guts-2'!$D$27,O10,P10,Q10,R10,S10,T10),"")),"") -> 411.8 | W10: 432 | X10: =IFERROR(IF(OR(U10=FALSE,INDEX('Player Notes'!$I$3:$I$999,MATCH(A10,'Player Notes'!$A$3:$A$999,0),1)="Yes"),"",CHOOSE('Guts-2'!$D$26,G10,H10,I10,J10,K10,L10,M10,N10)),"") ->  | Y10: =IF(U10=FALSE,"",IFERROR(IF(INDEX('Auction-Rank'!$G$1:$N$955,MATCH($A10,'Auction-Rank'!$A$1:$A$955,0),'Guts-2'!$D$26)="","",INDEX('Auction-Rank'!$G$1:$N$955,MATCH($A10,'Auction-Rank'!$A$1:$A$955,0),'Guts-2'!$D$26)),"")) ->  | Z10: =IF(Y10="","",IF(U10=FALSE,"",Y10*(SUMIF($X$2:$X$955,"<>""",$X$2:$X$955)/SUMIF($Y$2:$Y$955,"<>""",$Y$2:$Y$955)))) ->  | AA10: =IFERROR(IF(VLOOKUP(A11,'Name Sort'!$D$2:$E$936,2,FALSE)="",A11,""),"") -> Shogo Akiyama | AB10: =IFERROR(INDEX($AA$1:$AA$955,SMALL(IF($AA$1:$AA$955<>"",ROW($AA$1:$AA$955)),ROW(AA10))),"") -> Shogo Akiyama
A11: Shogo Akiyama | B11: akimash01 | C11: OF | D11: CF | E11: CIN | F11: 33 | N11: =IFERROR(VLOOKUP(A11,'Import (Values)'!$B$2:$C$999,2,FALSE)/3120,"") ->  | S11: 1176.5 | U11: =IFERROR(INDEX('Guts-2'!$K$1:$K$30,MATCH(E11,'Guts-2'!$J$1:$J$30,0)),TRUE) -> TRUE | V11: =IFERROR(IF(OR(U11=FALSE,INDEX('Player Notes'!$I$3:$I$999,MATCH(A11,'Player Notes'!$A$3:$A$999,0),1)="Yes"),"",IFERROR(CHOOSE('Guts-2'!$D$27,O11,P11,Q11,R11,S11,T11),"")),"") -> 1176.5 | W11: 744 | X11: =IFERROR(IF(OR(U11=FALSE,INDEX('Player Notes'!$I$3:$I$999,MATCH(A11,'Player Notes'!$A$3:$A$999,0),1)="Yes"),"",CHOOSE('Guts-2'!$D$26,G11,H11,I11,J11,K11,L11,M11,N11)),"") ->  | Y11: =IF(U11=FALSE,"",IFERROR(IF(INDEX('Auction-Rank'!$G$1:$N$955,MATCH($A11,'Auction-Rank'!$A$1:$A$955,0),'Guts-2'!$D$26)="","",INDEX('Auction-Rank'!$G$1:$N$955,MATCH($A11,'Auction-Rank'!$A$1:$A$955,0),'Guts-2'!$D$26)),"")) ->  | Z11: =IF(Y11="","",IF(U11=FALSE,"",Y11*(SUMIF($X$2:$X$955,"<>""",$X$2:$X$955)/SUMIF($Y$2:$Y$955,"<>""",$Y$2:$Y$955)))) ->  | AA11: =IFERROR(IF(VLOOKUP(A12,'Name Sort'!$D$2:$E$936,2,FALSE)="",A12,""),"") -> Ozzie Albies | AB11: =IFERROR(INDEX($AA$1:$AA$955,SMALL(IF($AA$1:$AA$955<>"",ROW($AA$1:$AA$955)),ROW(AA11))),"") -> Ozzie Albies
A12: Ozzie Albies | B12: albieoz01 | C12: 2B | E12: ATL | F12: 25 | G12: 0.008544444444 | H12: 0.008055555556 | I12: 0.006777777778 | J12: 0.007777777778 | K12: 0.008777777778 | L12: 0.006944444444 | M12: 0.007812962963 | N12: =IFERROR(VLOOKUP(A12,'Import (Values)'!$B$2:$C$999,2,FALSE)/3120,"") ->  | O12: 18 | P12: 18 | Q12: 25 | R12: 20 | S12: 17.3 | U12: =IFERROR(INDEX('Guts-2'!$K$1:$K$30,MATCH(E12,'Guts-2'!$J$1:$J$30,0)),TRUE) -> TRUE | V12: =IFERROR(IF(OR(U12=FALSE,INDEX('Player Notes'!$I$3:$I$999,MATCH(A12,'Player Notes'!$A$3:$A$999,0),1)="Yes"),"",IFERROR(CHOOSE('Guts-2'!$D$27,O12,P12,Q12,R12,S12,T12),"")),"") -> 17.3 | W12: 17 | X12: =IFERROR(IF(OR(U12=FALSE,INDEX('Player Notes'!$I$3:$I$999,MATCH(A12,'Player Notes'!$A$3:$A$999,0),1)="Yes"),"",CHOOSE('Guts-2'!$D$26,G12,H12,I12,J12,K12,L12,M12,N12)),"") -> 0.007812962963 | Y12: =IF(U12=FALSE,"",IFERROR(IF(INDEX('Auction-Rank'!$G$1:$N$955,MATCH($A12,'Auction-Rank'!$A$1:$A$955,0),'Guts-2'!$D$26)="","",INDEX('Auction-Rank'!$G$1:$N$955,MATCH($A12,'Auction-Rank'!$A$1:$A$955,0),'Guts-2'!$D$26)),"")) -> 0.007812962963 | Z12: =IF(Y12="","",IF(U12=FALSE,"",Y12*(SUMIF($X$2:$X$955,"<>""",$X$2:$X$955)/SUMIF($Y$2:$Y$955,"<>""",$Y$2:$Y$955)))) -> 0.007812962963 | AA12: =IFERROR(IF(VLOOKUP(A13,'Name Sort'!$D$2:$E$936,2,FALSE)="",A13,""),"") -> Jorge Alcala | AB12: =IFERROR(INDEX($AA$1:$AA$955,SMALL(IF($AA$1:$AA$955<>"",ROW($AA$1:$AA$955)),ROW(AA12))),"") -> Jorge Alcala
A13: Jorge Alcala | B13: alcaljo01 | C13: RP | E13: MIN | F13: 26 | J13: 0 | M13: 0 | N13: =IFERROR(VLOOKUP(A13,'Import (Values)'!$B$2:$C$999,2,FALSE)/3120,"") ->  | S13: 359 | U13: =IFERROR(INDEX('Guts-2'!$K$1:$K$30,MATCH(E13,'Guts-2'!$J$1:$J$30,0)),TRUE) -> TRUE | V13: =IFERROR(IF(OR(U13=FALSE,INDEX('Player Notes'!$I$3:$I$999,MATCH(A13,'Player Notes'!$A$3:$A$999,0),1)="Yes"),"",IFERROR(CHOOSE('Guts-2'!$D$27,O13,P13,Q13,R13,S13,T13),"")),"") -> 359 | W13: 381 | X13: =IFERROR(IF(OR(U13=FALSE,INDEX('Player Notes'!$I$3:$I$999,MATCH(A13,'Player Notes'!$A$3:$A$999,0),1)="Yes"),"",CHOOSE('Guts-2'!$D$26,G13,H13,I13,J13,K13,L13,M13,N13)),"") -> 0 | Y13: =IF(U13=FALSE,"",IFERROR(IF(INDEX('Auction-Rank'!$G$1:$N$955,MATCH($A13,'Auction-Rank'!$A$1:$A$955,0),'Guts-2'!$D$26)="","",INDEX('Auction-Rank'!$G$1:$N$955,MATCH($A13,'Auction-Rank'!$A$1:$A$955,0),'Guts-2'!$D$26)),"")) -> 0 | Z13: =IF(Y13="","",IF(U13=FALSE,"",Y13*(SUMIF($X$2:$X$955,"<>""",$X$2:$X$955)/SUMIF($Y$2:$Y$955,"<>""",$Y$2:$Y$955)))) -> 0 | AA13: =IFERROR(IF(VLOOKUP(A14,'Name Sort'!$D$2:$E$936,2,FALSE)="",A14,""),"") -> Sandy Alcantara | AB13: =IFERROR(INDEX($AA$1:$AA$955,SMALL(IF($AA$1:$AA$955<>"",ROW($AA$1:$AA$955)),ROW(AA13))),"") -> Sandy Alcantara
A14: Sandy Alcantara | B14: alcansa01 | C14: SP | E14: ARI | F14: 26 | G14: 0.004238888889 | H14: 0.0075 | I14: 0.00575 | J14: 0.004722222222 | K14: 0.005888888889 | L14: 0.003611111111 | M14: 0.005285185185 | N14: =IFERROR(VLOOKUP(A14,'Import (Values)'!$B$2:$C$999,2,FALSE)/3120,"") ->  | O14: 80 | P14: 53.3 | Q14: 28 | R14: 38 | S14: 42.9 | U14: =IFERROR(INDEX('Guts-2'!$K$1:$K$30,MATCH(E14,'Guts-2'!$J$1:$J$30,0)),TRUE) -> TRUE | V14: =IFERROR(IF(OR(U14=FALSE,INDEX('Player Notes'!$I$3:$I$999,MATCH(A14,'Player Notes'!$A$3:$A$999,0),1)="Yes"),"",IFERROR(CHOOSE('Guts-2'!$D$27,O14,P14,Q14,R14,S14,T14),"")),"") -> 42.9 | W14: 42 | X14: =IFERROR(IF(OR(U14=FALSE,INDEX('Player Notes'!$I$3:$I$999,MATCH(A14,'Player Notes'!$A$3:$A$999,0),1)="Yes"),"",CHOOSE('Guts-2'!$D$26,G14,H14,I14,J14,K14,L14,M14,N14)),"") -> 0.005285185185 | Y14: =IF(U14=FALSE,"",IFERROR(IF(INDEX('Auction-Rank'!$G$1:$N$955,MATCH($A14,'Auction-Rank'!$A$1:$A$955,0),'Guts-2'!$D$26)="","",INDEX('Auction-Rank'!$G$1:$N$955,MATCH($A14,'Auction-Rank'!$A$1:$A$955,0),'Guts-2'!$D$26)),"")) -> 0.005285185185 | Z14: =IF(Y14="","",IF(U14=FALSE,"",Y14*(SUMIF($X$2:$X$955,"<>""",$X$2:$X$955)/SUMIF($Y$2:$Y$955,"<>""",$Y$2:$Y$955)))) -> 0.005285185185 | AA14: =IFERROR(IF(VLOOKUP(A15,'Name Sort'!$D$2:$E$936,2,FALSE)="",A15,""),"") -> Sergio Alcantara | AB14: =IFERROR(INDEX($AA$1:$AA$955,SMALL(IF($AA$1:$AA$955<>"",ROW($AA$1:$AA$955)),ROW(AA14))),"") -> Sergio Alcantara
A15: Sergio Alcantara | B15: alcanse01 | C15: SS | E15: CHC | F15: 25 | N15: =IFERROR(VLOOKUP(A15,'Import (Values)'!$B$2:$C$999,2,FALSE)/3120,"") ->  | S15: 1207 | U15: =IFERROR(INDEX('Guts-2'!$K$1:$K$30,MATCH(E15,'Guts-2'!$J$1:$J$30,0)),TRUE) -> TRUE | V15: =IFERROR(IF(OR(U15=FALSE,INDEX('Player Notes'!$I$3:$I$999,MATCH(A15,'Player Notes'!$A$3:$A$999,0),1)="Yes"),"",IFERROR(CHOOSE('Guts-2'!$D$27,O15,P15,Q15,R15,S15,T15),"")),"") -> 1207 | W15: 753 | X15: =IFERROR(IF(OR(U15=FALSE,INDEX('Player Notes'!$I$3:$I$999,MATCH(A15,'Player Notes'!$A$3:$A$999,0),1)="Yes"),"",CHOOSE('Guts-2'!$D$26,G15,H15,I15,J15,K15,L15,M15,N15)),"") ->  | Y15: =IF(U15=FALSE,"",IFERROR(IF(INDEX('Auction-Rank'!$G$1:$N$955,MATCH($A15,'Auction-Rank'!$A$1:$A$955,0),'Guts-2'!$D$26)="","",INDEX('Auction-Rank'!$G$1:$N$955,MATCH($A15,'Auction-Rank'!$A$1:$A$955,0),'Guts-2'!$D$26)),"")) ->  | Z15: =IF(Y15="","",IF(U15=FALSE,"",Y15*(SUMIF($X$2:$X$955,"<>""",$X$2:$X$955)/SUMIF($Y$2:$Y$955,"<>""",$Y$2:$Y$955)))) ->  | AA15: =IFERROR(IF(VLOOKUP(A16,'Name Sort'!$D$2:$E$936,2,FALSE)="",A16,""),"") -> Tyler Alexander | AB15: =IFERROR(INDEX($AA$1:$AA$955,SMALL(IF($AA$1:$AA$955<>"",ROW($AA$1:$AA$955)),ROW(AA15))),"") -> Tyler Alexander
A16: Tyler Alexander | B16: alexaty01 | C16: RP | E16: DET | F16: 27 | N16: =IFERROR(VLOOKUP(A16,'Import (Values)'!$B$2:$C$999,2,FALSE)/3120,"") ->  | S16: 713.5 | U16: =IFERROR(INDEX('Guts-2'!$K$1:$K$30,MATCH(E16,'Guts-2'!$J$1:$J$30,0)),TRUE) -> TRUE | V16: =IFERROR(IF(OR(U16=FALSE,INDEX('Player Notes'!$I$3:$I$999,MATCH(A16,'Player Notes'!$A$3:$A$999,0),1)="Yes"),"",IFERROR(CHOOSE('Guts-2'!$D$27,O16,P16,Q16,R16,S16,T16),"")),"") -> 713.5 | W16: 625 | X16: =IFERROR(IF(OR(U16=FALSE,INDEX('Player Notes'!$I$3:$I$999,MATCH(A16,'Player Notes'!$A$3:$A$999,0),1)="Yes"),"",CHOOSE('Guts-2'!$D$26,G16,H16,I16,J16,K16,L16,M16,N16)),"") ->  | Y16: =IF(U16=FALSE,"",IFERROR(IF(INDEX('Auction-Rank'!$G$1:$N$955,MATCH($A16,'Auction-Rank'!$A$1:$A$955,0),'Guts-2'!$D$26)="","",INDEX('Auction-Rank'!$G$1:$N$955,MATCH($A16,'Auction-Rank'!$A$1:$A$955,0),'Guts-2'!$D$26)),"")) ->  | Z16: =IF(Y16="","",IF(U16=FALSE,"",Y16*(SUMIF($X$2:$X$955,"<>""",$X$2:$X$955)/SUMIF($Y$2:$Y$955,"<>""",$Y$2:$Y$955)))) ->  | AA16: =IFERROR(IF(VLOOKUP(A17,'Name Sort'!$D$2:$E$936,2,FALSE)="",A17,""),"") -> A.J. Alexy | AB16: =IFERROR(INDEX($AA$1:$AA$955,SMALL(IF($AA$1:$AA$955<>"",ROW($AA$1:$AA$955)),ROW(AA16))),"") -> A.J. Alexy
A17: A.J. Alexy | B17: alexyaj01 | C17: SP | E17: TEX | F17: 23 | N17: =IFERROR(VLOOKUP(A17,'Import (Values)'!$B$2:$C$999,2,FALSE)/3120,"") ->  | S17: 835 | U17: =IFERROR(INDEX('Guts-2'!$K$1:$K$30,MATCH(E17,'Guts-2'!$J$1:$J$30,0)),TRUE) -> TRUE | V17: =IFERROR(IF(OR(U17=FALSE,INDEX('Player Notes'!$I$3:$I$999,MATCH(A17,'Player Notes'!$A$3:$A$999,0),1)="Yes"),"",IFERROR(CHOOSE('Guts-2'!$D$27,O17,P17,Q17,R17,S17,T17),"")),"") -> 835 | W17: 660 | X17: =IFERROR(IF(OR(U17=FALSE,INDEX('Player Notes'!$I$3:$I$999,MATCH(A17,'Player Notes'!$A$3:$A$999,0),1)="Yes"),"",CHOOSE('Guts-2'!$D$26,G17,H17,I17,J17,K17,L17,M17,N17)),"") ->  | Y17: =IF(U17=FALSE,"",IFERROR(IF(INDEX('Auction-Rank'!$G$1:$N$955,MATCH($A17,'Auction-Rank'!$A$1:$A$955,0),'Guts-2'!$D$26)="","",INDEX('Auction-Rank'!$G$1:$N$955,MATCH($A17,'Auction-Rank'!$A$1:$A$955,0),'Guts-2'!$D$26)),"")) ->  | Z17: =IF(Y17="","",IF(U17=FALSE,"",Y17*(SUMIF($X$2:$X$955,"<>""",$X$2:$X$955)/SUMIF($Y$2:$Y$955,"<>""",$Y$2:$Y$955)))) ->  | AA17: =IFERROR(IF(VLOOKUP(A18,'Name Sort'!$D$2:$E$936,2,FALSE)="",A18,""),"") -> Jorge Alfaro | AB17: =IFERROR(INDEX($AA$1:$AA$955,SMALL(IF($AA$1:$AA$955<>"",ROW($AA$1:$AA$955)),ROW(AA17))),"") -> Jorge Alfaro
A18: Jorge Alfaro | B18: alfarjo01 | C18: C | D18: LF | E18: SD | F18: 28 | N18: =IFERROR(VLOOKUP(A18,'Import (Values)'!$B$2:$C$999,2,FALSE)/3120,"") ->  | S18: 409.5 | U18: =IFERROR(INDEX('Guts-2'!$K$1:$K$30,MATCH(E18,'Guts-2'!$J$1:$J$30,0)),TRUE) -> TRUE | V18: =IFERROR(IF(OR(U18=FALSE,INDEX('Player Notes'!$I$3:$I$999,MATCH(A18,'Player Notes'!$A$3:$A$999,0),1)="Yes"),"",IFERROR(CHOOSE('Guts-2'!$D$27,O18,P18,Q18,R18,S18,T18),"")),"") -> 409.5 | W18: 428 | X18: =IFERROR(IF(OR(U18=FALSE,INDEX('Player Notes'!$I$3:$I$999,MATCH(A18,'Player Notes'!$A$3:$A$999,0),1)="Yes"),"",CHOOSE('Guts-2'!$D$26,G18,H18,I18,J18,K18,L18,M18,N18)),"") ->  | Y18: =IF(U18=FALSE,"",IFERROR(IF(INDEX('Auction-Rank'!$G$1:$N$955,MATCH($A18,'Auction-Rank'!$A$1:$A$955,0),'Guts-2'!$D$26)="","",INDEX('Auction-Rank'!$G$1:$N$955,MATCH($A18,'Auction-Rank'!$A$1:$A$955,0),'Guts-2'!$D$26)),"")) ->  | Z18: =IF(Y18="","",IF(U18=FALSE,"",Y18*(SUMIF($X$2:$X$955,"<>""",$X$2:$X$955)/SUMIF($Y$2:$Y$955,"<>""",$Y$2:$Y$955)))) ->  | AA18: =IFERROR(IF(VLOOKUP(A19,'Name Sort'!$D$2:$E$936,2,FALSE)="",A19,""),"") -> Anthony Alford | AB18: =IFERROR(INDEX($AA$1:$AA$955,SMALL(IF($AA$1:$AA$955<>"",ROW($AA$1:$AA$955)),ROW(AA18))),"") -> Anthony Alford
A19: Anthony Alford | B19: alforan01 | C19: OF | D19: LF,CF | E19: PIT | F19: 27 | N19: =IFERROR(VLOOKUP(A19,'Import (Values)'!$B$2:$C$999,2,FALSE)/3120,"") ->  | S19: 467.7 | U19: =IFERROR(INDEX('Guts-2'!$K$1:$K$30,MATCH(E19,'Guts-2'!$J$1:$J$30,0)),TRUE) -> TRUE | V19: =IFERROR(IF(OR(U19=FALSE,INDEX('Player Notes'!$I$3:$I$999,MATCH(A19,'Player Notes'!$A$3:$A$999,0),1)="Yes"),"",IFERROR(CHOOSE('Guts-2'!$D$27,O19,P19,Q19,R19,S19,T19),"")),"") -> 467.7 | W19: 498 | X19: =IFERROR(IF(OR(U19=FALSE,INDEX('Player Notes'!$I$3:$I$999,MATCH(A19,'Player Notes'!$A$3:$A$999,0),1)="Yes"),"",CHOOSE('Guts-2'!$D$26,G19,H19,I19,J19,K19,L19,M19,N19)),"") ->  | Y19: =IF(U19=FALSE,"",IFERROR(IF(INDEX('Auction-Rank'!$G$1:$N$955,MATCH($A19,'Auction-Rank'!$A$1:$A$955,0),'Guts-2'!$D$26)="","",INDEX('Auction-Rank'!$G$1:$N$955,MATCH($A19,'Auction-Rank'!$A$1:$A$955,0),'Guts-2'!$D$26)),"")) ->  | Z19: =IF(Y19="","",IF(U19=FALSE,"",Y19*(SUMIF($X$2:$X$955,"<>""",$X$2:$X$955)/SUMIF($Y$2:$Y$955,"<>""",$Y$2:$Y$955)))) ->  | AA19: =IFERROR(IF(VLOOKUP(A20,'Name Sort'!$D$2:$E$936,2,FALSE)="",A20,""),"") -> Kolby Allard | AB19: =IFERROR(INDEX($AA$1:$AA$955,SMALL(IF($AA$1:$AA$955<>"",ROW($AA$1:$AA$955)),ROW(AA19))),"") -> Kolby Allard
A20: Kolby Allard | B20: allarko01 | C20: RP | E20: TEX | F20: 24 | N20: =IFERROR(VLOOKUP(A20,'Import (Values)'!$B$2:$C$999,2,FALSE)/3120,"") ->  | S20: 636.5 | U20: =IFERROR(INDEX('Guts-2'!$K$1:$K$30,MATCH(E20,'Guts-2'!$J$1:$J$30,0)),TRUE) -> TRUE | V20: =IFERROR(IF(OR(U20=FALSE,INDEX('Player Notes'!$I$3:$I$999,MATCH(A20,'Player Notes'!$A$3:$A$999,0),1)="Yes"),"",IFERROR(CHOOSE('Guts-2'!$D$27,O20,P20,Q20,R20,S20,T20),"")),"") -> 636.5 | W20: 588 | X20: =IFERROR(IF(OR(U20=FALSE,INDEX('Player Notes'!$I$3:$I$999,MATCH(A20,'Player Notes'!$A$3:$A$999,0),1)="Yes"),"",CHOOSE('Guts-2'!$D$26,G20,H20,I20,J20,K20,L20,M20,N20)),"") ->  | Y20: =IF(U20=FALSE,"",IFERROR(IF(INDEX('Auction-Rank'!$G$1:$N$955,MATCH($A20,'Auction-Rank'!$A$1:$A$955,0),'Guts-2'!$D$26)="","",INDEX('Auction-Rank'!$G$1:$N$955,MATCH($A20,'Auction-Rank'!$A$1:$A$955,0),'Guts-2'!$D$26)),"")) ->  | Z20: =IF(Y20="","",IF(U20=FALSE,"",Y20*(SUMIF($X$2:$X$955,"<>""",$X$2:$X$955)/SUMIF($Y$2:$Y$955,"<>""",$Y$2:$Y$955)))) ->  | AA20: =IFERROR(IF(VLOOKUP(A21,'Name Sort'!$D$2:$E$936,2,FALSE)="",A21,""),"") -> Austin Allen | AB20: =IFERROR(INDEX($AA$1:$AA$955,SMALL(IF($AA$1:$AA$955<>"",ROW($AA$1:$AA$955)),ROW(AA20))),"") -> Austin Allen
A21: Austin Allen | B21: allenau01 | C21: DH | E21: OAK | F21: 28 | N21: =IFERROR(VLOOKUP(A21,'Import (Values)'!$B$2:$C$999,2,FALSE)/3120,"") ->  | S21: 949.5 | U21: =IFERROR(INDEX('Guts-2'!$K$1:$K$30,MATCH(E21,'Guts-2'!$J$1:$J$30,0)),TRUE) -> TRUE | V21: =IFERROR(IF(OR(U21=FALSE,INDEX('Player Notes'!$I$3:$I$999,MATCH(A21,'Player Notes'!$A$3:$A$999,0),1)="Yes"),"",IFERROR(CHOOSE('Guts-2'!$D$27,O21,P21,Q21,R21,S21,T21),"")),"") -> 949.5 | W21: 688 | X21: =IFERROR(IF(OR(U21=FALSE,INDEX('Player Notes'!$I$3:$I$999,MATCH(A21,'Player Notes'!$A$3:$A$999,0),1)="Yes"),"",CHOOSE('Guts-2'!$D$26,G21,H21,I21,J21,K21,L21,M21,N21)),"") ->  | Y21: =IF(U21=FALSE,"",IFERROR(IF(INDEX('Auction-Rank'!$G$1:$N$955,MATCH($A21,'Auction-Rank'!$A$1:$A$955,0),'Guts-2'!$D$26)="","",INDEX('Auction-Rank'!$G$1:$N$955,MATCH($A21,'Auction-Rank'!$A$1:$A$955,0),'Guts-2'!$D$26)),"")) ->  | Z21: =IF(Y21="","",IF(U21=FALSE,"",Y21*(SUMIF($X$2:$X$955,"<>""",$X$2:$X$955)/SUMIF($Y$2:$Y$955,"<>""",$Y$2:$Y$955)))) ->  | AA21: =IFERROR(IF(VLOOKUP(A22,'Name Sort'!$D$2:$E$936,2,FALSE)="",A22,""),"") -> Greg Allen | AB21: =IFERROR(INDEX($AA$1:$AA$955,SMALL(IF($AA$1:$AA$955<>"",ROW($AA$1:$AA$955)),ROW(AA21))),"") -> Greg Allen
A22: Greg Allen | B22: allengr01 | C22: OF | D22: RF | E22: PIT | F22: 29 | N22: =IFERROR(VLOOKUP(A22,'Import (Values)'!$B$2:$C$999,2,FALSE)/3120,"") ->  | S22: 967 | U22: =IFERROR(INDEX('Guts-2'!$K$1:$K$30,MATCH(E22,'Guts-2'!$J$1:$J$30,0)),TRUE) -> TRUE | V22: =IFERROR(IF(OR(U22=FALSE,INDEX('Player Notes'!$I$3:$I$999,MATCH(A22,'Player Notes'!$A$3:$A$999,0),1)="Yes"),"",IFERROR(CHOOSE('Guts-2'!$D$27,O22,P22,Q22,R22,S22,T22),"")),"") -> 967 | W22: 694 | X22: =IFERROR(IF(OR(U22=FALSE,INDEX('Player Notes'!$I$3:$I$999,MATCH(A22,'Player Notes'!$A$3:$A$999,0),1)="Yes"),"",CHOOSE('Guts-2'!$D$26,G22,H22,I22,J22,K22,L22,M22,N22)),"") ->  | Y22: =IF(U22=FALSE,"",IFERROR(IF(INDEX('Auction-Rank'!$G$1:$N$955,MATCH($A22,'Auction-Rank'!$A$1:$A$955,0),'Guts-2'!$D$26)="","",INDEX('Auction-Rank'!$G$1:$N$955,MATCH($A22,'Auction-Rank'!$A$1:$A$955,0),'Guts-2'!$D$26)),"")) ->  | Z22: =IF(Y22="","",IF(U22=FALSE,"",Y22*(SUMIF($X$2:$X$955,"<>""",$X$2:$X$955)/SUMIF($Y$2:$Y$955,"<>""",$Y$2:$Y$955)))) ->  | AA22: =IFERROR(IF(VLOOKUP(A23,'Name Sort'!$D$2:$E$936,2,FALSE)="",A23,""),"") -> Logan Allen | AB22: =IFERROR(INDEX($AA$1:$AA$955,SMALL(IF($AA$1:$AA$955<>"",ROW($AA$1:$AA$955)),ROW(AA22))),"") -> Logan Allen
A23: Logan Allen | B23: allenlo01 | C23: RP | E23: CLE | F23: 24 | N23: =IFERROR(VLOOKUP(A23,'Import (Values)'!$B$2:$C$999,2,FALSE)/3120,"") ->  | U23: =IFERROR(INDEX('Guts-2'!$K$1:$K$30,MATCH(E23,'Guts-2'!$J$1:$J$30,0)),TRUE) -> TRUE | V23: =IFERROR(IF(OR(U23=FALSE,INDEX('Player Notes'!$I$3:$I$999,MATCH(A23,'Player Notes'!$A$3:$A$999,0),1)="Yes"),"",IFERROR(CHOOSE('Guts-2'!$D$27,O23,P23,Q23,R23,S23,T23),"")),"") ->  | X23: =IFERROR(IF(OR(U23=FALSE,INDEX('Player Notes'!$I$3:$I$999,MATCH(A23,'Player Notes'!$A$3:$A$999,0),1)="Yes"),"",CHOOSE('Guts-2'!$D$26,G23,H23,I23,J23,K23,L23,M23,N23)),"") ->  | Y23: =IF(U23=FALSE,"",IFERROR(IF(INDEX('Auction-Rank'!$G$1:$N$955,MATCH($A23,'Auction-Rank'!$A$1:$A$955,0),'Guts-2'!$D$26)="","",INDEX('Auction-Rank'!$G$1:$N$955,MATCH($A23,'Auction-Rank'!$A$1:$A$955,0),'Guts-2'!$D$26)),"")) ->  | Z23: =IF(Y23="","",IF(U23=FALSE,"",Y23*(SUMIF($X$2:$X$955,"<>""",$X$2:$X$955)/SUMIF($Y$2:$Y$955,"<>""",$Y$2:$Y$955)))) ->  | AA23: =IFERROR(IF(VLOOKUP(A24,'Name Sort'!$D$2:$E$936,2,FALSE)="",A24,""),"") -> Pete Alonso | AB23: =IFERROR(INDEX($AA$1:$AA$955,SMALL(IF($AA$1:$AA$955<>"",ROW($AA$1:$AA$955)),ROW(AA23))),"") -> Pete Alonso
A24: Pete Alonso | B24: alonspe01 | C24: 1B | E24: NYM | F24: 27 | G24: 0.006636111111 | H24: 0.006944444444 | I24: 0.005416666667 | J24: 0.004722222222 | K24: 0.006111111111 | L24: 0.0075 | M24: 0.006221759259 | N24: =IFERROR(VLOOKUP(A24,'Import (Values)'!$B$2:$C$999,2,FALSE)/3120,"") ->  | O24: 31 | P24: 68 | Q24: 47 | R24: 54 | S24: 46.2 | U24: =IFERROR(INDEX('Guts-2'!$K$1:$K$30,MATCH(E24,'Guts-2'!$J$1:$J$30,0)),TRUE) -> TRUE | V24: =IFERROR(IF(OR(U24=FALSE,INDEX('Player Notes'!$I$3:$I$999,MATCH(A24,'Player Notes'!$A$3:$A$999,0),1)="Yes"),"",IFERROR(CHOOSE('Guts-2'!$D$27,O24,P24,Q24,R24,S24,T24),"")),"") -> 46.2 | W24: 44 | X24: =IFERROR(IF(OR(U24=FALSE,INDEX('Player Notes'!$I$3:$I$999,MATCH(A24,'Player Notes'!$A$3:$A$999,0),1)="Yes"),"",CHOOSE('Guts-2'!$D$26,G24,H24,I24,J24,K24,L24,M24,N24)),"") -> 0.006221759259 | Y24: =IF(U24=FALSE,"",IFERROR(IF(INDEX('Auction-Rank'!$G$1:$N$955,MATCH($A24,'Auction-Rank'!$A$1:$A$955,0),'Guts-2'!$D$26)="","",INDEX('Auction-Rank'!$G$1:$N$955,MATCH($A24,'Auction-Rank'!$A$1:$A$955,0),'Guts-2'!$D$26)),"")) -> 0.006221759259 | Z24: =IF(Y24="","",IF(U24=FALSE,"",Y24*(SUMIF($X$2:$X$955,"<>""",$X$2:$X$955)/SUMIF($Y$2:$Y$955,"<>""",$Y$2:$Y$955)))) -> 0.006221759259 | AA24: =IFERROR(IF(VLOOKUP(A25,'Name Sort'!$D$2:$E$936,2,FALSE)="",A25,""),"") -> Jose Altuve | AB24: =IFERROR(INDEX($AA$1:$AA$955,SMALL(IF($AA$1:$AA$955<>"",ROW($AA$1:$AA$955)),ROW(AA24))),"") -> Jose Altuve
A25: Jose Altuve | B25: altuvjo01 | C25: 2B | E25: HOU | F25: 31 | G25: 0.005525 | H25: 0.006944444444 | I25: 0.005694444444 | J25: 0.005 | K25: 0.005666666667 | L25: 0.004166666667 | M25: 0.005499537037 | N25: =IFERROR(VLOOKUP(A25,'Import (Values)'!$B$2:$C$999,2,FALSE)/3120,"") -> 0.01025641026 | O25: 47 | P25: 53 | Q25: 34 | R25: 46 | S25: 51.3 | U25: =IFERROR(INDEX('Guts-2'!$K$1:$K$30,MATCH(E25,'Guts-2'!$J$1:$J$30,0)),TRUE) -> TRUE | V25: =IFERROR(IF(OR(U25=FALSE,INDEX('Player Notes'!$I$3:$I$999,MATCH(A25,'Player Notes'!$A$3:$A$999,0),1)="Yes"),"",IFERROR(CHOOSE('Guts-2'!$D$27,O25,P25,Q25,R25,S25,T25),"")),"") -> 51.3 | W25: 50 | X25: =IFERROR(IF(OR(U25=FALSE,INDEX('Player Notes'!$I$3:$I$999,MATCH(A25,'Player Notes'!$A$3:$A$999,0),1)="Yes"),"",CHOOSE('Guts-2'!$D$26,G25,H25,I25,J25,K25,L25,M25,N25)),"") -> 0.005499537037 | Y25: =IF(U25=FALSE,"",IFERROR(IF(INDEX('Auction-Rank'!$G$1:$N$955,MATCH($A25,'Auction-Rank'!$A$1:$A$955,0),'Guts-2'!$D$26)="","",INDEX('Auction-Rank'!$G$1:$N$955,MATCH($A25,'Auction-Rank'!$A$1:$A$955,0),'Guts-2'!$D$26)),"")) -> 0.005499537037 | Z25: =IF(Y25="","",IF(U25=FALSE,"",Y25*(SUMIF($X$2:$X$955,"<>""",$X$2:$X$955)/SUMIF($Y$2:$Y$955,"<>""",$Y$2:$Y$955)))) -> 0.005499537037 | AA25: =IFERROR(IF(VLOOKUP(A26,'Name Sort'!$D$2:$E$936,2,FALSE)="",A26,""),"") -> Jose Alvarado | AB25: =IFERROR(INDEX($AA$1:$AA$955,SMALL(IF($AA$1:$AA$955<>"",ROW($AA$1:$AA$955)),ROW(AA25))),"") -> Jose Alvarado
A26: Jose Alvarado | B26: alvarjo03 | C26: RP | E26: PHI | F26: 26 | N26: =IFERROR(VLOOKUP(A26,'Import (Values)'!$B$2:$C$999,2,FALSE)/3120,"") ->  | S26: 447.8 | U26: =IFERROR(INDEX('Guts-2'!$K$1:$K$30,MATCH(E26,'Guts-2'!$J$1:$J$30,0)),TRUE) -> TRUE | V26: =IFERROR(IF(OR(U26=FALSE,INDEX('Player Notes'!$I$3:$I$999,MATCH(A26,'Player Notes'!$A$3:$A$999,0),1)="Yes"),"",IFERROR(CHOOSE('Guts-2'!$D$27,O26,P26,Q26,R26,S26,T26),"")),"") -> 447.8 | W26: 473 | X26: =IFERROR(IF(OR(U26=FALSE,INDEX('Player Notes'!$I$3:$I$999,MATCH(A26,'Player Notes'!$A$3:$A$999,0),1)="Yes"),"",CHOOSE('Guts-2'!$D$26,G26,H26,I26,J26,K26,L26,M26,N26)),"") ->  | Y26: =IF(U26=FALSE,"",IFERROR(IF(INDEX('Auction-Rank'!$G$1:$N$955,MATCH($A26,'Auction-Rank'!$A$1:$A$955,0),'Guts-2'!$D$26)="","",INDEX('Auction-Rank'!$G$1:$N$955,MATCH($A26,'Auction-Rank'!$A$1:$A$955,0),'Guts-2'!$D$26)),"")) ->  | Z26: =IF(Y26="","",IF(U26=FALSE,"",Y26*(SUMIF($X$2:$X$955,"<>""",$X$2:$X$955)/SUMIF($Y$2:$Y$955,"<>""",$Y$2:$Y$955)))) ->  | AA26: =IFERROR(IF(VLOOKUP(A27,'Name Sort'!$D$2:$E$936,2,FALSE)="",A27,""),"") -> Yordan Alvarez | AB26: =IFERROR(INDEX($AA$1:$AA$955,SMALL(IF($AA$1:$AA$955<>"",ROW($AA$1:$AA$955)),ROW(AA26))),"") -> Yordan Alvarez
A27: Yordan Alvarez | B27: alvaryo01 | C27: DH | D27: LF | E27: HOU | F27: 24 | G27: 0.008030555556 | H27: 0.0075 | I27: 0.0065 | J27: 0.007777777778 | K27: 0.008638888889 | L27: 0.009166666667 | M27: 0.007935648148 | N27: =IFERROR(VLOOKUP(A27,'Import (Values)'!$B$2:$C$999,2,FALSE)/3120,"") ->  | O27: 21 | P27: 19.3 | Q27: 37 | R27: 19 | S27: 23.1 | U27: =IFERROR(INDEX('Guts-2'!$K$1:$K$30,MATCH(E27,'Guts-2'!$J$1:$J$30,0)),TRUE) -> TRUE | V27: =IFERROR(IF(OR(U27=FALSE,INDEX('Player Notes'!$I$3:$I$999,MATCH(A27,'Player Notes'!$A$3:$A$999,0),1)="Yes"),"",IFERROR(CHOOSE('Guts-2'!$D$27,O27,P27,Q27,R27,S27,T27),"")),"") -> 23.1 | W27: 22 | X27: =IFERROR(IF(OR(U27=FALSE,INDEX('Player Notes'!$I$3:$I$999,MATCH(A27,'Player Notes'!$A$3:$A$999,0),1)="Yes"),"",CHOOSE('Guts-2'!$D$26,G27,H27,I27,J27,K27,L27,M27,N27)),"") -> 0.007935648148 | Y27: =IF(U27=FALSE,"",IFERROR(IF(INDEX('Auction-Rank'!$G$1:$N$955,MATCH($A27,'Auction-Rank'!$A$1:$A$955,0),'Guts-2'!$D$26)="","",INDEX('Auction-Rank'!$G$1:$N$955,MATCH($A27,'Auction-Rank'!$A$1:$A$955,0),'Guts-2'!$D$26)),"")) -> 0.007935648148 | Z27: =IF(Y27="","",IF(U27=FALSE,"",Y27*(SUMIF($X$2:$X$955,"<>""",$X$2:$X$955)/SUMIF($Y$2:$Y$955,"<>""",$Y$2:$Y$955)))) -> 0.007935648148 | AA27: =IFERROR(IF(VLOOKUP(A28,'Name Sort'!$D$2:$E$936,2,FALSE)="",A28,""),"") -> Adbert Alzolay | AB27: =IFERROR(INDEX($AA$1:$AA$955,SMALL(IF($AA$1:$AA$955<>"",ROW($AA$1:$AA$955)),ROW(AA27))),"") -> Adbert Alzolay
A28: Adbert Alzolay | B28: alzolad01 | C28: RP | E28: CHC | F28: 27 | I28: 5.555555556e-05 | J28: 0.0002777777778 | K28: 0.0003611111111 | M28: 0.0002314814815 | N28: =IFERROR(VLOOKUP(A28,'Import (Values)'!$B$2:$C$999,2,FALSE)/3120,"") ->  | S28: 436.8 | U28: =IFERROR(INDEX('Guts-2'!$K$1:$K$30,MATCH(E28,'Guts-2'!$J$1:$J$30,0)),TRUE) -> TRUE | V28: =IFERROR(IF(OR(U28=FALSE,INDEX('Player Notes'!$I$3:$I$999,MATCH(A28,'Player Notes'!$A$3:$A$999,0),1)="Yes"),"",IFERROR(CHOOSE('Guts-2'!$D$27,O28,P28,Q28,R28,S28,T28),"")),"") -> 436.8 | W28: 465 | X28: =IFERROR(IF(OR(U28=FALSE,INDEX('Player Notes'!$I$3:$I$999,MATCH(A28,'Player Notes'!$A$3:$A$999,0),1)="Yes"),"",CHOOSE('Guts-2'!$D$26,G28,H28,I28,J28,K28,L28,M28,N28)),"") -> 0.0002314814815 | Y28: =IF(U28=FALSE,"",IFERROR(IF(INDEX('Auction-Rank'!$G$1:$N$955,MATCH($A28,'Auction-Rank'!$A$1:$A$955,0),'Guts-2'!$D$26)="","",INDEX('Auction-Rank'!$G$1:$N$955,MATCH($A28,'Auction-Rank'!$A$1:$A$955,0),'Guts-2'!$D$26)),"")) -> 0.0002314814815 | Z28: =IF(Y28="","",IF(U28=FALSE,"",Y28*(SUMIF($X$2:$X$955,"<>""",$X$2:$X$955)/SUMIF($Y$2:$Y$955,"<>""",$Y$2:$Y$955)))) -> 0.0002314814815 | AA28: =IFERROR(IF(VLOOKUP(A29,'Name Sort'!$D$2:$E$936,2,FALSE)="",A29,""),"") -> Brian Anderson | AB28: =IFERROR(INDEX($AA$1:$AA$955,SMALL(IF($AA$1:$AA$955<>"",ROW($AA$1:$AA$955)),ROW(AA28))),"") -> Brian Anderson
A29: Brian Anderson | B29: anderbr06 | C29: 3B | E29: MIA | F29: 28 | N29: =IFERROR(VLOOKUP(A29,'Import (Values)'!$B$2:$C$999,2,FALSE)/3120,"") ->  | S29: 377.2 | U29: =IFERROR(INDEX('Guts-2'!$K$1:$K$30,MATCH(E29,'Guts-2'!$J$1:$J$30,0)),TRUE) -> TRUE | V29: =IFERROR(IF(OR(U29=FALSE,INDEX('Player Notes'!$I$3:$I$999,MATCH(A29,'Player Notes'!$A$3:$A$999,0),1)="Yes"),"",IFERROR(CHOOSE('Guts-2'!$D$27,O29,P29,Q29,R29,S29,T29),"")),"") -> 377.2 | W29: 396 | X29: =IFERROR(IF(OR(U29=FALSE,INDEX('Player Notes'!$I$3:$I$999,MATCH(A29,'Player Notes'!$A$3:$A$999,0),1)="Yes"),"",CHOOSE('Guts-2'!$D$26,G29,H29,I29,J29,K29,L29,M29,N29)),"") ->  | Y29: =IF(U29=FALSE,"",IFERROR(IF(INDEX('Auction-Rank'!$G$1:$N$955,MATCH($A29,'Auction-Rank'!$A$1:$A$955,0),'Guts-2'!$D$26)="","",INDEX('Auction-Rank'!$G$1:$N$955,MATCH($A29,'Auction-Rank'!$A$1:$A$955,0),'Guts-2'!$D$26)),"")) ->  | Z29: =IF(Y29="","",IF(U29=FALSE,"",Y29*(SUMIF($X$2:$X$955,"<>""",$X$2:$X$955)/SUMIF($Y$2:$Y$955,"<>""",$Y$2:$Y$955)))) ->  | AA29: =IFERROR(IF(VLOOKUP(A30,'Name Sort'!$D$2:$E$936,2,FALSE)="",A30,""),"") -> Ian Anderson | AB29: =IFERROR(INDEX($AA$1:$AA$955,SMALL(IF($AA$1:$AA$955<>"",ROW($AA$1:$AA$955)),ROW(AA29))),"") -> Ian Anderson
A30: Ian Anderson | B30: anderia01 | C30: SP | E30: ATL | F30: 23 | G30: 0.001063888889 | H30: 0.001666666667 | I30: 0.0008888888889 | J30: 0.002222222222 | K30: 0.002166666667 | L30: 0.0008333333333 | M30: 0.001473611111 | N30: =IFERROR(VLOOKUP(A30,'Import (Values)'!$B$2:$C$999,2,FALSE)/3120,"") ->  | O30: 195 | P30: 115.7 | Q30: 135 | R30: 180 | S30: 143.3 | U30: =IFERROR(INDEX('Guts-2'!$K$1:$K$30,MATCH(E30,'Guts-2'!$J$1:$J$30,0)),TRUE) -> TRUE | V30: =IFERROR(IF(OR(U30=FALSE,INDEX('Player Notes'!$I$3:$I$999,MATCH(A30,'Player Notes'!$A$3:$A$999,0),1)="Yes"),"",IFERROR(CHOOSE('Guts-2'!$D$27,O30,P30,Q30,R30,S30,T30),"")),"") -> 143.3 | W30: 136 | X30: =IFERROR(IF(OR(U30=FALSE,INDEX('Player Notes'!$I$3:$I$999,MATCH(A30,'Player Notes'!$A$3:$A$999,0),1)="Yes"),"",CHOOSE('Guts-2'!$D$26,G30,H30,I30,J30,K30,L30,M30,N30)),"") -> 0.001473611111 | Y30: =IF(U30=FALSE,"",IFERROR(IF(INDEX('Auction-Rank'!$G$1:$N$955,MATCH($A30,'Auction-Rank'!$A$1:$A$955,0),'Guts-2'!$D$26)="","",INDEX('Auction-Rank'!$G$1:$N$955,MATCH($A30,'Auction-Rank'!$A$1:$A$955,0),'Guts-2'!$D$26)),"")) -> 0.001473611111 | Z30: =IF(Y30="","",IF(U30=FALSE,"",Y30*(SUMIF($X$2:$X$955,"<>""",$X$2:$X$955)/SUMIF($Y$2:$Y$955,"<>""",$Y$2:$Y$955)))) -> 0.001473611111 | AA30: =IFERROR(IF(VLOOKUP(A31,'Name Sort'!$D$2:$E$936,2,FALSE)="",A31,""),"") -> Nick Anderson | AB30: =IFERROR(INDEX($AA$1:$AA$955,SMALL(IF($AA$1:$AA$955<>"",ROW($AA$1:$AA$955)),ROW(AA30))),"") -> Nick Anderson
A31: Nick Anderson | B31: anderni01 | C31: RP | E31: TB | F31: 31 | N31: =IFERROR(VLOOKUP(A31,'Import (Values)'!$B$2:$C$999,2,FALSE)/3120,"") ->  | S31: 583 | U31: =IFERROR(INDEX('Guts-2'!$K$1:$K$30,MATCH(E31,'Guts-2'!$J$1:$J$30,0)),TRUE) -> TRUE | V31: =IFERROR(IF(OR(U31=FALSE,INDEX('Player Notes'!$I$3:$I$999,MATCH(A31,'Player Notes'!$A$3:$A$999,0),1)="Yes"),"",IFERROR(CHOOSE('Guts-2'!$D$27,O31,P31,Q31,R31,S31,T31),"")),"") -> 583 | W31: 572 | X31: =IFERROR(IF(OR(U31=FALSE,INDEX('Player Notes'!$I$3:$I$999,MATCH(A31,'Player Notes'!$A$3:$A$999,0),1)="Yes"),"",CHOOSE('Guts-2'!$D$26,G31,H31,I31,J31,K31,L31,M31,N31)),"") ->  | Y31: =IF(U31=FALSE,"",IFERROR(IF(INDEX('Auction-Rank'!$G$1:$N$955,MATCH($A31,'Auction-Rank'!$A$1:$A$955,0),'Guts-2'!$D$26)="","",INDEX('Auction-Rank'!$G$1:$N$955,MATCH($A31,'Auction-Rank'!$A$1:$A$955,0),'Guts-2'!$D$26)),"")) ->  | Z31: =IF(Y31="","",IF(U31=FALSE,"",Y31*(SUMIF($X$2:$X$955,"<>""",$X$2:$X$955)/SUMIF($Y$2:$Y$955,"<>""",$Y$2:$Y$955)))) ->  | AA31: =IFERROR(IF(VLOOKUP(A32,'Name Sort'!$D$2:$E$936,2,FALSE)="",A32,""),"") -> Tim Anderson | AB31: =IFERROR(INDEX($AA$1:$AA$955,SMALL(IF($AA$1:$AA$955<>"",ROW($AA$1:$AA$955)),ROW(AA31))),"") -> Tim Anderson
A32: Tim Anderson | B32: anderti01 | C32: SS | E32: CHW | F32: 28 | G32: 0.007405555556 | H32: 0.005277777778 | I32: 0.001916666667 | J32: 0.006666666667 | K32: 0.007194444444 | L32: 0.007222222222 | M32: 0.005947222222 | N32: =IFERROR(VLOOKUP(A32,'Import (Values)'!$B$2:$C$999,2,FALSE)/3120,"") ->  | O32: 26 | P32: 27.7 | Q32: 122 | R32: 34 | S32: 30.3 | U32: =IFERROR(INDEX('Guts-2'!$K$1:$K$30,MATCH(E32,'Guts-2'!$J$1:$J$30,0)),TRUE) -> TRUE | V32: =IFERROR(IF(OR(U32=FALSE,INDEX('Player Notes'!$I$3:$I$999,MATCH(A32,'Player Notes'!$A$3:$A$999,0),1)="Yes"),"",IFERROR(CHOOSE('Guts-2'!$D$27,O32,P32,Q32,R32,S32,T32),"")),"") -> 30.3 | W32: 28 | X32: =IFERROR(IF(OR(U32=FALSE,INDEX('Player Notes'!$I$3:$I$999,MATCH(A32,'Player Notes'!$A$3:$A$999,0),1)="Yes"),"",CHOOSE('Guts-2'!$D$26,G32,H32,I32,J32,K32,L32,M32,N32)),"") -> 0.005947222222 | Y32: =IF(U32=FALSE,"",IFERROR(IF(INDEX('Auction-Rank'!$G$1:$N$955,MATCH($A32,'Auction-Rank'!$A$1:$A$955,0),'Guts-2'!$D$26)="","",INDEX('Auction-Rank'!$G$1:$N$955,MATCH($A32,'Auction-Rank'!$A$1:$A$955,0),'Guts-2'!$D$26)),"")) -> 0.005947222222 | Z32: =IF(Y32="","",IF(U32=FALSE,"",Y32*(SUMIF($X$2:$X$955,"<>""",$X$2:$X$955)/SUMIF($Y$2:$Y$955,"<>""",$Y$2:$Y$955)))) -> 0.005947222222 | AA32: =IFERROR(IF(VLOOKUP(A33,'Name Sort'!$D$2:$E$936,2,FALSE)="",A33,""),"") -> Tyler Anderson | AB32: =IFERROR(INDEX($AA$1:$AA$955,SMALL(IF($AA$1:$AA$955<>"",ROW($AA$1:$AA$955)),ROW(AA32))),"") -> Tyler Anderson
A33: Tyler Anderson | B33: anderty01 | C33: RP | E33: LAD | F33: 32 | N33: =IFERROR(VLOOKUP(A33,'Import (Values)'!$B$2:$C$999,2,FALSE)/3120,"") ->  | S33: 521.5 | U33: =IFERROR(INDEX('Guts-2'!$K$1:$K$30,MATCH(E33,'Guts-2'!$J$1:$J$30,0)),TRUE) -> TRUE | V33: =IFERROR(IF(OR(U33=FALSE,INDEX('Player Notes'!$I$3:$I$999,MATCH(A33,'Player Notes'!$A$3:$A$999,0),1)="Yes"),"",IFERROR(CHOOSE('Guts-2'!$D$27,O33,P33,Q33,R33,S33,T33),"")),"") -> 521.5 | W33: 535 | X33: =IFERROR(IF(OR(U33=FALSE,INDEX('Player Notes'!$I$3:$I$999,MATCH(A33,'Player Notes'!$A$3:$A$999,0),1)="Yes"),"",CHOOSE('Guts-2'!$D$26,G33,H33,I33,J33,K33,L33,M33,N33)),"") ->  | Y33: =IF(U33=FALSE,"",IFERROR(IF(INDEX('Auction-Rank'!$G$1:$N$955,MATCH($A33,'Auction-Rank'!$A$1:$A$955,0),'Guts-2'!$D$26)="","",INDEX('Auction-Rank'!$G$1:$N$955,MATCH($A33,'Auction-Rank'!$A$1:$A$955,0),'Guts-2'!$D$26)),"")) ->  | Z33: =IF(Y33="","",IF(U33=FALSE,"",Y33*(SUMIF($X$2:$X$955,"<>""",$X$2:$X$955)/SUMIF($Y$2:$Y$955,"<>""",$Y$2:$Y$955)))) ->  | AA33: =IFERROR(IF(VLOOKUP(A34,'Name Sort'!$D$2:$E$936,2,FALSE)="",A34,""),"") -> Elvis Andrus | AB33: =IFERROR(INDEX($AA$1:$AA$955,SMALL(IF($AA$1:$AA$955<>"",ROW($AA$1:$AA$955)),ROW(AA33))),"") -> Elvis Andrus
A34: Elvis Andrus | B34: andruel01 | C34: SS | E34: OAK | F34: 33 | N34: =IFERROR(VLOOKUP(A34,'Import (Values)'!$B$2:$C$999,2,FALSE)/3120,"") ->  | S34: 537.5 | U34: =IFERROR(INDEX('Guts-2'!$K$1:$K$30,MATCH(E34,'Guts-2'!$J$1:$J$30,0)),TRUE) -> TRUE | V34: =IFERROR(IF(OR(U34=FALSE,INDEX('Player Notes'!$I$3:$I$999,MATCH(A34,'Player Notes'!$A$3:$A$999,0),1)="Yes"),"",IFERROR(CHOOSE('Guts-2'!$D$27,O34,P34,Q34,R34,S34,T34),"")),"") -> 537.5 | W34: 544 | X34: =IFERROR(IF(OR(U34=FALSE,INDEX('Player Notes'!$I$3:$I$999,MATCH(A34,'Player Notes'!$A$3:$A$999,0),1)="Yes"),"",CHOOSE('Guts-2'!$D$26,G34,H34,I34,J34,K34,L34,M34,N34)),"") ->  | Y34: =IF(U34=FALSE,"",IFERROR(IF(INDEX('Auction-Rank'!$G$1:$N$955,MATCH($A34,'Auction-Rank'!$A$1:$A$955,0),'Guts-2'!$D$26)="","",INDEX('Auction-Rank'!$G$1:$N$955,MATCH($A34,'Auction-Rank'!$A$1:$A$955,0),'Guts-2'!$D$26)),"")) ->  | Z34: =IF(Y34="","",IF(U34=FALSE,"",Y34*(SUMIF($X$2:$X$955,"<>""",$X$2:$X$955)/SUMIF($Y$2:$Y$955,"<>""",$Y$2:$Y$955)))) ->  | AA34: =IFERROR(IF(VLOOKUP(A35,'Name Sort'!$D$2:$E$936,2,FALSE)="",A35,""),"") -> Miguel Andujar | AB34: =IFERROR(INDEX($AA$1:$AA$955,SMALL(IF($AA$1:$AA$955<>"",ROW($AA$1:$AA$955)),ROW(AA34))),"") -> Miguel Andujar
A35: Miguel Andujar | B35: andujmi01 | C35: OF | D35: LF | E35: NYY | F35: 27 | N35: =IFERROR(VLOOKUP(A35,'Import (Values)'!$B$2:$C$999,2,FALSE)/3120,"") ->  | S35: 970.3 | U35: =IFERROR(INDEX('Guts-2'!$K$1:$K$30,MATCH(E35,'Guts-2'!$J$1:$J$30,0)),TRUE) -> TRUE | V35: =IFERROR(IF(OR(U35=FALSE,INDEX('Player Notes'!$I$3:$I$999,MATCH(A35,'Player Notes'!$A$3:$A$999,0),1)="Yes"),"",IFERROR(CHOOSE('Guts-2'!$D$27,O35,P35,Q35,R35,S35,T35),"")),"") -> 970.3 | W35: 695 | X35: =IFERROR(IF(OR(U35=FALSE,INDEX('Player Notes'!$I$3:$I$999,MATCH(A35,'Player Notes'!$A$3:$A$999,0),1)="Yes"),"",CHOOSE('Guts-2'!$D$26,G35,H35,I35,J35,K35,L35,M35,N35)),"") ->  | Y35: =IF(U35=FALSE,"",IFERROR(IF(INDEX('Auction-Rank'!$G$1:$N$955,MATCH($A35,'Auction-Rank'!$A$1:$A$955,0),'Guts-2'!$D$26)="","",INDEX('Auction-Rank'!$G$1:$N$955,MATCH($A35,'Auction-Rank'!$A$1:$A$955,0),'Guts-2'!$D$26)),"")) ->  | Z35: =IF(Y35="","",IF(U35=FALSE,"",Y35*(SUMIF($X$2:$X$955,"<>""",$X$2:$X$955)/SUMIF($Y$2:$Y$955,"<>""",$Y$2:$Y$955)))) ->  | AA35: =IFERROR(IF(VLOOKUP(A36,'Name Sort'!$D$2:$E$936,2,FALSE)="",A36,""),"") -> Aristides Aquino | AB35: =IFERROR(INDEX($AA$1:$AA$955,SMALL(IF($AA$1:$AA$955<>"",ROW($AA$1:$AA$955)),ROW(AA35))),"") -> Aristides Aquino
A36: Aristides Aquino | B36: aquinar01 | C36: OF | D36: LF,CF,RF | E36: CIN | F36: 27 | N36: =IFERROR(VLOOKUP(A36,'Import (Values)'!$B$2:$C$999,2,FALSE)/3120,"") ->  | S36: 546.5 | U36: =IFERROR(INDEX('Guts-2'!$K$1:$K$30,MATCH(E36,'Guts-2'!$J$1:$J$30,0)),TRUE) -> TRUE | V36: =IFERROR(IF(OR(U36=FALSE,INDEX('Player Notes'!$I$3:$I$999,MATCH(A36,'Player Notes'!$A$3:$A$999,0),1)="Yes"),"",IFERROR(CHOOSE('Guts-2'!$D$27,O36,P36,Q36,R36,S36,T36),"")),"") -> 546.5 | W36: 548 | X36: =IFERROR(IF(OR(U36=FALSE,INDEX('Player Notes'!$I$3:$I$999,MATCH(A36,'Player Notes'!$A$3:$A$999,0),1)="Yes"),"",CHOOSE('Guts-2'!$D$26,G36,H36,I36,J36,K36,L36,M36,N36)),"") ->  | Y36: =IF(U36=FALSE,"",IFERROR(IF(INDEX('Auction-Rank'!$G$1:$N$955,MATCH($A36,'Auction-Rank'!$A$1:$A$955,0),'Guts-2'!$D$26)="","",INDEX('Auction-Rank'!$G$1:$N$955,MATCH($A36,'Auction-Rank'!$A$1:$A$955,0),'Guts-2'!$D$26)),"")) ->  | Z36: =IF(Y36="","",IF(U36=FALSE,"",Y36*(SUMIF($X$2:$X$955,"<>""",$X$2:$X$955)/SUMIF($Y$2:$Y$955,"<>""",$Y$2:$Y$955)))) ->  | AA36: =IFERROR(IF(VLOOKUP(A37,'Name Sort'!$D$2:$E$936,2,FALSE)="",A37,""),"") -> Jonathan Arauz | AB36: =IFERROR(INDEX($AA$1:$AA$955,SMALL(IF($AA$1:$AA$955<>"",ROW($AA$1:$AA$955)),ROW(AA36))),"") -> Jonathan Arauz
A37: Jonathan Arauz | B37: arauzjo01 | C37: SS | E37: BOS | F37: 23 | N37: =IFERROR(VLOOKUP(A37,'Import (Values)'!$B$2:$C$999,2,FALSE)/3120,"") ->  | U37: =IFERROR(INDEX('Guts-2'!$K$1:$K$30,MATCH(E37,'Guts-2'!$J$1:$J$30,0)),TRUE) -> TRUE | V37: =IFERROR(IF(OR(U37=FALSE,INDEX('Player Notes'!$I$3:$I$999,MATCH(A37,'Player Notes'!$A$3:$A$999,0),1)="Yes"),"",IFERROR(CHOOSE('Guts-2'!$D$27,O37,P37,Q37,R37,S37,T37),"")),"") ->  | X37: =IFERROR(IF(OR(U37=FALSE,INDEX('Player Notes'!$I$3:$I$999,MATCH(A37,'Player Notes'!$A$3:$A$999,0),1)="Yes"),"",CHOOSE('Guts-2'!$D$26,G37,H37,I37,J37,K37,L37,M37,N37)),"") ->  | Y37: =IF(U37=FALSE,"",IFERROR(IF(INDEX('Auction-Rank'!$G$1:$N$955,MATCH($A37,'Auction-Rank'!$A$1:$A$955,0),'Guts-2'!$D$26)="","",INDEX('Auction-Rank'!$G$1:$N$955,MATCH($A37,'Auction-Rank'!$A$1:$A$955,0),'Guts-2'!$D$26)),"")) ->  | Z37: =IF(Y37="","",IF(U37=FALSE,"",Y37*(SUMIF($X$2:$X$955,"<>""",$X$2:$X$955)/SUMIF($Y$2:$Y$955,"<>""",$Y$2:$Y$955)))) ->  | AA37: =IFERROR(IF(VLOOKUP(A38,'Name Sort'!$D$2:$E$936,2,FALSE)="",A38,""),"") -> Chris Archer | AB37: =IFERROR(INDEX($AA$1:$AA$955,SMALL(IF($AA$1:$AA$955<>"",ROW($AA$1:$AA$955)),ROW(AA37))),"") -> Chris Archer
A38: Chris Archer | B38: archech01 | C38: RP | E38: MIN | F38: 33 | N38: =IFERROR(VLOOKUP(A38,'Import (Values)'!$B$2:$C$999,2,FALSE)/3120,"") ->  | S38: 646.3 | U38: =IFERROR(INDEX('Guts-2'!$K$1:$K$30,MATCH(E38,'Guts-2'!$J$1:$J$30,0)),TRUE) -> TRUE | V38: =IFERROR(IF(OR(U38=FALSE,INDEX('Player Notes'!$I$3:$I$999,MATCH(A38,'Player Notes'!$A$3:$A$999,0),1)="Yes"),"",IFERROR(CHOOSE('Guts-2'!$D$27,O38,P38,Q38,R38,S38,T38),"")),"") -> 646.3 | W38: 596 | X38: =IFERROR(IF(OR(U38=FALSE,INDEX('Player Notes'!$I$3:$I$999,MATCH(A38,'Player Notes'!$A$3:$A$999,0),1)="Yes"),"",CHOOSE('Guts-2'!$D$26,G38,H38,I38,J38,K38,L38,M38,N38)),"") ->  | Y38: =IF(U38=FALSE,"",IFERROR(IF(INDEX('Auction-Rank'!$G$1:$N$955,MATCH($A38,'Auction-Rank'!$A$1:$A$955,0),'Guts-2'!$D$26)="","",INDEX('Auction-Rank'!$G$1:$N$955,MATCH($A38,'Auction-Rank'!$A$1:$A$955,0),'Guts-2'!$D$26)),"")) ->  | Z38: =IF(Y38="","",IF(U38=FALSE,"",Y38*(SUMIF($X$2:$X$955,"<>""",$X$2:$X$955)/SUMIF($Y$2:$Y$955,"<>""",$Y$2:$Y$955)))) ->  | AA38: =IFERROR(IF(VLOOKUP(A39,'Name Sort'!$D$2:$E$936,2,FALSE)="",A39,""),"") -> Orlando Arcia | AB38: =IFERROR(INDEX($AA$1:$AA$955,SMALL(IF($AA$1:$AA$955<>"",ROW($AA$1:$AA$955)),ROW(AA38))),"") -> Orlando Arcia
A39: Orlando Arcia | B39: arciaor01 | C39: DH | D39: LF | E39: ATL | F39: 27 | N39: =IFERROR(VLOOKUP(A39,'Import (Values)'!$B$2:$C$999,2,FALSE)/3120,"") ->  | S39: 954 | U39: =IFERROR(INDEX('Guts-2'!$K$1:$K$30,MATCH(E39,'Guts-2'!$J$1:$J$30,0)),TRUE) -> TRUE | V39: =IFERROR(IF(OR(U39=FALSE,INDEX('Player Notes'!$I$3:$I$999,MATCH(A39,'Player Notes'!$A$3:$A$999,0),1)="Yes"),"",IFERROR(CHOOSE('Guts-2'!$D$27,O39,P39,Q39,R39,S39,T39),"")),"") -> 954 | W39: 689 | X39: =IFERROR(IF(OR(U39=FALSE,INDEX('Player Notes'!$I$3:$I$999,MATCH(A39,'Player Notes'!$A$3:$A$999,0),1)="Yes"),"",CHOOSE('Guts-2'!$D$26,G39,H39,I39,J39,K39,L39,M39,N39)),"") ->  | Y39: =IF(U39=FALSE,"",IFERROR(IF(INDEX('Auction-Rank'!$G$1:$N$955,MATCH($A39,'Auction-Rank'!$A$1:$A$955,0),'Guts-2'!$D$26)="","",INDEX('Auction-Rank'!$G$1:$N$955,MATCH($A39,'Auction-Rank'!$A$1:$A$955,0),'Guts-2'!$D$26)),"")) ->  | Z39: =IF(Y39="","",IF(U39=FALSE,"",Y39*(SUMIF($X$2:$X$955,"<>""",$X$2:$X$955)/SUMIF($Y$2:$Y$955,"<>""",$Y$2:$Y$955)))) ->  | AA39: =IFERROR(IF(VLOOKUP(A40,'Name Sort'!$D$2:$E$936,2,FALSE)="",A40,""),"") -> Nolan Arenado | AB39: =IFERROR(INDEX($AA$1:$AA$955,SMALL(IF($AA$1:$AA$955<>"",ROW($AA$1:$AA$955)),ROW(AA39))),"") -> Nolan Arenado
A40: Nolan Arenado | B40: arenano01 | C40: 3B | E40: STL | F40: 30 | G40: 0.003983333333 | H40: 0.005833333333 | I40: 0.00675 | J40: 0.005277777778 | K40: 0.006 | L40: 0.004722222222 | M40: 0.005427777778 | N40: =IFERROR(VLOOKUP(A40,'Import (Values)'!$B$2:$C$999,2,FALSE)/3120,"") -> 0.01282051282 | O40: 86 | P40: 60 | Q40: 31 | R40: 42 | S40: 63.2 | U40: =IFERROR(INDEX('Guts-2'!$K$1:$K$30,MATCH(E40,'Guts-2'!$J$1:$J$30,0)),TRUE) -> TRUE | V40: =IFERROR(IF(OR(U40=FALSE,INDEX('Player Notes'!$I$3:$I$999,MATCH(A40,'Player Notes'!$A$3:$A$999,0),1)="Yes"),"",IFERROR(CHOOSE('Guts-2'!$D$27,O40,P40,Q40,R40,S40,T40),"")),"") -> 63.2 | W40: 61 | X40: =IFERROR(IF(OR(U40=FALSE,INDEX('Player Notes'!$I$3:$I$999,MATCH(A40,'Player Notes'!$A$3:$A$999,0),1)="Yes"),"",CHOOSE('Guts-2'!$D$26,G40,H40,I40,J40,K40,L40,M40,N40)),"") -> 0.005427777778 | Y40: =IF(U40=FALSE,"",IFERROR(IF(INDEX('Auction-Rank'!$G$1:$N$955,MATCH($A40,'Auction-Rank'!$A$1:$A$955,0),'Guts-2'!$D$26)="","",INDEX('Auction-Rank'!$G$1:$N$955,MATCH($A40,'Auction-Rank'!$A$1:$A$955,0),'Guts-2'!$D$26)),"")) -> 0.005427777778 | Z40: =IF(Y40="","",IF(U40=FALSE,"",Y40*(SUMIF($X$2:$X$955,"<>""",$X$2:$X$955)/SUMIF($Y$2:$Y$955,"<>""",$Y$2:$Y$955)))) -> 0.005427777778 | AA40: =IFERROR(IF(VLOOKUP(A41,'Name Sort'!$D$2:$E$936,2,FALSE)="",A41,""),"") -> Randy Arozarena | AB40: =IFERROR(INDEX($AA$1:$AA$955,SMALL(IF($AA$1:$AA$955<>"",ROW($AA$1:$AA$955)),ROW(AA40))),"") -> Randy Arozarena
A41: Randy Arozarena | B41: arozara01 | C41: OF | D41: LF,RF | E41: TB | F41: 27 | G41: 0.005094444444 | H41: 0.003888888889 | I41: 0.001388888889 | J41: 0.005 | K41: 0.005944444444 | L41: 0.004444444444 | M41: 0.004293518519 | N41: =IFERROR(VLOOKUP(A41,'Import (Values)'!$B$2:$C$999,2,FALSE)/3120,"") ->  | O41: 56 | P41: 44.3 | Q41: 158 | R41: 72 | S41: 56.8 | U41: =IFERROR(INDEX('Guts-2'!$K$1:$K$30,MATCH(E41,'Guts-2'!$J$1:$J$30,0)),TRUE) -> TRUE | V41: =IFERROR(IF(OR(U41=FALSE,INDEX('Player Notes'!$I$3:$I$999,MATCH(A41,'Player Notes'!$A$3:$A$999,0),1)="Yes"),"",IFERROR(CHOOSE('Guts-2'!$D$27,O41,P41,Q41,R41,S41,T41),"")),"") -> 56.8 | W41: 55 | X41: =IFERROR(IF(OR(U41=FALSE,INDEX('Player Notes'!$I$3:$I$999,MATCH(A41,'Player Notes'!$A$3:$A$999,0),1)="Yes"),"",CHOOSE('Guts-2'!$D$26,G41,H41,I41,J41,K41,L41,M41,N41)),"") -> 0.004293518519 | Y41: =IF(U41=FALSE,"",IFERROR(IF(INDEX('Auction-Rank'!$G$1:$N$955,MATCH($A41,'Auction-Rank'!$A$1:$A$955,0),'Guts-2'!$D$26)="","",INDEX('Auction-Rank'!$G$1:$N$955,MATCH($A41,'Auction-Rank'!$A$1:$A$955,0),'Guts-2'!$D$26)),"")) -> 0.004293518519 | Z41: =IF(Y41="","",IF(U41=FALSE,"",Y41*(SUMIF($X$2:$X$955,"<>""",$X$2:$X$955)/SUMIF($Y$2:$Y$955,"<>""",$Y$2:$Y$955)))) -> 0.004293518519 | AA41: =IFERROR(IF(VLOOKUP(A42,'Name Sort'!$D$2:$E$936,2,FALSE)="",A42,""),"") -> Luis Arraez | AB41: =IFERROR(INDEX($AA$1:$AA$955,SMALL(IF($AA$1:$AA$955<>"",ROW($AA$1:$AA$955)),ROW(AA41))),"") -> Luis Arraez
A42: Luis Arraez | B42: arraelu01 | C42: 3B | D42: LF | E42: MIN | F42: 24 | I42: 0.0003333333333 | J42: 0.001388888889 | K42: 0.0003611111111 | M42: 0.0006944444444 | N42: =IFERROR(VLOOKUP(A42,'Import (Values)'!$B$2:$C$999,2,FALSE)/3120,"") ->  | P42: 314 | S42: 297.5 | U42: =IFERROR(INDEX('Guts-2'!$K$1:$K$30,MATCH(E42,'Guts-2'!$J$1:$J$30,0)),TRUE) -> TRUE | V42: =IFERROR(IF(OR(U42=FALSE,INDEX('Player Notes'!$I$3:$I$999,MATCH(A42,'Player Notes'!$A$3:$A$999,0),1)="Yes"),"",IFERROR(CHOOSE('Guts-2'!$D$27,O42,P42,Q42,R42,S42,T42),"")),"") -> 297.5 | W42: 308 | X42: =IFERROR(IF(OR(U42=FALSE,INDEX('Player Notes'!$I$3:$I$999,MATCH(A42,'Player Notes'!$A$3:$A$999,0),1)="Yes"),"",CHOOSE('Guts-2'!$D$26,G42,H42,I42,J42,K42,L42,M42,N42)),"") -> 0.0006944444444 | Y42: =IF(U42=FALSE,"",IFERROR(IF(INDEX('Auction-Rank'!$G$1:$N$955,MATCH($A42,'Auction-Rank'!$A$1:$A$955,0),'Guts-2'!$D$26)="","",INDEX('Auction-Rank'!$G$1:$N$955,MATCH($A42,'Auction-Rank'!$A$1:$A$955,0),'Guts-2'!$D$26)),"")) -> 0.0006944444444 | Z42: =IF(Y42="","",IF(U42=FALSE,"",Y42*(SUMIF($X$2:$X$955,"<>""",$X$2:$X$955)/SUMIF($Y$2:$Y$955,"<>""",$Y$2:$Y$955)))) -> 0.0006944444444 | AA42: =IFERROR(IF(VLOOKUP(A43,'Name Sort'!$D$2:$E$936,2,FALSE)="",A43,""),"") -> Christian Arroyo | AB42: =IFERROR(INDEX($AA$1:$AA$955,SMALL(IF($AA$1:$AA$955<>"",ROW($AA$1:$AA$955)),ROW(AA42))),"") -> Christian Arroyo
A43: Christian Arroyo | B43: arroych01 | C43: 2B | E43: BOS | F43: 26 | N43: =IFERROR(VLOOKUP(A43,'Import (Values)'!$B$2:$C$999,2,FALSE)/3120,"") ->  | S43: 1036 | U43: =IFERROR(INDEX('Guts-2'!$K$1:$K$30,MATCH(E43,'Guts-2'!$J$1:$J$30,0)),TRUE) -> TRUE | V43: =IFERROR(IF(OR(U43=FALSE,INDEX('Player Notes'!$I$3:$I$999,MATCH(A43,'Player Notes'!$A$3:$A$999,0),1)="Yes"),"",IFERROR(CHOOSE('Guts-2'!$D$27,O43,P43,Q43,R43,S43,T43),"")),"") -> 1036 | W43: 706 | X43: =IFERROR(IF(OR(U43=FALSE,INDEX('Player Notes'!$I$3:$I$999,MATCH(A43,'Player Notes'!$A$3:$A$999,0),1)="Yes"),"",CHOOSE('Guts-2'!$D$26,G43,H43,I43,J43,K43,L43,M43,N43)),"") ->  | Y43: =IF(U43=FALSE,"",IFERROR(IF(INDEX('Auction-Rank'!$G$1:$N$955,MATCH($A43,'Auction-Rank'!$A$1:$A$955,0),'Guts-2'!$D$26)="","",INDEX('Auction-Rank'!$G$1:$N$955,MATCH($A43,'Auction-Rank'!$A$1:$A$955,0),'Guts-2'!$D$26)),"")) ->  | Z43: =IF(Y43="","",IF(U43=FALSE,"",Y43*(SUMIF($X$2:$X$955,"<>""",$X$2:$X$955)/SUMIF($Y$2:$Y$955,"<>""",$Y$2:$Y$955)))) ->  | AA43: =IFERROR(IF(VLOOKUP(A44,'Name Sort'!$D$2:$E$936,2,FALSE)="",A44,""),"") -> Aaron Ashby | AB43: =IFERROR(INDEX($AA$1:$AA$955,SMALL(IF($AA$1:$AA$955<>"",ROW($AA$1:$AA$955)),ROW(AA43))),"") -> Aaron Ashby
A44: Aaron Ashby | B44: ashbyaa01 | C44: RP | E44: MIL | F44: 23 | H44: 0.0002777777778 | J44: 0 | K44: 0.0003611111111 | L44: 0.0002777777778 | M44: 0.0002291666667 | N44: =IFERROR(VLOOKUP(A44,'Import (Values)'!$B$2:$C$999,2,FALSE)/3120,"") ->  | P44: 252.5 | S44: 282.2 | U44: =IFERROR(INDEX('Guts-2'!$K$1:$K$30,MATCH(E44,'Guts-2'!$J$1:$J$30,0)),TRUE) -> TRUE | V44: =IFERROR(IF(OR(U44=FALSE,INDEX('Player Notes'!$I$3:$I$999,MATCH(A44,'Player Notes'!$A$3:$A$999,0),1)="Yes"),"",IFERROR(CHOOSE('Guts-2'!$D$27,O44,P44,Q44,R44,S44,T44),"")),"") -> 282.2 | W44: 285 | X44: =IFERROR(IF(OR(U44=FALSE,INDEX('Player Notes'!$I$3:$I$999,MATCH(A44,'Player Notes'!$A$3:$A$999,0),1)="Yes"),"",CHOOSE('Guts-2'!$D$26,G44,H44,I44,J44,K44,L44,M44,N44)),"") -> 0.0002291666667 | Y44: =IF(U44=FALSE,"",IFERROR(IF(INDEX('Auction-Rank'!$G$1:$N$955,MATCH($A44,'Auction-Rank'!$A$1:$A$955,0),'Guts-2'!$D$26)="","",INDEX('Auction-Rank'!$G$1:$N$955,MATCH($A44,'Auction-Rank'!$A$1:$A$955,0),'Guts-2'!$D$26)),"")) -> 0.0002291666667 | Z44: =IF(Y44="","",IF(U44=FALSE,"",Y44*(SUMIF($X$2:$X$955,"<>""",$X$2:$X$955)/SUMIF($Y$2:$Y$955,"<>""",$Y$2:$Y$955)))) -> 0.0002291666667 | AA44: =IFERROR(IF(VLOOKUP(A45,'Name Sort'!$D$2:$E$936,2,FALSE)="",A45,""),"") -> Willians Astudillo | AB44: =IFERROR(INDEX($AA$1:$AA$955,SMALL(IF($AA$1:$AA$955<>"",ROW($AA$1:$AA$955)),ROW(AA44))),"") -> Willians Astudillo
A45: Willians Astudillo | B45: astudwi01 | C45: 3B | E45: MIA | F45: 30 | N45: =IFERROR(VLOOKUP(A45,'Import (Values)'!$B$2:$C$999,2,FALSE)/3120,"") ->  | U45: =IFERROR(INDEX('Guts-2'!$K$1:$K$30,MATCH(E45,'Guts-2'!$J$1:$J$30,0)),TRUE) -> TRUE | V45: =IFERROR(IF(OR(U45=FALSE,INDEX('Player Notes'!$I$3:$I$999,MATCH(A45,'Player Notes'!$A$3:$A$999,0),1)="Yes"),"",IFERROR(CHOOSE('Guts-2'!$D$27,O45,P45,Q45,R45,S45,T45),"")),"") ->  | X45: =IFERROR(IF(OR(U45=FALSE,INDEX('Player Notes'!$I$3:$I$999,MATCH(A45,'Player Notes'!$A$3:$A$999,0),1)="Yes"),"",CHOOSE('Guts-2'!$D$26,G45,H45,I45,J45,K45,L45,M45,N45)),"") ->  | Y45: =IF(U45=FALSE,"",IFERROR(IF(INDEX('Auction-Rank'!$G$1:$N$955,MATCH($A45,'Auction-Rank'!$A$1:$A$955,0),'Guts-2'!$D$26)="","",INDEX('Auction-Rank'!$G$1:$N$955,MATCH($A45,'Auction-Rank'!$A$1:$A$955,0),'Guts-2'!$D$26)),"")) ->  | Z45: =IF(Y45="","",IF(U45=FALSE,"",Y45*(SUMIF($X$2:$X$955,"<>""",$X$2:$X$955)/SUMIF($Y$2:$Y$955,"<>""",$Y$2:$Y$955)))) ->  | AA45: =IFERROR(IF(VLOOKUP(A46,'Name Sort'!$D$2:$E$936,2,FALSE)="",A46,""),"") -> Akil Baddoo | AB45: =IFERROR(INDEX($AA$1:$AA$955,SMALL(IF($AA$1:$AA$955<>"",ROW($AA$1:$AA$955)),ROW(AA45))),"") -> Akil Baddoo
A46: Akil Baddoo | B46: baddoak01 | C46: OF | D46: LF,CF | E46: DET | F46: 23 | G46: 0.001927777778 | H46: 0.0005555555556 | I46: 0.0001666666667 | J46: 0 | K46: 0.0003055555556 | L46: 0.001666666667 | M46: 0.0007703703704 | N46: =IFERROR(VLOOKUP(A46,'Import (Values)'!$B$2:$C$999,2,FALSE)/3120,"") ->  | O46: 150 | P46: 243.3 | Q46: 270 | R46: 248 | S46: 180.3 | U46: =IFERROR(INDEX('Guts-2'!$K$1:$K$30,MATCH(E46,'Guts-2'!$J$1:$J$30,0)),TRUE) -> TRUE | V46: =IFERROR(IF(OR(U46=FALSE,INDEX('Player Notes'!$I$3:$I$999,MATCH(A46,'Player Notes'!$A$3:$A$999,0),1)="Yes"),"",IFERROR(CHOOSE('Guts-2'!$D$27,O46,P46,Q46,R46,S46,T46),"")),"") -> 180.3 | W46: 173 | X46: =IFERROR(IF(OR(U46=FALSE,INDEX('Player Notes'!$I$3:$I$999,MATCH(A46,'Player Notes'!$A$3:$A$999,0),1)="Yes"),"",CHOOSE('Guts-2'!$D$26,G46,H46,I46,J46,K46,L46,M46,N46)),"") -> 0.0007703703704 | Y46: =IF(U46=FALSE,"",IFERROR(IF(INDEX('Auction-Rank'!$G$1:$N$955,MATCH($A46,'Auction-Rank'!$A$1:$A$955,0),'Guts-2'!$D$26)="","",INDEX('Auction-Rank'!$G$1:$N$955,MATCH($A46,'Auction-Rank'!$A$1:$A$955,0),'Guts-2'!$D$26)),"")) -> 0.0007703703704 | Z46: =IF(Y46="","",IF(U46=FALSE,"",Y46*(SUMIF($X$2:$X$955,"<>""",$X$2:$X$955)/SUMIF($Y$2:$Y$955,"<>""",$Y$2:$Y$955)))) -> 0.0007703703704 | AA46: =IFERROR(IF(VLOOKUP(A47,'Name Sort'!$D$2:$E$936,2,FALSE)="",A47,""),"") -> Harrison Bader | AB46: =IFERROR(INDEX($AA$1:$AA$955,SMALL(IF($AA$1:$AA$955<>"",ROW($AA$1:$AA$955)),ROW(AA46))),"") -> Harrison Bader
A47: Harrison Bader | B47: baderha01 | C47: OF | D47: CF | E47: STL | F47: 27 | G47: 0.0006333333333 | H47: 0.0005555555556 | I47: 5.555555556e-05 | J47: 0 | K47: 0.0003055555556 | L47: 0.0005555555556 | M47: 0.0003509259259 | N47: =IFERROR(VLOOKUP(A47,'Import (Values)'!$B$2:$C$999,2,FALSE)/3120,"") ->  | O47: 220 | P47: 234.7 | Q47: 289 | R47: 222 | S47: 224.9 | U47: =IFERROR(INDEX('Guts-2'!$K$1:$K$30,MATCH(E47,'Guts-2'!$J$1:$J$30,0)),TRUE) -> TRUE | V47: =IFERROR(IF(OR(U47=FALSE,INDEX('Player Notes'!$I$3:$I$999,MATCH(A47,'Player Notes'!$A$3:$A$999,0),1)="Yes"),"",IFERROR(CHOOSE('Guts-2'!$D$27,O47,P47,Q47,R47,S47,T47),"")),"") -> 224.9 | W47: 218 | X47: =IFERROR(IF(OR(U47=FALSE,INDEX('Player Notes'!$I$3:$I$999,MATCH(A47,'Player Notes'!$A$3:$A$999,0),1)="Yes"),"",CHOOSE('Guts-2'!$D$26,G47,H47,I47,J47,K47,L47,M47,N47)),"") -> 0.0003509259259 | Y47: =IF(U47=FALSE,"",IFERROR(IF(INDEX('Auction-Rank'!$G$1:$N$955,MATCH($A47,'Auction-Rank'!$A$1:$A$955,0),'Guts-2'!$D$26)="","",INDEX('Auction-Rank'!$G$1:$N$955,MATCH($A47,'Auction-Rank'!$A$1:$A$955,0),'Guts-2'!$D$26)),"")) -> 0.0003509259259 | Z47: =IF(Y47="","",IF(U47=FALSE,"",Y47*(SUMIF($X$2:$X$955,"<>""",$X$2:$X$955)/SUMIF($Y$2:$Y$955,"<>""",$Y$2:$Y$955)))) -> 0.0003509259259 | AA47: =IFERROR(IF(VLOOKUP(A48,'Name Sort'!$D$2:$E$936,2,FALSE)="",A48,""),"") -> Javier Baez | AB47: =IFERROR(INDEX($AA$1:$AA$955,SMALL(IF($AA$1:$AA$955<>"",ROW($AA$1:$AA$955)),ROW(AA47))),"") -> Javier Baez
A48: Javier Baez | B48: baezja01 | C48: SS | E48: DET | F48: 29 | G48: 0.003341666667 | H48: 0.004722222222 | I48: 0.001611111111 | J48: 0.004722222222 | K48: 0.005361111111 | L48: 0.004166666667 | M48: 0.0039875 | N48: =IFERROR(VLOOKUP(A48,'Import (Values)'!$B$2:$C$999,2,FALSE)/3120,"") ->  | O48: 100 | P48: 64.7 | Q48: 218 | R48: 76 | S48: 64.3 | U48: =IFERROR(INDEX('Guts-2'!$K$1:$K$30,MATCH(E48,'Guts-2'!$J$1:$J$30,0)),TRUE) -> TRUE | V48: =IFERROR(IF(OR(U48=FALSE,INDEX('Player Notes'!$I$3:$I$999,MATCH(A48,'Player Notes'!$A$3:$A$999,0),1)="Yes"),"",IFERROR(CHOOSE('Guts-2'!$D$27,O48,P48,Q48,R48,S48,T48),"")),"") -> 64.3 | W48: 63 | X48: =IFERROR(IF(OR(U48=FALSE,INDEX('Player Notes'!$I$3:$I$999,MATCH(A48,'Player Notes'!$A$3:$A$999,0),1)="Yes"),"",CHOOSE('Guts-2'!$D$26,G48,H48,I48,J48,K48,L48,M48,N48)),"") -> 0.0039875 | Y48: =IF(U48=FALSE,"",IFERROR(IF(INDEX('Auction-Rank'!$G$1:$N$955,MATCH($A48,'Auction-Rank'!$A$1:$A$955,0),'Guts-2'!$D$26)="","",INDEX('Auction-Rank'!$G$1:$N$955,MATCH($A48,'Auction-Rank'!$A$1:$A$955,0),'Guts-2'!$D$26)),"")) -> 0.0039875 | Z48: =IF(Y48="","",IF(U48=FALSE,"",Y48*(SUMIF($X$2:$X$955,"<>""",$X$2:$X$955)/SUMIF($Y$2:$Y$955,"<>""",$Y$2:$Y$955)))) -> 0.0039875 | AA48: =IFERROR(IF(VLOOKUP(A49,'Name Sort'!$D$2:$E$936,2,FALSE)="",A49,""),"") -> Daniel Bard | AB48: =IFERROR(INDEX($AA$1:$AA$955,SMALL(IF($AA$1:$AA$955<>"",ROW($AA$1:$AA$955)),ROW(AA48))),"") -> Daniel Bard
A49: Daniel Bard | B49: bardda01 | C49: RP | E49: COL | F49: 36 | J49: 0 | M49: 0 | N49: =IFERROR(VLOOKUP(A49,'Import (Values)'!$B$2:$C$999,2,FALSE)/3120,"") ->  | S49: 627.8 | U49: =IFERROR(INDEX('Guts-2'!$K$1:$K$30,MATCH(E49,'Guts-2'!$J$1:$J$30,0)),TRUE) -> TRUE | V49: =IFERROR(IF(OR(U49=FALSE,INDEX('Player Notes'!$I$3:$I$999,MATCH(A49,'Player Notes'!$A$3:$A$999,0),1)="Yes"),"",IFERROR(CHOOSE('Guts-2'!$D$27,O49,P49,Q49,R49,S49,T49),"")),"") -> 627.8 | W49: 585 | X49: =IFERROR(IF(OR(U49=FALSE,INDEX('Player Notes'!$I$3:$I$999,MATCH(A49,'Player Notes'!$A$3:$A$999,0),1)="Yes"),"",CHOOSE('Guts-2'!$D$26,G49,H49,I49,J49,K49,L49,M49,N49)),"") -> 0 | Y49: =IF(U49=FALSE,"",IFERROR(IF(INDEX('Auction-Rank'!$G$1:$N$955,MATCH($A49,'Auction-Rank'!$A$1:$A$955,0),'Guts-2'!$D$26)="","",INDEX('Auction-Rank'!$G$1:$N$955,MATCH($A49,'Auction-Rank'!$A$1:$A$955,0),'Guts-2'!$D$26)),"")) -> 0 | Z49: =IF(Y49="","",IF(U49=FALSE,"",Y49*(SUMIF($X$2:$X$955,"<>""",$X$2:$X$955)/SUMIF($Y$2:$Y$955,"<>""",$Y$2:$Y$955)))) -> 0 | AA49: =IFERROR(IF(VLOOKUP(A50,'Name Sort'!$D$2:$E$936,2,FALSE)="",A50,""),"") -> Joe Barlow | AB49: =IFERROR(INDEX($AA$1:$AA$955,SMALL(IF($AA$1:$AA$955<>"",ROW($AA$1:$AA$955)),ROW(AA49))),"") -> Joe Barlow
A50: Joe Barlow | B50: barlojo01 | C50: RP | E50: TEX | F50: 26 | G50: 0.0003138888889 | H50: 0.0002777777778 | I50: 0.0002222222222 | J50: 0.001111111111 | K50: 0.0006666666667 | L50: 0.0002777777778 | M50: 0.0004782407407 | N50: =IFERROR(VLOOKUP(A50,'Import (Values)'!$B$2:$C$999,2,FALSE)/3120,"") ->  | O50: 245 | P50: 315 | Q50: 278 | R50: 204 | S50: 283.6 | U50: =IFERROR(INDEX('Guts-2'!$K$1:$K$30,MATCH(E50,'Guts-2'!$J$1:$J$30,0)),TRUE) -> TRUE | V50: =IFERROR(IF(OR(U50=FALSE,INDEX('Player Notes'!$I$3:$I$999,MATCH(A50,'Player Notes'!$A$3:$A$999,0),1)="Yes"),"",IFERROR(CHOOSE('Guts-2'!$D$27,O50,P50,Q50,R50,S50,T50),"")),"") -> 283.6 | W50: 287 | X50: =IFERROR(IF(OR(U50=FALSE,INDEX('Player Notes'!$I$3:$I$999,MATCH(A50,'Player Notes'!$A$3:$A$999,0),1)="Yes"),"",CHOOSE('Guts-2'!$D$26,G50,H50,I50,J50,K50,L50,M50,N50)),"") -> 0.0004782407407 | Y50: =IF(U50=FALSE,"",IFERROR(IF(INDEX('Auction-Rank'!$G$1:$N$955,MATCH($A50,'Auction-Rank'!$A$1:$A$955,0),'Guts-2'!$D$26)="","",INDEX('Auction-Rank'!$G$1:$N$955,MATCH($A50,'Auction-Rank'!$A$1:$A$955,0),'Guts-2'!$D$26)),"")) -> 0.0004782407407 | Z50: =IF(Y50="","",IF(U50=FALSE,"",Y50*(SUMIF($X$2:$X$955,"<>""",$X$2:$X$955)/SUMIF($Y$2:$Y$955,"<>""",$Y$2:$Y$955)))) -> 0.0004782407407 | AA50: =IFERROR(IF(VLOOKUP(A51,'Name Sort'!$D$2:$E$936,2,FALSE)="",A51,""),"") -> Scott Barlow | AB50: =IFERROR(INDEX($AA$1:$AA$955,SMALL(IF($AA$1:$AA$955<>"",ROW($AA$1:$AA$955)),ROW(AA50))),"") -> Scott Barlow
A51: Scott Barlow | B51: barlosc01 | C51: RP | E51: KC | F51: 29 | G51: 0.001702777778 | H51: 0.001666666667 | I51: 0.0008055555556 | J51: 0.001944444444 | K51: 0.0007777777778 | L51: 0.001388888889 | M51: 0.001381018519 | N51: =IFERROR(VLOOKUP(A51,'Import (Values)'!$B$2:$C$999,2,FALSE)/3120,"") ->  | O51: 162 | P51: 251.3 | Q51: 175 | R51: 202 | S51: 205.8 | U51: =IFERROR(INDEX('Guts-2'!$K$1:$K$30,MATCH(E51,'Guts-2'!$J$1:$J$30,0)),TRUE) -> TRUE | V51: =IFERROR(IF(OR(U51=FALSE,INDEX('Player Notes'!$I$3:$I$999,MATCH(A51,'Player Notes'!$A$3:$A$999,0),1)="Yes"),"",IFERROR(CHOOSE('Guts-2'!$D$27,O51,P51,Q51,R51,S51,T51),"")),"") -> 205.8 | W51: 206 | X51: =IFERROR(IF(OR(U51=FALSE,INDEX('Player Notes'!$I$3:$I$999,MATCH(A51,'Player Notes'!$A$3:$A$999,0),1)="Yes"),"",CHOOSE('Guts-2'!$D$26,G51,H51,I51,J51,K51,L51,M51,N51)),"") -> 0.001381018519 | Y51: =IF(U51=FALSE,"",IFERROR(IF(INDEX('Auction-Rank'!$G$1:$N$955,MATCH($A51,'Auction-Rank'!$A$1:$A$955,0),'Guts-2'!$D$26)="","",INDEX('Auction-Rank'!$G$1:$N$955,MATCH($A51,'Auction-Rank'!$A$1:$A$955,0),'Guts-2'!$D$26)),"")) -> 0.001381018519 | Z51: =IF(Y51="","",IF(U51=FALSE,"",Y51*(SUMIF($X$2:$X$955,"<>""",$X$2:$X$955)/SUMIF($Y$2:$Y$955,"<>""",$Y$2:$Y$955)))) -> 0.001381018519 | AA51: =IFERROR(IF(VLOOKUP(A52,'Name Sort'!$D$2:$E$936,2,FALSE)="",A52,""),"") -> Austin Barnes | AB51: =IFERROR(INDEX($AA$1:$AA$955,SMALL(IF($AA$1:$AA$955<>"",ROW($AA$1:$AA$955)),ROW(AA51))),"") -> Austin Barnes
A52: Austin Barnes | B52: barneau01 | C52: C | E52: LAD | F52: 32 | N52: =IFERROR(VLOOKUP(A52,'Import (Values)'!$B$2:$C$999,2,FALSE)/3120,"") ->  | S52: 690.5 | U52: =IFERROR(INDEX('Guts-2'!$K$1:$K$30,MATCH(E52,'Guts-2'!$J$1:$J$30,0)),TRUE) -> TRUE | V52: =IFERROR(IF(OR(U52=FALSE,INDEX('Player Notes'!$I$3:$I$999,MATCH(A52,'Player Notes'!$A$3:$A$999,0),1)="Yes"),"",IFERROR(CHOOSE('Guts-2'!$D$27,O52,P52,Q52,R52,S52,T52),"")),"") -> 690.5 | W52: 614 | X52: =IFERROR(IF(OR(U52=FALSE,INDEX('Player Notes'!$I$3:$I$999,MATCH(A52,'Player Notes'!$A$3:$A$999,0),1)="Yes"),"",CHOOSE('Guts-2'!$D$26,G52,H52,I52,J52,K52,L52,M52,N52)),"") ->  | Y52: =IF(U52=FALSE,"",IFERROR(IF(INDEX('Auction-Rank'!$G$1:$N$955,MATCH($A52,'Auction-Rank'!$A$1:$A$955,0),'Guts-2'!$D$26)="","",INDEX('Auction-Rank'!$G$1:$N$955,MATCH($A52,'Auction-Rank'!$A$1:$A$955,0),'Guts-2'!$D$26)),"")) ->  | Z52: =IF(Y52="","",IF(U52=FALSE,"",Y52*(SUMIF($X$2:$X$955,"<>""",$X$2:$X$955)/SUMIF($Y$2:$Y$955,"<>""",$Y$2:$Y$955)))) ->  | AA52: =IFERROR(IF(VLOOKUP(A53,'Name Sort'!$D$2:$E$936,2,FALSE)="",A53,""),"") -> Matt Barnes | AB52: =IFERROR(INDEX($AA$1:$AA$955,SMALL(IF($AA$1:$AA$955<>"",ROW($AA$1:$AA$955)),ROW(AA52))),"") -> Matt Barnes
A53: Matt Barnes | B53: barnema01 | C53: RP | E53: BOS | F53: 31 | G53: 0.001847222222 | H53: 0.0002777777778 | I53: 0.0003888888889 | J53: 0 | K53: 0.0005833333333 | L53: 0.001111111111 | M53: 0.0007013888889 | N53: =IFERROR(VLOOKUP(A53,'Import (Values)'!$B$2:$C$999,2,FALSE)/3120,"") ->  | O53: 154 | P53: 262.3 | Q53: 242 | R53: 205 | S53: 239.4 | U53: =IFERROR(INDEX('Guts-2'!$K$1:$K$30,MATCH(E53,'Guts-2'!$J$1:$J$30,0)),TRUE) -> TRUE | V53: =IFERROR(IF(OR(U53=FALSE,INDEX('Player Notes'!$I$3:$I$999,MATCH(A53,'Player Notes'!$A$3:$A$999,0),1)="Yes"),"",IFERROR(CHOOSE('Guts-2'!$D$27,O53,P53,Q53,R53,S53,T53),"")),"") -> 239.4 | W53: 236 | X53: =IFERROR(IF(OR(U53=FALSE,INDEX('Player Notes'!$I$3:$I$999,MATCH(A53,'Player Notes'!$A$3:$A$999,0),1)="Yes"),"",CHOOSE('Guts-2'!$D$26,G53,H53,I53,J53,K53,L53,M53,N53)),"") -> 0.0007013888889 | Y53: =IF(U53=FALSE,"",IFERROR(IF(INDEX('Auction-Rank'!$G$1:$N$955,MATCH($A53,'Auction-Rank'!$A$1:$A$955,0),'Guts-2'!$D$26)="","",INDEX('Auction-Rank'!$G$1:$N$955,MATCH($A53,'Auction-Rank'!$A$1:$A$955,0),'Guts-2'!$D$26)),"")) -> 0.0007013888889 | Z53: =IF(Y53="","",IF(U53=FALSE,"",Y53*(SUMIF($X$2:$X$955,"<>""",$X$2:$X$955)/SUMIF($Y$2:$Y$955,"<>""",$Y$2:$Y$955)))) -> 0.0007013888889 | AA53: =IFERROR(IF(VLOOKUP(A54,'Name Sort'!$D$2:$E$936,2,FALSE)="",A54,""),"") -> Tucker Barnhart | AB53: =IFERROR(INDEX($AA$1:$AA$955,SMALL(IF($AA$1:$AA$955<>"",ROW($AA$1:$AA$955)),ROW(AA53))),"") -> Tucker Barnhart
A54: Tucker Barnhart | B54: barnhtu01 | C54: C | E54: DET | F54: 31 | J54: 0 | K54: 0.0002777777778 | M54: 0.0001388888889 | N54: =IFERROR(VLOOKUP(A54,'Import (Values)'!$B$2:$C$999,2,FALSE)/3120,"") ->  | S54: 459.8 | U54: =IFERROR(INDEX('Guts-2'!$K$1:$K$30,MATCH(E54,'Guts-2'!$J$1:$J$30,0)),TRUE) -> TRUE | V54: =IFERROR(IF(OR(U54=FALSE,INDEX('Player Notes'!$I$3:$I$999,MATCH(A54,'Player Notes'!$A$3:$A$999,0),1)="Yes"),"",IFERROR(CHOOSE('Guts-2'!$D$27,O54,P54,Q54,R54,S54,T54),"")),"") -> 459.8 | W54: 490 | X54: =IFERROR(IF(OR(U54=FALSE,INDEX('Player Notes'!$I$3:$I$999,MATCH(A54,'Player Notes'!$A$3:$A$999,0),1)="Yes"),"",CHOOSE('Guts-2'!$D$26,G54,H54,I54,J54,K54,L54,M54,N54)),"") -> 0.0001388888889 | Y54: =IF(U54=FALSE,"",IFERROR(IF(INDEX('Auction-Rank'!$G$1:$N$955,MATCH($A54,'Auction-Rank'!$A$1:$A$955,0),'Guts-2'!$D$26)="","",INDEX('Auction-Rank'!$G$1:$N$955,MATCH($A54,'Auction-Rank'!$A$1:$A$955,0),'Guts-2'!$D$26)),"")) -> 0.0001388888889 | Z54: =IF(Y54="","",IF(U54=FALSE,"",Y54*(SUMIF($X$2:$X$955,"<>""",$X$2:$X$955)/SUMIF($Y$2:$Y$955,"<>""",$Y$2:$Y$955)))) -> 0.0001388888889 | AA54: =IFERROR(IF(VLOOKUP(A55,'Name Sort'!$D$2:$E$936,2,FALSE)="",A55,""),"") -> Joey Bart | AB54: =IFERROR(INDEX($AA$1:$AA$955,SMALL(IF($AA$1:$AA$955<>"",ROW($AA$1:$AA$955)),ROW(AA54))),"") -> Joey Bart
A55: Joey Bart | B55: bartjo01 | C55: DH | E55: SF | F55: 25 | H55: 0.0002777777778 | I55: 2.777777778e-05 | J55: 0 | K55: 0.0003055555556 | M55: 0.0001527777778 | N55: =IFERROR(VLOOKUP(A55,'Import (Values)'!$B$2:$C$999,2,FALSE)/3120,"") ->  | S55: 393.3 | U55: =IFERROR(INDEX('Guts-2'!$K$1:$K$30,MATCH(E55,'Guts-2'!$J$1:$J$30,0)),TRUE) -> TRUE | V55: =IFERROR(IF(OR(U55=FALSE,INDEX('Player Notes'!$I$3:$I$999,MATCH(A55,'Player Notes'!$A$3:$A$999,0),1)="Yes"),"",IFERROR(CHOOSE('Guts-2'!$D$27,O55,P55,Q55,R55,S55,T55),"")),"") -> 393.3 | W55: 417 | X55: =IFERROR(IF(OR(U55=FALSE,INDEX('Player Notes'!$I$3:$I$999,MATCH(A55,'Player Notes'!$A$3:$A$999,0),1)="Yes"),"",CHOOSE('Guts-2'!$D$26,G55,H55,I55,J55,K55,L55,M55,N55)),"") -> 0.0001527777778 | Y55: =IF(U55=FALSE,"",IFERROR(IF(INDEX('Auction-Rank'!$G$1:$N$955,MATCH($A55,'Auction-Rank'!$A$1:$A$955,0),'Guts-2'!$D$26)="","",INDEX('Auction-Rank'!$G$1:$N$955,MATCH($A55,'Auction-Rank'!$A$1:$A$955,0),'Guts-2'!$D$26)),"")) -> 0.0001527777778 | Z55: =IF(Y55="","",IF(U55=FALSE,"",Y55*(SUMIF($X$2:$X$955,"<>""",$X$2:$X$955)/SUMIF($Y$2:$Y$955,"<>""",$Y$2:$Y$955)))) -> 0.0001527777778 | AA55: =IFERROR(IF(VLOOKUP(A56,'Name Sort'!$D$2:$E$936,2,FALSE)="",A56,""),"") -> Chris Bassitt | AB55: =IFERROR(INDEX($AA$1:$AA$955,SMALL(IF($AA$1:$AA$955<>"",ROW($AA$1:$AA$955)),ROW(AA55))),"") -> Chris Bassitt
A56: Chris Bassitt | B56: bassich01 | C56: SP | E56: NYM | F56: 33 | G56: 0.002452777778 | H56: 0.002777777778 | I56: 0.00225 | J56: 0.003055555556 | K56: 0.00275 | L56: 0.001944444444 | M56: 0.002538425926 | N56: =IFERROR(VLOOKUP(A56,'Import (Values)'!$B$2:$C$999,2,FALSE)/3120,"") ->  | O56: 127 | P56: 119 | Q56: 78 | R56: 170 | S56: 119.3 | U56: =IFERROR(INDEX('Guts-2'!$K$1:$K$30,MATCH(E56,'Guts-2'!$J$1:$J$30,0)),TRUE) -> TRUE | V56: =IFERROR(IF(OR(U56=FALSE,INDEX('Player Notes'!$I$3:$I$999,MATCH(A56,'Player Notes'!$A$3:$A$999,0),1)="Yes"),"",IFERROR(CHOOSE('Guts-2'!$D$27,O56,P56,Q56,R56,S56,T56),"")),"") -> 119.3 | W56: 116 | X56: =IFERROR(IF(OR(U56=FALSE,INDEX('Player Notes'!$I$3:$I$999,MATCH(A56,'Player Notes'!$A$3:$A$999,0),1)="Yes"),"",CHOOSE('Guts-2'!$D$26,G56,H56,I56,J56,K56,L56,M56,N56)),"") -> 0.002538425926 | Y56: =IF(U56=FALSE,"",IFERROR(IF(INDEX('Auction-Rank'!$G$1:$N$955,MATCH($A56,'Auction-Rank'!$A$1:$A$955,0),'Guts-2'!$D$26)="","",INDEX('Auction-Rank'!$G$1:$N$955,MATCH($A56,'Auction-Rank'!$A$1:$A$955,0),'Guts-2'!$D$26)),"")) -> 0.002538425926 | Z56: =IF(Y56="","",IF(U56=FALSE,"",Y56*(SUMIF($X$2:$X$955,"<>""",$X$2:$X$955)/SUMIF($Y$2:$Y$955,"<>""",$Y$2:$Y$955)))) -> 0.002538425926 | AA56: =IFERROR(IF(VLOOKUP(A57,'Name Sort'!$D$2:$E$936,2,FALSE)="",A57,""),"") -> Trevor Bauer | AB56: =IFERROR(INDEX($AA$1:$AA$955,SMALL(IF($AA$1:$AA$955<>"",ROW($AA$1:$AA$955)),ROW(AA56))),"") -> Trevor Bauer
A57: Trevor Bauer | B57: bauertr01 | C57: SP | E57: LAD | F57: 31 | H57: 0.001111111111 | I57: 0.0006388888889 | J57: 0 | K57: 0.001 | M57: 0.0006875 | N57: =IFERROR(VLOOKUP(A57,'Import (Values)'!$B$2:$C$999,2,FALSE)/3120,"") ->  | P57: 270.5 | Q57: 285 | S57: 252.4 | U57: =IFERROR(INDEX('Guts-2'!$K$1:$K$30,MATCH(E57,'Guts-2'!$J$1:$J$30,0)),TRUE) -> TRUE | V57: =IFERROR(IF(OR(U57=FALSE,INDEX('Player Notes'!$I$3:$I$999,MATCH(A57,'Player Notes'!$A$3:$A$999,0),1)="Yes"),"",IFERROR(CHOOSE('Guts-2'!$D$27,O57,P57,Q57,R57,S57,T57),"")),"") -> 252.4 | W57: 247 | X57: =IFERROR(IF(OR(U57=FALSE,INDEX('Player Notes'!$I$3:$I$999,MATCH(A57,'Player Notes'!$A$3:$A$999,0),1)="Yes"),"",CHOOSE('Guts-2'!$D$26,G57,H57,I57,J57,K57,L57,M57,N57)),"") -> 0.0006875 | Y57: =IF(U57=FALSE,"",IFERROR(IF(INDEX('Auction-Rank'!$G$1:$N$955,MATCH($A57,'Auction-Rank'!$A$1:$A$955,0),'Guts-2'!$D$26)="","",INDEX('Auction-Rank'!$G$1:$N$955,MATCH($A57,'Auction-Rank'!$A$1:$A$955,0),'Guts-2'!$D$26)),"")) -> 0.0006875 | Z57: =IF(Y57="","",IF(U57=FALSE,"",Y57*(SUMIF($X$2:$X$955,"<>""",$X$2:$X$955)/SUMIF($Y$2:$Y$955,"<>""",$Y$2:$Y$955)))) -> 0.0006875 | AA57: =IFERROR(IF(VLOOKUP(A58,'Name Sort'!$D$2:$E$936,2,FALSE)="",A58,""),"") -> Shane Baz | AB57: =IFERROR(INDEX($AA$1:$AA$955,SMALL(IF($AA$1:$AA$955<>"",ROW($AA$1:$AA$955)),ROW(AA57))),"") -> Shane Baz
A58: Shane Baz | B58: bazsh01 | C58: SP | E58: TB | F58: 22 | H58: 0.001388888889 | I58: 0.0009722222222 | J58: 0.001666666667 | K58: 0.0009444444444 | L58: 0.001111111111 | M58: 0.001216666667 | N58: =IFERROR(VLOOKUP(A58,'Import (Values)'!$B$2:$C$999,2,FALSE)/3120,"") ->  | P58: 206.7 | Q58: 125 | R58: 166 | S58: 184.8 | U58: =IFERROR(INDEX('Guts-2'!$K$1:$K$30,MATCH(E58,'Guts-2'!$J$1:$J$30,0)),TRUE) -> TRUE | V58: =IFERROR(IF(OR(U58=FALSE,INDEX('Player Notes'!$I$3:$I$999,MATCH(A58,'Player Notes'!$A$3:$A$999,0),1)="Yes"),"",IFERROR(CHOOSE('Guts-2'!$D$27,O58,P58,Q58,R58,S58,T58),"")),"") -> 184.8 | W58: 178 | X58: =IFERROR(IF(OR(U58=FALSE,INDEX('Player Notes'!$I$3:$I$999,MATCH(A58,'Player Notes'!$A$3:$A$999,0),1)="Yes"),"",CHOOSE('Guts-2'!$D$26,G58,H58,I58,J58,K58,L58,M58,N58)),"") -> 0.001216666667 | Y58: =IF(U58=FALSE,"",IFERROR(IF(INDEX('Auction-Rank'!$G$1:$N$955,MATCH($A58,'Auction-Rank'!$A$1:$A$955,0),'Guts-2'!$D$26)="","",INDEX('Auction-Rank'!$G$1:$N$955,MATCH($A58,'Auction-Rank'!$A$1:$A$955,0),'Guts-2'!$D$26)),"")) -> 0.001216666667 | Z58: =IF(Y58="","",IF(U58=FALSE,"",Y58*(SUMIF($X$2:$X$955,"<>""",$X$2:$X$955)/SUMIF($Y$2:$Y$955,"<>""",$Y$2:$Y$955)))) -> 0.001216666667 | AA58: =IFERROR(IF(VLOOKUP(A59,'Name Sort'!$D$2:$E$936,2,FALSE)="",A59,""),"") -> Matt Beaty | AB58: =IFERROR(INDEX($AA$1:$AA$955,SMALL(IF($AA$1:$AA$955<>"",ROW($AA$1:$AA$955)),ROW(AA58))),"") -> Matt Beaty
A59: Matt Beaty | B59: beatyma01 | C59: OF | D59: LF,RF | E59: SD | F59: 28 | N59: =IFERROR(VLOOKUP(A59,'Import (Values)'!$B$2:$C$999,2,FALSE)/3120,"") ->  | S59: 742.3 | U59: =IFERROR(INDEX('Guts-2'!$K$1:$K$30,MATCH(E59,'Guts-2'!$J$1:$J$30,0)),TRUE) -> TRUE | V59: =IFERROR(IF(OR(U59=FALSE,INDEX('Player Notes'!$I$3:$I$999,MATCH(A59,'Player Notes'!$A$3:$A$999,0),1)="Yes"),"",IFERROR(CHOOSE('Guts-2'!$D$27,O59,P59,Q59,R59,S59,T59),"")),"") -> 742.3 | W59: 636 | X59: =IFERROR(IF(OR(U59=FALSE,INDEX('Player Notes'!$I$3:$I$999,MATCH(A59,'Player Notes'!$A$3:$A$999,0),1)="Yes"),"",CHOOSE('Guts-2'!$D$26,G59,H59,I59,J59,K59,L59,M59,N59)),"") ->  | Y59: =IF(U59=FALSE,"",IFERROR(IF(INDEX('Auction-Rank'!$G$1:$N$955,MATCH($A59,'Auction-Rank'!$A$1:$A$955,0),'Guts-2'!$D$26)="","",INDEX('Auction-Rank'!$G$1:$N$955,MATCH($A59,'Auction-Rank'!$A$1:$A$955,0),'Guts-2'!$D$26)),"")) ->  | Z59: =IF(Y59="","",IF(U59=FALSE,"",Y59*(SUMIF($X$2:$X$955,"<>""",$X$2:$X$955)/SUMIF($Y$2:$Y$955,"<>""",$Y$2:$Y$955)))) ->  | AA59: =IFERROR(IF(VLOOKUP(A60,'Name Sort'!$D$2:$E$936,2,FALSE)="",A60,""),"") -> David Bednar | AB59: =IFERROR(INDEX($AA$1:$AA$955,SMALL(IF($AA$1:$AA$955<>"",ROW($AA$1:$AA$955)),ROW(AA59))),"") -> David Bednar
A60: David Bednar | B60: bednada01 | C60: RP | E60: PIT | F60: 27 | G60: 0.001916666667 | I60: 0.0001111111111 | J60: 0.001944444444 | K60: 0.0007222222222 | L60: 0.001388888889 | M60: 0.001216666667 | N60: =IFERROR(VLOOKUP(A60,'Import (Values)'!$B$2:$C$999,2,FALSE)/3120,"") ->  | O60: 152 | P60: 172.5 | R60: 209 | S60: 230.3 | U60: =IFERROR(INDEX('Guts-2'!$K$1:$K$30,MATCH(E60,'Guts-2'!$J$1:$J$30,0)),TRUE) -> TRUE | V60: =IFERROR(IF(OR(U60=FALSE,INDEX('Player Notes'!$I$3:$I$999,MATCH(A60,'Player Notes'!$A$3:$A$999,0),1)="Yes"),"",IFERROR(CHOOSE('Guts-2'!$D$27,O60,P60,Q60,R60,S60,T60),"")),"") -> 230.3 | W60: 221 | X60: =IFERROR(IF(OR(U60=FALSE,INDEX('Player Notes'!$I$3:$I$999,MATCH(A60,'Player Notes'!$A$3:$A$999,0),1)="Yes"),"",CHOOSE('Guts-2'!$D$26,G60,H60,I60,J60,K60,L60,M60,N60)),"") -> 0.001216666667 | Y60: =IF(U60=FALSE,"",IFERROR(IF(INDEX('Auction-Rank'!$G$1:$N$955,MATCH($A60,'Auction-Rank'!$A$1:$A$955,0),'Guts-2'!$D$26)="","",INDEX('Auction-Rank'!$G$1:$N$955,MATCH($A60,'Auction-Rank'!$A$1:$A$955,0),'Guts-2'!$D$26)),"")) -> 0.001216666667 | Z60: =IF(Y60="","",IF(U60=FALSE,"",Y60*(SUMIF($X$2:$X$955,"<>""",$X$2:$X$955)/SUMIF($Y$2:$Y$955,"<>""",$Y$2:$Y$955)))) -> 0.001216666667 | AA60: =IFERROR(IF(VLOOKUP(A61,'Name Sort'!$D$2:$E$936,2,FALSE)="",A61,""),"") -> Tyler Beede | AB60: =IFERROR(INDEX($AA$1:$AA$955,SMALL(IF($AA$1:$AA$955<>"",ROW($AA$1:$AA$955)),ROW(AA60))),"") -> Tyler Beede
A61: Tyler Beede | B61: beedety01 | C61: RP | E61: N/A | F61: 28 | N61: =IFERROR(VLOOKUP(A61,'Import (Values)'!$B$2:$C$999,2,FALSE)/3120,"") ->  | S61: 1000 | U61: =IFERROR(INDEX('Guts-2'!$K$1:$K$30,MATCH(E61,'Guts-2'!$J$1:$J$30,0)),TRUE) -> TRUE | V61: =IFERROR(IF(OR(U61=FALSE,INDEX('Player Notes'!$I$3:$I$999,MATCH(A61,'Player Notes'!$A$3:$A$999,0),1)="Yes"),"",IFERROR(CHOOSE('Guts-2'!$D$27,O61,P61,Q61,R61,S61,T61),"")),"") -> 1000 | W61: 699 | X61: =IFERROR(IF(OR(U61=FALSE,INDEX('Player Notes'!$I$3:$I$999,MATCH(A61,'Player Notes'!$A$3:$A$999,0),1)="Yes"),"",CHOOSE('Guts-2'!$D$26,G61,H61,I61,J61,K61,L61,M61,N61)),"") ->  | Y61: =IF(U61=FALSE,"",IFERROR(IF(INDEX('Auction-Rank'!$G$1:$N$955,MATCH($A61,'Auction-Rank'!$A$1:$A$955,0),'Guts-2'!$D$26)="","",INDEX('Auction-Rank'!$G$1:$N$955,MATCH($A61,'Auction-Rank'!$A$1:$A$955,0),'Guts-2'!$D$26)),"")) ->  | Z61: =IF(Y61="","",IF(U61=FALSE,"",Y61*(SUMIF($X$2:$X$955,"<>""",$X$2:$X$955)/SUMIF($Y$2:$Y$955,"<>""",$Y$2:$Y$955)))) ->  | AA61: =IFERROR(IF(VLOOKUP(A62,'Name Sort'!$D$2:$E$936,2,FALSE)="",A62,""),"") -> Seth Beer | AB61: =IFERROR(INDEX($AA$1:$AA$955,SMALL(IF($AA$1:$AA$955<>"",ROW($AA$1:$AA$955)),ROW(AA61))),"") -> Seth Beer
A62: Seth Beer | B62: beerse01 | C62: DH | E62: ARI | F62: 25 | J62: 0.0002777777778 | K62: 0.0002777777778 | M62: 0.0002777777778 | N62: =IFERROR(VLOOKUP(A62,'Import (Values)'!$B$2:$C$999,2,FALSE)/3120,"") ->  | S62: 464.4 | U62: =IFERROR(INDEX('Guts-2'!$K$1:$K$30,MATCH(E62,'Guts-2'!$J$1:$J$30,0)),TRUE) -> TRUE | V62: =IFERROR(IF(OR(U62=FALSE,INDEX('Player Notes'!$I$3:$I$999,MATCH(A62,'Player Notes'!$A$3:$A$999,0),1)="Yes"),"",IFERROR(CHOOSE('Guts-2'!$D$27,O62,P62,Q62,R62,S62,T62),"")),"") -> 464.4 | W62: 495 | X62: =IFERROR(IF(OR(U62=FALSE,INDEX('Player Notes'!$I$3:$I$999,MATCH(A62,'Player Notes'!$A$3:$A$999,0),1)="Yes"),"",CHOOSE('Guts-2'!$D$26,G62,H62,I62,J62,K62,L62,M62,N62)),"") -> 0.0002777777778 | Y62: =IF(U62=FALSE,"",IFERROR(IF(INDEX('Auction-Rank'!$G$1:$N$955,MATCH($A62,'Auction-Rank'!$A$1:$A$955,0),'Guts-2'!$D$26)="","",INDEX('Auction-Rank'!$G$1:$N$955,MATCH($A62,'Auction-Rank'!$A$1:$A$955,0),'Guts-2'!$D$26)),"")) -> 0.0002777777778 | Z62: =IF(Y62="","",IF(U62=FALSE,"",Y62*(SUMIF($X$2:$X$955,"<>""",$X$2:$X$955)/SUMIF($Y$2:$Y$955,"<>""",$Y$2:$Y$955)))) -> 0.0002777777778 | AA62: =IFERROR(IF(VLOOKUP(A63,'Name Sort'!$D$2:$E$936,2,FALSE)="",A63,""),"") -> Cody Bellinger | AB62: =IFERROR(INDEX($AA$1:$AA$955,SMALL(IF($AA$1:$AA$955<>"",ROW($AA$1:$AA$955)),ROW(AA62))),"") -> Cody Bellinger
... 77 more rows

Sheet Guts-1 (hidden)
A1: =Settings!B6 -> AB | B1: =IF(Settings!C6=0,"",Settings!C6) -> -1 | C1: 3 | D1: =Settings!B24 -> W | E1: =IF(Settings!C24=0,"",Settings!C24) ->  | F1: 2 | I1: Stats or Points or Hide? | K1: =IF('Your Points Auction'!R7=O5,1,IF('Your Points Auction'!R7=O6,2,IF('Your Points Auction'!R7=O7,3,""))) -> 1 | L1: =MAX(COUNTIF(K2:K17,">"""),COUNTIF(K20:K34,">""")) -> 9 | N1: List | O1: List | P1: Pos | Q1: Sort by Original Projected Auction Value | R1: Show All Positions | S1: =IFERROR(INDEX($R$1:$R$24,SMALL(IF($R$1:$R$24<>"",ROW($R$1:$R$24)),ROW(B1))),"") -> Show All Positions
A2: =Settings!B8 -> Single | B2: =IF(Settings!C8=0,"",Settings!C8) ->  | C2: 6 | D2: =Settings!B25 -> L | E2: =IF(Settings!C25=0,"",Settings!C25) ->  | F2: 3 | I2: H1 | J2: =IF(Settings!C5=0,"",Settings!B5) ->  | K2: =IFERROR(INDEX($J$1:$J$18,SMALL(IF($J$1:$J$18<>"",ROW($J$1:$J$18)),ROW(A1))),"") -> AB | L2: =IF(K$1=2,1,IF(OR(K2="AVG",K2="OBP",K2="SLG",K2="OPS"),2,IF(K2="","",1))) -> 1 | M2: =IF(OR(K2="AVG",K2="OBP",K2="SLG",K2="OPS"),2,IF(K2="","",1)) -> 1 | N2: =IFERROR(INDEX($K$1:$K$34,SMALL(IF($K$1:$K$34<>"",ROW($K$1:$K$34)),ROW(B2))),"") -> AB | O2: Stats | P2: =IF('Guts-2'!$N$2>=ROW(P1),"C","") -> C | Q2: Sort by Projected Points | R2: =IF('Guts-2'!$N2>0,"Only Show: "&'Guts-2'!M2,"") -> Only Show: C | S2: =IFERROR(INDEX($R$1:$R$24,SMALL(IF($R$1:$R$24<>"",ROW($R$1:$R$24)),ROW(B2))),"") -> Only Show: C
A3: =Settings!B9 -> Double | B3: =IF(Settings!C9=0,"",Settings!C9) -> 2.9 | C3: 7 | D3: =Settings!B26 -> IP | E3: =IF(Settings!C26=0,"",Settings!C26) -> 7.4 | F3: 4 | I3: H2 | J3: =IF(Settings!C6=0,"",Settings!B6) -> AB | K3: =IFERROR(INDEX($J$1:$J$18,SMALL(IF($J$1:$J$18<>"",ROW($J$1:$J$18)),ROW(A2))),"") -> Hit | L3: =IF(K$1=2,1,IF(OR(K3="AVG",K3="OBP",K3="SLG",K3="OPS"),2,IF(K3="","",1))) -> 1 | M3: =IF(OR(K3="AVG",K3="OBP",K3="SLG",K3="OPS"),2,IF(K3="","",1)) -> 1 | N3: =IFERROR(INDEX($K$1:$K$34,SMALL(IF($K$1:$K$34<>"",ROW($K$1:$K$34)),ROW(B3))),"") -> Hit | O3: Ranks | P3: =IF('Guts-2'!$N$2>=ROW(P2),"C","") ->  | Q3: Sort by Expert Ranking | R3: =IF('Guts-2'!$N3>0,"Only Show: "&'Guts-2'!M3,"") -> Only Show: 1B | S3: =IFERROR(INDEX($R$1:$R$24,SMALL(IF($R$1:$R$24<>"",ROW($R$1:$R$24)),ROW(B3))),"") -> Only Show: 1B
A4: =Settings!B10 -> Triple | B4: =IF(Settings!C10=0,"",Settings!C10) -> 5.7 | C4: 8 | D4: =Settings!B27 -> Hit Allowed | E4: =IF(Settings!C27=0,"",Settings!C27) -> -2.6 | F4: 5 | I4: H3 | J4: =IF(Settings!C7=0,"",Settings!B7) -> Hit | K4: =IFERROR(INDEX($J$1:$J$18,SMALL(IF($J$1:$J$18<>"",ROW($J$1:$J$18)),ROW(A3))),"") -> Double | L4: 1 | M4: 1 | N4: =IFERROR(INDEX($K$1:$K$34,SMALL(IF($K$1:$K$34<>"",ROW($K$1:$K$34)),ROW(B4))),"") -> Double | O4: List | P4: =IF('Guts-2'!$N$2>=ROW(P3),"C","") ->  | Q4: Sort by Points Above Replacement | R4: =IF('Guts-2'!$N4>0,"Only Show: "&'Guts-2'!M4,"") -> Only Show: 2B | S4: =IFERROR(INDEX($R$1:$R$24,SMALL(IF($R$1:$R$24<>"",ROW($R$1:$R$24)),ROW(B4))),"") -> Only Show: 2B
A5: =Settings!B11 -> HR | B5: =IF(Settings!C11=0,"",Settings!C11) -> 9.4 | C5: 9 | D5: =Settings!B28 -> BB | E5: =IF(Settings!C28=0,"",Settings!C28) -> -3 | F5: 6 | I5: H4 | J5: =IF(Settings!C8=0,"",Settings!B8) ->  | K5: =IFERROR(INDEX($J$1:$J$18,SMALL(IF($J$1:$J$18<>"",ROW($J$1:$J$18)),ROW(A4))),"") -> Triple | L5: 1 | M5: 1 | N5: =IFERROR(INDEX($K$1:$K$34,SMALL(IF($K$1:$K$34<>"",ROW($K$1:$K$34)),ROW(B5))),"") -> Triple | O5: Show Basic Stats | P5: =IF('Guts-2'!$N$2>=ROW(P4),"C","") ->  | Q5: Sort by Points Per IP | R5: =IF('Guts-2'!$N5>0,"Only Show: "&'Guts-2'!M5,"") -> Only Show: 3B | S5: =IFERROR(INDEX($R$1:$R$24,SMALL(IF($R$1:$R$24<>"",ROW($R$1:$R$24)),ROW(B5))),"") -> Only Show: 3B
A6: =Settings!B12 -> BB | B6: =IF(Settings!C12=0,"",Settings!C12) -> 3 | C6: 13 | D6: =Settings!B29 -> K | E6: =IF(Settings!C29=0,"",Settings!C29) -> 2 | F6: 7 | I6: H5 | J6: =IF(Settings!C9=0,"",Settings!B9) -> Double | K6: =IFERROR(INDEX($J$1:$J$18,SMALL(IF($J$1:$J$18<>"",ROW($J$1:$J$18)),ROW(A5))),"") -> HR | L6: 1 | M6: 1 | N6: =IFERROR(INDEX($K$1:$K$34,SMALL(IF($K$1:$K$34<>"",ROW($K$1:$K$34)),ROW(B6))),"") -> HR | O6: Show Point Totals | P6: =IF('Guts-2'!$N$3>=ROW(P1),"1B","") -> 1B | Q6: Sort by Points Per PA | R6: =IF('Guts-2'!$N6>0,"Only Show: "&'Guts-2'!M6,"") -> Only Show: SS | S6: =IFERROR(INDEX($R$1:$R$24,SMALL(IF($R$1:$R$24<>"",ROW($R$1:$R$24)),ROW(B6))),"") -> Only Show: SS
A7: =Settings!B13 -> SB | B7: =IF(Settings!C13=0,"",Settings!C13) -> 1.9 | C7: 11 | D7: =Settings!B30 -> ER | E7: =IF(Settings!C30=0,"",Settings!C30) ->  | F7: 8 | I7: H6 | J7: =IF(Settings!C10=0,"",Settings!B10) -> Triple | K7: =IFERROR(INDEX($J$1:$J$18,SMALL(IF($J$1:$J$18<>"",ROW($J$1:$J$18)),ROW(A6))),"") -> BB | L7: 1 | M7: 1 | N7: =IFERROR(INDEX($K$1:$K$34,SMALL(IF($K$1:$K$34<>"",ROW($K$1:$K$34)),ROW(B7))),"") -> BB | O7: Show Neither | P7: =IF('Guts-2'!$N$3>=ROW(P2),"1B","") ->  | R7: =IF('Guts-2'!$N7>0,"Only Show: "&'Guts-2'!M7,"") ->  | S7: =IFERROR(INDEX($R$1:$R$24,SMALL(IF($R$1:$R$24<>"",ROW($R$1:$R$24)),ROW(B7))),"") -> Only Show: MI
A8: =Settings!B14 -> CS | B8: =IF(Settings!C14=0,"",Settings!C14) -> -2.8 | C8: 12 | D8: SV | E8: =IF(Settings!C31=0,"",Settings!C31) -> 5 | F8: 9 | I8: H7 | J8: =IF(Settings!C11=0,"",Settings!B11) -> HR | K8: =IFERROR(INDEX($J$1:$J$18,SMALL(IF($J$1:$J$18<>"",ROW($J$1:$J$18)),ROW(A7))),"") -> SB | L8: 1 | M8: 1 | N8: =IFERROR(INDEX($K$1:$K$34,SMALL(IF($K$1:$K$34<>"",ROW($K$1:$K$34)),ROW(B8))),"") -> SB | O8: List | P8: =IF('Guts-2'!$N$3>=ROW(P3),"1B","") ->  | R8: =IF('Guts-2'!$N8>0,"Only Show: "&'Guts-2'!M8,"") -> Only Show: MI | S8: =IFERROR(INDEX($R$1:$R$24,SMALL(IF($R$1:$R$24<>"",ROW($R$1:$R$24)),ROW(B8))),"") -> Only Show: OF
A9: =Settings!B15 -> K | B9: =IF(Settings!C15=0,"",Settings!C15) ->  | C9: 14 | D9: =Settings!B32 -> QS | E9: =IF(Settings!C32=0,"",Settings!C32) ->  | F9: 10 | I9: H8 | J9: =IF(Settings!C12=0,"",Settings!B12) -> BB | K9: =IFERROR(INDEX($J$1:$J$18,SMALL(IF($J$1:$J$18<>"",ROW($J$1:$J$18)),ROW(A8))),"") -> CS | L9: 1 | M9: 1 | N9: =IFERROR(INDEX($K$1:$K$34,SMALL(IF($K$1:$K$34<>"",ROW($K$1:$K$34)),ROW(B9))),"") -> CS | O9: Mixed (Standard) | P9: =IF('Guts-2'!$N$4>=ROW(P1),"2B","") -> 2B | R9: =IF('Guts-2'!$N9>0,"Only Show: "&'Guts-2'!M9,"") -> Only Show: OF | S9: =IFERROR(INDEX($R$1:$R$24,SMALL(IF($R$1:$R$24<>"",ROW($R$1:$R$24)),ROW(B9))),"") -> Only Show: DH
A10: =Settings!B16 -> R | B10: =IF(Settings!C16=0,"",Settings!C16) ->  | C10: 4 | D10: =Settings!B33 -> CG | E10: =IF(Settings!C33=0,"",Settings!C33) ->  | F10: 14 | I10: H9 | J10: =IF(Settings!C13=0,"",Settings!B13) -> SB | K10: =IFERROR(INDEX($J$1:$J$18,SMALL(IF($J$1:$J$18<>"",ROW($J$1:$J$18)),ROW(A9))),"") -> HBP | L10: 1 | M10: 1 | N10: =IFERROR(INDEX($K$1:$K$34,SMALL(IF($K$1:$K$34<>"",ROW($K$1:$K$34)),ROW(B10))),"") -> HBP | O10: AL-Only | P10: =IF('Guts-2'!$N$4>=ROW(P2),"2B","") ->  | R10: =IF('Guts-2'!$N10>0,"Only Show: "&'Guts-2'!M10,"") -> Only Show: DH | S10: =IFERROR(INDEX($R$1:$R$24,SMALL(IF($R$1:$R$24<>"",ROW($R$1:$R$24)),ROW(B10))),"") -> Only Show: SP
A11: =Settings!B17 -> RBI | B11: =IF(Settings!C17=0,"",Settings!C17) ->  | C11: 10 | D11: =Settings!B34 -> Shutout | E11: =IF(Settings!C34=0,"",Settings!C34) ->  | F11: 15 | I11: H10 | J11: =IF(Settings!C14=0,"",Settings!B14) -> CS | K11: =IFERROR(INDEX($J$1:$J$18,SMALL(IF($J$1:$J$18<>"",ROW($J$1:$J$18)),ROW(A10))),"") ->  | N11: =IFERROR(INDEX($K$1:$K$34,SMALL(IF($K$1:$K$34<>"",ROW($K$1:$K$34)),ROW(B11))),"") -> IP | O11: NL-Only | P11: =IF('Guts-2'!$N$4>=ROW(P3),"2B","") ->  | R11: Only Show: SP | S11: =IFERROR(INDEX($R$1:$R$24,SMALL(IF($R$1:$R$24<>"",ROW($R$1:$R$24)),ROW(B11))),"") -> Only Show: RP
A12: =Settings!B18 -> Errors | B12: =IF(Settings!C18=0,"",Settings!C18) ->  | C12: 15 | D12: =Settings!B35 -> Holds | E12: =IF(Settings!C35=0,"",Settings!C35) -> 4 | F12: 16 | I12: H11 | J12: =IF(Settings!C15=0,"",Settings!B15) ->  | K12: =IFERROR(INDEX($J$1:$J$18,SMALL(IF($J$1:$J$18<>"",ROW($J$1:$J$18)),ROW(A11))),"") ->  | N12: =IFERROR(INDEX($K$1:$K$34,SMALL(IF($K$1:$K$34<>"",ROW($K$1:$K$34)),ROW(B12))),"") -> Hit Allowed | O12: Specific Teams Only | P12: =IF('Guts-2'!$N$5>=ROW(P1),"3B","") -> 3B | R12: Only Show: RP | S12: =IFERROR(INDEX($R$1:$R$24,SMALL(IF($R$1:$R$24<>"",ROW($R$1:$R$24)),ROW(B12))),"") -> Only Show: P
A13: =Settings!B19 -> GIDP | B13: =IF(Settings!C19=0,"",Settings!C19) ->  | C13: 16 | D13: =Settings!B36 -> Game Started | E13: =IF(Settings!C36=0,"",Settings!C36) ->  | F13: 17 | I13: H12 | J13: =IF(Settings!C16=0,"",Settings!B16) ->  | K13: =IFERROR(INDEX($J$1:$J$18,SMALL(IF($J$1:$J$18<>"",ROW($J$1:$J$18)),ROW(A12))),"") ->  | N13: =IFERROR(INDEX($K$1:$K$34,SMALL(IF($K$1:$K$34<>"",ROW($K$1:$K$34)),ROW(B13))),"") -> BB | O13: Y | P13: =IF('Guts-2'!$N$5>=ROW(P2),"3B","") ->  | R13: Only Show: P | S13: =IFERROR(INDEX($R$1:$R$24,SMALL(IF($R$1:$R$24<>"",ROW($R$1:$R$24)),ROW(B13))),"") -> Only Show: Hitters
A14: HBP | B14: =IF(Settings!C20=0,"",Settings!C20) -> 3 | C14: 17 | D14: =Settings!B37 -> HRA | E14: =IF(Settings!C37=0,"",Settings!C37) -> -12.3 | F14: 18 | I14: H13 | J14: =IF(Settings!C17=0,"",Settings!B17) ->  | K14: =IFERROR(INDEX($J$1:$J$18,SMALL(IF($J$1:$J$18<>"",ROW($J$1:$J$18)),ROW(A13))),"") ->  | L14: =IF(K$1=2,1,IF(OR(K14="AVG",K14="OBP",K14="SLG",K14="OPS"),2,IF(K14="","",1))) ->  | M14: =IF(OR(K14="AVG",K14="OBP",K14="SLG",K14="OPS"),2,IF(K14="","",1)) ->  | N14: =IFERROR(INDEX($K$1:$K$34,SMALL(IF($K$1:$K$34<>"",ROW($K$1:$K$34)),ROW(B14))),"") -> K | O14: N | P14: =IF('Guts-2'!$N$5>=ROW(P3),"3B","") ->  | R14: =IF('Guts-2'!$N14>0,"Only Show: "&'Guts-2'!M14,"") ->  | S14: =IFERROR(INDEX($R$1:$R$24,SMALL(IF($R$1:$R$24<>"",ROW($R$1:$R$24)),ROW(B14))),"") -> Only Show: Pitchers
A15: XBH | B15: =IF(Settings!C21=0,"",Settings!C21) ->  | C15: 18 | D15: Blown Save | E15: =IF(Settings!C38=0,"",Settings!C38) ->  | F15: 19 | I15: H14 | J15: =IF(Settings!C18=0,"",Settings!B18) ->  | K15: =IFERROR(INDEX($J$1:$J$18,SMALL(IF($J$1:$J$18<>"",ROW($J$1:$J$18)),ROW(A14))),"") ->  | N15: =IFERROR(INDEX($K$1:$K$34,SMALL(IF($K$1:$K$34<>"",ROW($K$1:$K$34)),ROW(B15))),"") -> SV | O15: Full | P15: =IF('Guts-2'!$N$6>=ROW(P1),"SS","") -> SS | R15: =IF('Guts-2'!$N15>0,"Only Show: "&'Guts-2'!M15,"") ->  | S15: =IFERROR(INDEX($R$1:$R$24,SMALL(IF($R$1:$R$24<>"",ROW($R$1:$R$24)),ROW(B15))),"") -> 
A16: PA | B16: =IF(Settings!C5=0,"",Settings!C5) ->  | C16: 2 | I16: H15 | J16: =IF(Settings!C19=0,"",Settings!B19) ->  | K16: =IFERROR(INDEX($J$1:$J$18,SMALL(IF($J$1:$J$18<>"",ROW($J$1:$J$18)),ROW(A15))),"") ->  | L16: =IF(K$1=2,1,IF(OR(K20="ERA",K20="WHIP"),4,IF(OR(K20="K/9",K20="K/BB"),3,IF(K20="BAA",2,IF(K20="","",1))))) -> 1 | M16: =IF(OR(K20="ERA",K20="WHIP"),4,IF(OR(K20="K/9",K20="K/BB"),3,IF(K20="BAA",2,IF(K20="","",1)))) -> 1 | N16: =IFERROR(INDEX($K$1:$K$34,SMALL(IF($K$1:$K$34<>"",ROW($K$1:$K$34)),ROW(B16))),"") -> Holds | O16: Half | P16: =IF('Guts-2'!$N$6>=ROW(P2),"SS","") ->  | R16: =IF('Guts-2'!$N16>0,"Only Show: "&'Guts-2'!M16,"") ->  | S16: =IFERROR(INDEX($R$1:$R$24,SMALL(IF($R$1:$R$24<>"",ROW($R$1:$R$24)),ROW(B16))),"") -> 
A17: Hit | B17: =IF(Settings!C7=0,"",Settings!C7) -> 5.6 | C17: 5 | I17: H16 | J17: =IF(Settings!C20=0,"",Settings!B20) -> HBP | K17: =IFERROR(INDEX($J$1:$J$18,SMALL(IF($J$1:$J$18<>"",ROW($J$1:$J$18)),ROW(A16))),"") ->  | L17: 1 | M17: =IF(OR(K21="ERA",K21="WHIP"),4,IF(OR(K21="K/9",K21="K/BB"),3,IF(K21="BAA",2,IF(K21="","",1)))) -> 1 | N17: =IFERROR(INDEX($K$1:$K$34,SMALL(IF($K$1:$K$34<>"",ROW($K$1:$K$34)),ROW(B17))),"") -> HRA | O17: Snake Draft | P17: =IF('Guts-2'!$N$6>=ROW(P3),"SS","") ->  | R17: =IF('Guts-2'!$N17>0,"Only Show: "&'Guts-2'!M17,"") ->  | S17: =IFERROR(INDEX($R$1:$R$24,SMALL(IF($R$1:$R$24<>"",ROW($R$1:$R$24)),ROW(B17))),"") -> 
I18: H17 | J18: =IF(Settings!C21=0,"",Settings!B21) ->  | K18: =IFERROR(INDEX($J$1:$J$18,SMALL(IF($J$1:$J$18<>"",ROW($J$1:$J$18)),ROW(A17))),"") ->  | L18: 1 | M18: 1 | N18: =IFERROR(INDEX($K$1:$K$34,SMALL(IF($K$1:$K$34<>"",ROW($K$1:$K$34)),ROW(B18))),"") ->  | O18: Same Order Every Round | P18: =IF('Guts-2'!$N$7>=ROW(P1),"CI","") ->  | R18: Only Show: Hitters
A19: H-GP | B19: =Settings!O22 -> 10 | L19: 1 | M19: 1 | N19: =IFERROR(INDEX($K$1:$K$34,SMALL(IF($K$1:$K$34<>"",ROW($K$1:$K$34)),ROW(B19))),"") ->  | O19: Show Drafted Players | P19: =IF('Guts-2'!$N$7>=ROW(P2),"CI","") ->  | R19: Only Show: Pitchers
A20: H-GS | B20: =Settings!O23 -> 10 | I20: P1 | J20: =IF(Settings!C24=0,"",Settings!B24) ->  | K20: =IFERROR(INDEX($J$1:$J$34,SMALL(IF($J$1:$J$34<>"",ROW($J$1:$J$34)),COUNTIF(($K$2:$K$14),">""")+ROW(A1))),"") -> IP | L20: 1 | M20: 1 | N20: =IFERROR(INDEX($K$1:$K$34,SMALL(IF($K$1:$K$34<>"",ROW($K$1:$K$34)),ROW(B20))),"") ->  | O20: Hide Drafted Players | P20: =IF('Guts-2'!$N$7>=ROW(P3),"CI","") -> 
A21: RP-G | B21: =Settings!O25 -> 5 | I21: P2 | J21: =IF(Settings!C25=0,"",Settings!B25) ->  | K21: =IFERROR(INDEX($J$1:$J$34,SMALL(IF($J$1:$J$34<>"",ROW($J$1:$J$34)),COUNTIF(($K$2:$K$14),">""")+ROW(A2))),"") -> Hit Allowed | L21: 1 | M21: 1 | N21: =IFERROR(INDEX($K$1:$K$34,SMALL(IF($K$1:$K$34<>"",ROW($K$1:$K$34)),ROW(B21))),"") ->  | O21: All Teams Have Same Budget | P21: =IF('Guts-2'!$N$8>=ROW(P1),"MI","") -> MI
A22: SP-G | B22: =Settings!O24 -> 3 | I22: P3 | J22: =IF(Settings!C26=0,"",Settings!B26) -> IP | K22: =IFERROR(INDEX($J$1:$J$34,SMALL(IF($J$1:$J$34<>"",ROW($J$1:$J$34)),COUNTIF(($K$2:$K$14),">""")+ROW(A3))),"") -> BB | L22: 1 | M22: 1 | N22: =IFERROR(INDEX($K$1:$K$34,SMALL(IF($K$1:$K$34<>"",ROW($K$1:$K$34)),ROW(B22))),"") ->  | O22: Budgets Vary By Team | P22: =IF('Guts-2'!$N$8>=ROW(P2),"MI","") -> 
I23: P4 | J23: =IF(Settings!C27=0,"",Settings!B27) -> Hit Allowed | K23: =IFERROR(INDEX($J$1:$J$34,SMALL(IF($J$1:$J$34<>"",ROW($J$1:$J$34)),COUNTIF(($K$2:$K$14),">""")+ROW(A4))),"") -> K | N23: =IFERROR(INDEX($K$1:$K$34,SMALL(IF($K$1:$K$34<>"",ROW($K$1:$K$34)),ROW(B23))),"") ->  | O23: Values Adjusted By Position | P23: =IF('Guts-2'!$N$8>=ROW(P3),"MI","") -> 
I24: P5 | J24: =IF(Settings!C28=0,"",Settings!B28) -> BB | K24: =IFERROR(INDEX($J$1:$J$34,SMALL(IF($J$1:$J$34<>"",ROW($J$1:$J$34)),COUNTIF(($K$2:$K$14),">""")+ROW(A5))),"") -> SV | N24: =IFERROR(INDEX($K$1:$K$34,SMALL(IF($K$1:$K$34<>"",ROW($K$1:$K$34)),ROW(B24))),"") ->  | O24: Turn Off Position Adjustments | P24: =IF('Guts-2'!$N$17>=ROW(P1),"IF","") -> 
I25: P6 | J25: =IF(Settings!C29=0,"",Settings!B29) -> K | K25: =IFERROR(INDEX($J$1:$J$34,SMALL(IF($J$1:$J$34<>"",ROW($J$1:$J$34)),COUNTIF(($K$2:$K$14),">""")+ROW(A6))),"") -> Holds | N25: =IFERROR(INDEX($K$1:$K$34,SMALL(IF($K$1:$K$34<>"",ROW($K$1:$K$34)),ROW(B25))),"") ->  | P25: =IF('Guts-2'!$N$17>=ROW(P2),"IF","") -> 
A26: Budget Per Team | B26: =Settings!J6 -> 260 | I26: P7 | J26: =IF(Settings!C30=0,"",Settings!B30) ->  | K26: =IFERROR(INDEX($J$1:$J$34,SMALL(IF($J$1:$J$34<>"",ROW($J$1:$J$34)),COUNTIF(($K$2:$K$14),">""")+ROW(A7))),"") -> HRA | O26: Hot | P26: =IF('Guts-2'!$N$17>=ROW(P3),"IF","") -> 
A27: Players Per Team | B27: =Settings!F26 -> 40 | C27: =SUM('Guts-2'!N2:N17) -> 22 | I27: P8 | J27: =IF(Settings!C31=0,"",Settings!B31) -> SV | K27: =IFERROR(INDEX($J$1:$J$34,SMALL(IF($J$1:$J$34<>"",ROW($J$1:$J$34)),COUNTIF(($K$2:$K$14),">""")+ROW(A8))),"") ->  | O27: Cold | P27: =IF('Guts-2'!$N$17>=ROW(P4),"IF","") -> 
A28: Total League Money | B28: =IF(Settings!J8="All Teams Have Same Budget",Settings!J5*Settings!J6,SUM(Settings!K12:K35)) -> 3120 | I28: P9 | J28: =IF(Settings!C32=0,"",Settings!B32) ->  | K28: =IFERROR(INDEX($J$1:$J$34,SMALL(IF($J$1:$J$34<>"",ROW($J$1:$J$34)),COUNTIF(($K$2:$K$14),">""")+ROW(A9))),"") ->  | M28: =IF(OR(K32="ERA",K32="WHIP"),4,IF(OR(K32="K/9",K32="K/BB"),3,IF(K32="BAA",2,IF(K32="","",1)))) ->  | O28: Target | P28: =IF('Guts-2'!$N$17>=ROW(P5),"IF","") -> 
A29: Minimum Bid | B29: =Settings!J7 -> 1 | I29: P10 | J29: =IF(Settings!C33=0,"",Settings!B33) ->  | K29: =IFERROR(INDEX($J$1:$J$34,SMALL(IF($J$1:$J$34<>"",ROW($J$1:$J$34)),COUNTIF(($K$2:$K$14),">""")+ROW(A10))),"") ->  | M29: =IF(OR(K33="ERA",K33="WHIP"),4,IF(OR(K33="K/9",K33="K/BB"),3,IF(K33="BAA",2,IF(K33="","",1)))) ->  | O29: Avoid | P29: =IF('Guts-2'!$N$17>=ROW(P6),"IF","") -> 
A30: Minimum Amount To Spend | B30: =B27*'Guts-2'!N1*B29 -> 480 | I30: P11 | J30: =IF(Settings!C34=0,"",Settings!B34) ->  | K30: =IFERROR(INDEX($J$1:$J$34,SMALL(IF($J$1:$J$34<>"",ROW($J$1:$J$34)),COUNTIF(($K$2:$K$14),">""")+ROW(A11))),"") ->  | M30: =IF(OR(K34="ERA",K34="WHIP"),4,IF(OR(K34="K/9",K34="K/BB"),3,IF(K34="BAA",2,IF(K34="","",1)))) ->  | O30: Injury | P30: =IF('Guts-2'!$N$9>=ROW(P1),"OF","") -> OF
A31: Hitter Min | B31: ='Filter-H'!Z17 -> 144 | I31: P12 | J31: =IF(Settings!C35=0,"",Settings!B35) -> Holds | K31: =IFERROR(INDEX($J$1:$J$34,SMALL(IF($J$1:$J$34<>"",ROW($J$1:$J$34)),COUNTIF(($K$2:$K$14),">""")+ROW(A12))),"") ->  | O31: Note | P31: =IF('Guts-2'!$N$9>=ROW(P2),"OF","") -> OF
A32: Pitcher Min | B32: ='Filter-P'!X8 -> 120 | I32: P13 | J32: =IF(Settings!C36=0,"",Settings!B36) ->  | K32: =IFERROR(INDEX($J$1:$J$34,SMALL(IF($J$1:$J$34<>"",ROW($J$1:$J$34)),COUNTIF(($K$2:$K$14),">""")+ROW(A13))),"") ->  | O32: Sleeper | P32: =IF('Guts-2'!$N$9>=ROW(P3),"OF","") -> OF
A33: Bench Min | B33: =(B27*'Guts-2'!N1)-B31-B32 -> 216 | I33: P14 | J33: =IF(Settings!C37=0,"",Settings!B37) -> HRA | K33: =IFERROR(INDEX($J$1:$J$34,SMALL(IF($J$1:$J$34<>"",ROW($J$1:$J$34)),COUNTIF(($K$2:$K$14),">""")+ROW(A14))),"") ->  | O33: Bust | P33: =IF('Guts-2'!$N$9>=ROW(P4),"OF","") -> OF
A34: Money Above Min | B34: =B28-B30 -> 2640 | I34: P15 | J34: =IF(Settings!C38=0,"",Settings!B38) ->  | K34: =IFERROR(INDEX($J$1:$J$34,SMALL(IF($J$1:$J$34<>"",ROW($J$1:$J$34)),COUNTIF(($K$2:$K$14),">""")+ROW(A15))),"") ->  | O34: Sort drop-down by: Player Value | P34: =IF('Guts-2'!$N$9>=ROW(P5),"OF","") -> OF
A35: Hitter Split | B35: =Settings!N7*100 -> 70 | O35: Sort drop-down by: Last Name | P35: =IF('Guts-2'!$N$9>=ROW(P6),"OF","") -> 
A36: Pitcher Split | B36: =Settings!N8*100 -> 30 | P36: =IF('Guts-2'!$N$9>=ROW(P7),"OF","") -> 
A37: Inflation Options | B37: =IF(Settings!N5="Turn Off Position Adjustments",1,0) -> 0 | P37: =IF('Guts-2'!$N$9>=ROW(P8),"OF","") -> 
A38: Total Bench Players | B38: =Settings!F23*Settings!J5 -> 216 | P38: =IF('Guts-2'!$N$9>=ROW(P9),"OF","") -> 
A39: Additional Inflation | B39: =Settings!N6 -> 0 | P39: =IF('Guts-2'!$N$14>=ROW(P1),"LF","") -> 
P40: =IF('Guts-2'!$N$14>=ROW(P2),"LF","") -> 
P41: =IF('Guts-2'!$N$14>=ROW(P3),"LF","") -> 
P42: =IF('Guts-2'!$N$15>=ROW(P1),"CF","") -> 
P43: =IF('Guts-2'!$N$15>=ROW(P2),"CF","") -> 
P44: =IF('Guts-2'!$N$15>=ROW(P3),"CF","") -> 
P45: =IF('Guts-2'!$N$16>=ROW(P1),"RF","") -> 
P46: =IF('Guts-2'!$N$16>=ROW(P2),"RF","") -> 
P47: =IF('Guts-2'!$N$16>=ROW(P3),"RF","") -> 
P48: =IF('Guts-2'!$N$10>=ROW(P1),"DH","") -> DH
P49: =IF('Guts-2'!$N$10>=ROW(P2),"DH","") -> 
P50: =IF('Guts-2'!$N$10>=ROW(P3),"DH","") -> 
P51: =IF('Guts-2'!$N$10>=ROW(P4),"DH","") -> 
P52: =IF('Guts-2'!$N$10>=ROW(P5),"DH","") -> 
P53: =IF('Guts-2'!$N$10>=ROW(P6),"DH","") -> 
P54: =IF('Guts-2'!$N$11>=ROW(P1),"SP","") -> SP
P55: =IF('Guts-2'!$N$11>=ROW(P2),"SP","") -> SP
P56: =IF('Guts-2'!$N$11>=ROW(P3),"SP","") -> SP
P57: =IF('Guts-2'!$N$11>=ROW(P4),"SP","") -> SP
P58: =IF('Guts-2'!$N$11>=ROW(P5),"SP","") -> SP
P59: =IF('Guts-2'!$N$11>=ROW(P6),"SP","") -> 
P60: =IF('Guts-2'!$N$11>=ROW(P7),"SP","") -> 
P61: =IF('Guts-2'!$N$11>=ROW(P8),"SP","") -> 
P62: =IF('Guts-2'!$N$11>=ROW(P9),"SP","") -> 
P63: =IF('Guts-2'!$N$11>=ROW(P10),"SP","") -> 
P64: =IF('Guts-2'!$N$12>=ROW(P1),"RP","") -> RP
P65: =IF('Guts-2'!$N$12>=ROW(P2),"RP","") -> RP
P66: =IF('Guts-2'!$N$12>=ROW(P3),"RP","") -> RP
P67: =IF('Guts-2'!$N$12>=ROW(P4),"RP","") -> RP
P68: =IF('Guts-2'!$N$12>=ROW(P5),"RP","") -> RP
P69: =IF('Guts-2'!$N$12>=ROW(P6),"RP","") -> 
P70: =IF('Guts-2'!$N$12>=ROW(P7),"RP","") -> 
P71: =IF('Guts-2'!$N$12>=ROW(P8),"RP","") -> 
P72: =IF('Guts-2'!$N$12>=ROW(P9),"RP","") -> 
P73: =IF('Guts-2'!$N$12>=ROW(P10),"RP","") -> 
P74: =IF('Guts-2'!$N$13>=ROW(P1),"P","") -> 
P75: =IF('Guts-2'!$N$13>=ROW(P2),"P","") -> 
P76: =IF('Guts-2'!$N$13>=ROW(P3),"P","") -> 
P77: =IF('Guts-2'!$N$13>=ROW(P4),"P","") -> 
P78: =IF('Guts-2'!$N$13>=ROW(P5),"P","") -> 
P79: =IF('Guts-2'!$N$13>=ROW(P6),"P","") -> 
P80: =IF('Guts-2'!$N$13>=ROW(P7),"P","") -> 
P81: =IF('Guts-2'!$N$13>=ROW(P8),"P","") -> 
P82: =IF('Guts-2'!$N$13>=ROW(P9),"P","") -> 
P83: =IF('Guts-2'!$N$13>=ROW(P10),"P","") -> 
P84: =IF('Guts-2'!$N$13>=ROW(P11),"P","") -> 
P85: =IF('Guts-2'!$N$13>=ROW(P12),"P","") -> 
P86: =IF('Guts-2'!$N$13>=ROW(P13),"P","") -> 
P87: =IF('Guts-2'!$N$13>=ROW(P14),"P","") -> 
P88: =IF('Guts-2'!$N$13>=ROW(P15),"P","") -> 

Sheet Guts-2 (hidden)
B1: RotoChamp (Projected Value) | C1: RotoChamp | D1: THE BAT | E1: Teams | F1: Starters | G1: THE BAT | H1: =IF(OR(Settings!$O$40<>100,Settings!$N$40<>100),0,Settings!N34) -> 20 | I1: =IF(OR(Settings!$O$40<>100,Settings!$N$40<>100),0,Settings!O34) -> 20 | J1: LAA | K1: =IF(OR(Settings!$Q$5="AL-Only",Settings!$Q$5="Mixed (Standard)"),TRUE,IF(Settings!$Q$5="Specific Teams Only",IF(Settings!S6="Y",TRUE,FALSE),FALSE)) -> TRUE | L1: C | M1: # of Teams | N1: =Settings!J5 -> 12 | P1: =IFERROR(INDEX($O$1:$O$19,SMALL(IF($O$1:$O$19<>"",ROW($O$1:$O$19)),ROW(O1))),"") -> C
A2: =IF($N$1>=ROW(A1),Settings!J12,#N/A) -> Team 1 | B2: CBS (Projected Value) | C2: Yahoo Staff | D2: Clay Davenport | E2: 6 | F2: 0 | G2: Clay Davenport | H2: =IF(OR(Settings!$O$40<>100,Settings!$N$40<>100),0,Settings!N35) -> 20 | I2: =IF(OR(Settings!$O$40<>100,Settings!$N$40<>100),0,Settings!O35) -> 20 | J2: ARI | K2: =IF(OR(Settings!$Q$5="NL-Only",Settings!$Q$5="Mixed (Standard)"),TRUE,IF(Settings!$Q$5="Specific Teams Only",IF(Settings!S7="Y",TRUE,FALSE),FALSE)) -> TRUE | L2: 1B | M2: C | N2: =Settings!F5 -> 1 | O2: =IF(N2>0,M2,"") -> C | P2: =IFERROR(INDEX($O$1:$O$19,SMALL(IF($O$1:$O$19<>"",ROW($O$1:$O$19)),ROW(O2))),"") -> 1B
A3: =IF($N$1>=ROW(A2),Settings!J13,#N/A) -> Team 2 | B3: ESPN (Avg Mock Draft Value) | C3: ESPN - T. Cockcroft | D3: Fangraphs - Depth Chart | E3: 7 | F3: 1 | G3: Fangraphs - Depth Chart | H3: =IF(OR(Settings!$O$40<>100,Settings!$N$40<>100),0,Settings!N36) -> 20 | I3: =IF(OR(Settings!$O$40<>100,Settings!$N$40<>100),0,Settings!O36) -> 20 | J3: ATL | K3: =IF(OR(Settings!$Q$5="NL-Only",Settings!$Q$5="Mixed (Standard)"),TRUE,IF(Settings!$Q$5="Specific Teams Only",IF(Settings!S8="Y",TRUE,FALSE),FALSE)) -> TRUE | L3: 2B | M3: 1B | N3: =Settings!F6 -> 1 | O3: =IF(N3>0,M3,"") -> 1B | P3: =IFERROR(INDEX($O$1:$O$19,SMALL(IF($O$1:$O$19<>"",ROW($O$1:$O$19)),ROW(O3))),"") -> 2B
A4: =IF($N$1>=ROW(A3),Settings!J14,#N/A) -> Team 3 | B4: Yahoo (Projected Value) | C4: ESPN - E. Karabell | D4: Mr. Cheatsheet's Special Blend | E4: 8 | F4: 2 | G4: Fangraphs - Fan Projections | H4: 0 | I4: 0 | J4: BAL | K4: =IF(OR(Settings!$Q$5="AL-Only",Settings!$Q$5="Mixed (Standard)"),TRUE,IF(Settings!$Q$5="Specific Teams Only",IF(Settings!S9="Y",TRUE,FALSE),FALSE)) -> TRUE | L4: 3B | M4: 2B | N4: =Settings!F7 -> 1 | O4: 2B | P4: =IFERROR(INDEX($O$1:$O$19,SMALL(IF($O$1:$O$19<>"",ROW($O$1:$O$19)),ROW(O4))),"") -> 3B
A5: =IF($N$1>=ROW(A4),Settings!J15,#N/A) -> Team 4 | B5: Yahoo (Avg Mock Draft Value) | C5: FantasyPros Avg | E5: 9 | F5: 3 | G5: Steamer | H5: =IF(OR(Settings!$O$40<>100,Settings!$N$40<>100),0,Settings!N37) -> 40 | I5: =IF(OR(Settings!$O$40<>100,Settings!$N$40<>100),0,Settings!O37) -> 40 | J5: BOS | K5: =IF(OR(Settings!$Q$5="AL-Only",Settings!$Q$5="Mixed (Standard)"),TRUE,IF(Settings!$Q$5="Specific Teams Only",IF(Settings!S10="Y",TRUE,FALSE),FALSE)) -> TRUE | L5: SS | M5: 3B | N5: =Settings!F8 -> 1 | O5: 3B | P5: =IFERROR(INDEX($O$1:$O$19,SMALL(IF($O$1:$O$19<>"",ROW($O$1:$O$19)),ROW(O5))),"") -> SS
A6: =IF($N$1>=ROW(A5),Settings!J16,#N/A) -> Team 5 | C6: Mr. Cheatsheet | E6: 10 | F6: 4 | G6: Steamer - 600 PA | H6: =IF(OR(Settings!$O$40<>100,Settings!$N$40<>100),0,Settings!N38) -> 0 | I6: =IF(OR(Settings!$O$40<>100,Settings!$N$40<>100),0,Settings!O38) -> 0 | J6: CHC | K6: =IF(OR(Settings!$Q$5="NL-Only",Settings!$Q$5="Mixed (Standard)"),TRUE,IF(Settings!$Q$5="Specific Teams Only",IF(Settings!S11="Y",TRUE,FALSE),FALSE)) -> TRUE | L6: OF | M6: SS | N6: =Settings!F9 -> 1 | O6: SS | P6: =IFERROR(INDEX($O$1:$O$19,SMALL(IF($O$1:$O$19<>"",ROW($O$1:$O$19)),ROW(O6))),"") -> MI
A7: =IF($N$1>=ROW(A6),Settings!J17,#N/A) -> Team 6 | B7: FantasyPros (Projected Value) | D7: Steamer | E7: 11 | F7: 5 | G7: ZiPS | H7: =IF(OR(Settings!$O$40<>100,Settings!$N$40<>100),0,Settings!N39) -> 0 | I7: =IF(OR(Settings!$O$40<>100,Settings!$N$40<>100),0,Settings!O39) -> 0 | J7: CHW | K7: =IF(OR(Settings!$Q$5="AL-Only",Settings!$Q$5="Mixed (Standard)"),TRUE,IF(Settings!$Q$5="Specific Teams Only",IF(Settings!S12="Y",TRUE,FALSE),FALSE)) -> TRUE | L7: SP | M7: CI | N7: =Settings!F12 -> 0 | P7: =IFERROR(INDEX($O$1:$O$19,SMALL(IF($O$1:$O$19<>"",ROW($O$1:$O$19)),ROW(O7))),"") -> OF
A8: =IF($N$1>=ROW(A7),Settings!J18,#N/A) -> Team 7 | B8: Average of All Options | D8: Steamer - 600 PA | E8: 12 | F8: 6 | J8: CIN | K8: =IF(OR(Settings!$Q$5="NL-Only",Settings!$Q$5="Mixed (Standard)"),TRUE,IF(Settings!$Q$5="Specific Teams Only",IF(Settings!S13="Y",TRUE,FALSE),FALSE)) -> TRUE | L8: RP | M8: MI | N8: =Settings!F13 -> 1 | O8: MI | P8: =IFERROR(INDEX($O$1:$O$19,SMALL(IF($O$1:$O$19<>"",ROW($O$1:$O$19)),ROW(O8))),"") -> DH
A9: =IF($N$1>=ROW(A8),Settings!J19,#N/A) -> Team 8 | B9: Imported Values | C9: =IFERROR(INDEX($C$1:$C$8,SMALL(IF($C$1:$C$8<>"",ROW($C$1:$C$8)),ROW(C1))),"") -> RotoChamp | D9: ZiPS | E9: 13 | F9: 7 | G9: C | H9: =IF(N2>0,1,0) -> 1 | J9: CLE | K9: =IF(OR(Settings!$Q$5="AL-Only",Settings!$Q$5="Mixed (Standard)"),TRUE,IF(Settings!$Q$5="Specific Teams Only",IF(Settings!S14="Y",TRUE,FALSE),FALSE)) -> TRUE | L9: DH | M9: OF | N9: =Settings!F10 -> 5 | O9: OF | P9: =IFERROR(INDEX($O$1:$O$19,SMALL(IF($O$1:$O$19<>"",ROW($O$1:$O$19)),ROW(O9))),"") -> SP
A10: =IF($N$1>=ROW(A9),Settings!J20,#N/A) -> Team 9 | C10: =IFERROR(INDEX($C$1:$C$8,SMALL(IF($C$1:$C$8<>"",ROW($C$1:$C$8)),ROW(C2))),"") -> Yahoo Staff | D10: Import Your Own Projections | E10: 14 | F10: 8 | G10: 1B | H10: =IF(N3>0,MAX($H$9:H9)+1,0) -> 2 | J10: COL | K10: =IF(OR(Settings!$Q$5="NL-Only",Settings!$Q$5="Mixed (Standard)"),TRUE,IF(Settings!$Q$5="Specific Teams Only",IF(Settings!S15="Y",TRUE,FALSE),FALSE)) -> TRUE | M10: DH | N10: =Settings!F11 -> 1 | O10: DH | P10: =IFERROR(INDEX($O$1:$O$19,SMALL(IF($O$1:$O$19<>"",ROW($O$1:$O$19)),ROW(O10))),"") -> RP
A11: =IF($N$1>=ROW(A10),Settings!J21,#N/A) -> Team 10 | B11: =IFERROR(INDEX($B$1:$B$10,SMALL(IF($B$1:$B$10<>"",ROW($B$1:$B$10)),ROW(B1))),"") -> RotoChamp (Projected Value) | C11: =IFERROR(INDEX($C$1:$C$8,SMALL(IF($C$1:$C$8<>"",ROW($C$1:$C$8)),ROW(C3))),"") -> ESPN - T. Cockcroft | D11: Your Own Custom Combination | E11: 15 | F11: 9 | G11: 2B | H11: =IF(N4>0,MAX($H$9:H10)+1,0) -> 3 | J11: DET | K11: =IF(OR(Settings!$Q$5="AL-Only",Settings!$Q$5="Mixed (Standard)"),TRUE,IF(Settings!$Q$5="Specific Teams Only",IF(Settings!S16="Y",TRUE,FALSE),FALSE)) -> TRUE | M11: SP | N11: =Settings!F19 -> 5 | O11: SP | P11: =IFERROR(INDEX($O$1:$O$19,SMALL(IF($O$1:$O$19<>"",ROW($O$1:$O$19)),ROW(O11))),"") -> Bench
A12: =IF($N$1>=ROW(A11),Settings!J22,#N/A) -> Team 11 | B12: =IFERROR(INDEX($B$1:$B$10,SMALL(IF($B$1:$B$10<>"",ROW($B$1:$B$10)),ROW(B2))),"") -> CBS (Projected Value) | C12: =IFERROR(INDEX($C$1:$C$8,SMALL(IF($C$1:$C$8<>"",ROW($C$1:$C$8)),ROW(C4))),"") -> ESPN - E. Karabell | E12: 16 | F12: 10 | G12: 3B | H12: =IF(N5>0,MAX($H$9:H11)+1,0) -> 4 | J12: HOU | K12: =IF(OR(Settings!$Q$5="AL-Only",Settings!$Q$5="Mixed (Standard)"),TRUE,IF(Settings!$Q$5="Specific Teams Only",IF(Settings!S17="Y",TRUE,FALSE),FALSE)) -> TRUE | M12: RP | N12: =Settings!F20 -> 5 | O12: RP | P12: =IFERROR(INDEX($O$1:$O$19,SMALL(IF($O$1:$O$19<>"",ROW($O$1:$O$19)),ROW(O12))),"") -> 
A13: =IF($N$1>=ROW(A12),Settings!J23,#N/A) -> Team 12 | B13: =IFERROR(INDEX($B$1:$B$10,SMALL(IF($B$1:$B$10<>"",ROW($B$1:$B$10)),ROW(B3))),"") -> ESPN (Avg Mock Draft Value) | C13: =IFERROR(INDEX($C$1:$C$8,SMALL(IF($C$1:$C$8<>"",ROW($C$1:$C$8)),ROW(C5))),"") -> FantasyPros Avg | E13: 17 | F13: 11 | G13: SS | H13: =IF(N6>0,MAX($H$9:H12)+1,0) -> 5 | J13: KC | K13: =IF(OR(Settings!$Q$5="AL-Only",Settings!$Q$5="Mixed (Standard)"),TRUE,IF(Settings!$Q$5="Specific Teams Only",IF(Settings!S18="Y",TRUE,FALSE),FALSE)) -> TRUE | M13: P | N13: =Settings!F21 -> 0 | P13: =IFERROR(INDEX($O$1:$O$19,SMALL(IF($O$1:$O$19<>"",ROW($O$1:$O$19)),ROW(O13))),"") -> 
A14: =IF($N$1>=ROW(A13),Settings!J24,#N/A) ->  | B14: =IFERROR(INDEX($B$1:$B$10,SMALL(IF($B$1:$B$10<>"",ROW($B$1:$B$10)),ROW(B4))),"") -> Yahoo (Projected Value) | C14: =IFERROR(INDEX($C$1:$C$8,SMALL(IF($C$1:$C$8<>"",ROW($C$1:$C$8)),ROW(C6))),"") -> Mr. Cheatsheet | D14: =IFERROR(INDEX($D$1:$D$12,SMALL(IF($D$1:$D$12<>"",ROW($D$1:$D$12)),ROW(D1))),"") -> THE BAT | E14: 18 | F14: 12 | G14: OF | H14: =IF(N9>0,MAX($H$9:H13)+1,0) -> 6 | J14: LAD | K14: =IF(OR(Settings!$Q$5="NL-Only",Settings!$Q$5="Mixed (Standard)"),TRUE,IF(Settings!$Q$5="Specific Teams Only",IF(Settings!S19="Y",TRUE,FALSE),FALSE)) -> TRUE | M14: LF | N14: =Settings!F15 -> 0 | P14: =IFERROR(INDEX($O$1:$O$19,SMALL(IF($O$1:$O$19<>"",ROW($O$1:$O$19)),ROW(O14))),"") -> 
A15: =IF($N$1>=ROW(A14),Settings!J25,#N/A) ->  | B15: =IFERROR(INDEX($B$1:$B$10,SMALL(IF($B$1:$B$10<>"",ROW($B$1:$B$10)),ROW(B5))),"") -> Yahoo (Avg Mock Draft Value) | C15: =IFERROR(INDEX($C$1:$C$8,SMALL(IF($C$1:$C$8<>"",ROW($C$1:$C$8)),ROW(C7))),"") ->  | D15: =IFERROR(INDEX($D$1:$D$12,SMALL(IF($D$1:$D$12<>"",ROW($D$1:$D$12)),ROW(D2))),"") -> Clay Davenport | E15: 19 | F15: 13 | G15: LF | H15: =IF(N14>0,MAX($H$9:H14)+1,0) -> 0 | J15: MIA | K15: =IF(OR(Settings!$Q$5="NL-Only",Settings!$Q$5="Mixed (Standard)"),TRUE,IF(Settings!$Q$5="Specific Teams Only",IF(Settings!S20="Y",TRUE,FALSE),FALSE)) -> TRUE | M15: CF | N15: =Settings!F16 -> 0 | P15: =IFERROR(INDEX($O$1:$O$19,SMALL(IF($O$1:$O$19<>"",ROW($O$1:$O$19)),ROW(O15))),"") -> 
A16: =IF($N$1>=ROW(A15),Settings!J26,#N/A) ->  | B16: =IFERROR(INDEX($B$1:$B$10,SMALL(IF($B$1:$B$10<>"",ROW($B$1:$B$10)),ROW(B6))),"") -> FantasyPros (Projected Value) | C16: =IFERROR(INDEX($C$1:$C$8,SMALL(IF($C$1:$C$8<>"",ROW($C$1:$C$8)),ROW(C8))),"") ->  | D16: =IFERROR(INDEX($D$1:$D$12,SMALL(IF($D$1:$D$12<>"",ROW($D$1:$D$12)),ROW(D3))),"") -> Fangraphs - Depth Chart | E16: 20 | F16: 14 | G16: CF | H16: =IF(N15>0,MAX($H$9:H15)+1,0) -> 0 | J16: MIL | K16: =IF(OR(Settings!$Q$5="NL-Only",Settings!$Q$5="Mixed (Standard)"),TRUE,IF(Settings!$Q$5="Specific Teams Only",IF(Settings!S21="Y",TRUE,FALSE),FALSE)) -> TRUE | M16: RF | N16: =Settings!F17 -> 0 | P16: =IFERROR(INDEX($O$1:$O$19,SMALL(IF($O$1:$O$19<>"",ROW($O$1:$O$19)),ROW(O16))),"") -> 
A17: =IF($N$1>=ROW(A16),Settings!J27,#N/A) ->  | B17: =IFERROR(INDEX($B$1:$B$10,SMALL(IF($B$1:$B$10<>"",ROW($B$1:$B$10)),ROW(B7))),"") -> Average of All Options | D17: =IFERROR(INDEX($D$1:$D$12,SMALL(IF($D$1:$D$12<>"",ROW($D$1:$D$12)),ROW(D4))),"") -> Mr. Cheatsheet's Special Blend | E17: 21 | F17: 15 | G17: RF | H17: =IF(N16>0,MAX($H$9:H16)+1,0) -> 0 | J17: MIN | K17: =IF(OR(Settings!$Q$5="AL-Only",Settings!$Q$5="Mixed (Standard)"),TRUE,IF(Settings!$Q$5="Specific Teams Only",IF(Settings!S22="Y",TRUE,FALSE),FALSE)) -> TRUE | M17: IF | N17: =Settings!F14 -> 0 | P17: =IFERROR(INDEX($O$1:$O$19,SMALL(IF($O$1:$O$19<>"",ROW($O$1:$O$19)),ROW(O17))),"") -> 
A18: =IF($N$1>=ROW(A17),Settings!J28,#N/A) ->  | B18: =IFERROR(INDEX($B$1:$B$10,SMALL(IF($B$1:$B$10<>"",ROW($B$1:$B$10)),ROW(B8))),"") -> Imported Values | D18: =IFERROR(INDEX($D$1:$D$12,SMALL(IF($D$1:$D$12<>"",ROW($D$1:$D$12)),ROW(D5))),"") -> Steamer | E18: 22 | F18: 16 | G18: DH | H18: =IF(Settings!Q5<>"NL-Only",MAX($H$9:H17)+1,0) -> 7 | J18: NYM | K18: =IF(OR(Settings!$Q$5="NL-Only",Settings!$Q$5="Mixed (Standard)"),TRUE,IF(Settings!$Q$5="Specific Teams Only",IF(Settings!S23="Y",TRUE,FALSE),FALSE)) -> TRUE | O18: Bench | P18: =IFERROR(INDEX($O$1:$O$19,SMALL(IF($O$1:$O$19<>"",ROW($O$1:$O$19)),ROW(O18))),"") -> 
A19: =IF($N$1>=ROW(A18),Settings!J29,#N/A) ->  | B19: =IFERROR(INDEX($B$1:$B$10,SMALL(IF($B$1:$B$10<>"",ROW($B$1:$B$10)),ROW(B9))),"") ->  | D19: =IFERROR(INDEX($D$1:$D$12,SMALL(IF($D$1:$D$12<>"",ROW($D$1:$D$12)),ROW(D6))),"") -> Steamer - 600 PA | E19: 23 | F19: 17 | G19: SP | H19: =IF(OR(N11>0,N13>0),MAX($H$9:H18)+1,0) -> 8 | J19: NYY | K19: =IF(OR(Settings!$Q$5="AL-Only",Settings!$Q$5="Mixed (Standard)"),TRUE,IF(Settings!$Q$5="Specific Teams Only",IF(Settings!S24="Y",TRUE,FALSE),FALSE)) -> TRUE
A20: =IF($N$1>=ROW(A19),Settings!J30,#N/A) ->  | B20: =IFERROR(INDEX($B$1:$B$10,SMALL(IF($B$1:$B$10<>"",ROW($B$1:$B$10)),ROW(B10))),"") ->  | D20: =IFERROR(INDEX($D$1:$D$12,SMALL(IF($D$1:$D$12<>"",ROW($D$1:$D$12)),ROW(D7))),"") -> ZiPS | E20: 24 | F20: 18 | G20: RP | H20: =IF(OR(N12>0,N13>0),MAX($H$9:H19)+1,0) -> 9 | J20: OAK | K20: =IF(OR(Settings!$Q$5="AL-Only",Settings!$Q$5="Mixed (Standard)"),TRUE,IF(Settings!$Q$5="Specific Teams Only",IF(Settings!S25="Y",TRUE,FALSE),FALSE)) -> TRUE | M20: None | N20: Treat him as a hitter only
A21: =IF($N$1>=ROW(A20),Settings!J31,#N/A) ->  | B21: =IFERROR(INDEX($B$1:$B$10,SMALL(IF($B$1:$B$10<>"",ROW($B$1:$B$10)),ROW(B11))),"") ->  | D21: =IFERROR(INDEX($D$1:$D$12,SMALL(IF($D$1:$D$12<>"",ROW($D$1:$D$12)),ROW(D8))),"") -> Import Your Own Projections | F21: 19 | J21: PHI | K21: =IF(OR(Settings!$Q$5="NL-Only",Settings!$Q$5="Mixed (Standard)"),TRUE,IF(Settings!$Q$5="Specific Teams Only",IF(Settings!S26="Y",TRUE,FALSE),FALSE)) -> TRUE | M21: Green | N21: Treat him as a pitcher only
A22: =IF($N$1>=ROW(A21),Settings!J32,#N/A) ->  | D22: =IFERROR(INDEX($D$1:$D$12,SMALL(IF($D$1:$D$12<>"",ROW($D$1:$D$12)),ROW(D9))),"") -> Your Own Custom Combination | F22: 20 | J22: PIT | K22: =IF(OR(Settings!$Q$5="NL-Only",Settings!$Q$5="Mixed (Standard)"),TRUE,IF(Settings!$Q$5="Specific Teams Only",IF(Settings!S27="Y",TRUE,FALSE),FALSE)) -> TRUE | M22: Yellow | N22: Treat him as one player who gets all pitching and hitting stats
A23: =IF($N$1>=ROW(A22),Settings!J33,#N/A) ->  | D23: =IFERROR(INDEX($D$1:$D$12,SMALL(IF($D$1:$D$12<>"",ROW($D$1:$D$12)),ROW(D10))),"") ->  | F23: 21 | J23: SD | K23: =IF(OR(Settings!$Q$5="NL-Only",Settings!$Q$5="Mixed (Standard)"),TRUE,IF(Settings!$Q$5="Specific Teams Only",IF(Settings!S28="Y",TRUE,FALSE),FALSE)) -> TRUE | M23: Red | N23: Treat him as two separate players
A24: =IF($N$1>=ROW(A23),Settings!J34,#N/A) ->  | D24: =IFERROR(INDEX($D$1:$D$12,SMALL(IF($D$1:$D$12<>"",ROW($D$1:$D$12)),ROW(D11))),"") ->  | F24: 22 | J24: SEA | K24: =IF(OR(Settings!$Q$5="AL-Only",Settings!$Q$5="Mixed (Standard)"),TRUE,IF(Settings!$Q$5="Specific Teams Only",IF(Settings!S29="Y",TRUE,FALSE),FALSE)) -> TRUE | M24: Black
A25: =IF($N$1>=ROW(A24),Settings!J35,#N/A) ->  | D25: =IFERROR(INDEX($D$1:$D$12,SMALL(IF($D$1:$D$12<>"",ROW($D$1:$D$12)),ROW(D12))),"") ->  | F25: 23 | J25: SF | K25: =IF(OR(Settings!$Q$5="NL-Only",Settings!$Q$5="Mixed (Standard)"),TRUE,IF(Settings!$Q$5="Specific Teams Only",IF(Settings!S30="Y",TRUE,FALSE),FALSE)) -> TRUE | L25: Hitter | M25: Pitcher | N25: HitterDirOF | O25: Hitter4OF
A26: From Settings | B26: =Settings!N16 -> Average of All Options | C26: Auction Vl: | D26: =MATCH($B$26,$B$11:$B$25,0) -> 7 | F26: 24 | J26: STL | K26: =IF(OR(Settings!$Q$5="NL-Only",Settings!$Q$5="Mixed (Standard)"),TRUE,IF(Settings!$Q$5="Specific Teams Only",IF(Settings!S31="Y",TRUE,FALSE),FALSE)) -> TRUE | L26: C | M26: SP | N26: C | O26: C
A27: For a List | B27: =Settings!N20 -> FantasyPros Avg | C27: Rankings: | D27: =MATCH($B$27,$C$9:$C$25,0) -> 5 | J27: TB | K27: =IF(OR(Settings!$Q$5="AL-Only",Settings!$Q$5="Mixed (Standard)"),TRUE,IF(Settings!$Q$5="Specific Teams Only",IF(Settings!S32="Y",TRUE,FALSE),FALSE)) -> TRUE | L27: 1B | M27: RP | N27: 1B | O27: 1B
A28: Controlled by Formulas | B28: =Settings!N18 -> Mr. Cheatsheet's Special Blend | C28: Projections: | D28: =IF(B28="THE BAT",1,IF(B28="Steamer",2,IF(B28="Steamer - 600 PA",7,IF(B28="ZiPS",4,IF(B28="Fangraphs - Depth Chart",5,IF(B28="Your Own Custom Combination",8,IF(B28="Mr. Cheatsheet's Special Blend",9,IF(B28="Special Blend w/ Steamer Replacements",10,IF(B28="Fangraphs - Fan Projections",3,IF(B28="Clay Davenport",6,IF(B28="Import Your Own Projections",11,0))))))))))) -> 9 | J28: TEX | K28: =IF(OR(Settings!$Q$5="AL-Only",Settings!$Q$5="Mixed (Standard)"),TRUE,IF(Settings!$Q$5="Specific Teams Only",IF(Settings!S33="Y",TRUE,FALSE),FALSE)) -> TRUE | L28: 2B | N28: 2B | O28: 2B
J29: TOR | K29: =IF(OR(Settings!$Q$5="AL-Only",Settings!$Q$5="Mixed (Standard)"),TRUE,IF(Settings!$Q$5="Specific Teams Only",IF(Settings!S34="Y",TRUE,FALSE),FALSE)) -> TRUE | L29: 3B | N29: 3B | O29: 3B
J30: WAS | K30: =IF(OR(Settings!$Q$5="NL-Only",Settings!$Q$5="Mixed (Standard)"),TRUE,IF(Settings!$Q$5="Specific Teams Only",IF(Settings!S35="Y",TRUE,FALSE),FALSE)) -> TRUE | L30: SS | N30: SS | O30: SS
L31: OF | N31: LF | O31: OF
N32: CF | O32: LF
N33: RF | O33: CF
O34: RF

Sheet Name Sort (hidden)
C1: ORDER | D1: PLAYERNAME | E1: Team | F1: Original Pos | H1: Pos to Use | I1: =IF('Your Points Auction'!$R$5="Show All Positions",1,IF(OR('Your Points Auction'!$R$5="Only Show: C",'Your Points Auction'!$R$5="Only Show: 1B",'Your Points Auction'!$R$5="Only Show: 2B",'Your Points Auction'!$R$5="Only Show: 3B",'Your Points Auction'!$R$5="Only Show: SS",'Your Points Auction'!$R$5="Only Show: OF",'Your Points Auction'!$R$5="Only Show: SP",'Your Points Auction'!$R$5="Only Show: RP",'Your Points Auction'!$R$5="Only Show: DH",'Your Points Auction'!$R$5="Only Show: LF",'Your Points Auction'!$R$5="Only Show: RF",'Your Points Auction'!$R$5="Only Show: CF"),2,IF('Your Points Auction'!$R$5="Only Show: CI",3,IF('Your Points Auction'!$R$5="Only Show: MI",4,IF('Your Points Auction'!$R$5="Only Show: IF",5,IF('Your Points Auction'!$R$5="Only Show: P",6,IF('Your Points Auction'!$R$5="Only Show: Hitters",7,IF('Your Points Auction'!$R$5="Only Show: Pitchers",8,"")))))))) -> 1 | J1: Show Team? | K1: Drafted | L1: Show or No | M1: Original Projected Auction Value | N1: Projected Points | O1: Expert Ranking | P1: Points Per IP | Q1: Points Per PA | R1: Pos.PtsRank | W1: Points Above Replacement
A2: =IFERROR(IF(INDEX($K$1:$K$1020,MATCH(ROW($A1),$C$1:$C$1020,0),1)=FALSE,INDEX($D$1:$D$1020,MATCH(ROW($A1),$C$1:$C$1020,0),1),""),"") -> Juan Soto | B2: =IFERROR(INDEX($A$1:$A$936,SMALL(IF($A$1:$A$936<>"",ROW($A$1:$A$936)),ROW(A1))),"") -> Juan Soto | C2: =IFERROR(IF(L2=FALSE,"",CHOOSE(MATCH(RIGHT('Your Points Auction'!$R$4,LEN('Your Points Auction'!$R$4)-8),$M$1:$W$1,0),1+SUMPRODUCT(($L$2:$L$937=TRUE)*($M$2:$M$937>M2))+COUNTIFS($L$2:L2,L2,$M$2:M2,M2)-1,1+SUMPRODUCT(($L$2:$L$937=TRUE)*($N$2:$N$937>N2))+COUNTIFS($L$2:L2,L2,$N$2:N2,N2)-1,1+SUMPRODUCT(($L$2:$L$937=TRUE)*($O$2:$O$937<O2))+COUNTIFS($L$2:L2,L2,$O$2:O2,O2)-1,1+SUMPRODUCT(($L$2:$L$937=TRUE)*($P$2:$P$937>P2))+COUNTIFS($L$2:L2,L2,$P$2:P2,P2)-1,1+SUMPRODUCT(($L$2:$L$937=TRUE)*($Q$2:$Q$937>Q2))+COUNTIFS($L$2:L2,L2,$Q$2:Q2,Q2)-1,,,,,,1+SUMPRODUCT(($L$2:$L$937=TRUE)*($W$2:$W$937>W2))+COUNTIFS($L$2:L2,L2,$W$2:W2,W2)-1,)),"") -> 481 | D2: CJ Abrams | E2: =IFERROR(INDEX('Auction Log'!$C$4:$C$603,MATCH(D2,'Auction Log'!$B$4:$B$603,0)),"") ->  | F2: =IFERROR(INDEX('Auction-Rank'!$C$2:$C$955,MATCH(D2,'Auction-Rank'!$A$2:$A$955,0)),"") -> SS | H2: =IFERROR(IF(I2="",F2,IF(I2<>F2,I2,F2)),"") -> SS | I2: =IF(AND(F2="OF",'Guts-2'!$N$9=0),IF(MAX(Pre!J2:L2)=Pre!J2,"LF",IF(MAX(Pre!J2:L2)=Pre!K2,"CF",IF(MAX(Pre!J2:L2)=Pre!L2,"RF","LF"))),"") ->  | J2: =IFERROR(INDEX('Auction-Rank'!$U$2:$U$955,MATCH(D2,'Auction-Rank'!$A$2:$A$955,0)),TRUE) -> TRUE | K2: =IF(E2="",FALSE,TRUE) -> FALSE | L2: =IF(J2=FALSE,FALSE,IF(AND('Your Points Auction'!$R$6="Hide Drafted Players",K2=TRUE),FALSE,CHOOSE($I$1,TRUE,OR(RIGHT('Your Points Auction'!$R$5,LEN('Your Points Auction'!$R$5)-11)=H2,IF(RIGHT('Your Points Auction'!$R$5,LEN('Your Points Auction'!$R$5)-11)<>"C",NOT(ISERROR(SEARCH(RIGHT('Your Points Auction'!$R$5,LEN('Your Points Auction'!$R$5)-11),Pre!$CB2))),AND(NOT(ISERROR(SEARCH(RIGHT('Your Points Auction'!$R$5,LEN('Your Points Auction'!$R$5)-11),Pre!$CB2))),ISERROR(SEARCH("CF",Pre!$CB2)))),RIGHT('Your Points Auction'!$R$5,LEN('Your Points Auction'!$R$5)-11)=Pre!BP2),OR(H2="1B",H2="3B",ISNUMBER(SEARCH("1B",Pre!$CB2)),ISNUMBER(SEARCH("3B",Pre!$CB2))),OR(H2="2B",H2="SS",ISNUMBER(SEARCH("2B",Pre!$CB2)),ISNUMBER(SEARCH("SS",Pre!$CB2))),OR(H2="1B",H2="3B",H2="2B",H2="SS",ISNUMBER(SEARCH("1B",Pre!$CB2)),ISNUMBER(SEARCH("3B",Pre!$CB2)),ISNUMBER(SEARCH("2B",Pre!$CB2)),ISNUMBER(SEARCH("SS",Pre!$CB2))),OR(H2="SP",H2="RP",ISNUMBER(SEARCH("SP",Pre!$CB2)),ISNUMBER(SEARCH("RP",Pre!$CB2))),AND(H2<>"RP",H2<>"SP",NOT(ISNUMBER(SEARCH("RP",Pre!$CB2))),NOT(ISNUMBER(SEARCH("SP",Pre!$CB2)))),OR(H2="SP",H2="RP",ISNUMBER(SEARCH("SP",Pre!$CB2)),ISNUMBER(SEARCH("RP",Pre!$CB2)))))) -> TRUE | M2: =IF(LEFT($D2,15)="Unlisted Player",-1,IF('Inflation-Tracking'!J5="",-9999,'Inflation-Tracking'!J5)) -> 1 | N2: =IF(J2=FALSE,-0.5,IF(LEFT($D2,15)="Unlisted Player",-1,IF(Pre!C2<>"",Pre!C2,0))) -> 148.2579813 | O2: =IF('Auction-Rank'!W2="",9999,'Auction-Rank'!W2) -> 627 | P2: =IFERROR(IF(LEFT($D2,15)="Unlisted Player",-1001,IF(OR(H2="SP",H2="RP"),N2/VLOOKUP($D2,'Filter-P'!$A$1:$AC$356,4,FALSE),-1000)),-1000) -> -1000 | Q2: =IFERROR(IF(LEFT($D2,15)="Unlisted Player",-1001,IF(OR(H2="SP",H2="RP"),-1000,N2/VLOOKUP($D2,'Filter-H'!$A$1:$AE$428,2,FALSE))),-1000) -> 0.9702747469 | R2: =IF(H2="",#N/A,H2&"."&1+SUMPRODUCT(($H$2:$H$937=H2)*($N$2:$N$937>N2))+COUNTIFS($N$2:N2,N2,$H$2:H2,H2)-1) -> SS.58 | S2: =IF(H2="",#N/A,1+SUMPRODUCT(($H$2:$H$937=H2)*($N$2:$N$937>N2))+COUNTIFS($N$2:N2,N2,$H$2:H2,H2)-1) -> 58 | U2: =IFERROR(Pre!DL2,"") -> Bench | V2: =IFERROR(ROUND(INDEX('Inflation-Tracking'!$J$5:$J$1040,MATCH($D2,'Inflation-Tracking'!$A$5:$A$1040,0)),1),-999) -> 1 | W2: =IFERROR(IF($N2=0,-1000,IF(LEFT($D2,15)="Unlisted Player",-1001,IF(OR($H2="SP",$H2="RP"),INDEX('Filter-P'!$M$3:$M$520,MATCH($D2,'Filter-P'!$A$3:$A$520,0),1),INDEX('Filter-H'!$U$3:$U$500,MATCH($D2,'Filter-H'!$A$3:$A$500,0),1)))),-1000) -> -379.2508024
A3: =IFERROR(IF(INDEX($K$1:$K$1020,MATCH(ROW($A2),$C$1:$C$1020,0),1)=FALSE,INDEX($D$1:$D$1020,MATCH(ROW($A2),$C$1:$C$1020,0),1),""),"") -> Vladimir Guerrero Jr. | B3: =IFERROR(INDEX($A$1:$A$936,SMALL(IF($A$1:$A$936<>"",ROW($A$1:$A$936)),ROW(A2))),"") -> Vladimir Guerrero Jr. | C3: =IFERROR(IF(L3=FALSE,"",CHOOSE(MATCH(RIGHT('Your Points Auction'!$R$4,LEN('Your Points Auction'!$R$4)-8),$M$1:$W$1,0),1+SUMPRODUCT(($L$2:$L$937=TRUE)*($M$2:$M$937>M3))+COUNTIFS($L$2:L3,L3,$M$2:M3,M3)-1,1+SUMPRODUCT(($L$2:$L$937=TRUE)*($N$2:$N$937>N3))+COUNTIFS($L$2:L3,L3,$N$2:N3,N3)-1,1+SUMPRODUCT(($L$2:$L$937=TRUE)*($O$2:$O$937<O3))+COUNTIFS($L$2:L3,L3,$O$2:O3,O3)-1,1+SUMPRODUCT(($L$2:$L$937=TRUE)*($P$2:$P$937>P3))+COUNTIFS($L$2:L3,L3,$P$2:P3,P3)-1,1+SUMPRODUCT(($L$2:$L$937=TRUE)*($Q$2:$Q$937>Q3))+COUNTIFS($L$2:L3,L3,$Q$2:Q3,Q3)-1,,,,,,1+SUMPRODUCT(($L$2:$L$937=TRUE)*($W$2:$W$937>W3))+COUNTIFS($L$2:L3,L3,$W$2:W3,W3)-1,)),"") -> 72 | D3: Jose Abreu | E3: =IFERROR(INDEX('Auction Log'!$C$4:$C$603,MATCH(D3,'Auction Log'!$B$4:$B$603,0)),"") ->  | F3: =IFERROR(INDEX('Auction-Rank'!$C$2:$C$955,MATCH(D3,'Auction-Rank'!$A$2:$A$955,0)),"") -> 1B | H3: =IFERROR(IF(I3="",F3,IF(I3<>F3,I3,F3)),"") -> 1B | I3: =IF(AND(F3="OF",'Guts-2'!$N$9=0),IF(MAX(Pre!J3:L3)=Pre!J3,"LF",IF(MAX(Pre!J3:L3)=Pre!K3,"CF",IF(MAX(Pre!J3:L3)=Pre!L3,"RF","LF"))),"") ->  | J3: =IFERROR(INDEX('Auction-Rank'!$U$2:$U$955,MATCH(D3,'Auction-Rank'!$A$2:$A$955,0)),TRUE) -> TRUE | K3: =IF(E3="",FALSE,TRUE) -> FALSE | L3: =IF(J3=FALSE,FALSE,IF(AND('Your Points Auction'!$R$6="Hide Drafted Players",K3=TRUE),FALSE,CHOOSE($I$1,TRUE,OR(RIGHT('Your Points Auction'!$R$5,LEN('Your Points Auction'!$R$5)-11)=H3,IF(RIGHT('Your Points Auction'!$R$5,LEN('Your Points Auction'!$R$5)-11)<>"C",NOT(ISERROR(SEARCH(RIGHT('Your Points Auction'!$R$5,LEN('Your Points Auction'!$R$5)-11),Pre!$CB3))),AND(NOT(ISERROR(SEARCH(RIGHT('Your Points Auction'!$R$5,LEN('Your Points Auction'!$R$5)-11),Pre!$CB3))),ISERROR(SEARCH("CF",Pre!$CB3)))),RIGHT('Your Points Auction'!$R$5,LEN('Your Points Auction'!$R$5)-11)=Pre!BP3),OR(H3="1B",H3="3B",ISNUMBER(SEARCH("1B",Pre!$CB3)),ISNUMBER(SEARCH("3B",Pre!$CB3))),OR(H3="2B",H3="SS",ISNUMBER(SEARCH("2B",Pre!$CB3)),ISNUMBER(SEARCH("SS",Pre!$CB3))),OR(H3="1B",H3="3B",H3="2B",H3="SS",ISNUMBER(SEARCH("1B",Pre!$CB3)),ISNUMBER(SEARCH("3B",Pre!$CB3)),ISNUMBER(SEARCH("2B",Pre!$CB3)),ISNUMBER(SEARCH("SS",Pre!$CB3))),OR(H3="SP",H3="RP",ISNUMBER(SEARCH("SP",Pre!$CB3)),ISNUMBER(SEARCH("RP",Pre!$CB3))),AND(H3<>"RP",H3<>"SP",NOT(ISNUMBER(SEARCH("RP",Pre!$CB3))),NOT(ISNUMBER(SEARCH("SP",Pre!$CB3)))),OR(H3="SP",H3="RP",ISNUMBER(SEARCH("SP",Pre!$CB3)),ISNUMBER(SEARCH("RP",Pre!$CB3)))))) -> TRUE | M3: =IF(LEFT($D3,15)="Unlisted Player",-1,IF('Inflation-Tracking'!J6="",-9999,'Inflation-Tracking'!J6)) -> 17.11402966 | N3: =IF(J3=FALSE,-0.5,IF(LEFT($D3,15)="Unlisted Player",-1,IF(Pre!C3<>"",Pre!C3,0))) -> 839.2386232 | O3: =IF('Auction-Rank'!W3="",9999,'Auction-Rank'!W3) -> 58 | P3: =IFERROR(IF(LEFT($D3,15)="Unlisted Player",-1001,IF(OR(H3="SP",H3="RP"),N3/VLOOKUP($D3,'Filter-P'!$A$1:$AC$356,4,FALSE),-1000)),-1000) -> -1000 | Q3: =IFERROR(IF(LEFT($D3,15)="Unlisted Player",-1001,IF(OR(H3="SP",H3="RP"),-1000,N3/VLOOKUP($D3,'Filter-H'!$A$1:$AE$428,2,FALSE))),-1000) -> 1.306207974 | R3: =IF(H3="",#N/A,H3&"."&1+SUMPRODUCT(($H$2:$H$937=H3)*($N$2:$N$937>N3))+COUNTIFS($N$2:N3,N3,$H$2:H3,H3)-1) -> 1B.7 | S3: =IF(H3="",#N/A,1+SUMPRODUCT(($H$2:$H$937=H3)*($N$2:$N$937>N3))+COUNTIFS($N$2:N3,N3,$H$2:H3,H3)-1) -> 7 | U3: =IFERROR(Pre!DL3,"") -> Bench | V3: =IFERROR(ROUND(INDEX('Inflation-Tracking'!$J$5:$J$1040,MATCH($D3,'Inflation-Tracking'!$A$5:$A$1040,0)),1),-999) -> 17.1 | W3: =IFERROR(IF($N3=0,-1000,IF(LEFT($D3,15)="Unlisted Player",-1001,IF(OR($H3="SP",$H3="RP"),INDEX('Filter-P'!$M$3:$M$520,MATCH($D3,'Filter-P'!$A$3:$A$520,0),1),INDEX('Filter-H'!$U$3:$U$500,MATCH($D3,'Filter-H'!$A$3:$A$500,0),1)))),-1000) -> 187.6599303
A4: Bryce Harper | B4: =IFERROR(INDEX($A$1:$A$936,SMALL(IF($A$1:$A$936<>"",ROW($A$1:$A$936)),ROW(A3))),"") -> Bryce Harper | C4: =IFERROR(IF(L4=FALSE,"",CHOOSE(MATCH(RIGHT('Your Points Auction'!$R$4,LEN('Your Points Auction'!$R$4)-8),$M$1:$W$1,0),1+SUMPRODUCT(($L$2:$L$937=TRUE)*($M$2:$M$937>M4))+COUNTIFS($L$2:L4,L4,$M$2:M4,M4)-1,1+SUMPRODUCT(($L$2:$L$937=TRUE)*($N$2:$N$937>N4))+COUNTIFS($L$2:L4,L4,$N$2:N4,N4)-1,1+SUMPRODUCT(($L$2:$L$937=TRUE)*($O$2:$O$937<O4))+COUNTIFS($L$2:L4,L4,$O$2:O4,O4)-1,1+SUMPRODUCT(($L$2:$L$937=TRUE)*($P$2:$P$937>P4))+COUNTIFS($L$2:L4,L4,$P$2:P4,P4)-1,1+SUMPRODUCT(($L$2:$L$937=TRUE)*($Q$2:$Q$937>Q4))+COUNTIFS($L$2:L4,L4,$Q$2:Q4,Q4)-1,,,,,,1+SUMPRODUCT(($L$2:$L$937=TRUE)*($W$2:$W$937>W4))+COUNTIFS($L$2:L4,L4,$W$2:W4,W4)-1,)),"") -> 6 | D4: Ronald Acuna Jr. | E4: =IFERROR(INDEX('Auction Log'!$C$4:$C$603,MATCH(D4,'Auction Log'!$B$4:$B$603,0)),"") ->  | F4: =IFERROR(INDEX('Auction-Rank'!$C$2:$C$955,MATCH(D4,'Auction-Rank'!$A$2:$A$955,0)),"") -> OF | H4: OF | I4: =IF(AND(F4="OF",'Guts-2'!$N$9=0),IF(MAX(Pre!J4:L4)=Pre!J4,"LF",IF(MAX(Pre!J4:L4)=Pre!K4,"CF",IF(MAX(Pre!J4:L4)=Pre!L4,"RF","LF"))),"") ->  | J4: =IFERROR(INDEX('Auction-Rank'!$U$2:$U$955,MATCH(D4,'Auction-Rank'!$A$2:$A$955,0)),TRUE) -> TRUE | K4: FALSE | L4: =IF(J4=FALSE,FALSE,IF(AND('Your Points Auction'!$R$6="Hide Drafted Players",K4=TRUE),FALSE,CHOOSE($I$1,TRUE,OR(RIGHT('Your Points Auction'!$R$5,LEN('Your Points Auction'!$R$5)-11)=H4,IF(RIGHT('Your Points Auction'!$R$5,LEN('Your Points Auction'!$R$5)-11)<>"C",NOT(ISERROR(SEARCH(RIGHT('Your Points Auction'!$R$5,LEN('Your Points Auction'!$R$5)-11),Pre!$CB4))),AND(NOT(ISERROR(SEARCH(RIGHT('Your Points Auction'!$R$5,LEN('Your Points Auction'!$R$5)-11),Pre!$CB4))),ISERROR(SEARCH("CF",Pre!$CB4)))),RIGHT('Your Points Auction'!$R$5,LEN('Your Points Auction'!$R$5)-11)=Pre!BP4),OR(H4="1B",H4="3B",ISNUMBER(SEARCH("1B",Pre!$CB4)),ISNUMBER(SEARCH("3B",Pre!$CB4))),OR(H4="2B",H4="SS",ISNUMBER(SEARCH("2B",Pre!$CB4)),ISNUMBER(SEARCH("SS",Pre!$CB4))),OR(H4="1B",H4="3B",H4="2B",H4="SS",ISNUMBER(SEARCH("1B",Pre!$CB4)),ISNUMBER(SEARCH("3B",Pre!$CB4)),ISNUMBER(SEARCH("2B",Pre!$CB4)),ISNUMBER(SEARCH("SS",Pre!$CB4))),OR(H4="SP",H4="RP",ISNUMBER(SEARCH("SP",Pre!$CB4)),ISNUMBER(SEARCH("RP",Pre!$CB4))),AND(H4<>"RP",H4<>"SP",NOT(ISNUMBER(SEARCH("RP",Pre!$CB4))),NOT(ISNUMBER(SEARCH("SP",Pre!$CB4)))),OR(H4="SP",H4="RP",ISNUMBER(SEARCH("SP",Pre!$CB4)),ISNUMBER(SEARCH("RP",Pre!$CB4)))))) -> TRUE | M4: =IF(LEFT($D4,15)="Unlisted Player",-1,IF('Inflation-Tracking'!J7="",-9999,'Inflation-Tracking'!J7)) -> 34.89980153 | N4: =IF(J4=FALSE,-0.5,IF(LEFT($D4,15)="Unlisted Player",-1,IF(Pre!C4<>"",Pre!C4,0))) -> 988.6288872 | O4: =IF('Auction-Rank'!W4="",9999,'Auction-Rank'!W4) -> 14 | P4: =IFERROR(IF(LEFT($D4,15)="Unlisted Player",-1001,IF(OR(H4="SP",H4="RP"),N4/VLOOKUP($D4,'Filter-P'!$A$1:$AC$356,4,FALSE),-1000)),-1000) -> -1000 | Q4: =IFERROR(IF(LEFT($D4,15)="Unlisted Player",-1001,IF(OR(H4="SP",H4="RP"),-1000,N4/VLOOKUP($D4,'Filter-H'!$A$1:$AE$428,2,FALSE))),-1000) -> 1.736569273 | R4: =IF(H4="",#N/A,H4&"."&1+SUMPRODUCT(($H$2:$H$937=H4)*($N$2:$N$937>N4))+COUNTIFS($N$2:N4,N4,$H$2:H4,H4)-1) -> OF.3 | S4: =IF(H4="",#N/A,1+SUMPRODUCT(($H$2:$H$937=H4)*($N$2:$N$937>N4))+COUNTIFS($N$2:N4,N4,$H$2:H4,H4)-1) -> 3 | U4: =IFERROR(Pre!DL4,"") -> Bench | V4: =IFERROR(ROUND(INDEX('Inflation-Tracking'!$J$5:$J$1040,MATCH($D4,'Inflation-Tracking'!$A$5:$A$1040,0)),1),-999) -> 34.9 | W4: =IFERROR(IF($N4=0,-1000,IF(LEFT($D4,15)="Unlisted Player",-1001,IF(OR($H4="SP",$H4="RP"),INDEX('Filter-P'!$M$3:$M$520,MATCH($D4,'Filter-P'!$A$3:$A$520,0),1),INDEX('Filter-H'!$U$3:$U$500,MATCH($D4,'Filter-H'!$A$3:$A$500,0),1)))),-1000) -> 394.8989239
A5: Trea Turner | B5: =IFERROR(INDEX($A$1:$A$936,SMALL(IF($A$1:$A$936<>"",ROW($A$1:$A$936)),ROW(A4))),"") -> Trea Turner | C5: =IFERROR(IF(L5=FALSE,"",CHOOSE(MATCH(RIGHT('Your Points Auction'!$R$4,LEN('Your Points Auction'!$R$4)-8),$M$1:$W$1,0),1+SUMPRODUCT(($L$2:$L$937=TRUE)*($M$2:$M$937>M5))+COUNTIFS($L$2:L5,L5,$M$2:M5,M5)-1,1+SUMPRODUCT(($L$2:$L$937=TRUE)*($N$2:$N$937>N5))+COUNTIFS($L$2:L5,L5,$N$2:N5,N5)-1,1+SUMPRODUCT(($L$2:$L$937=TRUE)*($O$2:$O$937<O5))+COUNTIFS($L$2:L5,L5,$O$2:O5,O5)-1,1+SUMPRODUCT(($L$2:$L$937=TRUE)*($P$2:$P$937>P5))+COUNTIFS($L$2:L5,L5,$P$2:P5,P5)-1,1+SUMPRODUCT(($L$2:$L$937=TRUE)*($Q$2:$Q$937>Q5))+COUNTIFS($L$2:L5,L5,$Q$2:Q5,Q5)-1,,,,,,1+SUMPRODUCT(($L$2:$L$937=TRUE)*($W$2:$W$937>W5))+COUNTIFS($L$2:L5,L5,$W$2:W5,W5)-1,)),"") -> 64 | D5: Willy Adames | E5: =IFERROR(INDEX('Auction Log'!$C$4:$C$603,MATCH(D5,'Auction Log'!$B$4:$B$603,0)),"") ->  | F5: =IFERROR(INDEX('Auction-Rank'!$C$2:$C$955,MATCH(D5,'Auction-Rank'!$A$2:$A$955,0)),"") -> SS | H5: SS | I5: =IF(AND(F5="OF",'Guts-2'!$N$9=0),IF(MAX(Pre!J5:L5)=Pre!J5,"LF",IF(MAX(Pre!J5:L5)=Pre!K5,"CF",IF(MAX(Pre!J5:L5)=Pre!L5,"RF","LF"))),"") ->  | J5: =IFERROR(INDEX('Auction-Rank'!$U$2:$U$955,MATCH(D5,'Auction-Rank'!$A$2:$A$955,0)),TRUE) -> TRUE | K5: FALSE | L5: =IF(J5=FALSE,FALSE,IF(AND('Your Points Auction'!$R$6="Hide Drafted Players",K5=TRUE),FALSE,CHOOSE($I$1,TRUE,OR(RIGHT('Your Points Auction'!$R$5,LEN('Your Points Auction'!$R$5)-11)=H5,IF(RIGHT('Your Points Auction'!$R$5,LEN('Your Points Auction'!$R$5)-11)<>"C",NOT(ISERROR(SEARCH(RIGHT('Your Points Auction'!$R$5,LEN('Your Points Auction'!$R$5)-11),Pre!$CB5))),AND(NOT(ISERROR(SEARCH(RIGHT('Your Points Auction'!$R$5,LEN('Your Points Auction'!$R$5)-11),Pre!$CB5))),ISERROR(SEARCH("CF",Pre!$CB5)))),RIGHT('Your Points Auction'!$R$5,LEN('Your Points Auction'!$R$5)-11)=Pre!BP5),OR(H5="1B",H5="3B",ISNUMBER(SEARCH("1B",Pre!$CB5)),ISNUMBER(SEARCH("3B",Pre!$CB5))),OR(H5="2B",H5="SS",ISNUMBER(SEARCH("2B",Pre!$CB5)),ISNUMBER(SEARCH("SS",Pre!$CB5))),OR(H5="1B",H5="3B",H5="2B",H5="SS",ISNUMBER(SEARCH("1B",Pre!$CB5)),ISNUMBER(SEARCH("3B",Pre!$CB5)),ISNUMBER(SEARCH("2B",Pre!$CB5)),ISNUMBER(SEARCH("SS",Pre!$CB5))),OR(H5="SP",H5="RP",ISNUMBER(SEARCH("SP",Pre!$CB5)),ISNUMBER(SEARCH("RP",Pre!$CB5))),AND(H5<>"RP",H5<>"SP",NOT(ISNUMBER(SEARCH("RP",Pre!$CB5))),NOT(ISNUMBER(SEARCH("SP",Pre!$CB5)))),OR(H5="SP",H5="RP",ISNUMBER(SEARCH("SP",Pre!$CB5)),ISNUMBER(SEARCH("RP",Pre!$CB5)))))) -> TRUE | M5: =IF(LEFT($D5,15)="Unlisted Player",-1,IF('Inflation-Tracking'!J8="",-9999,'Inflation-Tracking'!J8)) -> 18.23662115 | N5: =IF(J5=FALSE,-0.5,IF(LEFT($D5,15)="Unlisted Player",-1,IF(Pre!C5<>"",Pre!C5,0))) -> 728.2490984 | O5: =IF('Auction-Rank'!W5="",9999,'Auction-Rank'!W5) -> 121 | P5: =IFERROR(IF(LEFT($D5,15)="Unlisted Player",-1001,IF(OR(H5="SP",H5="RP"),N5/VLOOKUP($D5,'Filter-P'!$A$1:$AC$356,4,FALSE),-1000)),-1000) -> -1000 | Q5: =IFERROR(IF(LEFT($D5,15)="Unlisted Player",-1001,IF(OR(H5="SP",H5="RP"),-1000,N5/VLOOKUP($D5,'Filter-H'!$A$1:$AE$428,2,FALSE))),-1000) -> 1.214963461 | R5: =IF(H5="",#N/A,H5&"."&1+SUMPRODUCT(($H$2:$H$937=H5)*($N$2:$N$937>N5))+COUNTIFS($N$2:N5,N5,$H$2:H5,H5)-1) -> SS.13 | S5: =IF(H5="",#N/A,1+SUMPRODUCT(($H$2:$H$937=H5)*($N$2:$N$937>N5))+COUNTIFS($N$2:N5,N5,$H$2:H5,H5)-1) -> 13 | U5: =IFERROR(Pre!DL5,"") -> Bench | V5: =IFERROR(ROUND(INDEX('Inflation-Tracking'!$J$5:$J$1040,MATCH($D5,'Inflation-Tracking'!$A$5:$A$1040,0)),1),-999) -> 18.2 | W5: =IFERROR(IF($N5=0,-1000,IF(LEFT($D5,15)="Unlisted Player",-1001,IF(OR($H5="SP",$H5="RP"),INDEX('Filter-P'!$M$3:$M$520,MATCH($D5,'Filter-P'!$A$3:$A$520,0),1),INDEX('Filter-H'!$U$3:$U$500,MATCH($D5,'Filter-H'!$A$3:$A$500,0),1)))),-1000) -> 200.7403146
A6: Bo Bichette | B6: =IFERROR(INDEX($A$1:$A$936,SMALL(IF($A$1:$A$936<>"",ROW($A$1:$A$936)),ROW(A5))),"") -> Bo Bichette | C6: =IFERROR(IF(L6=FALSE,"",CHOOSE(MATCH(RIGHT('Your Points Auction'!$R$4,LEN('Your Points Auction'!$R$4)-8),$M$1:$W$1,0),1+SUMPRODUCT(($L$2:$L$937=TRUE)*($M$2:$M$937>M6))+COUNTIFS($L$2:L6,L6,$M$2:M6,M6)-1,1+SUMPRODUCT(($L$2:$L$937=TRUE)*($N$2:$N$937>N6))+COUNTIFS($L$2:L6,L6,$N$2:N6,N6)-1,1+SUMPRODUCT(($L$2:$L$937=TRUE)*($O$2:$O$937<O6))+COUNTIFS($L$2:L6,L6,$O$2:O6,O6)-1,1+SUMPRODUCT(($L$2:$L$937=TRUE)*($P$2:$P$937>P6))+COUNTIFS($L$2:L6,L6,$P$2:P6,P6)-1,1+SUMPRODUCT(($L$2:$L$937=TRUE)*($Q$2:$Q$937>Q6))+COUNTIFS($L$2:L6,L6,$Q$2:Q6,Q6)-1,,,,,,1+SUMPRODUCT(($L$2:$L$937=TRUE)*($W$2:$W$937>W6))+COUNTIFS($L$2:L6,L6,$W$2:W6,W6)-1,)),"") -> 482 | D6: Riley Adams | E6: =IFERROR(INDEX('Auction Log'!$C$4:$C$603,MATCH(D6,'Auction Log'!$B$4:$B$603,0)),"") ->  | F6: =IFERROR(INDEX('Auction-Rank'!$C$2:$C$955,MATCH(D6,'Auction-Rank'!$A$2:$A$955,0)),"") -> C | H6: C | I6: =IF(AND(F6="OF",'Guts-2'!$N$9=0),IF(MAX(Pre!J6:L6)=Pre!J6,"LF",IF(MAX(Pre!J6:L6)=Pre!K6,"CF",IF(MAX(Pre!J6:L6)=Pre!L6,"RF","LF"))),"") ->  | J6: =IFERROR(INDEX('Auction-Rank'!$U$2:$U$955,MATCH(D6,'Auction-Rank'!$A$2:$A$955,0)),TRUE) -> TRUE | K6: FALSE | L6: =IF(J6=FALSE,FALSE,IF(AND('Your Points Auction'!$R$6="Hide Drafted Players",K6=TRUE),FALSE,CHOOSE($I$1,TRUE,OR(RIGHT('Your Points Auction'!$R$5,LEN('Your Points Auction'!$R$5)-11)=H6,IF(RIGHT('Your Points Auction'!$R$5,LEN('Your Points Auction'!$R$5)-11)<>"C",NOT(ISERROR(SEARCH(RIGHT('Your Points Auction'!$R$5,LEN('Your Points Auction'!$R$5)-11),Pre!$CB6))),AND(NOT(ISERROR(SEARCH(RIGHT('Your Points Auction'!$R$5,LEN('Your Points Auction'!$R$5)-11),Pre!$CB6))),ISERROR(SEARCH("CF",Pre!$CB6)))),RIGHT('Your Points Auction'!$R$5,LEN('Your Points Auction'!$R$5)-11)=Pre!BP6),OR(H6="1B",H6="3B",ISNUMBER(SEARCH("1B",Pre!$CB6)),ISNUMBER(SEARCH("3B",Pre!$CB6))),OR(H6="2B",H6="SS",ISNUMBER(SEARCH("2B",Pre!$CB6)),ISNUMBER(SEARCH("SS",Pre!$CB6))),OR(H6="1B",H6="3B",H6="2B",H6="SS",ISNUMBER(SEARCH("1B",Pre!$CB6)),ISNUMBER(SEARCH("3B",Pre!$CB6)),ISNUMBER(SEARCH("2B",Pre!$CB6)),ISNUMBER(SEARCH("SS",Pre!$CB6))),OR(H6="SP",H6="RP",ISNUMBER(SEARCH("SP",Pre!$CB6)),ISNUMBER(SEARCH("RP",Pre!$CB6))),AND(H6<>"RP",H6<>"SP",NOT(ISNUMBER(SEARCH("RP",Pre!$CB6))),NOT(ISNUMBER(SEARCH("SP",Pre!$CB6)))),OR(H6="SP",H6="RP",ISNUMBER(SEARCH("SP",Pre!$CB6)),ISNUMBER(SEARCH("RP",Pre!$CB6)))))) -> TRUE | M6: =IF(LEFT($D6,15)="Unlisted Player",-1,IF('Inflation-Tracking'!J9="",-9999,'Inflation-Tracking'!J9)) -> 1 | N6: =IF(J6=FALSE,-0.5,IF(LEFT($D6,15)="Unlisted Player",-1,IF(Pre!C6<>"",Pre!C6,0))) -> 280.3485663 | O6: =IF('Auction-Rank'!W6="",9999,'Auction-Rank'!W6) -> 618 | P6: =IFERROR(IF(LEFT($D6,15)="Unlisted Player",-1001,IF(OR(H6="SP",H6="RP"),N6/VLOOKUP($D6,'Filter-P'!$A$1:$AC$356,4,FALSE),-1000)),-1000) -> -1000 | Q6: =IFERROR(IF(LEFT($D6,15)="Unlisted Player",-1001,IF(OR(H6="SP",H6="RP"),-1000,N6/VLOOKUP($D6,'Filter-H'!$A$1:$AE$428,2,FALSE))),-1000) -> 1.014285696 | R6: =IF(H6="",#N/A,H6&"."&1+SUMPRODUCT(($H$2:$H$937=H6)*($N$2:$N$937>N6))+COUNTIFS($N$2:N6,N6,$H$2:H6,H6)-1) -> C.37 | S6: =IF(H6="",#N/A,1+SUMPRODUCT(($H$2:$H$937=H6)*($N$2:$N$937>N6))+COUNTIFS($N$2:N6,N6,$H$2:H6,H6)-1) -> 37 | U6: =IFERROR(Pre!DL6,"") -> Bench | V6: =IFERROR(ROUND(INDEX('Inflation-Tracking'!$J$5:$J$1040,MATCH($D6,'Inflation-Tracking'!$A$5:$A$1040,0)),1),-999) -> 1 | W6: =IFERROR(IF($N6=0,-1000,IF(LEFT($D6,15)="Unlisted Player",-1001,IF(OR($H6="SP",$H6="RP"),INDEX('Filter-P'!$M$3:$M$520,MATCH($D6,'Filter-P'!$A$3:$A$520,0),1),INDEX('Filter-H'!$U$3:$U$500,MATCH($D6,'Filter-H'!$A$3:$A$500,0),1)))),-1000) -> -164.8114972
A7: Ronald Acuna Jr. | B7: =IFERROR(INDEX($A$1:$A$936,SMALL(IF($A$1:$A$936<>"",ROW($A$1:$A$936)),ROW(A6))),"") -> Ronald Acuna Jr. | C7: =IFERROR(IF(L7=FALSE,"",CHOOSE(MATCH(RIGHT('Your Points Auction'!$R$4,LEN('Your Points Auction'!$R$4)-8),$M$1:$W$1,0),1+SUMPRODUCT(($L$2:$L$937=TRUE)*($M$2:$M$937>M7))+COUNTIFS($L$2:L7,L7,$M$2:M7,M7)-1,1+SUMPRODUCT(($L$2:$L$937=TRUE)*($N$2:$N$937>N7))+COUNTIFS($L$2:L7,L7,$N$2:N7,N7)-1,1+SUMPRODUCT(($L$2:$L$937=TRUE)*($O$2:$O$937<O7))+COUNTIFS($L$2:L7,L7,$O$2:O7,O7)-1,1+SUMPRODUCT(($L$2:$L$937=TRUE)*($P$2:$P$937>P7))+COUNTIFS($L$2:L7,L7,$P$2:P7,P7)-1,1+SUMPRODUCT(($L$2:$L$937=TRUE)*($Q$2:$Q$937>Q7))+COUNTIFS($L$2:L7,L7,$Q$2:Q7,Q7)-1,,,,,,1+SUMPRODUCT(($L$2:$L$937=TRUE)*($W$2:$W$937>W7))+COUNTIFS($L$2:L7,L7,$W$2:W7,W7)-1,)),"") -> 265 | D7: Jo Adell | E7: =IFERROR(INDEX('Auction Log'!$C$4:$C$603,MATCH(D7,'Auction Log'!$B$4:$B$603,0)),"") ->  | F7: =IFERROR(INDEX('Auction-Rank'!$C$2:$C$955,MATCH(D7,'Auction-Rank'!$A$2:$A$955,0)),"") -> OF | H7: OF | I7: =IF(AND(F7="OF",'Guts-2'!$N$9=0),IF(MAX(Pre!J7:L7)=Pre!J7,"LF",IF(MAX(Pre!J7:L7)=Pre!K7,"CF",IF(MAX(Pre!J7:L7)=Pre!L7,"RF","LF"))),"") ->  | J7: =IFERROR(INDEX('Auction-Rank'!$U$2:$U$955,MATCH(D7,'Auction-Rank'!$A$2:$A$955,0)),TRUE) -> TRUE | K7: FALSE | L7: =IF(J7=FALSE,FALSE,IF(AND('Your Points Auction'!$R$6="Hide Drafted Players",K7=TRUE),FALSE,CHOOSE($I$1,TRUE,OR(RIGHT('Your Points Auction'!$R$5,LEN('Your Points Auction'!$R$5)-11)=H7,IF(RIGHT('Your Points Auction'!$R$5,LEN('Your Points Auction'!$R$5)-11)<>"C",NOT(ISERROR(SEARCH(RIGHT('Your Points Auction'!$R$5,LEN('Your Points Auction'!$R$5)-11),Pre!$CB7))),AND(NOT(ISERROR(SEARCH(RIGHT('Your Points Auction'!$R$5,LEN('Your Points Auction'!$R$5)-11),Pre!$CB7))),ISERROR(SEARCH("CF",Pre!$CB7)))),RIGHT('Your Points Auction'!$R$5,LEN('Your Points Auction'!$R$5)-11)=Pre!BP7),OR(H7="1B",H7="3B",ISNUMBER(SEARCH("1B",Pre!$CB7)),ISNUMBER(SEARCH("3B",Pre!$CB7))),OR(H7="2B",H7="SS",ISNUMBER(SEARCH("2B",Pre!$CB7)),ISNUMBER(SEARCH("SS",Pre!$CB7))),OR(H7="1B",H7="3B",H7="2B",H7="SS",ISNUMBER(SEARCH("1B",Pre!$CB7)),ISNUMBER(SEARCH("3B",Pre!$CB7)),ISNUMBER(SEARCH("2B",Pre!$CB7)),ISNUMBER(SEARCH("SS",Pre!$CB7))),OR(H7="SP",H7="RP",ISNUMBER(SEARCH("SP",Pre!$CB7)),ISNUMBER(SEARCH("RP",Pre!$CB7))),AND(H7<>"RP",H7<>"SP",NOT(ISNUMBER(SEARCH("RP",Pre!$CB7))),NOT(ISNUMBER(SEARCH("SP",Pre!$CB7)))),OR(H7="SP",H7="RP",ISNUMBER(SEARCH("SP",Pre!$CB7)),ISNUMBER(SEARCH("RP",Pre!$CB7)))))) -> TRUE | M7: =IF(LEFT($D7,15)="Unlisted Player",-1,IF('Inflation-Tracking'!J10="",-9999,'Inflation-Tracking'!J10)) -> 1.008582252 | N7: =IF(J7=FALSE,-0.5,IF(LEFT($D7,15)="Unlisted Player",-1,IF(Pre!C7<>"",Pre!C7,0))) -> 552.9493278 | O7: =IF('Auction-Rank'!W7="",9999,'Auction-Rank'!W7) -> 201 | P7: =IFERROR(IF(LEFT($D7,15)="Unlisted Player",-1001,IF(OR(H7="SP",H7="RP"),N7/VLOOKUP($D7,'Filter-P'!$A$1:$AC$356,4,FALSE),-1000)),-1000) -> -1000 | Q7: =IFERROR(IF(LEFT($D7,15)="Unlisted Player",-1001,IF(OR(H7="SP",H7="RP"),-1000,N7/VLOOKUP($D7,'Filter-H'!$A$1:$AE$428,2,FALSE))),-1000) -> 1.101054018 | R7: =IF(H7="",#N/A,H7&"."&1+SUMPRODUCT(($H$2:$H$937=H7)*($N$2:$N$937>N7))+COUNTIFS($N$2:N7,N7,$H$2:H7,H7)-1) -> OF.69 | S7: =IF(H7="",#N/A,1+SUMPRODUCT(($H$2:$H$937=H7)*($N$2:$N$937>N7))+COUNTIFS($N$2:N7,N7,$H$2:H7,H7)-1) -> 69 | U7: =IFERROR(Pre!DL7,"") -> Bench | V7: =IFERROR(ROUND(INDEX('Inflation-Tracking'!$J$5:$J$1040,MATCH($D7,'Inflation-Tracking'!$A$5:$A$1040,0)),1),-999) -> 1 | W7: =IFERROR(IF($N7=0,-1000,IF(LEFT($D7,15)="Unlisted Player",-1001,IF(OR($H7="SP",$H7="RP"),INDEX('Filter-P'!$M$3:$M$520,MATCH($D7,'Filter-P'!$A$3:$A$520,0),1),INDEX('Filter-H'!$U$3:$U$500,MATCH($D7,'Filter-H'!$A$3:$A$500,0),1)))),-1000) -> -40.78063551
A8: Freddie Freeman | B8: =IFERROR(INDEX($A$1:$A$936,SMALL(IF($A$1:$A$936<>"",ROW($A$1:$A$936)),ROW(A7))),"") -> Freddie Freeman | C8: =IFERROR(IF(L8=FALSE,"",CHOOSE(MATCH(RIGHT('Your Points Auction'!$R$4,LEN('Your Points Auction'!$R$4)-8),$M$1:$W$1,0),1+SUMPRODUCT(($L$2:$L$937=TRUE)*($M$2:$M$937>M8))+COUNTIFS($L$2:L8,L8,$M$2:M8,M8)-1,1+SUMPRODUCT(($L$2:$L$937=TRUE)*($N$2:$N$937>N8))+COUNTIFS($L$2:L8,L8,$N$2:N8,N8)-1,1+SUMPRODUCT(($L$2:$L$937=TRUE)*($O$2:$O$937<O8))+COUNTIFS($L$2:L8,L8,$O$2:O8,O8)-1,1+SUMPRODUCT(($L$2:$L$937=TRUE)*($P$2:$P$937>P8))+COUNTIFS($L$2:L8,L8,$P$2:P8,P8)-1,1+SUMPRODUCT(($L$2:$L$937=TRUE)*($Q$2:$Q$937>Q8))+COUNTIFS($L$2:L8,L8,$Q$2:Q8,Q8)-1,,,,,,1+SUMPRODUCT(($L$2:$L$937=TRUE)*($W$2:$W$937>W8))+COUNTIFS($L$2:L8,L8,$W$2:W8,W8)-1,)),"") -> 483 | D8: Ehire Adrianza | E8: =IFERROR(INDEX('Auction Log'!$C$4:$C$603,MATCH(D8,'Auction Log'!$B$4:$B$603,0)),"") ->  | F8: =IFERROR(INDEX('Auction-Rank'!$C$2:$C$955,MATCH(D8,'Auction-Rank'!$A$2:$A$955,0)),"") -> OF | H8: OF | I8: =IF(AND(F8="OF",'Guts-2'!$N$9=0),IF(MAX(Pre!J8:L8)=Pre!J8,"LF",IF(MAX(Pre!J8:L8)=Pre!K8,"CF",IF(MAX(Pre!J8:L8)=Pre!L8,"RF","LF"))),"") ->  | J8: =IFERROR(INDEX('Auction-Rank'!$U$2:$U$955,MATCH(D8,'Auction-Rank'!$A$2:$A$955,0)),TRUE) -> TRUE | K8: FALSE | L8: =IF(J8=FALSE,FALSE,IF(AND('Your Points Auction'!$R$6="Hide Drafted Players",K8=TRUE),FALSE,CHOOSE($I$1,TRUE,OR(RIGHT('Your Points Auction'!$R$5,LEN('Your Points Auction'!$R$5)-11)=H8,IF(RIGHT('Your Points Auction'!$R$5,LEN('Your Points Auction'!$R$5)-11)<>"C",NOT(ISERROR(SEARCH(RIGHT('Your Points Auction'!$R$5,LEN('Your Points Auction'!$R$5)-11),Pre!$CB8))),AND(NOT(ISERROR(SEARCH(RIGHT('Your Points Auction'!$R$5,LEN('Your Points Auction'!$R$5)-11),Pre!$CB8))),ISERROR(SEARCH("CF",Pre!$CB8)))),RIGHT('Your Points Auction'!$R$5,LEN('Your Points Auction'!$R$5)-11)=Pre!BP8),OR(H8="1B",H8="3B",ISNUMBER(SEARCH("1B",Pre!$CB8)),ISNUMBER(SEARCH("3B",Pre!$CB8))),OR(H8="2B",H8="SS",ISNUMBER(SEARCH("2B",Pre!$CB8)),ISNUMBER(SEARCH("SS",Pre!$CB8))),OR(H8="1B",H8="3B",H8="2B",H8="SS",ISNUMBER(SEARCH("1B",Pre!$CB8)),ISNUMBER(SEARCH("3B",Pre!$CB8)),ISNUMBER(SEARCH("2B",Pre!$CB8)),ISNUMBER(SEARCH("SS",Pre!$CB8))),OR(H8="SP",H8="RP",ISNUMBER(SEARCH("SP",Pre!$CB8)),ISNUMBER(SEARCH("RP",Pre!$CB8))),AND(H8<>"RP",H8<>"SP",NOT(ISNUMBER(SEARCH("RP",Pre!$CB8))),NOT(ISNUMBER(SEARCH("SP",Pre!$CB8)))),OR(H8="SP",H8="RP",ISNUMBER(SEARCH("SP",Pre!$CB8)),ISNUMBER(SEARCH("RP",Pre!$CB8)))))) -> TRUE | M8: =IF(LEFT($D8,15)="Unlisted Player",-1,IF('Inflation-Tracking'!J11="",-9999,'Inflation-Tracking'!J11)) -> 1 | N8: =IF(J8=FALSE,-0.5,IF(LEFT($D8,15)="Unlisted Player",-1,IF(Pre!C8<>"",Pre!C8,0))) -> 234.3057847 | O8: =IF('Auction-Rank'!W8="",9999,'Auction-Rank'!W8) -> 736 | P8: =IFERROR(IF(LEFT($D8,15)="Unlisted Player",-1001,IF(OR(H8="SP",H8="RP"),N8/VLOOKUP($D8,'Filter-P'!$A$1:$AC$356,4,FALSE),-1000)),-1000) -> -1000 | Q8: =IFERROR(IF(LEFT($D8,15)="Unlisted Player",-1001,IF(OR(H8="SP",H8="RP"),-1000,N8/VLOOKUP($D8,'Filter-H'!$A$1:$AE$428,2,FALSE))),-1000) -> 0.9734349177 | R8: =IF(H8="",#N/A,H8&"."&1+SUMPRODUCT(($H$2:$H$937=H8)*($N$2:$N$937>N8))+COUNTIFS($N$2:N8,N8,$H$2:H8,H8)-1) -> OF.149 | S8: =IF(H8="",#N/A,1+SUMPRODUCT(($H$2:$H$937=H8)*($N$2:$N$937>N8))+COUNTIFS($N$2:N8,N8,$H$2:H8,H8)-1) -> 149 | U8: =IFERROR(Pre!DL8,"") -> Bench | V8: =IFERROR(ROUND(INDEX('Inflation-Tracking'!$J$5:$J$1040,MATCH($D8,'Inflation-Tracking'!$A$5:$A$1040,0)),1),-999) -> 1 | W8: =IFERROR(IF($N8=0,-1000,IF(LEFT($D8,15)="Unlisted Player",-1001,IF(OR($H8="SP",$H8="RP"),INDEX('Filter-P'!$M$3:$M$520,MATCH($D8,'Filter-P'!$A$3:$A$520,0),1),INDEX('Filter-H'!$U$3:$U$500,MATCH($D8,'Filter-H'!$A$3:$A$500,0),1)))),-1000) -> -359.4241786
A9: Matt Olson | B9: =IFERROR(INDEX($A$1:$A$936,SMALL(IF($A$1:$A$936<>"",ROW($A$1:$A$936)),ROW(A8))),"") -> Matt Olson | C9: =IFERROR(IF(L9=FALSE,"",CHOOSE(MATCH(RIGHT('Your Points Auction'!$R$4,LEN('Your Points Auction'!$R$4)-8),$M$1:$W$1,0),1+SUMPRODUCT(($L$2:$L$937=TRUE)*($M$2:$M$937>M9))+COUNTIFS($L$2:L9,L9,$M$2:M9,M9)-1,1+SUMPRODUCT(($L$2:$L$937=TRUE)*($N$2:$N$937>N9))+COUNTIFS($L$2:L9,L9,$N$2:N9,N9)-1,1+SUMPRODUCT(($L$2:$L$937=TRUE)*($O$2:$O$937<O9))+COUNTIFS($L$2:L9,L9,$O$2:O9,O9)-1,1+SUMPRODUCT(($L$2:$L$937=TRUE)*($P$2:$P$937>P9))+COUNTIFS($L$2:L9,L9,$P$2:P9,P9)-1,1+SUMPRODUCT(($L$2:$L$937=TRUE)*($Q$2:$Q$937>Q9))+COUNTIFS($L$2:L9,L9,$Q$2:Q9,Q9)-1,,,,,,1+SUMPRODUCT(($L$2:$L$937=TRUE)*($W$2:$W$937>W9))+COUNTIFS($L$2:L9,L9,$W$2:W9,W9)-1,)),"") -> 266 | D9: Jesus Aguilar | E9: =IFERROR(INDEX('Auction Log'!$C$4:$C$603,MATCH(D9,'Auction Log'!$B$4:$B$603,0)),"") ->  | F9: =IFERROR(INDEX('Auction-Rank'!$C$2:$C$955,MATCH(D9,'Auction-Rank'!$A$2:$A$955,0)),"") -> 1B | H9: 1B | I9: =IF(AND(F9="OF",'Guts-2'!$N$9=0),IF(MAX(Pre!J9:L9)=Pre!J9,"LF",IF(MAX(Pre!J9:L9)=Pre!K9,"CF",IF(MAX(Pre!J9:L9)=Pre!L9,"RF","LF"))),"") ->  | J9: =IFERROR(INDEX('Auction-Rank'!$U$2:$U$955,MATCH(D9,'Auction-Rank'!$A$2:$A$955,0)),TRUE) -> TRUE | K9: FALSE | L9: =IF(J9=FALSE,FALSE,IF(AND('Your Points Auction'!$R$6="Hide Drafted Players",K9=TRUE),FALSE,CHOOSE($I$1,TRUE,OR(RIGHT('Your Points Auction'!$R$5,LEN('Your Points Auction'!$R$5)-11)=H9,IF(RIGHT('Your Points Auction'!$R$5,LEN('Your Points Auction'!$R$5)-11)<>"C",NOT(ISERROR(SEARCH(RIGHT('Your Points Auction'!$R$5,LEN('Your Points Auction'!$R$5)-11),Pre!$CB9))),AND(NOT(ISERROR(SEARCH(RIGHT('Your Points Auction'!$R$5,LEN('Your Points Auction'!$R$5)-11),Pre!$CB9))),ISERROR(SEARCH("CF",Pre!$CB9)))),RIGHT('Your Points Auction'!$R$5,LEN('Your Points Auction'!$R$5)-11)=Pre!BP9),OR(H9="1B",H9="3B",ISNUMBER(SEARCH("1B",Pre!$CB9)),ISNUMBER(SEARCH("3B",Pre!$CB9))),OR(H9="2B",H9="SS",ISNUMBER(SEARCH("2B",Pre!$CB9)),ISNUMBER(SEARCH("SS",Pre!$CB9))),OR(H9="1B",H9="3B",H9="2B",H9="SS",ISNUMBER(SEARCH("1B",Pre!$CB9)),ISNUMBER(SEARCH("3B",Pre!$CB9)),ISNUMBER(SEARCH("2B",Pre!$CB9)),ISNUMBER(SEARCH("SS",Pre!$CB9))),OR(H9="SP",H9="RP",ISNUMBER(SEARCH("SP",Pre!$CB9)),ISNUMBER(SEARCH("RP",Pre!$CB9))),AND(H9<>"RP",H9<>"SP",NOT(ISNUMBER(SEARCH("RP",Pre!$CB9))),NOT(ISNUMBER(SEARCH("SP",Pre!$CB9)))),OR(H9="SP",H9="RP",ISNUMBER(SEARCH("SP",Pre!$CB9)),ISNUMBER(SEARCH("RP",Pre!$CB9)))))) -> TRUE | M9: =IF(LEFT($D9,15)="Unlisted Player",-1,IF('Inflation-Tracking'!J12="",-9999,'Inflation-Tracking'!J12)) -> 1.008582252 | N9: =IF(J9=FALSE,-0.5,IF(LEFT($D9,15)="Unlisted Player",-1,IF(Pre!C9<>"",Pre!C9,0))) -> 618.1645782 | O9: =IF('Auction-Rank'!W9="",9999,'Auction-Rank'!W9) -> 225 | P9: =IFERROR(IF(LEFT($D9,15)="Unlisted Player",-1001,IF(OR(H9="SP",H9="RP"),N9/VLOOKUP($D9,'Filter-P'!$A$1:$AC$356,4,FALSE),-1000)),-1000) -> -1000 | Q9: =IFERROR(IF(LEFT($D9,15)="Unlisted Player",-1001,IF(OR(H9="SP",H9="RP"),-1000,N9/VLOOKUP($D9,'Filter-H'!$A$1:$AE$428,2,FALSE))),-1000) -> 1.233615203 | R9: =IF(H9="",#N/A,H9&"."&1+SUMPRODUCT(($H$2:$H$937=H9)*($N$2:$N$937>N9))+COUNTIFS($N$2:N9,N9,$H$2:H9,H9)-1) -> 1B.20 | S9: =IF(H9="",#N/A,1+SUMPRODUCT(($H$2:$H$937=H9)*($N$2:$N$937>N9))+COUNTIFS($N$2:N9,N9,$H$2:H9,H9)-1) -> 20 | U9: =IFERROR(Pre!DL9,"") -> Bench | V9: =IFERROR(ROUND(INDEX('Inflation-Tracking'!$J$5:$J$1040,MATCH($D9,'Inflation-Tracking'!$A$5:$A$1040,0)),1),-999) -> 1 | W9: =IFERROR(IF($N9=0,-1000,IF(LEFT($D9,15)="Unlisted Player",-1001,IF(OR($H9="SP",$H9="RP"),INDEX('Filter-P'!$M$3:$M$520,MATCH($D9,'Filter-P'!$A$3:$A$520,0),1),INDEX('Filter-H'!$U$3:$U$500,MATCH($D9,'Filter-H'!$A$3:$A$500,0),1)))),-1000) -> -33.4141146
A10: Mike Trout | B10: =IFERROR(INDEX($A$1:$A$936,SMALL(IF($A$1:$A$936<>"",ROW($A$1:$A$936)),ROW(A9))),"") -> Mike Trout | C10: =IFERROR(IF(L10=FALSE,"",CHOOSE(MATCH(RIGHT('Your Points Auction'!$R$4,LEN('Your Points Auction'!$R$4)-8),$M$1:$W$1,0),1+SUMPRODUCT(($L$2:$L$937=TRUE)*($M$2:$M$937>M10))+COUNTIFS($L$2:L10,L10,$M$2:M10,M10)-1,1+SUMPRODUCT(($L$2:$L$937=TRUE)*($N$2:$N$937>N10))+COUNTIFS($L$2:L10,L10,$N$2:N10,N10)-1,1+SUMPRODUCT(($L$2:$L$937=TRUE)*($O$2:$O$937<O10))+COUNTIFS($L$2:L10,L10,$O$2:O10,O10)-1,1+SUMPRODUCT(($L$2:$L$937=TRUE)*($P$2:$P$937>P10))+COUNTIFS($L$2:L10,L10,$P$2:P10,P10)-1,1+SUMPRODUCT(($L$2:$L$937=TRUE)*($Q$2:$Q$937>Q10))+COUNTIFS($L$2:L10,L10,$Q$2:Q10,Q10)-1,,,,,,1+SUMPRODUCT(($L$2:$L$937=TRUE)*($W$2:$W$937>W10))+COUNTIFS($L$2:L10,L10,$W$2:W10,W10)-1,)),"") -> 267 | D10: Nick Ahmed | E10: =IFERROR(INDEX('Auction Log'!$C$4:$C$603,MATCH(D10,'Auction Log'!$B$4:$B$603,0)),"") ->  | F10: =IFERROR(INDEX('Auction-Rank'!$C$2:$C$955,MATCH(D10,'Auction-Rank'!$A$2:$A$955,0)),"") -> SS | H10: SS | I10: =IF(AND(F10="OF",'Guts-2'!$N$9=0),IF(MAX(Pre!J10:L10)=Pre!J10,"LF",IF(MAX(Pre!J10:L10)=Pre!K10,"CF",IF(MAX(Pre!J10:L10)=Pre!L10,"RF","LF"))),"") ->  | J10: =IFERROR(INDEX('Auction-Rank'!$U$2:$U$955,MATCH(D10,'Auction-Rank'!$A$2:$A$955,0)),TRUE) -> TRUE | K10: FALSE | L10: =IF(J10=FALSE,FALSE,IF(AND('Your Points Auction'!$R$6="Hide Drafted Players",K10=TRUE),FALSE,CHOOSE($I$1,TRUE,OR(RIGHT('Your Points Auction'!$R$5,LEN('Your Points Auction'!$R$5)-11)=H10,IF(RIGHT('Your Points Auction'!$R$5,LEN('Your Points Auction'!$R$5)-11)<>"C",NOT(ISERROR(SEARCH(RIGHT('Your Points Auction'!$R$5,LEN('Your Points Auction'!$R$5)-11),Pre!$CB10))),AND(NOT(ISERROR(SEARCH(RIGHT('Your Points Auction'!$R$5,LEN('Your Points Auction'!$R$5)-11),Pre!$CB10))),ISERROR(SEARCH("CF",Pre!$CB10)))),RIGHT('Your Points Auction'!$R$5,LEN('Your Points Auction'!$R$5)-11)=Pre!BP10),OR(H10="1B",H10="3B",ISNUMBER(SEARCH("1B",Pre!$CB10)),ISNUMBER(SEARCH("3B",Pre!$CB10))),OR(H10="2B",H10="SS",ISNUMBER(SEARCH("2B",Pre!$CB10)),ISNUMBER(SEARCH("SS",Pre!$CB10))),OR(H10="1B",H10="3B",H10="2B",H10="SS",ISNUMBER(SEARCH("1B",Pre!$CB10)),ISNUMBER(SEARCH("3B",Pre!$CB10)),ISNUMBER(SEARCH("2B",Pre!$CB10)),ISNUMBER(SEARCH("SS",Pre!$CB10))),OR(H10="SP",H10="RP",ISNUMBER(SEARCH("SP",Pre!$CB10)),ISNUMBER(SEARCH("RP",Pre!$CB10))),AND(H10<>"RP",H10<>"SP",NOT(ISNUMBER(SEARCH("RP",Pre!$CB10))),NOT(ISNUMBER(SEARCH("SP",Pre!$CB10)))),OR(H10="SP",H10="RP",ISNUMBER(SEARCH("SP",Pre!$CB10)),ISNUMBER(SEARCH("RP",Pre!$CB10)))))) -> TRUE | M10: =IF(LEFT($D10,15)="Unlisted Player",-1,IF('Inflation-Tracking'!J13="",-9999,'Inflation-Tracking'!J13)) -> 1.008582252 | N10: =IF(J10=FALSE,-0.5,IF(LEFT($D10,15)="Unlisted Player",-1,IF(Pre!C10<>"",Pre!C10,0))) -> 450.5901272 | O10: =IF('Auction-Rank'!W10="",9999,'Auction-Rank'!W10) -> 432 | P10: =IFERROR(IF(LEFT($D10,15)="Unlisted Player",-1001,IF(OR(H10="SP",H10="RP"),N10/VLOOKUP($D10,'Filter-P'!$A$1:$AC$356,4,FALSE),-1000)),-1000) -> -1000 | Q10: =IFERROR(IF(LEFT($D10,15)="Unlisted Player",-1001,IF(OR(H10="SP",H10="RP"),-1000,N10/VLOOKUP($D10,'Filter-H'!$A$1:$AE$428,2,FALSE))),-1000) -> 0.9346403801 | R10: =IF(H10="",#N/A,H10&"."&1+SUMPRODUCT(($H$2:$H$937=H10)*($N$2:$N$937>N10))+COUNTIFS($N$2:N10,N10,$H$2:H10,H10)-1) -> SS.45 | S10: =IF(H10="",#N/A,1+SUMPRODUCT(($H$2:$H$937=H10)*($N$2:$N$937>N10))+COUNTIFS($N$2:N10,N10,$H$2:H10,H10)-1) -> 45 | U10: =IFERROR(Pre!DL10,"") -> Bench | V10: =IFERROR(ROUND(INDEX('Inflation-Tracking'!$J$5:$J$1040,MATCH($D10,'Inflation-Tracking'!$A$5:$A$1040,0)),1),-999) -> 1 | W10: =IFERROR(IF($N10=0,-1000,IF(LEFT($D10,15)="Unlisted Player",-1001,IF(OR($H10="SP",$H10="RP"),INDEX('Filter-P'!$M$3:$M$520,MATCH($D10,'Filter-P'!$A$3:$A$520,0),1),INDEX('Filter-H'!$U$3:$U$500,MATCH($D10,'Filter-H'!$A$3:$A$500,0),1)))),-1000) -> -76.91865653
A11: Gerrit Cole | B11: =IFERROR(INDEX($A$1:$A$936,SMALL(IF($A$1:$A$936<>"",ROW($A$1:$A$936)),ROW(A10))),"") -> Gerrit Cole | C11: =IFERROR(IF(L11=FALSE,"",CHOOSE(MATCH(RIGHT('Your Points Auction'!$R$4,LEN('Your Points Auction'!$R$4)-8),$M$1:$W$1,0),1+SUMPRODUCT(($L$2:$L$937=TRUE)*($M$2:$M$937>M11))+COUNTIFS($L$2:L11,L11,$M$2:M11,M11)-1,1+SUMPRODUCT(($L$2:$L$937=TRUE)*($N$2:$N$937>N11))+COUNTIFS($L$2:L11,L11,$N$2:N11,N11)-1,1+SUMPRODUCT(($L$2:$L$937=TRUE)*($O$2:$O$937<O11))+COUNTIFS($L$2:L11,L11,$O$2:O11,O11)-1,1+SUMPRODUCT(($L$2:$L$937=TRUE)*($P$2:$P$937>P11))+COUNTIFS($L$2:L11,L11,$P$2:P11,P11)-1,1+SUMPRODUCT(($L$2:$L$937=TRUE)*($Q$2:$Q$937>Q11))+COUNTIFS($L$2:L11,L11,$Q$2:Q11,Q11)-1,,,,,,1+SUMPRODUCT(($L$2:$L$937=TRUE)*($W$2:$W$937>W11))+COUNTIFS($L$2:L11,L11,$W$2:W11,W11)-1,)),"") -> 484 | D11: Shogo Akiyama | E11: =IFERROR(INDEX('Auction Log'!$C$4:$C$603,MATCH(D11,'Auction Log'!$B$4:$B$603,0)),"") ->  | F11: =IFERROR(INDEX('Auction-Rank'!$C$2:$C$955,MATCH(D11,'Auction-Rank'!$A$2:$A$955,0)),"") -> OF | H11: OF | I11: =IF(AND(F11="OF",'Guts-2'!$N$9=0),IF(MAX(Pre!J11:L11)=Pre!J11,"LF",IF(MAX(Pre!J11:L11)=Pre!K11,"CF",IF(MAX(Pre!J11:L11)=Pre!L11,"RF","LF"))),"") ->  | J11: =IFERROR(INDEX('Auction-Rank'!$U$2:$U$955,MATCH(D11,'Auction-Rank'!$A$2:$A$955,0)),TRUE) -> TRUE | K11: FALSE | L11: =IF(J11=FALSE,FALSE,IF(AND('Your Points Auction'!$R$6="Hide Drafted Players",K11=TRUE),FALSE,CHOOSE($I$1,TRUE,OR(RIGHT('Your Points Auction'!$R$5,LEN('Your Points Auction'!$R$5)-11)=H11,IF(RIGHT('Your Points Auction'!$R$5,LEN('Your Points Auction'!$R$5)-11)<>"C",NOT(ISERROR(SEARCH(RIGHT('Your Points Auction'!$R$5,LEN('Your Points Auction'!$R$5)-11),Pre!$CB11))),AND(NOT(ISERROR(SEARCH(RIGHT('Your Points Auction'!$R$5,LEN('Your Points Auction'!$R$5)-11),Pre!$CB11))),ISERROR(SEARCH("CF",Pre!$CB11)))),RIGHT('Your Points Auction'!$R$5,LEN('Your Points Auction'!$R$5)-11)=Pre!BP11),OR(H11="1B",H11="3B",ISNUMBER(SEARCH("1B",Pre!$CB11)),ISNUMBER(SEARCH("3B",Pre!$CB11))),OR(H11="2B",H11="SS",ISNUMBER(SEARCH("2B",Pre!$CB11)),ISNUMBER(SEARCH("SS",Pre!$CB11))),OR(H11="1B",H11="3B",H11="2B",H11="SS",ISNUMBER(SEARCH("1B",Pre!$CB11)),ISNUMBER(SEARCH("3B",Pre!$CB11)),ISNUMBER(SEARCH("2B",Pre!$CB11)),ISNUMBER(SEARCH("SS",Pre!$CB11))),OR(H11="SP",H11="RP",ISNUMBER(SEARCH("SP",Pre!$CB11)),ISNUMBER(SEARCH("RP",Pre!$CB11))),AND(H11<>"RP",H11<>"SP",NOT(ISNUMBER(SEARCH("RP",Pre!$CB11))),NOT(ISNUMBER(SEARCH("SP",Pre!$CB11)))),OR(H11="SP",H11="RP",ISNUMBER(SEARCH("SP",Pre!$CB11)),ISNUMBER(SEARCH("RP",Pre!$CB11)))))) -> TRUE | M11: =IF(LEFT($D11,15)="Unlisted Player",-1,IF('Inflation-Tracking'!J14="",-9999,'Inflation-Tracking'!J14)) -> 1 | N11: =IF(J11=FALSE,-0.5,IF(LEFT($D11,15)="Unlisted Player",-1,IF(Pre!C11<>"",Pre!C11,0))) -> 266.4481781 | O11: =IF('Auction-Rank'!W11="",9999,'Auction-Rank'!W11) -> 744 | P11: =IFERROR(IF(LEFT($D11,15)="Unlisted Player",-1001,IF(OR(H11="SP",H11="RP"),N11/VLOOKUP($D11,'Filter-P'!$A$1:$AC$356,4,FALSE),-1000)),-1000) -> -1000 | Q11: =IFERROR(IF(LEFT($D11,15)="Unlisted Player",-1001,IF(OR(H11="SP",H11="RP"),-1000,N11/VLOOKUP($D11,'Filter-H'!$A$1:$AE$428,2,FALSE))),-1000) -> 1.037974983 | R11: =IF(H11="",#N/A,H11&"."&1+SUMPRODUCT(($H$2:$H$937=H11)*($N$2:$N$937>N11))+COUNTIFS($N$2:N11,N11,$H$2:H11,H11)-1) -> OF.142 | S11: =IF(H11="",#N/A,1+SUMPRODUCT(($H$2:$H$937=H11)*($N$2:$N$937>N11))+COUNTIFS($N$2:N11,N11,$H$2:H11,H11)-1) -> 142 | U11: =IFERROR(Pre!DL11,"") -> Bench | V11: =IFERROR(ROUND(INDEX('Inflation-Tracking'!$J$5:$J$1040,MATCH($D11,'Inflation-Tracking'!$A$5:$A$1040,0)),1),-999) -> 1 | W11: =IFERROR(IF($N11=0,-1000,IF(LEFT($D11,15)="Unlisted Player",-1001,IF(OR($H11="SP",$H11="RP"),INDEX('Filter-P'!$M$3:$M$520,MATCH($D11,'Filter-P'!$A$3:$A$520,0),1),INDEX('Filter-H'!$U$3:$U$500,MATCH($D11,'Filter-H'!$A$3:$A$500,0),1)))),-1000) -> -327.2817852
A12: Mookie Betts | B12: =IFERROR(INDEX($A$1:$A$936,SMALL(IF($A$1:$A$936<>"",ROW($A$1:$A$936)),ROW(A11))),"") -> Mookie Betts | C12: =IFERROR(IF(L12=FALSE,"",CHOOSE(MATCH(RIGHT('Your Points Auction'!$R$4,LEN('Your Points Auction'!$R$4)-8),$M$1:$W$1,0),1+SUMPRODUCT(($L$2:$L$937=TRUE)*($M$2:$M$937>M12))+COUNTIFS($L$2:L12,L12,$M$2:M12,M12)-1,1+SUMPRODUCT(($L$2:$L$937=TRUE)*($N$2:$N$937>N12))+COUNTIFS($L$2:L12,L12,$N$2:N12,N12)-1,1+SUMPRODUCT(($L$2:$L$937=TRUE)*($O$2:$O$937<O12))+COUNTIFS($L$2:L12,L12,$O$2:O12,O12)-1,1+SUMPRODUCT(($L$2:$L$937=TRUE)*($P$2:$P$937>P12))+COUNTIFS($L$2:L12,L12,$P$2:P12,P12)-1,1+SUMPRODUCT(($L$2:$L$937=TRUE)*($Q$2:$Q$937>Q12))+COUNTIFS($L$2:L12,L12,$Q$2:Q12,Q12)-1,,,,,,1+SUMPRODUCT(($L$2:$L$937=TRUE)*($W$2:$W$937>W12))+COUNTIFS($L$2:L12,L12,$W$2:W12,W12)-1,)),"") -> 34 | D12: Ozzie Albies | E12: =IFERROR(INDEX('Auction Log'!$C$4:$C$603,MATCH(D12,'Auction Log'!$B$4:$B$603,0)),"") ->  | F12: =IFERROR(INDEX('Auction-Rank'!$C$2:$C$955,MATCH(D12,'Auction-Rank'!$A$2:$A$955,0)),"") -> 2B | H12: 2B | I12: =IF(AND(F12="OF",'Guts-2'!$N$9=0),IF(MAX(Pre!J12:L12)=Pre!J12,"LF",IF(MAX(Pre!J12:L12)=Pre!K12,"CF",IF(MAX(Pre!J12:L12)=Pre!L12,"RF","LF"))),"") ->  | J12: =IFERROR(INDEX('Auction-Rank'!$U$2:$U$955,MATCH(D12,'Auction-Rank'!$A$2:$A$955,0)),TRUE) -> TRUE | K12: FALSE | L12: =IF(J12=FALSE,FALSE,IF(AND('Your Points Auction'!$R$6="Hide Drafted Players",K12=TRUE),FALSE,CHOOSE($I$1,TRUE,OR(RIGHT('Your Points Auction'!$R$5,LEN('Your Points Auction'!$R$5)-11)=H12,IF(RIGHT('Your Points Auction'!$R$5,LEN('Your Points Auction'!$R$5)-11)<>"C",NOT(ISERROR(SEARCH(RIGHT('Your Points Auction'!$R$5,LEN('Your Points Auction'!$R$5)-11),Pre!$CB12))),AND(NOT(ISERROR(SEARCH(RIGHT('Your Points Auction'!$R$5,LEN('Your Points Auction'!$R$5)-11),Pre!$CB12))),ISERROR(SEARCH("CF",Pre!$CB12)))),RIGHT('Your Points Auction'!$R$5,LEN('Your Points Auction'!$R$5)-11)=Pre!BP12),OR(H12="1B",H12="3B",ISNUMBER(SEARCH("1B",Pre!$CB12)),ISNUMBER(SEARCH("3B",Pre!$CB12))),OR(H12="2B",H12="SS",ISNUMBER(SEARCH("2B",Pre!$CB12)),ISNUMBER(SEARCH("SS",Pre!$CB12))),OR(H12="1B",H12="3B",H12="2B",H12="SS",ISNUMBER(SEARCH("1B",Pre!$CB12)),ISNUMBER(SEARCH("3B",Pre!$CB12)),ISNUMBER(SEARCH("2B",Pre!$CB12)),ISNUMBER(SEARCH("SS",Pre!$CB12))),OR(H12="SP",H12="RP",ISNUMBER(SEARCH("SP",Pre!$CB12)),ISNUMBER(SEARCH("RP",Pre!$CB12))),AND(H12<>"RP",H12<>"SP",NOT(ISNUMBER(SEARCH("RP",Pre!$CB12))),NOT(ISNUMBER(SEARCH("SP",Pre!$CB12)))),OR(H12="SP",H12="RP",ISNUMBER(SEARCH("SP",Pre!$CB12)),ISNUMBER(SEARCH("RP",Pre!$CB12)))))) -> TRUE | M12: =IF(LEFT($D12,15)="Unlisted Player",-1,IF('Inflation-Tracking'!J15="",-9999,'Inflation-Tracking'!J15)) -> 24.04229455 | N12: =IF(J12=FALSE,-0.5,IF(LEFT($D12,15)="Unlisted Player",-1,IF(Pre!C12<>"",Pre!C12,0))) -> 907.5734359 | O12: =IF('Auction-Rank'!W12="",9999,'Auction-Rank'!W12) -> 17 | P12: =IFERROR(IF(LEFT($D12,15)="Unlisted Player",-1001,IF(OR(H12="SP",H12="RP"),N12/VLOOKUP($D12,'Filter-P'!$A$1:$AC$356,4,FALSE),-1000)),-1000) -> -1000 | Q12: =IFERROR(IF(LEFT($D12,15)="Unlisted Player",-1001,IF(OR(H12="SP",H12="RP"),-1000,N12/VLOOKUP($D12,'Filter-H'!$A$1:$AE$428,2,FALSE))),-1000) -> 1.356003938 | R12: =IF(H12="",#N/A,H12&"."&1+SUMPRODUCT(($H$2:$H$937=H12)*($N$2:$N$937>N12))+COUNTIFS($N$2:N12,N12,$H$2:H12,H12)-1) -> 2B.1 | S12: =IF(H12="",#N/A,1+SUMPRODUCT(($H$2:$H$937=H12)*($N$2:$N$937>N12))+COUNTIFS($N$2:N12,N12,$H$2:H12,H12)-1) -> 1 | U12: =IFERROR(Pre!DL12,"") -> Bench | V12: =IFERROR(ROUND(INDEX('Inflation-Tracking'!$J$5:$J$1040,MATCH($D12,'Inflation-Tracking'!$A$5:$A$1040,0)),1),-999) -> 24 | W12: =IFERROR(IF($N12=0,-1000,IF(LEFT($D12,15)="Unlisted Player",-1001,IF(OR($H12="SP",$H12="RP"),INDEX('Filter-P'!$M$3:$M$520,MATCH($D12,'Filter-P'!$A$3:$A$520,0),1),INDEX('Filter-H'!$U$3:$U$500,MATCH($D12,'Filter-H'!$A$3:$A$500,0),1)))),-1000) -> 268.3877534
A13: Aaron Judge | B13: =IFERROR(INDEX($A$1:$A$936,SMALL(IF($A$1:$A$936<>"",ROW($A$1:$A$936)),ROW(A12))),"") -> Aaron Judge | C13: =IFERROR(IF(L13=FALSE,"",CHOOSE(MATCH(RIGHT('Your Points Auction'!$R$4,LEN('Your Points Auction'!$R$4)-8),$M$1:$W$1,0),1+SUMPRODUCT(($L$2:$L$937=TRUE)*($M$2:$M$937>M13))+COUNTIFS($L$2:L13,L13,$M$2:M13,M13)-1,1+SUMPRODUCT(($L$2:$L$937=TRUE)*($N$2:$N$937>N13))+COUNTIFS($L$2:L13,L13,$N$2:N13,N13)-1,1+SUMPRODUCT(($L$2:$L$937=TRUE)*($O$2:$O$937<O13))+COUNTIFS($L$2:L13,L13,$O$2:O13,O13)-1,1+SUMPRODUCT(($L$2:$L$937=TRUE)*($P$2:$P$937>P13))+COUNTIFS($L$2:L13,L13,$P$2:P13,P13)-1,1+SUMPRODUCT(($L$2:$L$937=TRUE)*($Q$2:$Q$937>Q13))+COUNTIFS($L$2:L13,L13,$Q$2:Q13,Q13)-1,,,,,,1+SUMPRODUCT(($L$2:$L$937=TRUE)*($W$2:$W$937>W13))+COUNTIFS($L$2:L13,L13,$W$2:W13,W13)-1,)),"") -> 485 | D13: Jorge Alcala | E13: =IFERROR(INDEX('Auction Log'!$C$4:$C$603,MATCH(D13,'Auction Log'!$B$4:$B$603,0)),"") ->  | F13: =IFERROR(INDEX('Auction-Rank'!$C$2:$C$955,MATCH(D13,'Auction-Rank'!$A$2:$A$955,0)),"") -> RP | H13: RP | I13: =IF(AND(F13="OF",'Guts-2'!$N$9=0),IF(MAX(Pre!J13:L13)=Pre!J13,"LF",IF(MAX(Pre!J13:L13)=Pre!K13,"CF",IF(MAX(Pre!J13:L13)=Pre!L13,"RF","LF"))),"") ->  | J13: =IFERROR(INDEX('Auction-Rank'!$U$2:$U$955,MATCH(D13,'Auction-Rank'!$A$2:$A$955,0)),TRUE) -> TRUE | K13: FALSE | L13: =IF(J13=FALSE,FALSE,IF(AND('Your Points Auction'!$R$6="Hide Drafted Players",K13=TRUE),FALSE,CHOOSE($I$1,TRUE,OR(RIGHT('Your Points Auction'!$R$5,LEN('Your Points Auction'!$R$5)-11)=H13,IF(RIGHT('Your Points Auction'!$R$5,LEN('Your Points Auction'!$R$5)-11)<>"C",NOT(ISERROR(SEARCH(RIGHT('Your Points Auction'!$R$5,LEN('Your Points Auction'!$R$5)-11),Pre!$CB13))),AND(NOT(ISERROR(SEARCH(RIGHT('Your Points Auction'!$R$5,LEN('Your Points Auction'!$R$5)-11),Pre!$CB13))),ISERROR(SEARCH("CF",Pre!$CB13)))),RIGHT('Your Points Auction'!$R$5,LEN('Your Points Auction'!$R$5)-11)=Pre!BP13),OR(H13="1B",H13="3B",ISNUMBER(SEARCH("1B",Pre!$CB13)),ISNUMBER(SEARCH("3B",Pre!$CB13))),OR(H13="2B",H13="SS",ISNUMBER(SEARCH("2B",Pre!$CB13)),ISNUMBER(SEARCH("SS",Pre!$CB13))),OR(H13="1B",H13="3B",H13="2B",H13="SS",ISNUMBER(SEARCH("1B",Pre!$CB13)),ISNUMBER(SEARCH("3B",Pre!$CB13)),ISNUMBER(SEARCH("2B",Pre!$CB13)),ISNUMBER(SEARCH("SS",Pre!$CB13))),OR(H13="SP",H13="RP",ISNUMBER(SEARCH("SP",Pre!$CB13)),ISNUMBER(SEARCH("RP",Pre!$CB13))),AND(H13<>"RP",H13<>"SP",NOT(ISNUMBER(SEARCH("RP",Pre!$CB13))),NOT(ISNUMBER(SEARCH("SP",Pre!$CB13)))),OR(H13="SP",H13="RP",ISNUMBER(SEARCH("SP",Pre!$CB13)),ISNUMBER(SEARCH("RP",Pre!$CB13)))))) -> TRUE | M13: =IF(LEFT($D13,15)="Unlisted Player",-1,IF('Inflation-Tracking'!J16="",-9999,'Inflation-Tracking'!J16)) -> 1 | N13: =IF(J13=FALSE,-0.5,IF(LEFT($D13,15)="Unlisted Player",-1,IF(Pre!C13<>"",Pre!C13,0))) -> 311.1394351 | O13: =IF('Auction-Rank'!W13="",9999,'Auction-Rank'!W13) -> 381 | P13: =IFERROR(IF(LEFT($D13,15)="Unlisted Player",-1001,IF(OR(H13="SP",H13="RP"),N13/VLOOKUP($D13,'Filter-P'!$A$1:$AC$356,4,FALSE),-1000)),-1000) -> 4.786760539 | Q13: =IFERROR(IF(LEFT($D13,15)="Unlisted Player",-1001,IF(OR(H13="SP",H13="RP"),-1000,N13/VLOOKUP($D13,'Filter-H'!$A$1:$AE$428,2,FALSE))),-1000) -> -1000 | R13: =IF(H13="",#N/A,H13&"."&1+SUMPRODUCT(($H$2:$H$937=H13)*($N$2:$N$937>N13))+COUNTIFS($N$2:N13,N13,$H$2:H13,H13)-1) -> RP.102 | S13: =IF(H13="",#N/A,1+SUMPRODUCT(($H$2:$H$937=H13)*($N$2:$N$937>N13))+COUNTIFS($N$2:N13,N13,$H$2:H13,H13)-1) -> 102 | U13: =IFERROR(Pre!DL13,"") -> Bench | V13: =IFERROR(ROUND(INDEX('Inflation-Tracking'!$J$5:$J$1040,MATCH($D13,'Inflation-Tracking'!$A$5:$A$1040,0)),1),-999) -> 1 | W13: =IFERROR(IF($N13=0,-1000,IF(LEFT($D13,15)="Unlisted Player",-1001,IF(OR($H13="SP",$H13="RP"),INDEX('Filter-P'!$M$3:$M$520,MATCH($D13,'Filter-P'!$A$3:$A$520,0),1),INDEX('Filter-H'!$U$3:$U$500,MATCH($D13,'Filter-H'!$A$3:$A$500,0),1)))),-1000) -> -58.57515638
A14: Marcus Semien | B14: =IFERROR(INDEX($A$1:$A$936,SMALL(IF($A$1:$A$936<>"",ROW($A$1:$A$936)),ROW(A13))),"") -> Marcus Semien | C14: =IFERROR(IF(L14=FALSE,"",CHOOSE(MATCH(RIGHT('Your Points Auction'!$R$4,LEN('Your Points Auction'!$R$4)-8),$M$1:$W$1,0),1+SUMPRODUCT(($L$2:$L$937=TRUE)*($M$2:$M$937>M14))+COUNTIFS($L$2:L14,L14,$M$2:M14,M14)-1,1+SUMPRODUCT(($L$2:$L$937=TRUE)*($N$2:$N$937>N14))+COUNTIFS($L$2:L14,L14,$N$2:N14,N14)-1,1+SUMPRODUCT(($L$2:$L$937=TRUE)*($O$2:$O$937<O14))+COUNTIFS($L$2:L14,L14,$O$2:O14,O14)-1,1+SUMPRODUCT(($L$2:$L$937=TRUE)*($P$2:$P$937>P14))+COUNTIFS($L$2:L14,L14,$P$2:P14,P14)-1,1+SUMPRODUCT(($L$2:$L$937=TRUE)*($Q$2:$Q$937>Q14))+COUNTIFS($L$2:L14,L14,$Q$2:Q14,Q14)-1,,,,,,1+SUMPRODUCT(($L$2:$L$937=TRUE)*($W$2:$W$937>W14))+COUNTIFS($L$2:L14,L14,$W$2:W14,W14)-1,)),"") -> 51 | D14: Sandy Alcantara | E14: =IFERROR(INDEX('Auction Log'!$C$4:$C$603,MATCH(D14,'Auction Log'!$B$4:$B$603,0)),"") ->  | F14: =IFERROR(INDEX('Auction-Rank'!$C$2:$C$955,MATCH(D14,'Auction-Rank'!$A$2:$A$955,0)),"") -> SP | H14: SP | I14: =IF(AND(F14="OF",'Guts-2'!$N$9=0),IF(MAX(Pre!J14:L14)=Pre!J14,"LF",IF(MAX(Pre!J14:L14)=Pre!K14,"CF",IF(MAX(Pre!J14:L14)=Pre!L14,"RF","LF"))),"") ->  | J14: =IFERROR(INDEX('Auction-Rank'!$U$2:$U$955,MATCH(D14,'Auction-Rank'!$A$2:$A$955,0)),TRUE) -> TRUE | K14: FALSE | L14: =IF(J14=FALSE,FALSE,IF(AND('Your Points Auction'!$R$6="Hide Drafted Players",K14=TRUE),FALSE,CHOOSE($I$1,TRUE,OR(RIGHT('Your Points Auction'!$R$5,LEN('Your Points Auction'!$R$5)-11)=H14,IF(RIGHT('Your Points Auction'!$R$5,LEN('Your Points Auction'!$R$5)-11)<>"C",NOT(ISERROR(SEARCH(RIGHT('Your Points Auction'!$R$5,LEN('Your Points Auction'!$R$5)-11),Pre!$CB14))),AND(NOT(ISERROR(SEARCH(RIGHT('Your Points Auction'!$R$5,LEN('Your Points Auction'!$R$5)-11),Pre!$CB14))),ISERROR(SEARCH("CF",Pre!$CB14)))),RIGHT('Your Points Auction'!$R$5,LEN('Your Points Auction'!$R$5)-11)=Pre!BP14),OR(H14="1B",H14="3B",ISNUMBER(SEARCH("1B",Pre!$CB14)),ISNUMBER(SEARCH("3B",Pre!$CB14))),OR(H14="2B",H14="SS",ISNUMBER(SEARCH("2B",Pre!$CB14)),ISNUMBER(SEARCH("SS",Pre!$CB14))),OR(H14="1B",H14="3B",H14="2B",H14="SS",ISNUMBER(SEARCH("1B",Pre!$CB14)),ISNUMBER(SEARCH("3B",Pre!$CB14)),ISNUMBER(SEARCH("2B",Pre!$CB14)),ISNUMBER(SEARCH("SS",Pre!$CB14))),OR(H14="SP",H14="RP",ISNUMBER(SEARCH("SP",Pre!$CB14)),ISNUMBER(SEARCH("RP",Pre!$CB14))),AND(H14<>"RP",H14<>"SP",NOT(ISNUMBER(SEARCH("RP",Pre!$CB14))),NOT(ISNUMBER(SEARCH("SP",Pre!$CB14)))),OR(H14="SP",H14="RP",ISNUMBER(SEARCH("SP",Pre!$CB14)),ISNUMBER(SEARCH("RP",Pre!$CB14)))))) -> TRUE | M14: =IF(LEFT($D14,15)="Unlisted Player",-1,IF('Inflation-Tracking'!J17="",-9999,'Inflation-Tracking'!J17)) -> 20.47145845 | N14: =IF(J14=FALSE,-0.5,IF(LEFT($D14,15)="Unlisted Player",-1,IF(Pre!C14<>"",Pre!C14,0))) -> 883.0399753 | O14: =IF('Auction-Rank'!W14="",9999,'Auction-Rank'!W14) -> 42 | P14: =IFERROR(IF(LEFT($D14,15)="Unlisted Player",-1001,IF(OR(H14="SP",H14="RP"),N14/VLOOKUP($D14,'Filter-P'!$A$1:$AC$356,4,FALSE),-1000)),-1000) -> 4.55175245 | Q14: =IFERROR(IF(LEFT($D14,15)="Unlisted Player",-1001,IF(OR(H14="SP",H14="RP"),-1000,N14/VLOOKUP($D14,'Filter-H'!$A$1:$AE$428,2,FALSE))),-1000) -> -1000 | R14: =IF(H14="",#N/A,H14&"."&1+SUMPRODUCT(($H$2:$H$937=H14)*($N$2:$N$937>N14))+COUNTIFS($N$2:N14,N14,$H$2:H14,H14)-1) -> SP.10 | S14: =IF(H14="",#N/A,1+SUMPRODUCT(($H$2:$H$937=H14)*($N$2:$N$937>N14))+COUNTIFS($N$2:N14,N14,$H$2:H14,H14)-1) -> 10 | U14: =IFERROR(Pre!DL14,"") -> Bench | V14: =IFERROR(ROUND(INDEX('Inflation-Tracking'!$J$5:$J$1040,MATCH($D14,'Inflation-Tracking'!$A$5:$A$1040,0)),1),-999) -> 20.5 | W14: =IFERROR(IF($N14=0,-1000,IF(LEFT($D14,15)="Unlisted Player",-1001,IF(OR($H14="SP",$H14="RP"),INDEX('Filter-P'!$M$3:$M$520,MATCH($D14,'Filter-P'!$A$3:$A$520,0),1),INDEX('Filter-H'!$U$3:$U$500,MATCH($D14,'Filter-H'!$A$3:$A$500,0),1)))),-1000) -> 300.9173305
A15: Xander Bogaerts | B15: =IFERROR(INDEX($A$1:$A$936,SMALL(IF($A$1:$A$936<>"",ROW($A$1:$A$936)),ROW(A14))),"") -> Xander Bogaerts | C15: =IFERROR(IF(L15=FALSE,"",CHOOSE(MATCH(RIGHT('Your Points Auction'!$R$4,LEN('Your Points Auction'!$R$4)-8),$M$1:$W$1,0),1+SUMPRODUCT(($L$2:$L$937=TRUE)*($M$2:$M$937>M15))+COUNTIFS($L$2:L15,L15,$M$2:M15,M15)-1,1+SUMPRODUCT(($L$2:$L$937=TRUE)*($N$2:$N$937>N15))+COUNTIFS($L$2:L15,L15,$N$2:N15,N15)-1,1+SUMPRODUCT(($L$2:$L$937=TRUE)*($O$2:$O$937<O15))+COUNTIFS($L$2:L15,L15,$O$2:O15,O15)-1,1+SUMPRODUCT(($L$2:$L$937=TRUE)*($P$2:$P$937>P15))+COUNTIFS($L$2:L15,L15,$P$2:P15,P15)-1,1+SUMPRODUCT(($L$2:$L$937=TRUE)*($Q$2:$Q$937>Q15))+COUNTIFS($L$2:L15,L15,$Q$2:Q15,Q15)-1,,,,,,1+SUMPRODUCT(($L$2:$L$937=TRUE)*($W$2:$W$937>W15))+COUNTIFS($L$2:L15,L15,$W$2:W15,W15)-1,)),"") -> 486 | D15: Sergio Alcantara | E15: =IFERROR(INDEX('Auction Log'!$C$4:$C$603,MATCH(D15,'Auction Log'!$B$4:$B$603,0)),"") ->  | F15: =IFERROR(INDEX('Auction-Rank'!$C$2:$C$955,MATCH(D15,'Auction-Rank'!$A$2:$A$955,0)),"") -> SS | H15: SS | I15: =IF(AND(F15="OF",'Guts-2'!$N$9=0),IF(MAX(Pre!J15:L15)=Pre!J15,"LF",IF(MAX(Pre!J15:L15)=Pre!K15,"CF",IF(MAX(Pre!J15:L15)=Pre!L15,"RF","LF"))),"") ->  | J15: =IFERROR(INDEX('Auction-Rank'!$U$2:$U$955,MATCH(D15,'Auction-Rank'!$A$2:$A$955,0)),TRUE) -> TRUE | K15: FALSE | L15: =IF(J15=FALSE,FALSE,IF(AND('Your Points Auction'!$R$6="Hide Drafted Players",K15=TRUE),FALSE,CHOOSE($I$1,TRUE,OR(RIGHT('Your Points Auction'!$R$5,LEN('Your Points Auction'!$R$5)-11)=H15,IF(RIGHT('Your Points Auction'!$R$5,LEN('Your Points Auction'!$R$5)-11)<>"C",NOT(ISERROR(SEARCH(RIGHT('Your Points Auction'!$R$5,LEN('Your Points Auction'!$R$5)-11),Pre!$CB15))),AND(NOT(ISERROR(SEARCH(RIGHT('Your Points Auction'!$R$5,LEN('Your Points Auction'!$R$5)-11),Pre!$CB15))),ISERROR(SEARCH("CF",Pre!$CB15)))),RIGHT('Your Points Auction'!$R$5,LEN('Your Points Auction'!$R$5)-11)=Pre!BP15),OR(H15="1B",H15="3B",ISNUMBER(SEARCH("1B",Pre!$CB15)),ISNUMBER(SEARCH("3B",Pre!$CB15))),OR(H15="2B",H15="SS",ISNUMBER(SEARCH("2B",Pre!$CB15)),ISNUMBER(SEARCH("SS",Pre!$CB15))),OR(H15="1B",H15="3B",H15="2B",H15="SS",ISNUMBER(SEARCH("1B",Pre!$CB15)),ISNUMBER(SEARCH("3B",Pre!$CB15)),ISNUMBER(SEARCH("2B",Pre!$CB15)),ISNUMBER(SEARCH("SS",Pre!$CB15))),OR(H15="SP",H15="RP",ISNUMBER(SEARCH("SP",Pre!$CB15)),ISNUMBER(SEARCH("RP",Pre!$CB15))),AND(H15<>"RP",H15<>"SP",NOT(ISNUMBER(SEARCH("RP",Pre!$CB15))),NOT(ISNUMBER(SEARCH("SP",Pre!$CB15)))),OR(H15="SP",H15="RP",ISNUMBER(SEARCH("SP",Pre!$CB15)),ISNUMBER(SEARCH("RP",Pre!$CB15)))))) -> TRUE | M15: =IF(LEFT($D15,15)="Unlisted Player",-1,IF('Inflation-Tracking'!J18="",-9999,'Inflation-Tracking'!J18)) -> 1 | N15: =IF(J15=FALSE,-0.5,IF(LEFT($D15,15)="Unlisted Player",-1,IF(Pre!C15<>"",Pre!C15,0))) -> 259.9920866 | O15: =IF('Auction-Rank'!W15="",9999,'Auction-Rank'!W15) -> 753 | P15: =IFERROR(IF(LEFT($D15,15)="Unlisted Player",-1001,IF(OR(H15="SP",H15="RP"),N15/VLOOKUP($D15,'Filter-P'!$A$1:$AC$356,4,FALSE),-1000)),-1000) -> -1000 | Q15: =IFERROR(IF(LEFT($D15,15)="Unlisted Player",-1001,IF(OR(H15="SP",H15="RP"),-1000,N15/VLOOKUP($D15,'Filter-H'!$A$1:$AE$428,2,FALSE))),-1000) -> 0.9457696856 | R15: =IF(H15="",#N/A,H15&"."&1+SUMPRODUCT(($H$2:$H$937=H15)*($N$2:$N$937>N15))+COUNTIFS($N$2:N15,N15,$H$2:H15,H15)-1) -> SS.54 | S15: =IF(H15="",#N/A,1+SUMPRODUCT(($H$2:$H$937=H15)*($N$2:$N$937>N15))+COUNTIFS($N$2:N15,N15,$H$2:H15,H15)-1) -> 54 | U15: =IFERROR(Pre!DL15,"") -> Bench | V15: =IFERROR(ROUND(INDEX('Inflation-Tracking'!$J$5:$J$1040,MATCH($D15,'Inflation-Tracking'!$A$5:$A$1040,0)),1),-999) -> 1 | W15: =IFERROR(IF($N15=0,-1000,IF(LEFT($D15,15)="Unlisted Player",-1001,IF(OR($H15="SP",$H15="RP"),INDEX('Filter-P'!$M$3:$M$520,MATCH($D15,'Filter-P'!$A$3:$A$520,0),1),INDEX('Filter-H'!$U$3:$U$500,MATCH($D15,'Filter-H'!$A$3:$A$500,0),1)))),-1000) -> -267.5166972
A16: Rafael Devers | B16: =IFERROR(INDEX($A$1:$A$936,SMALL(IF($A$1:$A$936<>"",ROW($A$1:$A$936)),ROW(A15))),"") -> Rafael Devers | C16: =IFERROR(IF(L16=FALSE,"",CHOOSE(MATCH(RIGHT('Your Points Auction'!$R$4,LEN('Your Points Auction'!$R$4)-8),$M$1:$W$1,0),1+SUMPRODUCT(($L$2:$L$937=TRUE)*($M$2:$M$937>M16))+COUNTIFS($L$2:L16,L16,$M$2:M16,M16)-1,1+SUMPRODUCT(($L$2:$L$937=TRUE)*($N$2:$N$937>N16))+COUNTIFS($L$2:L16,L16,$N$2:N16,N16)-1,1+SUMPRODUCT(($L$2:$L$937=TRUE)*($O$2:$O$937<O16))+COUNTIFS($L$2:L16,L16,$O$2:O16,O16)-1,1+SUMPRODUCT(($L$2:$L$937=TRUE)*($P$2:$P$937>P16))+COUNTIFS($L$2:L16,L16,$P$2:P16,P16)-1,1+SUMPRODUCT(($L$2:$L$937=TRUE)*($Q$2:$Q$937>Q16))+COUNTIFS($L$2:L16,L16,$Q$2:Q16,Q16)-1,,,,,,1+SUMPRODUCT(($L$2:$L$937=TRUE)*($W$2:$W$937>W16))+COUNTIFS($L$2:L16,L16,$W$2:W16,W16)-1,)),"") -> 487 | D16: Tyler Alexander | E16: =IFERROR(INDEX('Auction Log'!$C$4:$C$603,MATCH(D16,'Auction Log'!$B$4:$B$603,0)),"") ->  | F16: =IFERROR(INDEX('Auction-Rank'!$C$2:$C$955,MATCH(D16,'Auction-Rank'!$A$2:$A$955,0)),"") -> RP | H16: RP | I16: =IF(AND(F16="OF",'Guts-2'!$N$9=0),IF(MAX(Pre!J16:L16)=Pre!J16,"LF",IF(MAX(Pre!J16:L16)=Pre!K16,"CF",IF(MAX(Pre!J16:L16)=Pre!L16,"RF","LF"))),"") ->  | J16: =IFERROR(INDEX('Auction-Rank'!$U$2:$U$955,MATCH(D16,'Auction-Rank'!$A$2:$A$955,0)),TRUE) -> TRUE | K16: FALSE | L16: =IF(J16=FALSE,FALSE,IF(AND('Your Points Auction'!$R$6="Hide Drafted Players",K16=TRUE),FALSE,CHOOSE($I$1,TRUE,OR(RIGHT('Your Points Auction'!$R$5,LEN('Your Points Auction'!$R$5)-11)=H16,IF(RIGHT('Your Points Auction'!$R$5,LEN('Your Points Auction'!$R$5)-11)<>"C",NOT(ISERROR(SEARCH(RIGHT('Your Points Auction'!$R$5,LEN('Your Points Auction'!$R$5)-11),Pre!$CB16))),AND(NOT(ISERROR(SEARCH(RIGHT('Your Points Auction'!$R$5,LEN('Your Points Auction'!$R$5)-11),Pre!$CB16))),ISERROR(SEARCH("CF",Pre!$CB16)))),RIGHT('Your Points Auction'!$R$5,LEN('Your Points Auction'!$R$5)-11)=Pre!BP16),OR(H16="1B",H16="3B",ISNUMBER(SEARCH("1B",Pre!$CB16)),ISNUMBER(SEARCH("3B",Pre!$CB16))),OR(H16="2B",H16="SS",ISNUMBER(SEARCH("2B",Pre!$CB16)),ISNUMBER(SEARCH("SS",Pre!$CB16))),OR(H16="1B",H16="3B",H16="2B",H16="SS",ISNUMBER(SEARCH("1B",Pre!$CB16)),ISNUMBER(SEARCH("3B",Pre!$CB16)),ISNUMBER(SEARCH("2B",Pre!$CB16)),ISNUMBER(SEARCH("SS",Pre!$CB16))),OR(H16="SP",H16="RP",ISNUMBER(SEARCH("SP",Pre!$CB16)),ISNUMBER(SEARCH("RP",Pre!$CB16))),AND(H16<>"RP",H16<>"SP",NOT(ISNUMBER(SEARCH("RP",Pre!$CB16))),NOT(ISNUMBER(SEARCH("SP",Pre!$CB16)))),OR(H16="SP",H16="RP",ISNUMBER(SEARCH("SP",Pre!$CB16)),ISNUMBER(SEARCH("RP",Pre!$CB16)))))) -> TRUE | M16: =IF(LEFT($D16,15)="Unlisted Player",-1,IF('Inflation-Tracking'!J19="",-9999,'Inflation-Tracking'!J19)) -> 1 | N16: =IF(J16=FALSE,-0.5,IF(LEFT($D16,15)="Unlisted Player",-1,IF(Pre!C16<>"",Pre!C16,0))) -> 0 | O16: =IF('Auction-Rank'!W16="",9999,'Auction-Rank'!W16) -> 625 | P16: =IFERROR(IF(LEFT($D16,15)="Unlisted Player",-1001,IF(OR(H16="SP",H16="RP"),N16/VLOOKUP($D16,'Filter-P'!$A$1:$AC$356,4,FALSE),-1000)),-1000) -> -1000 | Q16: =IFERROR(IF(LEFT($D16,15)="Unlisted Player",-1001,IF(OR(H16="SP",H16="RP"),-1000,N16/VLOOKUP($D16,'Filter-H'!$A$1:$AE$428,2,FALSE))),-1000) -> -1000 | R16: =IF(H16="",#N/A,H16&"."&1+SUMPRODUCT(($H$2:$H$937=H16)*($N$2:$N$937>N16))+COUNTIFS($N$2:N16,N16,$H$2:H16,H16)-1) -> RP.201 | S16: =IF(H16="",#N/A,1+SUMPRODUCT(($H$2:$H$937=H16)*($N$2:$N$937>N16))+COUNTIFS($N$2:N16,N16,$H$2:H16,H16)-1) -> 201 | U16: =IFERROR(Pre!DL16,"") -> Bench | V16: =IFERROR(ROUND(INDEX('Inflation-Tracking'!$J$5:$J$1040,MATCH($D16,'Inflation-Tracking'!$A$5:$A$1040,0)),1),-999) -> 1 | W16: =IFERROR(IF($N16=0,-1000,IF(LEFT($D16,15)="Unlisted Player",-1001,IF(OR($H16="SP",$H16="RP"),INDEX('Filter-P'!$M$3:$M$520,MATCH($D16,'Filter-P'!$A$3:$A$520,0),1),INDEX('Filter-H'!$U$3:$U$500,MATCH($D16,'Filter-H'!$A$3:$A$500,0),1)))),-1000) -> -1000
A17: Jose Ramirez | B17: =IFERROR(INDEX($A$1:$A$936,SMALL(IF($A$1:$A$936<>"",ROW($A$1:$A$936)),ROW(A16))),"") -> Jose Ramirez | C17: =IFERROR(IF(L17=FALSE,"",CHOOSE(MATCH(RIGHT('Your Points Auction'!$R$4,LEN('Your Points Auction'!$R$4)-8),$M$1:$W$1,0),1+SUMPRODUCT(($L$2:$L$937=TRUE)*($M$2:$M$937>M17))+COUNTIFS($L$2:L17,L17,$M$2:M17,M17)-1,1+SUMPRODUCT(($L$2:$L$937=TRUE)*($N$2:$N$937>N17))+COUNTIFS($L$2:L17,L17,$N$2:N17,N17)-1,1+SUMPRODUCT(($L$2:$L$937=TRUE)*($O$2:$O$937<O17))+COUNTIFS($L$2:L17,L17,$O$2:O17,O17)-1,1+SUMPRODUCT(($L$2:$L$937=TRUE)*($P$2:$P$937>P17))+COUNTIFS($L$2:L17,L17,$P$2:P17,P17)-1,1+SUMPRODUCT(($L$2:$L$937=TRUE)*($Q$2:$Q$937>Q17))+COUNTIFS($L$2:L17,L17,$Q$2:Q17,Q17)-1,,,,,,1+SUMPRODUCT(($L$2:$L$937=TRUE)*($W$2:$W$937>W17))+COUNTIFS($L$2:L17,L17,$W$2:W17,W17)-1,)),"") -> 488 | D17: A.J. Alexy | E17: =IFERROR(INDEX('Auction Log'!$C$4:$C$603,MATCH(D17,'Auction Log'!$B$4:$B$603,0)),"") ->  | F17: =IFERROR(INDEX('Auction-Rank'!$C$2:$C$955,MATCH(D17,'Auction-Rank'!$A$2:$A$955,0)),"") -> SP | H17: SP | I17: =IF(AND(F17="OF",'Guts-2'!$N$9=0),IF(MAX(Pre!J17:L17)=Pre!J17,"LF",IF(MAX(Pre!J17:L17)=Pre!K17,"CF",IF(MAX(Pre!J17:L17)=Pre!L17,"RF","LF"))),"") ->  | J17: =IFERROR(INDEX('Auction-Rank'!$U$2:$U$955,MATCH(D17,'Auction-Rank'!$A$2:$A$955,0)),TRUE) -> TRUE | K17: FALSE | L17: =IF(J17=FALSE,FALSE,IF(AND('Your Points Auction'!$R$6="Hide Drafted Players",K17=TRUE),FALSE,CHOOSE($I$1,TRUE,OR(RIGHT('Your Points Auction'!$R$5,LEN('Your Points Auction'!$R$5)-11)=H17,IF(RIGHT('Your Points Auction'!$R$5,LEN('Your Points Auction'!$R$5)-11)<>"C",NOT(ISERROR(SEARCH(RIGHT('Your Points Auction'!$R$5,LEN('Your Points Auction'!$R$5)-11),Pre!$CB17))),AND(NOT(ISERROR(SEARCH(RIGHT('Your Points Auction'!$R$5,LEN('Your Points Auction'!$R$5)-11),Pre!$CB17))),ISERROR(SEARCH("CF",Pre!$CB17)))),RIGHT('Your Points Auction'!$R$5,LEN('Your Points Auction'!$R$5)-11)=Pre!BP17),OR(H17="1B",H17="3B",ISNUMBER(SEARCH("1B",Pre!$CB17)),ISNUMBER(SEARCH("3B",Pre!$CB17))),OR(H17="2B",H17="SS",ISNUMBER(SEARCH("2B",Pre!$CB17)),ISNUMBER(SEARCH("SS",Pre!$CB17))),OR(H17="1B",H17="3B",H17="2B",H17="SS",ISNUMBER(SEARCH("1B",Pre!$CB17)),ISNUMBER(SEARCH("3B",Pre!$CB17)),ISNUMBER(SEARCH("2B",Pre!$CB17)),ISNUMBER(SEARCH("SS",Pre!$CB17))),OR(H17="SP",H17="RP",ISNUMBER(SEARCH("SP",Pre!$CB17)),ISNUMBER(SEARCH("RP",Pre!$CB17))),AND(H17<>"RP",H17<>"SP",NOT(ISNUMBER(SEARCH("RP",Pre!$CB17))),NOT(ISNUMBER(SEARCH("SP",Pre!$CB17)))),OR(H17="SP",H17="RP",ISNUMBER(SEARCH("SP",Pre!$CB17)),ISNUMBER(SEARCH("RP",Pre!$CB17)))))) -> TRUE | M17: =IF(LEFT($D17,15)="Unlisted Player",-1,IF('Inflation-Tracking'!J20="",-9999,'Inflation-Tracking'!J20)) -> 1 | N17: =IF(J17=FALSE,-0.5,IF(LEFT($D17,15)="Unlisted Player",-1,IF(Pre!C17<>"",Pre!C17,0))) -> 269.2557617 | O17: =IF('Auction-Rank'!W17="",9999,'Auction-Rank'!W17) -> 660 | P17: =IFERROR(IF(LEFT($D17,15)="Unlisted Player",-1001,IF(OR(H17="SP",H17="RP"),N17/VLOOKUP($D17,'Filter-P'!$A$1:$AC$356,4,FALSE),-1000)),-1000) -> 3.059724565 | Q17: =IFERROR(IF(LEFT($D17,15)="Unlisted Player",-1001,IF(OR(H17="SP",H17="RP"),-1000,N17/VLOOKUP($D17,'Filter-H'!$A$1:$AE$428,2,FALSE))),-1000) -> -1000 | R17: =IF(H17="",#N/A,H17&"."&1+SUMPRODUCT(($H$2:$H$937=H17)*($N$2:$N$937>N17))+COUNTIFS($N$2:N17,N17,$H$2:H17,H17)-1) -> SP.125 | S17: =IF(H17="",#N/A,1+SUMPRODUCT(($H$2:$H$937=H17)*($N$2:$N$937>N17))+COUNTIFS($N$2:N17,N17,$H$2:H17,H17)-1) -> 125 | U17: =IFERROR(Pre!DL17,"") -> Bench | V17: =IFERROR(ROUND(INDEX('Inflation-Tracking'!$J$5:$J$1040,MATCH($D17,'Inflation-Tracking'!$A$5:$A$1040,0)),1),-999) -> 1 | W17: =IFERROR(IF($N17=0,-1000,IF(LEFT($D17,15)="Unlisted Player",-1001,IF(OR($H17="SP",$H17="RP"),INDEX('Filter-P'!$M$3:$M$520,MATCH($D17,'Filter-P'!$A$3:$A$520,0),1),INDEX('Filter-H'!$U$3:$U$500,MATCH($D17,'Filter-H'!$A$3:$A$500,0),1)))),-1000) -> -312.8668832
A18: Kyle Tucker | B18: =IFERROR(INDEX($A$1:$A$936,SMALL(IF($A$1:$A$936<>"",ROW($A$1:$A$936)),ROW(A17))),"") -> Kyle Tucker | C18: =IFERROR(IF(L18=FALSE,"",CHOOSE(MATCH(RIGHT('Your Points Auction'!$R$4,LEN('Your Points Auction'!$R$4)-8),$M$1:$W$1,0),1+SUMPRODUCT(($L$2:$L$937=TRUE)*($M$2:$M$937>M18))+COUNTIFS($L$2:L18,L18,$M$2:M18,M18)-1,1+SUMPRODUCT(($L$2:$L$937=TRUE)*($N$2:$N$937>N18))+COUNTIFS($L$2:L18,L18,$N$2:N18,N18)-1,1+SUMPRODUCT(($L$2:$L$937=TRUE)*($O$2:$O$937<O18))+COUNTIFS($L$2:L18,L18,$O$2:O18,O18)-1,1+SUMPRODUCT(($L$2:$L$937=TRUE)*($P$2:$P$937>P18))+COUNTIFS($L$2:L18,L18,$P$2:P18,P18)-1,1+SUMPRODUCT(($L$2:$L$937=TRUE)*($Q$2:$Q$937>Q18))+COUNTIFS($L$2:L18,L18,$Q$2:Q18,Q18)-1,,,,,,1+SUMPRODUCT(($L$2:$L$937=TRUE)*($W$2:$W$937>W18))+COUNTIFS($L$2:L18,L18,$W$2:W18,W18)-1,)),"") -> 489 | D18: Jorge Alfaro | E18: =IFERROR(INDEX('Auction Log'!$C$4:$C$603,MATCH(D18,'Auction Log'!$B$4:$B$603,0)),"") ->  | F18: =IFERROR(INDEX('Auction-Rank'!$C$2:$C$955,MATCH(D18,'Auction-Rank'!$A$2:$A$955,0)),"") -> C | H18: C | I18: =IF(AND(F18="OF",'Guts-2'!$N$9=0),IF(MAX(Pre!J18:L18)=Pre!J18,"LF",IF(MAX(Pre!J18:L18)=Pre!K18,"CF",IF(MAX(Pre!J18:L18)=Pre!L18,"RF","LF"))),"") ->  | J18: =IFERROR(INDEX('Auction-Rank'!$U$2:$U$955,MATCH(D18,'Auction-Rank'!$A$2:$A$955,0)),TRUE) -> TRUE | K18: FALSE | L18: =IF(J18=FALSE,FALSE,IF(AND('Your Points Auction'!$R$6="Hide Drafted Players",K18=TRUE),FALSE,CHOOSE($I$1,TRUE,OR(RIGHT('Your Points Auction'!$R$5,LEN('Your Points Auction'!$R$5)-11)=H18,IF(RIGHT('Your Points Auction'!$R$5,LEN('Your Points Auction'!$R$5)-11)<>"C",NOT(ISERROR(SEARCH(RIGHT('Your Points Auction'!$R$5,LEN('Your Points Auction'!$R$5)-11),Pre!$CB18))),AND(NOT(ISERROR(SEARCH(RIGHT('Your Points Auction'!$R$5,LEN('Your Points Auction'!$R$5)-11),Pre!$CB18))),ISERROR(SEARCH("CF",Pre!$CB18)))),RIGHT('Your Points Auction'!$R$5,LEN('Your Points Auction'!$R$5)-11)=Pre!BP18),OR(H18="1B",H18="3B",ISNUMBER(SEARCH("1B",Pre!$CB18)),ISNUMBER(SEARCH("3B",Pre!$CB18))),OR(H18="2B",H18="SS",ISNUMBER(SEARCH("2B",Pre!$CB18)),ISNUMBER(SEARCH("SS",Pre!$CB18))),OR(H18="1B",H18="3B",H18="2B",H18="SS",ISNUMBER(SEARCH("1B",Pre!$CB18)),ISNUMBER(SEARCH("3B",Pre!$CB18)),ISNUMBER(SEARCH("2B",Pre!$CB18)),ISNUMBER(SEARCH("SS",Pre!$CB18))),OR(H18="SP",H18="RP",ISNUMBER(SEARCH("SP",Pre!$CB18)),ISNUMBER(SEARCH("RP",Pre!$CB18))),AND(H18<>"RP",H18<>"SP",NOT(ISNUMBER(SEARCH("RP",Pre!$CB18))),NOT(ISNUMBER(SEARCH("SP",Pre!$CB18)))),OR(H18="SP",H18="RP",ISNUMBER(SEARCH("SP",Pre!$CB18)),ISNUMBER(SEARCH("RP",Pre!$CB18)))))) -> TRUE | M18: =IF(LEFT($D18,15)="Unlisted Player",-1,IF('Inflation-Tracking'!J21="",-9999,'Inflation-Tracking'!J21)) -> 1 | N18: =IF(J18=FALSE,-0.5,IF(LEFT($D18,15)="Unlisted Player",-1,IF(Pre!C18<>"",Pre!C18,0))) -> 333.5631496 | O18: =IF('Auction-Rank'!W18="",9999,'Auction-Rank'!W18) -> 428 | P18: =IFERROR(IF(LEFT($D18,15)="Unlisted Player",-1001,IF(OR(H18="SP",H18="RP"),N18/VLOOKUP($D18,'Filter-P'!$A$1:$AC$356,4,FALSE),-1000)),-1000) -> -1000 | Q18: =IFERROR(IF(LEFT($D18,15)="Unlisted Player",-1001,IF(OR(H18="SP",H18="RP"),-1000,N18/VLOOKUP($D18,'Filter-H'!$A$1:$AE$428,2,FALSE))),-1000) -> 0.977474431 | R18: =IF(H18="",#N/A,H18&"."&1+SUMPRODUCT(($H$2:$H$937=H18)*($N$2:$N$937>N18))+COUNTIFS($N$2:N18,N18,$H$2:H18,H18)-1) -> C.28 | S18: =IF(H18="",#N/A,1+SUMPRODUCT(($H$2:$H$937=H18)*($N$2:$N$937>N18))+COUNTIFS($N$2:N18,N18,$H$2:H18,H18)-1) -> 28 | U18: =IFERROR(Pre!DL18,"") -> Bench | V18: =IFERROR(ROUND(INDEX('Inflation-Tracking'!$J$5:$J$1040,MATCH($D18,'Inflation-Tracking'!$A$5:$A$1040,0)),1),-999) -> 1 | W18: =IFERROR(IF($N18=0,-1000,IF(LEFT($D18,15)="Unlisted Player",-1001,IF(OR($H18="SP",$H18="RP"),INDEX('Filter-P'!$M$3:$M$520,MATCH($D18,'Filter-P'!$A$3:$A$520,0),1),INDEX('Filter-H'!$U$3:$U$500,MATCH($D18,'Filter-H'!$A$3:$A$500,0),1)))),-1000) -> -111.5969139
A19: Pete Alonso | B19: =IFERROR(INDEX($A$1:$A$936,SMALL(IF($A$1:$A$936<>"",ROW($A$1:$A$936)),ROW(A18))),"") -> Pete Alonso | C19: =IFERROR(IF(L19=FALSE,"",CHOOSE(MATCH(RIGHT('Your Points Auction'!$R$4,LEN('Your Points Auction'!$R$4)-8),$M$1:$W$1,0),1+SUMPRODUCT(($L$2:$L$937=TRUE)*($M$2:$M$937>M19))+COUNTIFS($L$2:L19,L19,$M$2:M19,M19)-1,1+SUMPRODUCT(($L$2:$L$937=TRUE)*($N$2:$N$937>N19))+COUNTIFS($L$2:L19,L19,$N$2:N19,N19)-1,1+SUMPRODUCT(($L$2:$L$937=TRUE)*($O$2:$O$937<O19))+COUNTIFS($L$2:L19,L19,$O$2:O19,O19)-1,1+SUMPRODUCT(($L$2:$L$937=TRUE)*($P$2:$P$937>P19))+COUNTIFS($L$2:L19,L19,$P$2:P19,P19)-1,1+SUMPRODUCT(($L$2:$L$937=TRUE)*($Q$2:$Q$937>Q19))+COUNTIFS($L$2:L19,L19,$Q$2:Q19,Q19)-1,,,,,,1+SUMPRODUCT(($L$2:$L$937=TRUE)*($W$2:$W$937>W19))+COUNTIFS($L$2:L19,L19,$W$2:W19,W19)-1,)),"") -> 490 | D19: Anthony Alford | E19: =IFERROR(INDEX('Auction Log'!$C$4:$C$603,MATCH(D19,'Auction Log'!$B$4:$B$603,0)),"") ->  | F19: =IFERROR(INDEX('Auction-Rank'!$C$2:$C$955,MATCH(D19,'Auction-Rank'!$A$2:$A$955,0)),"") -> OF | H19: OF | I19: =IF(AND(F19="OF",'Guts-2'!$N$9=0),IF(MAX(Pre!J19:L19)=Pre!J19,"LF",IF(MAX(Pre!J19:L19)=Pre!K19,"CF",IF(MAX(Pre!J19:L19)=Pre!L19,"RF","LF"))),"") ->  | J19: =IFERROR(INDEX('Auction-Rank'!$U$2:$U$955,MATCH(D19,'Auction-Rank'!$A$2:$A$955,0)),TRUE) -> TRUE | K19: FALSE | L19: =IF(J19=FALSE,FALSE,IF(AND('Your Points Auction'!$R$6="Hide Drafted Players",K19=TRUE),FALSE,CHOOSE($I$1,TRUE,OR(RIGHT('Your Points Auction'!$R$5,LEN('Your Points Auction'!$R$5)-11)=H19,IF(RIGHT('Your Points Auction'!$R$5,LEN('Your Points Auction'!$R$5)-11)<>"C",NOT(ISERROR(SEARCH(RIGHT('Your Points Auction'!$R$5,LEN('Your Points Auction'!$R$5)-11),Pre!$CB19))),AND(NOT(ISERROR(SEARCH(RIGHT('Your Points Auction'!$R$5,LEN('Your Points Auction'!$R$5)-11),Pre!$CB19))),ISERROR(SEARCH("CF",Pre!$CB19)))),RIGHT('Your Points Auction'!$R$5,LEN('Your Points Auction'!$R$5)-11)=Pre!BP19),OR(H19="1B",H19="3B",ISNUMBER(SEARCH("1B",Pre!$CB19)),ISNUMBER(SEARCH("3B",Pre!$CB19))),OR(H19="2B",H19="SS",ISNUMBER(SEARCH("2B",Pre!$CB19)),ISNUMBER(SEARCH("SS",Pre!$CB19))),OR(H19="1B",H19="3B",H19="2B",H19="SS",ISNUMBER(SEARCH("1B",Pre!$CB19)),ISNUMBER(SEARCH("3B",Pre!$CB19)),ISNUMBER(SEARCH("2B",Pre!$CB19)),ISNUMBER(SEARCH("SS",Pre!$CB19))),OR(H19="SP",H19="RP",ISNUMBER(SEARCH("SP",Pre!$CB19)),ISNUMBER(SEARCH("RP",Pre!$CB19))),AND(H19<>"RP",H19<>"SP",NOT(ISNUMBER(SEARCH("RP",Pre!$CB19))),NOT(ISNUMBER(SEARCH("SP",Pre!$CB19)))),OR(H19="SP",H19="RP",ISNUMBER(SEARCH("SP",Pre!$CB19)),ISNUMBER(SEARCH("RP",Pre!$CB19)))))) -> TRUE | M19: =IF(LEFT($D19,15)="Unlisted Player",-1,IF('Inflation-Tracking'!J22="",-9999,'Inflation-Tracking'!J22)) -> 1 | N19: =IF(J19=FALSE,-0.5,IF(LEFT($D19,15)="Unlisted Player",-1,IF(Pre!C19<>"",Pre!C19,0))) -> 347.696708 | O19: =IF('Auction-Rank'!W19="",9999,'Auction-Rank'!W19) -> 498 | P19: =IFERROR(IF(LEFT($D19,15)="Unlisted Player",-1001,IF(OR(H19="SP",H19="RP"),N19/VLOOKUP($D19,'Filter-P'!$A$1:$AC$356,4,FALSE),-1000)),-1000) -> -1000 | Q19: =IFERROR(IF(LEFT($D19,15)="Unlisted Player",-1001,IF(OR(H19="SP",H19="RP"),-1000,N19/VLOOKUP($D19,'Filter-H'!$A$1:$AE$428,2,FALSE))),-1000) -> 0.9972657623 | R19: =IF(H19="",#N/A,H19&"."&1+SUMPRODUCT(($H$2:$H$937=H19)*($N$2:$N$937>N19))+COUNTIFS($N$2:N19,N19,$H$2:H19,H19)-1) -> OF.123 | S19: =IF(H19="",#N/A,1+SUMPRODUCT(($H$2:$H$937=H19)*($N$2:$N$937>N19))+COUNTIFS($N$2:N19,N19,$H$2:H19,H19)-1) -> 123 | U19: =IFERROR(Pre!DL19,"") -> Bench | V19: =IFERROR(ROUND(INDEX('Inflation-Tracking'!$J$5:$J$1040,MATCH($D19,'Inflation-Tracking'!$A$5:$A$1040,0)),1),-999) -> 1 | W19: =IFERROR(IF($N19=0,-1000,IF(LEFT($D19,15)="Unlisted Player",-1001,IF(OR($H19="SP",$H19="RP"),INDEX('Filter-P'!$M$3:$M$520,MATCH($D19,'Filter-P'!$A$3:$A$520,0),1),INDEX('Filter-H'!$U$3:$U$500,MATCH($D19,'Filter-H'!$A$3:$A$500,0),1)))),-1000) -> -246.0332553
A20: Salvador Perez | B20: =IFERROR(INDEX($A$1:$A$936,SMALL(IF($A$1:$A$936<>"",ROW($A$1:$A$936)),ROW(A19))),"") -> Salvador Perez | C20: =IFERROR(IF(L20=FALSE,"",CHOOSE(MATCH(RIGHT('Your Points Auction'!$R$4,LEN('Your Points Auction'!$R$4)-8),$M$1:$W$1,0),1+SUMPRODUCT(($L$2:$L$937=TRUE)*($M$2:$M$937>M20))+COUNTIFS($L$2:L20,L20,$M$2:M20,M20)-1,1+SUMPRODUCT(($L$2:$L$937=TRUE)*($N$2:$N$937>N20))+COUNTIFS($L$2:L20,L20,$N$2:N20,N20)-1,1+SUMPRODUCT(($L$2:$L$937=TRUE)*($O$2:$O$937<O20))+COUNTIFS($L$2:L20,L20,$O$2:O20,O20)-1,1+SUMPRODUCT(($L$2:$L$937=TRUE)*($P$2:$P$937>P20))+COUNTIFS($L$2:L20,L20,$P$2:P20,P20)-1,1+SUMPRODUCT(($L$2:$L$937=TRUE)*($Q$2:$Q$937>Q20))+COUNTIFS($L$2:L20,L20,$Q$2:Q20,Q20)-1,,,,,,1+SUMPRODUCT(($L$2:$L$937=TRUE)*($W$2:$W$937>W20))+COUNTIFS($L$2:L20,L20,$W$2:W20,W20)-1,)),"") -> 491 | D20: Kolby Allard | E20: =IFERROR(INDEX('Auction Log'!$C$4:$C$603,MATCH(D20,'Auction Log'!$B$4:$B$603,0)),"") ->  | F20: =IFERROR(INDEX('Auction-Rank'!$C$2:$C$955,MATCH(D20,'Auction-Rank'!$A$2:$A$955,0)),"") -> RP | H20: RP | I20: =IF(AND(F20="OF",'Guts-2'!$N$9=0),IF(MAX(Pre!J20:L20)=Pre!J20,"LF",IF(MAX(Pre!J20:L20)=Pre!K20,"CF",IF(MAX(Pre!J20:L20)=Pre!L20,"RF","LF"))),"") ->  | J20: =IFERROR(INDEX('Auction-Rank'!$U$2:$U$955,MATCH(D20,'Auction-Rank'!$A$2:$A$955,0)),TRUE) -> TRUE | K20: FALSE | L20: =IF(J20=FALSE,FALSE,IF(AND('Your Points Auction'!$R$6="Hide Drafted Players",K20=TRUE),FALSE,CHOOSE($I$1,TRUE,OR(RIGHT('Your Points Auction'!$R$5,LEN('Your Points Auction'!$R$5)-11)=H20,IF(RIGHT('Your Points Auction'!$R$5,LEN('Your Points Auction'!$R$5)-11)<>"C",NOT(ISERROR(SEARCH(RIGHT('Your Points Auction'!$R$5,LEN('Your Points Auction'!$R$5)-11),Pre!$CB20))),AND(NOT(ISERROR(SEARCH(RIGHT('Your Points Auction'!$R$5,LEN('Your Points Auction'!$R$5)-11),Pre!$CB20))),ISERROR(SEARCH("CF",Pre!$CB20)))),RIGHT('Your Points Auction'!$R$5,LEN('Your Points Auction'!$R$5)-11)=Pre!BP20),OR(H20="1B",H20="3B",ISNUMBER(SEARCH("1B",Pre!$CB20)),ISNUMBER(SEARCH("3B",Pre!$CB20))),OR(H20="2B",H20="SS",ISNUMBER(SEARCH("2B",Pre!$CB20)),ISNUMBER(SEARCH("SS",Pre!$CB20))),OR(H20="1B",H20="3B",H20="2B",H20="SS",ISNUMBER(SEARCH("1B",Pre!$CB20)),ISNUMBER(SEARCH("3B",Pre!$CB20)),ISNUMBER(SEARCH("2B",Pre!$CB20)),ISNUMBER(SEARCH("SS",Pre!$CB20))),OR(H20="SP",H20="RP",ISNUMBER(SEARCH("SP",Pre!$CB20)),ISNUMBER(SEARCH("RP",Pre!$CB20))),AND(H20<>"RP",H20<>"SP",NOT(ISNUMBER(SEARCH("RP",Pre!$CB20))),NOT(ISNUMBER(SEARCH("SP",Pre!$CB20)))),OR(H20="SP",H20="RP",ISNUMBER(SEARCH("SP",Pre!$CB20)),ISNUMBER(SEARCH("RP",Pre!$CB20)))))) -> TRUE | M20: =IF(LEFT($D20,15)="Unlisted Player",-1,IF('Inflation-Tracking'!J23="",-9999,'Inflation-Tracking'!J23)) -> 1 | N20: =IF(J20=FALSE,-0.5,IF(LEFT($D20,15)="Unlisted Player",-1,IF(Pre!C20<>"",Pre!C20,0))) -> 245.1431068 | O20: =IF('Auction-Rank'!W20="",9999,'Auction-Rank'!W20) -> 588 | P20: =IFERROR(IF(LEFT($D20,15)="Unlisted Player",-1001,IF(OR(H20="SP",H20="RP"),N20/VLOOKUP($D20,'Filter-P'!$A$1:$AC$356,4,FALSE),-1000)),-1000) -> 3.55279865 | Q20: =IFERROR(IF(LEFT($D20,15)="Unlisted Player",-1001,IF(OR(H20="SP",H20="RP"),-1000,N20/VLOOKUP($D20,'Filter-H'!$A$1:$AE$428,2,FALSE))),-1000) -> -1000 | R20: =IF(H20="",#N/A,H20&"."&1+SUMPRODUCT(($H$2:$H$937=H20)*($N$2:$N$937>N20))+COUNTIFS($N$2:N20,N20,$H$2:H20,H20)-1) -> RP.156 | S20: =IF(H20="",#N/A,1+SUMPRODUCT(($H$2:$H$937=H20)*($N$2:$N$937>N20))+COUNTIFS($N$2:N20,N20,$H$2:H20,H20)-1) -> 156 | U20: =IFERROR(Pre!DL20,"") -> Bench | V20: =IFERROR(ROUND(INDEX('Inflation-Tracking'!$J$5:$J$1040,MATCH($D20,'Inflation-Tracking'!$A$5:$A$1040,0)),1),-999) -> 1 | W20: =IFERROR(IF($N20=0,-1000,IF(LEFT($D20,15)="Unlisted Player",-1001,IF(OR($H20="SP",$H20="RP"),INDEX('Filter-P'!$M$3:$M$520,MATCH($D20,'Filter-P'!$A$3:$A$520,0),1),INDEX('Filter-H'!$U$3:$U$500,MATCH($D20,'Filter-H'!$A$3:$A$500,0),1)))),-1000) -> -124.5714846
A21: Shohei Ohtani | B21: =IFERROR(INDEX($A$1:$A$936,SMALL(IF($A$1:$A$936<>"",ROW($A$1:$A$936)),ROW(A20))),"") -> Shohei Ohtani | C21: =IFERROR(IF(L21=FALSE,"",CHOOSE(MATCH(RIGHT('Your Points Auction'!$R$4,LEN('Your Points Auction'!$R$4)-8),$M$1:$W$1,0),1+SUMPRODUCT(($L$2:$L$937=TRUE)*($M$2:$M$937>M21))+COUNTIFS($L$2:L21,L21,$M$2:M21,M21)-1,1+SUMPRODUCT(($L$2:$L$937=TRUE)*($N$2:$N$937>N21))+COUNTIFS($L$2:L21,L21,$N$2:N21,N21)-1,1+SUMPRODUCT(($L$2:$L$937=TRUE)*($O$2:$O$937<O21))+COUNTIFS($L$2:L21,L21,$O$2:O21,O21)-1,1+SUMPRODUCT(($L$2:$L$937=TRUE)*($P$2:$P$937>P21))+COUNTIFS($L$2:L21,L21,$P$2:P21,P21)-1,1+SUMPRODUCT(($L$2:$L$937=TRUE)*($Q$2:$Q$937>Q21))+COUNTIFS($L$2:L21,L21,$Q$2:Q21,Q21)-1,,,,,,1+SUMPRODUCT(($L$2:$L$937=TRUE)*($W$2:$W$937>W21))+COUNTIFS($L$2:L21,L21,$W$2:W21,W21)-1,)),"") -> 492 | D21: Austin Allen | E21: =IFERROR(INDEX('Auction Log'!$C$4:$C$603,MATCH(D21,'Auction Log'!$B$4:$B$603,0)),"") ->  | F21: =IFERROR(INDEX('Auction-Rank'!$C$2:$C$955,MATCH(D21,'Auction-Rank'!$A$2:$A$955,0)),"") -> DH | H21: DH | I21: =IF(AND(F21="OF",'Guts-2'!$N$9=0),IF(MAX(Pre!J21:L21)=Pre!J21,"LF",IF(MAX(Pre!J21:L21)=Pre!K21,"CF",IF(MAX(Pre!J21:L21)=Pre!L21,"RF","LF"))),"") ->  | J21: =IFERROR(INDEX('Auction-Rank'!$U$2:$U$955,MATCH(D21,'Auction-Rank'!$A$2:$A$955,0)),TRUE) -> TRUE | K21: FALSE | L21: =IF(J21=FALSE,FALSE,IF(AND('Your Points Auction'!$R$6="Hide Drafted Players",K21=TRUE),FALSE,CHOOSE($I$1,TRUE,OR(RIGHT('Your Points Auction'!$R$5,LEN('Your Points Auction'!$R$5)-11)=H21,IF(RIGHT('Your Points Auction'!$R$5,LEN('Your Points Auction'!$R$5)-11)<>"C",NOT(ISERROR(SEARCH(RIGHT('Your Points Auction'!$R$5,LEN('Your Points Auction'!$R$5)-11),Pre!$CB21))),AND(NOT(ISERROR(SEARCH(RIGHT('Your Points Auction'!$R$5,LEN('Your Points Auction'!$R$5)-11),Pre!$CB21))),ISERROR(SEARCH("CF",Pre!$CB21)))),RIGHT('Your Points Auction'!$R$5,LEN('Your Points Auction'!$R$5)-11)=Pre!BP21),OR(H21="1B",H21="3B",ISNUMBER(SEARCH("1B",Pre!$CB21)),ISNUMBER(SEARCH("3B",Pre!$CB21))),OR(H21="2B",H21="SS",ISNUMBER(SEARCH("2B",Pre!$CB21)),ISNUMBER(SEARCH("SS",Pre!$CB21))),OR(H21="1B",H21="3B",H21="2B",H21="SS",ISNUMBER(SEARCH("1B",Pre!$CB21)),ISNUMBER(SEARCH("3B",Pre!$CB21)),ISNUMBER(SEARCH("2B",Pre!$CB21)),ISNUMBER(SEARCH("SS",Pre!$CB21))),OR(H21="SP",H21="RP",ISNUMBER(SEARCH("SP",Pre!$CB21)),ISNUMBER(SEARCH("RP",Pre!$CB21))),AND(H21<>"RP",H21<>"SP",NOT(ISNUMBER(SEARCH("RP",Pre!$CB21))),NOT(ISNUMBER(SEARCH("SP",Pre!$CB21)))),OR(H21="SP",H21="RP",ISNUMBER(SEARCH("SP",Pre!$CB21)),ISNUMBER(SEARCH("RP",Pre!$CB21)))))) -> TRUE | M21: =IF(LEFT($D21,15)="Unlisted Player",-1,IF('Inflation-Tracking'!J24="",-9999,'Inflation-Tracking'!J24)) -> 1 | N21: =IF(J21=FALSE,-0.5,IF(LEFT($D21,15)="Unlisted Player",-1,IF(Pre!C21<>"",Pre!C21,0))) -> 197.0534852 | O21: =IF('Auction-Rank'!W21="",9999,'Auction-Rank'!W21) -> 688 | P21: =IFERROR(IF(LEFT($D21,15)="Unlisted Player",-1001,IF(OR(H21="SP",H21="RP"),N21/VLOOKUP($D21,'Filter-P'!$A$1:$AC$356,4,FALSE),-1000)),-1000) -> -1000 | Q21: =IFERROR(IF(LEFT($D21,15)="Unlisted Player",-1001,IF(OR(H21="SP",H21="RP"),-1000,N21/VLOOKUP($D21,'Filter-H'!$A$1:$AE$428,2,FALSE))),-1000) -> 1.08749164 | R21: =IF(H21="",#N/A,H21&"."&1+SUMPRODUCT(($H$2:$H$937=H21)*($N$2:$N$937>N21))+COUNTIFS($N$2:N21,N21,$H$2:H21,H21)-1) -> DH.16 | S21: =IF(H21="",#N/A,1+SUMPRODUCT(($H$2:$H$937=H21)*($N$2:$N$937>N21))+COUNTIFS($N$2:N21,N21,$H$2:H21,H21)-1) -> 16 | U21: =IFERROR(Pre!DL21,"") -> Bench | V21: =IFERROR(ROUND(INDEX('Inflation-Tracking'!$J$5:$J$1040,MATCH($D21,'Inflation-Tracking'!$A$5:$A$1040,0)),1),-999) -> 1 | W21: =IFERROR(IF($N21=0,-1000,IF(LEFT($D21,15)="Unlisted Player",-1001,IF(OR($H21="SP",$H21="RP"),INDEX('Filter-P'!$M$3:$M$520,MATCH($D21,'Filter-P'!$A$3:$A$520,0),1),INDEX('Filter-H'!$U$3:$U$500,MATCH($D21,'Filter-H'!$A$3:$A$500,0),1)))),-1000) -> -454.5252077
A22: Corey Seager | B22: =IFERROR(INDEX($A$1:$A$936,SMALL(IF($A$1:$A$936<>"",ROW($A$1:$A$936)),ROW(A21))),"") -> Corey Seager | C22: =IFERROR(IF(L22=FALSE,"",CHOOSE(MATCH(RIGHT('Your Points Auction'!$R$4,LEN('Your Points Auction'!$R$4)-8),$M$1:$W$1,0),1+SUMPRODUCT(($L$2:$L$937=TRUE)*($M$2:$M$937>M22))+COUNTIFS($L$2:L22,L22,$M$2:M22,M22)-1,1+SUMPRODUCT(($L$2:$L$937=TRUE)*($N$2:$N$937>N22))+COUNTIFS($L$2:L22,L22,$N$2:N22,N22)-1,1+SUMPRODUCT(($L$2:$L$937=TRUE)*($O$2:$O$937<O22))+COUNTIFS($L$2:L22,L22,$O$2:O22,O22)-1,1+SUMPRODUCT(($L$2:$L$937=TRUE)*($P$2:$P$937>P22))+COUNTIFS($L$2:L22,L22,$P$2:P22,P22)-1,1+SUMPRODUCT(($L$2:$L$937=TRUE)*($Q$2:$Q$937>Q22))+COUNTIFS($L$2:L22,L22,$Q$2:Q22,Q22)-1,,,,,,1+SUMPRODUCT(($L$2:$L$937=TRUE)*($W$2:$W$937>W22))+COUNTIFS($L$2:L22,L22,$W$2:W22,W22)-1,)),"") -> 493 | D22: Greg Allen | E22: =IFERROR(INDEX('Auction Log'!$C$4:$C$603,MATCH(D22,'Auction Log'!$B$4:$B$603,0)),"") ->  | F22: =IFERROR(INDEX('Auction-Rank'!$C$2:$C$955,MATCH(D22,'Auction-Rank'!$A$2:$A$955,0)),"") -> OF | H22: OF | I22: =IF(AND(F22="OF",'Guts-2'!$N$9=0),IF(MAX(Pre!J22:L22)=Pre!J22,"LF",IF(MAX(Pre!J22:L22)=Pre!K22,"CF",IF(MAX(Pre!J22:L22)=Pre!L22,"RF","LF"))),"") ->  | J22: =IFERROR(INDEX('Auction-Rank'!$U$2:$U$955,MATCH(D22,'Auction-Rank'!$A$2:$A$955,0)),TRUE) -> TRUE | K22: FALSE | L22: =IF(J22=FALSE,FALSE,IF(AND('Your Points Auction'!$R$6="Hide Drafted Players",K22=TRUE),FALSE,CHOOSE($I$1,TRUE,OR(RIGHT('Your Points Auction'!$R$5,LEN('Your Points Auction'!$R$5)-11)=H22,IF(RIGHT('Your Points Auction'!$R$5,LEN('Your Points Auction'!$R$5)-11)<>"C",NOT(ISERROR(SEARCH(RIGHT('Your Points Auction'!$R$5,LEN('Your Points Auction'!$R$5)-11),Pre!$CB22))),AND(NOT(ISERROR(SEARCH(RIGHT('Your Points Auction'!$R$5,LEN('Your Points Auction'!$R$5)-11),Pre!$CB22))),ISERROR(SEARCH("CF",Pre!$CB22)))),RIGHT('Your Points Auction'!$R$5,LEN('Your Points Auction'!$R$5)-11)=Pre!BP22),OR(H22="1B",H22="3B",ISNUMBER(SEARCH("1B",Pre!$CB22)),ISNUMBER(SEARCH("3B",Pre!$CB22))),OR(H22="2B",H22="SS",ISNUMBER(SEARCH("2B",Pre!$CB22)),ISNUMBER(SEARCH("SS",Pre!$CB22))),OR(H22="1B",H22="3B",H22="2B",H22="SS",ISNUMBER(SEARCH("1B",Pre!$CB22)),ISNUMBER(SEARCH("3B",Pre!$CB22)),ISNUMBER(SEARCH("2B",Pre!$CB22)),ISNUMBER(SEARCH("SS",Pre!$CB22))),OR(H22="SP",H22="RP",ISNUMBER(SEARCH("SP",Pre!$CB22)),ISNUMBER(SEARCH("RP",Pre!$CB22))),AND(H22<>"RP",H22<>"SP",NOT(ISNUMBER(SEARCH("RP",Pre!$CB22))),NOT(ISNUMBER(SEARCH("SP",Pre!$CB22)))),OR(H22="SP",H22="RP",ISNUMBER(SEARCH("SP",Pre!$CB22)),ISNUMBER(SEARCH("RP",Pre!$CB22)))))) -> TRUE | M22: =IF(LEFT($D22,15)="Unlisted Player",-1,IF('Inflation-Tracking'!J25="",-9999,'Inflation-Tracking'!J25)) -> 1 | N22: =IF(J22=FALSE,-0.5,IF(LEFT($D22,15)="Unlisted Player",-1,IF(Pre!C22<>"",Pre!C22,0))) -> 299.5153317 | O22: =IF('Auction-Rank'!W22="",9999,'Auction-Rank'!W22) -> 694 | P22: =IFERROR(IF(LEFT($D22,15)="Unlisted Player",-1001,IF(OR(H22="SP",H22="RP"),N22/VLOOKUP($D22,'Filter-P'!$A$1:$AC$356,4,FALSE),-1000)),-1000) -> -1000 | Q22: =IFERROR(IF(LEFT($D22,15)="Unlisted Player",-1001,IF(OR(H22="SP",H22="RP"),-1000,N22/VLOOKUP($D22,'Filter-H'!$A$1:$AE$428,2,FALSE))),-1000) -> 1.068552735 | R22: =IF(H22="",#N/A,H22&"."&1+SUMPRODUCT(($H$2:$H$937=H22)*($N$2:$N$937>N22))+COUNTIFS($N$2:N22,N22,$H$2:H22,H22)-1) -> OF.136 | S22: =IF(H22="",#N/A,1+SUMPRODUCT(($H$2:$H$937=H22)*($N$2:$N$937>N22))+COUNTIFS($N$2:N22,N22,$H$2:H22,H22)-1) -> 136 | U22: =IFERROR(Pre!DL22,"") -> Bench | V22: =IFERROR(ROUND(INDEX('Inflation-Tracking'!$J$5:$J$1040,MATCH($D22,'Inflation-Tracking'!$A$5:$A$1040,0)),1),-999) -> 1 | W22: =IFERROR(IF($N22=0,-1000,IF(LEFT($D22,15)="Unlisted Player",-1001,IF(OR($H22="SP",$H22="RP"),INDEX('Filter-P'!$M$3:$M$520,MATCH($D22,'Filter-P'!$A$3:$A$520,0),1),INDEX('Filter-H'!$U$3:$U$500,MATCH($D22,'Filter-H'!$A$3:$A$500,0),1)))),-1000) -> -294.2146316
A23: Carlos Correa | B23: =IFERROR(INDEX($A$1:$A$936,SMALL(IF($A$1:$A$936<>"",ROW($A$1:$A$936)),ROW(A22))),"") -> Carlos Correa | C23: =IFERROR(IF(L23=FALSE,"",CHOOSE(MATCH(RIGHT('Your Points Auction'!$R$4,LEN('Your Points Auction'!$R$4)-8),$M$1:$W$1,0),1+SUMPRODUCT(($L$2:$L$937=TRUE)*($M$2:$M$937>M23))+COUNTIFS($L$2:L23,L23,$M$2:M23,M23)-1,1+SUMPRODUCT(($L$2:$L$937=TRUE)*($N$2:$N$937>N23))+COUNTIFS($L$2:L23,L23,$N$2:N23,N23)-1,1+SUMPRODUCT(($L$2:$L$937=TRUE)*($O$2:$O$937<O23))+COUNTIFS($L$2:L23,L23,$O$2:O23,O23)-1,1+SUMPRODUCT(($L$2:$L$937=TRUE)*($P$2:$P$937>P23))+COUNTIFS($L$2:L23,L23,$P$2:P23,P23)-1,1+SUMPRODUCT(($L$2:$L$937=TRUE)*($Q$2:$Q$937>Q23))+COUNTIFS($L$2:L23,L23,$Q$2:Q23,Q23)-1,,,,,,1+SUMPRODUCT(($L$2:$L$937=TRUE)*($W$2:$W$937>W23))+COUNTIFS($L$2:L23,L23,$W$2:W23,W23)-1,)),"") -> 494 | D23: Logan Allen | E23: =IFERROR(INDEX('Auction Log'!$C$4:$C$603,MATCH(D23,'Auction Log'!$B$4:$B$603,0)),"") ->  | F23: =IFERROR(INDEX('Auction-Rank'!$C$2:$C$955,MATCH(D23,'Auction-Rank'!$A$2:$A$955,0)),"") -> RP | H23: RP | I23: =IF(AND(F23="OF",'Guts-2'!$N$9=0),IF(MAX(Pre!J23:L23)=Pre!J23,"LF",IF(MAX(Pre!J23:L23)=Pre!K23,"CF",IF(MAX(Pre!J23:L23)=Pre!L23,"RF","LF"))),"") ->  | J23: =IFERROR(INDEX('Auction-Rank'!$U$2:$U$955,MATCH(D23,'Auction-Rank'!$A$2:$A$955,0)),TRUE) -> TRUE | K23: FALSE | L23: =IF(J23=FALSE,FALSE,IF(AND('Your Points Auction'!$R$6="Hide Drafted Players",K23=TRUE),FALSE,CHOOSE($I$1,TRUE,OR(RIGHT('Your Points Auction'!$R$5,LEN('Your Points Auction'!$R$5)-11)=H23,IF(RIGHT('Your Points Auction'!$R$5,LEN('Your Points Auction'!$R$5)-11)<>"C",NOT(ISERROR(SEARCH(RIGHT('Your Points Auction'!$R$5,LEN('Your Points Auction'!$R$5)-11),Pre!$CB23))),AND(NOT(ISERROR(SEARCH(RIGHT('Your Points Auction'!$R$5,LEN('Your Points Auction'!$R$5)-11),Pre!$CB23))),ISERROR(SEARCH("CF",Pre!$CB23)))),RIGHT('Your Points Auction'!$R$5,LEN('Your Points Auction'!$R$5)-11)=Pre!BP23),OR(H23="1B",H23="3B",ISNUMBER(SEARCH("1B",Pre!$CB23)),ISNUMBER(SEARCH("3B",Pre!$CB23))),OR(H23="2B",H23="SS",ISNUMBER(SEARCH("2B",Pre!$CB23)),ISNUMBER(SEARCH("SS",Pre!$CB23))),OR(H23="1B",H23="3B",H23="2B",H23="SS",ISNUMBER(SEARCH("1B",Pre!$CB23)),ISNUMBER(SEARCH("3B",Pre!$CB23)),ISNUMBER(SEARCH("2B",Pre!$CB23)),ISNUMBER(SEARCH("SS",Pre!$CB23))),OR(H23="SP",H23="RP",ISNUMBER(SEARCH("SP",Pre!$CB23)),ISNUMBER(SEARCH("RP",Pre!$CB23))),AND(H23<>"RP",H23<>"SP",NOT(ISNUMBER(SEARCH("RP",Pre!$CB23))),NOT(ISNUMBER(SEARCH("SP",Pre!$CB23)))),OR(H23="SP",H23="RP",ISNUMBER(SEARCH("SP",Pre!$CB23)),ISNUMBER(SEARCH("RP",Pre!$CB23)))))) -> TRUE | M23: =IF(LEFT($D23,15)="Unlisted Player",-1,IF('Inflation-Tracking'!J26="",-9999,'Inflation-Tracking'!J26)) -> 1 | N23: =IF(J23=FALSE,-0.5,IF(LEFT($D23,15)="Unlisted Player",-1,IF(Pre!C23<>"",Pre!C23,0))) -> 243.3361512 | O23: =IF('Auction-Rank'!W23="",9999,'Auction-Rank'!W23) -> 9999 | P23: =IFERROR(IF(LEFT($D23,15)="Unlisted Player",-1001,IF(OR(H23="SP",H23="RP"),N23/VLOOKUP($D23,'Filter-P'!$A$1:$AC$356,4,FALSE),-1000)),-1000) -> 3.427269735 | Q23: =IFERROR(IF(LEFT($D23,15)="Unlisted Player",-1001,IF(OR(H23="SP",H23="RP"),-1000,N23/VLOOKUP($D23,'Filter-H'!$A$1:$AE$428,2,FALSE))),-1000) -> -1000 | R23: =IF(H23="",#N/A,H23&"."&1+SUMPRODUCT(($H$2:$H$937=H23)*($N$2:$N$937>N23))+COUNTIFS($N$2:N23,N23,$H$2:H23,H23)-1) -> RP.159 | S23: =IF(H23="",#N/A,1+SUMPRODUCT(($H$2:$H$937=H23)*($N$2:$N$937>N23))+COUNTIFS($N$2:N23,N23,$H$2:H23,H23)-1) -> 159 | U23: =IFERROR(Pre!DL23,"") -> Bench | V23: =IFERROR(ROUND(INDEX('Inflation-Tracking'!$J$5:$J$1040,MATCH($D23,'Inflation-Tracking'!$A$5:$A$1040,0)),1),-999) -> 1 | W23: =IFERROR(IF($N23=0,-1000,IF(LEFT($D23,15)="Unlisted Player",-1001,IF(OR($H23="SP",$H23="RP"),INDEX('Filter-P'!$M$3:$M$520,MATCH($D23,'Filter-P'!$A$3:$A$520,0),1),INDEX('Filter-H'!$U$3:$U$500,MATCH($D23,'Filter-H'!$A$3:$A$500,0),1)))),-1000) -> -126.3784403
A24: Yordan Alvarez | B24: =IFERROR(INDEX($A$1:$A$936,SMALL(IF($A$1:$A$936<>"",ROW($A$1:$A$936)),ROW(A23))),"") -> Yordan Alvarez | C24: =IFERROR(IF(L24=FALSE,"",CHOOSE(MATCH(RIGHT('Your Points Auction'!$R$4,LEN('Your Points Auction'!$R$4)-8),$M$1:$W$1,0),1+SUMPRODUCT(($L$2:$L$937=TRUE)*($M$2:$M$937>M24))+COUNTIFS($L$2:L24,L24,$M$2:M24,M24)-1,1+SUMPRODUCT(($L$2:$L$937=TRUE)*($N$2:$N$937>N24))+COUNTIFS($L$2:L24,L24,$N$2:N24,N24)-1,1+SUMPRODUCT(($L$2:$L$937=TRUE)*($O$2:$O$937<O24))+COUNTIFS($L$2:L24,L24,$O$2:O24,O24)-1,1+SUMPRODUCT(($L$2:$L$937=TRUE)*($P$2:$P$937>P24))+COUNTIFS($L$2:L24,L24,$P$2:P24,P24)-1,1+SUMPRODUCT(($L$2:$L$937=TRUE)*($Q$2:$Q$937>Q24))+COUNTIFS($L$2:L24,L24,$Q$2:Q24,Q24)-1,,,,,,1+SUMPRODUCT(($L$2:$L$937=TRUE)*($W$2:$W$937>W24))+COUNTIFS($L$2:L24,L24,$W$2:W24,W24)-1,)),"") -> 18 | D24: Pete Alonso | E24: =IFERROR(INDEX('Auction Log'!$C$4:$C$603,MATCH(D24,'Auction Log'!$B$4:$B$603,0)),"") ->  | F24: =IFERROR(INDEX('Auction-Rank'!$C$2:$C$955,MATCH(D24,'Auction-Rank'!$A$2:$A$955,0)),"") -> 1B | H24: 1B | I24: =IF(AND(F24="OF",'Guts-2'!$N$9=0),IF(MAX(Pre!J24:L24)=Pre!J24,"LF",IF(MAX(Pre!J24:L24)=Pre!K24,"CF",IF(MAX(Pre!J24:L24)=Pre!L24,"RF","LF"))),"") ->  | J24: =IFERROR(INDEX('Auction-Rank'!$U$2:$U$955,MATCH(D24,'Auction-Rank'!$A$2:$A$955,0)),TRUE) -> TRUE | K24: FALSE | L24: =IF(J24=FALSE,FALSE,IF(AND('Your Points Auction'!$R$6="Hide Drafted Players",K24=TRUE),FALSE,CHOOSE($I$1,TRUE,OR(RIGHT('Your Points Auction'!$R$5,LEN('Your Points Auction'!$R$5)-11)=H24,IF(RIGHT('Your Points Auction'!$R$5,LEN('Your Points Auction'!$R$5)-11)<>"C",NOT(ISERROR(SEARCH(RIGHT('Your Points Auction'!$R$5,LEN('Your Points Auction'!$R$5)-11),Pre!$CB24))),AND(NOT(ISERROR(SEARCH(RIGHT('Your Points Auction'!$R$5,LEN('Your Points Auction'!$R$5)-11),Pre!$CB24))),ISERROR(SEARCH("CF",Pre!$CB24)))),RIGHT('Your Points Auction'!$R$5,LEN('Your Points Auction'!$R$5)-11)=Pre!BP24),OR(H24="1B",H24="3B",ISNUMBER(SEARCH("1B",Pre!$CB24)),ISNUMBER(SEARCH("3B",Pre!$CB24))),OR(H24="2B",H24="SS",ISNUMBER(SEARCH("2B",Pre!$CB24)),ISNUMBER(SEARCH("SS",Pre!$CB24))),OR(H24="1B",H24="3B",H24="2B",H24="SS",ISNUMBER(SEARCH("1B",Pre!$CB24)),ISNUMBER(SEARCH("3B",Pre!$CB24)),ISNUMBER(SEARCH("2B",Pre!$CB24)),ISNUMBER(SEARCH("SS",Pre!$CB24))),OR(H24="SP",H24="RP",ISNUMBER(SEARCH("SP",Pre!$CB24)),ISNUMBER(SEARCH("RP",Pre!$CB24))),AND(H24<>"RP",H24<>"SP",NOT(ISNUMBER(SEARCH("RP",Pre!$CB24))),NOT(ISNUMBER(SEARCH("SP",Pre!$CB24)))),OR(H24="SP",H24="RP",ISNUMBER(SEARCH("SP",Pre!$CB24)),ISNUMBER(SEARCH("RP",Pre!$CB24)))))) -> TRUE | M24: =IF(LEFT($D24,15)="Unlisted Player",-1,IF('Inflation-Tracking'!J27="",-9999,'Inflation-Tracking'!J27)) -> 30.15219898 | N24: =IF(J24=FALSE,-0.5,IF(LEFT($D24,15)="Unlisted Player",-1,IF(Pre!C24<>"",Pre!C24,0))) -> 991.1587708 | O24: =IF('Auction-Rank'!W24="",9999,'Auction-Rank'!W24) -> 44 | P24: =IFERROR(IF(LEFT($D24,15)="Unlisted Player",-1001,IF(OR(H24="SP",H24="RP"),N24/VLOOKUP($D24,'Filter-P'!$A$1:$AC$356,4,FALSE),-1000)),-1000) -> -1000 | Q24: =IFERROR(IF(LEFT($D24,15)="Unlisted Player",-1001,IF(OR(H24="SP",H24="RP"),-1000,N24/VLOOKUP($D24,'Filter-H'!$A$1:$AE$428,2,FALSE))),-1000) -> 1.529684035 | R24: =IF(H24="",#N/A,H24&"."&1+SUMPRODUCT(($H$2:$H$937=H24)*($N$2:$N$937>N24))+COUNTIFS($N$2:N24,N24,$H$2:H24,H24)-1) -> 1B.4 | S24: =IF(H24="",#N/A,1+SUMPRODUCT(($H$2:$H$937=H24)*($N$2:$N$937>N24))+COUNTIFS($N$2:N24,N24,$H$2:H24,H24)-1) -> 4 | U24: =IFERROR(Pre!DL24,"") -> Bench | V24: =IFERROR(ROUND(INDEX('Inflation-Tracking'!$J$5:$J$1040,MATCH($D24,'Inflation-Tracking'!$A$5:$A$1040,0)),1),-999) -> 30.2 | W24: =IFERROR(IF($N24=0,-1000,IF(LEFT($D24,15)="Unlisted Player",-1001,IF(OR($H24="SP",$H24="RP"),INDEX('Filter-P'!$M$3:$M$520,MATCH($D24,'Filter-P'!$A$3:$A$520,0),1),INDEX('Filter-H'!$U$3:$U$500,MATCH($D24,'Filter-H'!$A$3:$A$500,0),1)))),-1000) -> 339.5800779
A25: Bryan Reynolds | B25: =IFERROR(INDEX($A$1:$A$936,SMALL(IF($A$1:$A$936<>"",ROW($A$1:$A$936)),ROW(A24))),"") -> Bryan Reynolds | C25: =IFERROR(IF(L25=FALSE,"",CHOOSE(MATCH(RIGHT('Your Points Auction'!$R$4,LEN('Your Points Auction'!$R$4)-8),$M$1:$W$1,0),1+SUMPRODUCT(($L$2:$L$937=TRUE)*($M$2:$M$937>M25))+COUNTIFS($L$2:L25,L25,$M$2:M25,M25)-1,1+SUMPRODUCT(($L$2:$L$937=TRUE)*($N$2:$N$937>N25))+COUNTIFS($L$2:L25,L25,$N$2:N25,N25)-1,1+SUMPRODUCT(($L$2:$L$937=TRUE)*($O$2:$O$937<O25))+COUNTIFS($L$2:L25,L25,$O$2:O25,O25)-1,1+SUMPRODUCT(($L$2:$L$937=TRUE)*($P$2:$P$937>P25))+COUNTIFS($L$2:L25,L25,$P$2:P25,P25)-1,1+SUMPRODUCT(($L$2:$L$937=TRUE)*($Q$2:$Q$937>Q25))+COUNTIFS($L$2:L25,L25,$Q$2:Q25,Q25)-1,,,,,,1+SUMPRODUCT(($L$2:$L$937=TRUE)*($W$2:$W$937>W25))+COUNTIFS($L$2:L25,L25,$W$2:W25,W25)-1,)),"") -> 65 | D25: Jose Altuve | E25: =IFERROR(INDEX('Auction Log'!$C$4:$C$603,MATCH(D25,'Auction Log'!$B$4:$B$603,0)),"") ->  | F25: =IFERROR(INDEX('Auction-Rank'!$C$2:$C$955,MATCH(D25,'Auction-Rank'!$A$2:$A$955,0)),"") -> 2B | H25: 2B | I25: =IF(AND(F25="OF",'Guts-2'!$N$9=0),IF(MAX(Pre!J25:L25)=Pre!J25,"LF",IF(MAX(Pre!J25:L25)=Pre!K25,"CF",IF(MAX(Pre!J25:L25)=Pre!L25,"RF","LF"))),"") ->  | J25: =IFERROR(INDEX('Auction-Rank'!$U$2:$U$955,MATCH(D25,'Auction-Rank'!$A$2:$A$955,0)),TRUE) -> TRUE | K25: FALSE | L25: =IF(J25=FALSE,FALSE,IF(AND('Your Points Auction'!$R$6="Hide Drafted Players",K25=TRUE),FALSE,CHOOSE($I$1,TRUE,OR(RIGHT('Your Points Auction'!$R$5,LEN('Your Points Auction'!$R$5)-11)=H25,IF(RIGHT('Your Points Auction'!$R$5,LEN('Your Points Auction'!$R$5)-11)<>"C",NOT(ISERROR(SEARCH(RIGHT('Your Points Auction'!$R$5,LEN('Your Points Auction'!$R$5)-11),Pre!$CB25))),AND(NOT(ISERROR(SEARCH(RIGHT('Your Points Auction'!$R$5,LEN('Your Points Auction'!$R$5)-11),Pre!$CB25))),ISERROR(SEARCH("CF",Pre!$CB25)))),RIGHT('Your Points Auction'!$R$5,LEN('Your Points Auction'!$R$5)-11)=Pre!BP25),OR(H25="1B",H25="3B",ISNUMBER(SEARCH("1B",Pre!$CB25)),ISNUMBER(SEARCH("3B",Pre!$CB25))),OR(H25="2B",H25="SS",ISNUMBER(SEARCH("2B",Pre!$CB25)),ISNUMBER(SEARCH("SS",Pre!$CB25))),OR(H25="1B",H25="3B",H25="2B",H25="SS",ISNUMBER(SEARCH("1B",Pre!$CB25)),ISNUMBER(SEARCH("3B",Pre!$CB25)),ISNUMBER(SEARCH("2B",Pre!$CB25)),ISNUMBER(SEARCH("SS",Pre!$CB25))),OR(H25="SP",H25="RP",ISNUMBER(SEARCH("SP",Pre!$CB25)),ISNUMBER(SEARCH("RP",Pre!$CB25))),AND(H25<>"RP",H25<>"SP",NOT(ISNUMBER(SEARCH("RP",Pre!$CB25))),NOT(ISNUMBER(SEARCH("SP",Pre!$CB25)))),OR(H25="SP",H25="RP",ISNUMBER(SEARCH("SP",Pre!$CB25)),ISNUMBER(SEARCH("RP",Pre!$CB25)))))) -> TRUE | M25: =IF(LEFT($D25,15)="Unlisted Player",-1,IF('Inflation-Tracking'!J28="",-9999,'Inflation-Tracking'!J28)) -> 18.2352525 | N25: =IF(J25=FALSE,-0.5,IF(LEFT($D25,15)="Unlisted Player",-1,IF(Pre!C25<>"",Pre!C25,0))) -> 839.9100498 | O25: =IF('Auction-Rank'!W25="",9999,'Auction-Rank'!W25) -> 50 | P25: =IFERROR(IF(LEFT($D25,15)="Unlisted Player",-1001,IF(OR(H25="SP",H25="RP"),N25/VLOOKUP($D25,'Filter-P'!$A$1:$AC$356,4,FALSE),-1000)),-1000) -> -1000 | Q25: =IFERROR(IF(LEFT($D25,15)="Unlisted Player",-1001,IF(OR(H25="SP",H25="RP"),-1000,N25/VLOOKUP($D25,'Filter-H'!$A$1:$AE$428,2,FALSE))),-1000) -> 1.319886933 | R25: =IF(H25="",#N/A,H25&"."&1+SUMPRODUCT(($H$2:$H$937=H25)*($N$2:$N$937>N25))+COUNTIFS($N$2:N25,N25,$H$2:H25,H25)-1) -> 2B.3 | S25: =IF(H25="",#N/A,1+SUMPRODUCT(($H$2:$H$937=H25)*($N$2:$N$937>N25))+COUNTIFS($N$2:N25,N25,$H$2:H25,H25)-1) -> 3 | U25: =IFERROR(Pre!DL25,"") -> Bench | V25: =IFERROR(ROUND(INDEX('Inflation-Tracking'!$J$5:$J$1040,MATCH($D25,'Inflation-Tracking'!$A$5:$A$1040,0)),1),-999) -> 18.2 | W25: =IFERROR(IF($N25=0,-1000,IF(LEFT($D25,15)="Unlisted Player",-1001,IF(OR($H25="SP",$H25="RP"),INDEX('Filter-P'!$M$3:$M$520,MATCH($D25,'Filter-P'!$A$3:$A$520,0),1),INDEX('Filter-H'!$U$3:$U$500,MATCH($D25,'Filter-H'!$A$3:$A$500,0),1)))),-1000) -> 200.7243672
A26: Trevor Story | B26: =IFERROR(INDEX($A$1:$A$936,SMALL(IF($A$1:$A$936<>"",ROW($A$1:$A$936)),ROW(A25))),"") -> Trevor Story | C26: =IFERROR(IF(L26=FALSE,"",CHOOSE(MATCH(RIGHT('Your Points Auction'!$R$4,LEN('Your Points Auction'!$R$4)-8),$M$1:$W$1,0),1+SUMPRODUCT(($L$2:$L$937=TRUE)*($M$2:$M$937>M26))+COUNTIFS($L$2:L26,L26,$M$2:M26,M26)-1,1+SUMPRODUCT(($L$2:$L$937=TRUE)*($N$2:$N$937>N26))+COUNTIFS($L$2:L26,L26,$N$2:N26,N26)-1,1+SUMPRODUCT(($L$2:$L$937=TRUE)*($O$2:$O$937<O26))+COUNTIFS($L$2:L26,L26,$O$2:O26,O26)-1,1+SUMPRODUCT(($L$2:$L$937=TRUE)*($P$2:$P$937>P26))+COUNTIFS($L$2:L26,L26,$P$2:P26,P26)-1,1+SUMPRODUCT(($L$2:$L$937=TRUE)*($Q$2:$Q$937>Q26))+COUNTIFS($L$2:L26,L26,$Q$2:Q26,Q26)-1,,,,,,1+SUMPRODUCT(($L$2:$L$937=TRUE)*($W$2:$W$937>W26))+COUNTIFS($L$2:L26,L26,$W$2:W26,W26)-1,)),"") -> 495 | D26: Jose Alvarado | E26: =IFERROR(INDEX('Auction Log'!$C$4:$C$603,MATCH(D26,'Auction Log'!$B$4:$B$603,0)),"") ->  | F26: =IFERROR(INDEX('Auction-Rank'!$C$2:$C$955,MATCH(D26,'Auction-Rank'!$A$2:$A$955,0)),"") -> RP | H26: RP | I26: =IF(AND(F26="OF",'Guts-2'!$N$9=0),IF(MAX(Pre!J26:L26)=Pre!J26,"LF",IF(MAX(Pre!J26:L26)=Pre!K26,"CF",IF(MAX(Pre!J26:L26)=Pre!L26,"RF","LF"))),"") ->  | J26: =IFERROR(INDEX('Auction-Rank'!$U$2:$U$955,MATCH(D26,'Auction-Rank'!$A$2:$A$955,0)),TRUE) -> TRUE | K26: FALSE | L26: =IF(J26=FALSE,FALSE,IF(AND('Your Points Auction'!$R$6="Hide Drafted Players",K26=TRUE),FALSE,CHOOSE($I$1,TRUE,OR(RIGHT('Your Points Auction'!$R$5,LEN('Your Points Auction'!$R$5)-11)=H26,IF(RIGHT('Your Points Auction'!$R$5,LEN('Your Points Auction'!$R$5)-11)<>"C",NOT(ISERROR(SEARCH(RIGHT('Your Points Auction'!$R$5,LEN('Your Points Auction'!$R$5)-11),Pre!$CB26))),AND(NOT(ISERROR(SEARCH(RIGHT('Your Points Auction'!$R$5,LEN('Your Points Auction'!$R$5)-11),Pre!$CB26))),ISERROR(SEARCH("CF",Pre!$CB26)))),RIGHT('Your Points Auction'!$R$5,LEN('Your Points Auction'!$R$5)-11)=Pre!BP26),OR(H26="1B",H26="3B",ISNUMBER(SEARCH("1B",Pre!$CB26)),ISNUMBER(SEARCH("3B",Pre!$CB26))),OR(H26="2B",H26="SS",ISNUMBER(SEARCH("2B",Pre!$CB26)),ISNUMBER(SEARCH("SS",Pre!$CB26))),OR(H26="1B",H26="3B",H26="2B",H26="SS",ISNUMBER(SEARCH("1B",Pre!$CB26)),ISNUMBER(SEARCH("3B",Pre!$CB26)),ISNUMBER(SEARCH("2B",Pre!$CB26)),ISNUMBER(SEARCH("SS",Pre!$CB26))),OR(H26="SP",H26="RP",ISNUMBER(SEARCH("SP",Pre!$CB26)),ISNUMBER(SEARCH("RP",Pre!$CB26))),AND(H26<>"RP",H26<>"SP",NOT(ISNUMBER(SEARCH("RP",Pre!$CB26))),NOT(ISNUMBER(SEARCH("SP",Pre!$CB26)))),OR(H26="SP",H26="RP",ISNUMBER(SEARCH("SP",Pre!$CB26)),ISNUMBER(SEARCH("RP",Pre!$CB26)))))) -> TRUE | M26: =IF(LEFT($D26,15)="Unlisted Player",-1,IF('Inflation-Tracking'!J29="",-9999,'Inflation-Tracking'!J29)) -> 1 | N26: =IF(J26=FALSE,-0.5,IF(LEFT($D26,15)="Unlisted Player",-1,IF(Pre!C26<>"",Pre!C26,0))) -> 337.2997728 | O26: =IF('Auction-Rank'!W26="",9999,'Auction-Rank'!W26) -> 473 | P26: =IFERROR(IF(LEFT($D26,15)="Unlisted Player",-1001,IF(OR(H26="SP",H26="RP"),N26/VLOOKUP($D26,'Filter-P'!$A$1:$AC$356,4,FALSE),-1000)),-1000) -> 5.529504471 | Q26: =IFERROR(IF(LEFT($D26,15)="Unlisted Player",-1001,IF(OR(H26="SP",H26="RP"),-1000,N26/VLOOKUP($D26,'Filter-H'!$A$1:$AE$428,2,FALSE))),-1000) -> -1000 | R26: =IF(H26="",#N/A,H26&"."&1+SUMPRODUCT(($H$2:$H$937=H26)*($N$2:$N$937>N26))+COUNTIFS($N$2:N26,N26,$H$2:H26,H26)-1) -> RP.78 | S26: =IF(H26="",#N/A,1+SUMPRODUCT(($H$2:$H$937=H26)*($N$2:$N$937>N26))+COUNTIFS($N$2:N26,N26,$H$2:H26,H26)-1) -> 78 | U26: =IFERROR(Pre!DL26,"") -> Bench | V26: =IFERROR(ROUND(INDEX('Inflation-Tracking'!$J$5:$J$1040,MATCH($D26,'Inflation-Tracking'!$A$5:$A$1040,0)),1),-999) -> 1 | W26: =IFERROR(IF($N26=0,-1000,IF(LEFT($D26,15)="Unlisted Player",-1001,IF(OR($H26="SP",$H26="RP"),INDEX('Filter-P'!$M$3:$M$520,MATCH($D26,'Filter-P'!$A$3:$A$520,0),1),INDEX('Filter-H'!$U$3:$U$500,MATCH($D26,'Filter-H'!$A$3:$A$500,0),1)))),-1000) -> -32.41481867
A27: Zack Wheeler | B27: =IFERROR(INDEX($A$1:$A$936,SMALL(IF($A$1:$A$936<>"",ROW($A$1:$A$936)),ROW(A26))),"") -> Zack Wheeler | C27: =IFERROR(IF(L27=FALSE,"",CHOOSE(MATCH(RIGHT('Your Points Auction'!$R$4,LEN('Your Points Auction'!$R$4)-8),$M$1:$W$1,0),1+SUMPRODUCT(($L$2:$L$937=TRUE)*($M$2:$M$937>M27))+COUNTIFS($L$2:L27,L27,$M$2:M27,M27)-1,1+SUMPRODUCT(($L$2:$L$937=TRUE)*($N$2:$N$937>N27))+COUNTIFS($L$2:L27,L27,$N$2:N27,N27)-1,1+SUMPRODUCT(($L$2:$L$937=TRUE)*($O$2:$O$937<O27))+COUNTIFS($L$2:L27,L27,$O$2:O27,O27)-1,1+SUMPRODUCT(($L$2:$L$937=TRUE)*($P$2:$P$937>P27))+COUNTIFS($L$2:L27,L27,$P$2:P27,P27)-1,1+SUMPRODUCT(($L$2:$L$937=TRUE)*($Q$2:$Q$937>Q27))+COUNTIFS($L$2:L27,L27,$Q$2:Q27,Q27)-1,,,,,,1+SUMPRODUCT(($L$2:$L$937=TRUE)*($W$2:$W$937>W27))+COUNTIFS($L$2:L27,L27,$W$2:W27,W27)-1,)),"") -> 23 | D27: Yordan Alvarez | E27: =IFERROR(INDEX('Auction Log'!$C$4:$C$603,MATCH(D27,'Auction Log'!$B$4:$B$603,0)),"") ->  | F27: =IFERROR(INDEX('Auction-Rank'!$C$2:$C$955,MATCH(D27,'Auction-Rank'!$A$2:$A$955,0)),"") -> DH | H27: DH | I27: =IF(AND(F27="OF",'Guts-2'!$N$9=0),IF(MAX(Pre!J27:L27)=Pre!J27,"LF",IF(MAX(Pre!J27:L27)=Pre!K27,"CF",IF(MAX(Pre!J27:L27)=Pre!L27,"RF","LF"))),"") ->  | J27: =IFERROR(INDEX('Auction-Rank'!$U$2:$U$955,MATCH(D27,'Auction-Rank'!$A$2:$A$955,0)),TRUE) -> TRUE | K27: FALSE | L27: =IF(J27=FALSE,FALSE,IF(AND('Your Points Auction'!$R$6="Hide Drafted Players",K27=TRUE),FALSE,CHOOSE($I$1,TRUE,OR(RIGHT('Your Points Auction'!$R$5,LEN('Your Points Auction'!$R$5)-11)=H27,IF(RIGHT('Your Points Auction'!$R$5,LEN('Your Points Auction'!$R$5)-11)<>"C",NOT(ISERROR(SEARCH(RIGHT('Your Points Auction'!$R$5,LEN('Your Points Auction'!$R$5)-11),Pre!$CB27))),AND(NOT(ISERROR(SEARCH(RIGHT('Your Points Auction'!$R$5,LEN('Your Points Auction'!$R$5)-11),Pre!$CB27))),ISERROR(SEARCH("CF",Pre!$CB27)))),RIGHT('Your Points Auction'!$R$5,LEN('Your Points Auction'!$R$5)-11)=Pre!BP27),OR(H27="1B",H27="3B",ISNUMBER(SEARCH("1B",Pre!$CB27)),ISNUMBER(SEARCH("3B",Pre!$CB27))),OR(H27="2B",H27="SS",ISNUMBER(SEARCH("2B",Pre!$CB27)),ISNUMBER(SEARCH("SS",Pre!$CB27))),OR(H27="1B",H27="3B",H27="2B",H27="SS",ISNUMBER(SEARCH("1B",Pre!$CB27)),ISNUMBER(SEARCH("3B",Pre!$CB27)),ISNUMBER(SEARCH("2B",Pre!$CB27)),ISNUMBER(SEARCH("SS",Pre!$CB27))),OR(H27="SP",H27="RP",ISNUMBER(SEARCH("SP",Pre!$CB27)),ISNUMBER(SEARCH("RP",Pre!$CB27))),AND(H27<>"RP",H27<>"SP",NOT(ISNUMBER(SEARCH("RP",Pre!$CB27))),NOT(ISNUMBER(SEARCH("SP",Pre!$CB27)))),OR(H27="SP",H27="RP",ISNUMBER(SEARCH("SP",Pre!$CB27)),ISNUMBER(SEARCH("RP",Pre!$CB27)))))) -> TRUE | M27: =IF(LEFT($D27,15)="Unlisted Player",-1,IF('Inflation-Tracking'!J30="",-9999,'Inflation-Tracking'!J30)) -> 28.68458111 | N27: =IF(J27=FALSE,-0.5,IF(LEFT($D27,15)="Unlisted Player",-1,IF(Pre!C27<>"",Pre!C27,0))) -> 974.0581551 | O27: =IF('Auction-Rank'!W27="",9999,'Auction-Rank'!W27) -> 22 | P27: =IFERROR(IF(LEFT($D27,15)="Unlisted Player",-1001,IF(OR(H27="SP",H27="RP"),N27/VLOOKUP($D27,'Filter-P'!$A$1:$AC$356,4,FALSE),-1000)),-1000) -> -1000 | Q27: =IFERROR(IF(LEFT($D27,15)="Unlisted Player",-1001,IF(OR(H27="SP",H27="RP"),-1000,N27/VLOOKUP($D27,'Filter-H'!$A$1:$AE$428,2,FALSE))),-1000) -> 1.577166702 | R27: =IF(H27="",#N/A,H27&"."&1+SUMPRODUCT(($H$2:$H$937=H27)*($N$2:$N$937>N27))+COUNTIFS($N$2:N27,N27,$H$2:H27,H27)-1) -> DH.2 | S27: =IF(H27="",#N/A,1+SUMPRODUCT(($H$2:$H$937=H27)*($N$2:$N$937>N27))+COUNTIFS($N$2:N27,N27,$H$2:H27,H27)-1) -> 2 | U27: =IFERROR(Pre!DL27,"") -> Bench | V27: =IFERROR(ROUND(INDEX('Inflation-Tracking'!$J$5:$J$1040,MATCH($D27,'Inflation-Tracking'!$A$5:$A$1040,0)),1),-999) -> 28.7 | W27: =IFERROR(IF($N27=0,-1000,IF(LEFT($D27,15)="Unlisted Player",-1001,IF(OR($H27="SP",$H27="RP"),INDEX('Filter-P'!$M$3:$M$520,MATCH($D27,'Filter-P'!$A$3:$A$520,0),1),INDEX('Filter-H'!$U$3:$U$500,MATCH($D27,'Filter-H'!$A$3:$A$500,0),1)))),-1000) -> 322.4794622
A28: Manny Machado | B28: =IFERROR(INDEX($A$1:$A$936,SMALL(IF($A$1:$A$936<>"",ROW($A$1:$A$936)),ROW(A27))),"") -> Manny Machado | C28: =IFERROR(IF(L28=FALSE,"",CHOOSE(MATCH(RIGHT('Your Points Auction'!$R$4,LEN('Your Points Auction'!$R$4)-8),$M$1:$W$1,0),1+SUMPRODUCT(($L$2:$L$937=TRUE)*($M$2:$M$937>M28))+COUNTIFS($L$2:L28,L28,$M$2:M28,M28)-1,1+SUMPRODUCT(($L$2:$L$937=TRUE)*($N$2:$N$937>N28))+COUNTIFS($L$2:L28,L28,$N$2:N28,N28)-1,1+SUMPRODUCT(($L$2:$L$937=TRUE)*($O$2:$O$937<O28))+COUNTIFS($L$2:L28,L28,$O$2:O28,O28)-1,1+SUMPRODUCT(($L$2:$L$937=TRUE)*($P$2:$P$937>P28))+COUNTIFS($L$2:L28,L28,$P$2:P28,P28)-1,1+SUMPRODUCT(($L$2:$L$937=TRUE)*($Q$2:$Q$937>Q28))+COUNTIFS($L$2:L28,L28,$Q$2:Q28,Q28)-1,,,,,,1+SUMPRODUCT(($L$2:$L$937=TRUE)*($W$2:$W$937>W28))+COUNTIFS($L$2:L28,L28,$W$2:W28,W28)-1,)),"") -> 260 | D28: Adbert Alzolay | E28: =IFERROR(INDEX('Auction Log'!$C$4:$C$603,MATCH(D28,'Auction Log'!$B$4:$B$603,0)),"") ->  | F28: =IFERROR(INDEX('Auction-Rank'!$C$2:$C$955,MATCH(D28,'Auction-Rank'!$A$2:$A$955,0)),"") -> RP | H28: RP | I28: =IF(AND(F28="OF",'Guts-2'!$N$9=0),IF(MAX(Pre!J28:L28)=Pre!J28,"LF",IF(MAX(Pre!J28:L28)=Pre!K28,"CF",IF(MAX(Pre!J28:L28)=Pre!L28,"RF","LF"))),"") ->  | J28: =IFERROR(INDEX('Auction-Rank'!$U$2:$U$955,MATCH(D28,'Auction-Rank'!$A$2:$A$955,0)),TRUE) -> TRUE | K28: FALSE | L28: =IF(J28=FALSE,FALSE,IF(AND('Your Points Auction'!$R$6="Hide Drafted Players",K28=TRUE),FALSE,CHOOSE($I$1,TRUE,OR(RIGHT('Your Points Auction'!$R$5,LEN('Your Points Auction'!$R$5)-11)=H28,IF(RIGHT('Your Points Auction'!$R$5,LEN('Your Points Auction'!$R$5)-11)<>"C",NOT(ISERROR(SEARCH(RIGHT('Your Points Auction'!$R$5,LEN('Your Points Auction'!$R$5)-11),Pre!$CB28))),AND(NOT(ISERROR(SEARCH(RIGHT('Your Points Auction'!$R$5,LEN('Your Points Auction'!$R$5)-11),Pre!$CB28))),ISERROR(SEARCH("CF",Pre!$CB28)))),RIGHT('Your Points Auction'!$R$5,LEN('Your Points Auction'!$R$5)-11)=Pre!BP28),OR(H28="1B",H28="3B",ISNUMBER(SEARCH("1B",Pre!$CB28)),ISNUMBER(SEARCH("3B",Pre!$CB28))),OR(H28="2B",H28="SS",ISNUMBER(SEARCH("2B",Pre!$CB28)),ISNUMBER(SEARCH("SS",Pre!$CB28))),OR(H28="1B",H28="3B",H28="2B",H28="SS",ISNUMBER(SEARCH("1B",Pre!$CB28)),ISNUMBER(SEARCH("3B",Pre!$CB28)),ISNUMBER(SEARCH("2B",Pre!$CB28)),ISNUMBER(SEARCH("SS",Pre!$CB28))),OR(H28="SP",H28="RP",ISNUMBER(SEARCH("SP",Pre!$CB28)),ISNUMBER(SEARCH("RP",Pre!$CB28))),AND(H28<>"RP",H28<>"SP",NOT(ISNUMBER(SEARCH("RP",Pre!$CB28))),NOT(ISNUMBER(SEARCH("SP",Pre!$CB28)))),OR(H28="SP",H28="RP",ISNUMBER(SEARCH("SP",Pre!$CB28)),ISNUMBER(SEARCH("RP",Pre!$CB28)))))) -> TRUE | M28: =IF(LEFT($D28,15)="Unlisted Player",-1,IF('Inflation-Tracking'!J31="",-9999,'Inflation-Tracking'!J31)) -> 1.361259089 | N28: =IF(J28=FALSE,-0.5,IF(LEFT($D28,15)="Unlisted Player",-1,IF(Pre!C28<>"",Pre!C28,0))) -> 375.1994451 | O28: =IF('Auction-Rank'!W28="",9999,'Auction-Rank'!W28) -> 465 | P28: =IFERROR(IF(LEFT($D28,15)="Unlisted Player",-1001,IF(OR(H28="SP",H28="RP"),N28/VLOOKUP($D28,'Filter-P'!$A$1:$AC$356,4,FALSE),-1000)),-1000) -> 3.991483459 | Q28: =IFERROR(IF(LEFT($D28,15)="Unlisted Player",-1001,IF(OR(H28="SP",H28="RP"),-1000,N28/VLOOKUP($D28,'Filter-H'!$A$1:$AE$428,2,FALSE))),-1000) -> -1000 | R28: =IF(H28="",#N/A,H28&"."&1+SUMPRODUCT(($H$2:$H$937=H28)*($N$2:$N$937>N28))+COUNTIFS($N$2:N28,N28,$H$2:H28,H28)-1) -> RP.58 | S28: =IF(H28="",#N/A,1+SUMPRODUCT(($H$2:$H$937=H28)*($N$2:$N$937>N28))+COUNTIFS($N$2:N28,N28,$H$2:H28,H28)-1) -> 58 | U28: =IFERROR(Pre!DL28,"") -> Bench | V28: =IFERROR(ROUND(INDEX('Inflation-Tracking'!$J$5:$J$1040,MATCH($D28,'Inflation-Tracking'!$A$5:$A$1040,0)),1),-999) -> 1.4 | W28: =IFERROR(IF($N28=0,-1000,IF(LEFT($D28,15)="Unlisted Player",-1001,IF(OR($H28="SP",$H28="RP"),INDEX('Filter-P'!$M$3:$M$520,MATCH($D28,'Filter-P'!$A$3:$A$520,0),1),INDEX('Filter-H'!$U$3:$U$500,MATCH($D28,'Filter-H'!$A$3:$A$500,0),1)))),-1000) -> 5.48485369
A29: Jorge Polanco | B29: =IFERROR(INDEX($A$1:$A$936,SMALL(IF($A$1:$A$936<>"",ROW($A$1:$A$936)),ROW(A28))),"") -> Jorge Polanco | C29: =IFERROR(IF(L29=FALSE,"",CHOOSE(MATCH(RIGHT('Your Points Auction'!$R$4,LEN('Your Points Auction'!$R$4)-8),$M$1:$W$1,0),1+SUMPRODUCT(($L$2:$L$937=TRUE)*($M$2:$M$937>M29))+COUNTIFS($L$2:L29,L29,$M$2:M29,M29)-1,1+SUMPRODUCT(($L$2:$L$937=TRUE)*($N$2:$N$937>N29))+COUNTIFS($L$2:L29,L29,$N$2:N29,N29)-1,1+SUMPRODUCT(($L$2:$L$937=TRUE)*($O$2:$O$937<O29))+COUNTIFS($L$2:L29,L29,$O$2:O29,O29)-1,1+SUMPRODUCT(($L$2:$L$937=TRUE)*($P$2:$P$937>P29))+COUNTIFS($L$2:L29,L29,$P$2:P29,P29)-1,1+SUMPRODUCT(($L$2:$L$937=TRUE)*($Q$2:$Q$937>Q29))+COUNTIFS($L$2:L29,L29,$Q$2:Q29,Q29)-1,,,,,,1+SUMPRODUCT(($L$2:$L$937=TRUE)*($W$2:$W$937>W29))+COUNTIFS($L$2:L29,L29,$W$2:W29,W29)-1,)),"") -> 268 | D29: Brian Anderson | E29: =IFERROR(INDEX('Auction Log'!$C$4:$C$603,MATCH(D29,'Auction Log'!$B$4:$B$603,0)),"") ->  | F29: =IFERROR(INDEX('Auction-Rank'!$C$2:$C$955,MATCH(D29,'Auction-Rank'!$A$2:$A$955,0)),"") -> 3B | H29: 3B | I29: =IF(AND(F29="OF",'Guts-2'!$N$9=0),IF(MAX(Pre!J29:L29)=Pre!J29,"LF",IF(MAX(Pre!J29:L29)=Pre!K29,"CF",IF(MAX(Pre!J29:L29)=Pre!L29,"RF","LF"))),"") ->  | J29: =IFERROR(INDEX('Auction-Rank'!$U$2:$U$955,MATCH(D29,'Auction-Rank'!$A$2:$A$955,0)),TRUE) -> TRUE | K29: FALSE | L29: =IF(J29=FALSE,FALSE,IF(AND('Your Points Auction'!$R$6="Hide Drafted Players",K29=TRUE),FALSE,CHOOSE($I$1,TRUE,OR(RIGHT('Your Points Auction'!$R$5,LEN('Your Points Auction'!$R$5)-11)=H29,IF(RIGHT('Your Points Auction'!$R$5,LEN('Your Points Auction'!$R$5)-11)<>"C",NOT(ISERROR(SEARCH(RIGHT('Your Points Auction'!$R$5,LEN('Your Points Auction'!$R$5)-11),Pre!$CB29))),AND(NOT(ISERROR(SEARCH(RIGHT('Your Points Auction'!$R$5,LEN('Your Points Auction'!$R$5)-11),Pre!$CB29))),ISERROR(SEARCH("CF",Pre!$CB29)))),RIGHT('Your Points Auction'!$R$5,LEN('Your Points Auction'!$R$5)-11)=Pre!BP29),OR(H29="1B",H29="3B",ISNUMBER(SEARCH("1B",Pre!$CB29)),ISNUMBER(SEARCH("3B",Pre!$CB29))),OR(H29="2B",H29="SS",ISNUMBER(SEARCH("2B",Pre!$CB29)),ISNUMBER(SEARCH("SS",Pre!$CB29))),OR(H29="1B",H29="3B",H29="2B",H29="SS",ISNUMBER(SEARCH("1B",Pre!$CB29)),ISNUMBER(SEARCH("3B",Pre!$CB29)),ISNUMBER(SEARCH("2B",Pre!$CB29)),ISNUMBER(SEARCH("SS",Pre!$CB29))),OR(H29="SP",H29="RP",ISNUMBER(SEARCH("SP",Pre!$CB29)),ISNUMBER(SEARCH("RP",Pre!$CB29))),AND(H29<>"RP",H29<>"SP",NOT(ISNUMBER(SEARCH("RP",Pre!$CB29))),NOT(ISNUMBER(SEARCH("SP",Pre!$CB29)))),OR(H29="SP",H29="RP",ISNUMBER(SEARCH("SP",Pre!$CB29)),ISNUMBER(SEARCH("RP",Pre!$CB29)))))) -> TRUE | M29: =IF(LEFT($D29,15)="Unlisted Player",-1,IF('Inflation-Tracking'!J32="",-9999,'Inflation-Tracking'!J32)) -> 1.008582252 | N29: =IF(J29=FALSE,-0.5,IF(LEFT($D29,15)="Unlisted Player",-1,IF(Pre!C29<>"",Pre!C29,0))) -> 539.9146325 | O29: =IF('Auction-Rank'!W29="",9999,'Auction-Rank'!W29) -> 396 | P29: =IFERROR(IF(LEFT($D29,15)="Unlisted Player",-1001,IF(OR(H29="SP",H29="RP"),N29/VLOOKUP($D29,'Filter-P'!$A$1:$AC$356,4,FALSE),-1000)),-1000) -> -1000 | Q29: =IFERROR(IF(LEFT($D29,15)="Unlisted Player",-1001,IF(OR(H29="SP",H29="RP"),-1000,N29/VLOOKUP($D29,'Filter-H'!$A$1:$AE$428,2,FALSE))),-1000) -> 1.114720001 | R29: =IF(H29="",#N/A,H29&"."&1+SUMPRODUCT(($H$2:$H$937=H29)*($N$2:$N$937>N29))+COUNTIFS($N$2:N29,N29,$H$2:H29,H29)-1) -> 3B.18 | S29: =IF(H29="",#N/A,1+SUMPRODUCT(($H$2:$H$937=H29)*($N$2:$N$937>N29))+COUNTIFS($N$2:N29,N29,$H$2:H29,H29)-1) -> 18 | U29: =IFERROR(Pre!DL29,"") -> Bench | V29: =IFERROR(ROUND(INDEX('Inflation-Tracking'!$J$5:$J$1040,MATCH($D29,'Inflation-Tracking'!$A$5:$A$1040,0)),1),-999) -> 1 | W29: =IFERROR(IF($N29=0,-1000,IF(LEFT($D29,15)="Unlisted Player",-1001,IF(OR($H29="SP",$H29="RP"),INDEX('Filter-P'!$M$3:$M$520,MATCH($D29,'Filter-P'!$A$3:$A$520,0),1),INDEX('Filter-H'!$U$3:$U$500,MATCH($D29,'Filter-H'!$A$3:$A$500,0),1)))),-1000) -> -95.15209808
A30: Kris Bryant | B30: =IFERROR(INDEX($A$1:$A$936,SMALL(IF($A$1:$A$936<>"",ROW($A$1:$A$936)),ROW(A29))),"") -> Kris Bryant | C30: =IFERROR(IF(L30=FALSE,"",CHOOSE(MATCH(RIGHT('Your Points Auction'!$R$4,LEN('Your Points Auction'!$R$4)-8),$M$1:$W$1,0),1+SUMPRODUCT(($L$2:$L$937=TRUE)*($M$2:$M$937>M30))+COUNTIFS($L$2:L30,L30,$M$2:M30,M30)-1,1+SUMPRODUCT(($L$2:$L$937=TRUE)*($N$2:$N$937>N30))+COUNTIFS($L$2:L30,L30,$N$2:N30,N30)-1,1+SUMPRODUCT(($L$2:$L$937=TRUE)*($O$2:$O$937<O30))+COUNTIFS($L$2:L30,L30,$O$2:O30,O30)-1,1+SUMPRODUCT(($L$2:$L$937=TRUE)*($P$2:$P$937>P30))+COUNTIFS($L$2:L30,L30,$P$2:P30,P30)-1,1+SUMPRODUCT(($L$2:$L$937=TRUE)*($Q$2:$Q$937>Q30))+COUNTIFS($L$2:L30,L30,$Q$2:Q30,Q30)-1,,,,,,1+SUMPRODUCT(($L$2:$L$937=TRUE)*($W$2:$W$937>W30))+COUNTIFS($L$2:L30,L30,$W$2:W30,W30)-1,)),"") -> 262 | D30: Ian Anderson | E30: =IFERROR(INDEX('Auction Log'!$C$4:$C$603,MATCH(D30,'Auction Log'!$B$4:$B$603,0)),"") ->  | F30: =IFERROR(INDEX('Auction-Rank'!$C$2:$C$955,MATCH(D30,'Auction-Rank'!$A$2:$A$955,0)),"") -> SP | H30: SP | I30: =IF(AND(F30="OF",'Guts-2'!$N$9=0),IF(MAX(Pre!J30:L30)=Pre!J30,"LF",IF(MAX(Pre!J30:L30)=Pre!K30,"CF",IF(MAX(Pre!J30:L30)=Pre!L30,"RF","LF"))),"") ->  | J30: =IFERROR(INDEX('Auction-Rank'!$U$2:$U$955,MATCH(D30,'Auction-Rank'!$A$2:$A$955,0)),TRUE) -> TRUE | K30: FALSE | L30: =IF(J30=FALSE,FALSE,IF(AND('Your Points Auction'!$R$6="Hide Drafted Players",K30=TRUE),FALSE,CHOOSE($I$1,TRUE,OR(RIGHT('Your Points Auction'!$R$5,LEN('Your Points Auction'!$R$5)-11)=H30,IF(RIGHT('Your Points Auction'!$R$5,LEN('Your Points Auction'!$R$5)-11)<>"C",NOT(ISERROR(SEARCH(RIGHT('Your Points Auction'!$R$5,LEN('Your Points Auction'!$R$5)-11),Pre!$CB30))),AND(NOT(ISERROR(SEARCH(RIGHT('Your Points Auction'!$R$5,LEN('Your Points Auction'!$R$5)-11),Pre!$CB30))),ISERROR(SEARCH("CF",Pre!$CB30)))),RIGHT('Your Points Auction'!$R$5,LEN('Your Points Auction'!$R$5)-11)=Pre!BP30),OR(H30="1B",H30="3B",ISNUMBER(SEARCH("1B",Pre!$CB30)),ISNUMBER(SEARCH("3B",Pre!$CB30))),OR(H30="2B",H30="SS",ISNUMBER(SEARCH("2B",Pre!$CB30)),ISNUMBER(SEARCH("SS",Pre!$CB30))),OR(H30="1B",H30="3B",H30="2B",H30="SS",ISNUMBER(SEARCH("1B",Pre!$CB30)),ISNUMBER(SEARCH("3B",Pre!$CB30)),ISNUMBER(SEARCH("2B",Pre!$CB30)),ISNUMBER(SEARCH("SS",Pre!$CB30))),OR(H30="SP",H30="RP",ISNUMBER(SEARCH("SP",Pre!$CB30)),ISNUMBER(SEARCH("RP",Pre!$CB30))),AND(H30<>"RP",H30<>"SP",NOT(ISNUMBER(SEARCH("RP",Pre!$CB30))),NOT(ISNUMBER(SEARCH("SP",Pre!$CB30)))),OR(H30="SP",H30="RP",ISNUMBER(SEARCH("SP",Pre!$CB30)),ISNUMBER(SEARCH("RP",Pre!$CB30)))))) -> TRUE | M30: =IF(LEFT($D30,15)="Unlisted Player",-1,IF('Inflation-Tracking'!J33="",-9999,'Inflation-Tracking'!J33)) -> 1.30334998 | N30: =IF(J30=FALSE,-0.5,IF(LEFT($D30,15)="Unlisted Player",-1,IF(Pre!C30<>"",Pre!C30,0))) -> 586.7122577 | O30: =IF('Auction-Rank'!W30="",9999,'Auction-Rank'!W30) -> 136 | P30: =IFERROR(IF(LEFT($D30,15)="Unlisted Player",-1001,IF(OR(H30="SP",H30="RP"),N30/VLOOKUP($D30,'Filter-P'!$A$1:$AC$356,4,FALSE),-1000)),-1000) -> 3.991239848 | Q30: =IFERROR(IF(LEFT($D30,15)="Unlisted Player",-1001,IF(OR(H30="SP",H30="RP"),-1000,N30/VLOOKUP($D30,'Filter-H'!$A$1:$AE$428,2,FALSE))),-1000) -> -1000 | R30: =IF(H30="",#N/A,H30&"."&1+SUMPRODUCT(($H$2:$H$937=H30)*($N$2:$N$937>N30))+COUNTIFS($N$2:N30,N30,$H$2:H30,H30)-1) -> SP.60 | S30: =IF(H30="",#N/A,1+SUMPRODUCT(($H$2:$H$937=H30)*($N$2:$N$937>N30))+COUNTIFS($N$2:N30,N30,$H$2:H30,H30)-1) -> 60 | U30: =IFERROR(Pre!DL30,"") -> Bench | V30: =IFERROR(ROUND(INDEX('Inflation-Tracking'!$J$5:$J$1040,MATCH($D30,'Inflation-Tracking'!$A$5:$A$1040,0)),1),-999) -> 1.3 | W30: =IFERROR(IF($N30=0,-1000,IF(LEFT($D30,15)="Unlisted Player",-1001,IF(OR($H30="SP",$H30="RP"),INDEX('Filter-P'!$M$3:$M$520,MATCH($D30,'Filter-P'!$A$3:$A$520,0),1),INDEX('Filter-H'!$U$3:$U$500,MATCH($D30,'Filter-H'!$A$3:$A$500,0),1)))),-1000) -> 4.589612826
A31: Max Scherzer | B31: =IFERROR(INDEX($A$1:$A$936,SMALL(IF($A$1:$A$936<>"",ROW($A$1:$A$936)),ROW(A30))),"") -> Max Scherzer | C31: =IFERROR(IF(L31=FALSE,"",CHOOSE(MATCH(RIGHT('Your Points Auction'!$R$4,LEN('Your Points Auction'!$R$4)-8),$M$1:$W$1,0),1+SUMPRODUCT(($L$2:$L$937=TRUE)*($M$2:$M$937>M31))+COUNTIFS($L$2:L31,L31,$M$2:M31,M31)-1,1+SUMPRODUCT(($L$2:$L$937=TRUE)*($N$2:$N$937>N31))+COUNTIFS($L$2:L31,L31,$N$2:N31,N31)-1,1+SUMPRODUCT(($L$2:$L$937=TRUE)*($O$2:$O$937<O31))+COUNTIFS($L$2:L31,L31,$O$2:O31,O31)-1,1+SUMPRODUCT(($L$2:$L$937=TRUE)*($P$2:$P$937>P31))+COUNTIFS($L$2:L31,L31,$P$2:P31,P31)-1,1+SUMPRODUCT(($L$2:$L$937=TRUE)*($Q$2:$Q$937>Q31))+COUNTIFS($L$2:L31,L31,$Q$2:Q31,Q31)-1,,,,,,1+SUMPRODUCT(($L$2:$L$937=TRUE)*($W$2:$W$937>W31))+COUNTIFS($L$2:L31,L31,$W$2:W31,W31)-1,)),"") -> 496 | D31: Nick Anderson | E31: =IFERROR(INDEX('Auction Log'!$C$4:$C$603,MATCH(D31,'Auction Log'!$B$4:$B$603,0)),"") ->  | F31: =IFERROR(INDEX('Auction-Rank'!$C$2:$C$955,MATCH(D31,'Auction-Rank'!$A$2:$A$955,0)),"") -> RP | H31: RP | I31: =IF(AND(F31="OF",'Guts-2'!$N$9=0),IF(MAX(Pre!J31:L31)=Pre!J31,"LF",IF(MAX(Pre!J31:L31)=Pre!K31,"CF",IF(MAX(Pre!J31:L31)=Pre!L31,"RF","LF"))),"") ->  | J31: =IFERROR(INDEX('Auction-Rank'!$U$2:$U$955,MATCH(D31,'Auction-Rank'!$A$2:$A$955,0)),TRUE) -> TRUE | K31: FALSE | L31: =IF(J31=FALSE,FALSE,IF(AND('Your Points Auction'!$R$6="Hide Drafted Players",K31=TRUE),FALSE,CHOOSE($I$1,TRUE,OR(RIGHT('Your Points Auction'!$R$5,LEN('Your Points Auction'!$R$5)-11)=H31,IF(RIGHT('Your Points Auction'!$R$5,LEN('Your Points Auction'!$R$5)-11)<>"C",NOT(ISERROR(SEARCH(RIGHT('Your Points Auction'!$R$5,LEN('Your Points Auction'!$R$5)-11),Pre!$CB31))),AND(NOT(ISERROR(SEARCH(RIGHT('Your Points Auction'!$R$5,LEN('Your Points Auction'!$R$5)-11),Pre!$CB31))),ISERROR(SEARCH("CF",Pre!$CB31)))),RIGHT('Your Points Auction'!$R$5,LEN('Your Points Auction'!$R$5)-11)=Pre!BP31),OR(H31="1B",H31="3B",ISNUMBER(SEARCH("1B",Pre!$CB31)),ISNUMBER(SEARCH("3B",Pre!$CB31))),OR(H31="2B",H31="SS",ISNUMBER(SEARCH("2B",Pre!$CB31)),ISNUMBER(SEARCH("SS",Pre!$CB31))),OR(H31="1B",H31="3B",H31="2B",H31="SS",ISNUMBER(SEARCH("1B",Pre!$CB31)),ISNUMBER(SEARCH("3B",Pre!$CB31)),ISNUMBER(SEARCH("2B",Pre!$CB31)),ISNUMBER(SEARCH("SS",Pre!$CB31))),OR(H31="SP",H31="RP",ISNUMBER(SEARCH("SP",Pre!$CB31)),ISNUMBER(SEARCH("RP",Pre!$CB31))),AND(H31<>"RP",H31<>"SP",NOT(ISNUMBER(SEARCH("RP",Pre!$CB31))),NOT(ISNUMBER(SEARCH("SP",Pre!$CB31)))),OR(H31="SP",H31="RP",ISNUMBER(SEARCH("SP",Pre!$CB31)),ISNUMBER(SEARCH("RP",Pre!$CB31)))))) -> TRUE | M31: =IF(LEFT($D31,15)="Unlisted Player",-1,IF('Inflation-Tracking'!J34="",-9999,'Inflation-Tracking'!J34)) -> 1 | N31: =IF(J31=FALSE,-0.5,IF(LEFT($D31,15)="Unlisted Player",-1,IF(Pre!C31<>"",Pre!C31,0))) -> 0 | O31: =IF('Auction-Rank'!W31="",9999,'Auction-Rank'!W31) -> 572 | P31: =IFERROR(IF(LEFT($D31,15)="Unlisted Player",-1001,IF(OR(H31="SP",H31="RP"),N31/VLOOKUP($D31,'Filter-P'!$A$1:$AC$356,4,FALSE),-1000)),-1000) -> -1000 | Q31: =IFERROR(IF(LEFT($D31,15)="Unlisted Player",-1001,IF(OR(H31="SP",H31="RP"),-1000,N31/VLOOKUP($D31,'Filter-H'!$A$1:$AE$428,2,FALSE))),-1000) -> -1000 | R31: =IF(H31="",#N/A,H31&"."&1+SUMPRODUCT(($H$2:$H$937=H31)*($N$2:$N$937>N31))+COUNTIFS($N$2:N31,N31,$H$2:H31,H31)-1) -> RP.202 | S31: =IF(H31="",#N/A,1+SUMPRODUCT(($H$2:$H$937=H31)*($N$2:$N$937>N31))+COUNTIFS($N$2:N31,N31,$H$2:H31,H31)-1) -> 202 | U31: =IFERROR(Pre!DL31,"") -> Bench | V31: =IFERROR(ROUND(INDEX('Inflation-Tracking'!$J$5:$J$1040,MATCH($D31,'Inflation-Tracking'!$A$5:$A$1040,0)),1),-999) -> 1 | W31: =IFERROR(IF($N31=0,-1000,IF(LEFT($D31,15)="Unlisted Player",-1001,IF(OR($H31="SP",$H31="RP"),INDEX('Filter-P'!$M$3:$M$520,MATCH($D31,'Filter-P'!$A$3:$A$520,0),1),INDEX('Filter-H'!$U$3:$U$500,MATCH($D31,'Filter-H'!$A$3:$A$500,0),1)))),-1000) -> -1000
A32: Francisco Lindor | B32: =IFERROR(INDEX($A$1:$A$936,SMALL(IF($A$1:$A$936<>"",ROW($A$1:$A$936)),ROW(A31))),"") -> Francisco Lindor | C32: =IFERROR(IF(L32=FALSE,"",CHOOSE(MATCH(RIGHT('Your Points Auction'!$R$4,LEN('Your Points Auction'!$R$4)-8),$M$1:$W$1,0),1+SUMPRODUCT(($L$2:$L$937=TRUE)*($M$2:$M$937>M32))+COUNTIFS($L$2:L32,L32,$M$2:M32,M32)-1,1+SUMPRODUCT(($L$2:$L$937=TRUE)*($N$2:$N$937>N32))+COUNTIFS($L$2:L32,L32,$N$2:N32,N32)-1,1+SUMPRODUCT(($L$2:$L$937=TRUE)*($O$2:$O$937<O32))+COUNTIFS($L$2:L32,L32,$O$2:O32,O32)-1,1+SUMPRODUCT(($L$2:$L$937=TRUE)*($P$2:$P$937>P32))+COUNTIFS($L$2:L32,L32,$P$2:P32,P32)-1,1+SUMPRODUCT(($L$2:$L$937=TRUE)*($Q$2:$Q$937>Q32))+COUNTIFS($L$2:L32,L32,$Q$2:Q32,Q32)-1,,,,,,1+SUMPRODUCT(($L$2:$L$937=TRUE)*($W$2:$W$937>W32))+COUNTIFS($L$2:L32,L32,$W$2:W32,W32)-1,)),"") -> 43 | D32: Tim Anderson | E32: =IFERROR(INDEX('Auction Log'!$C$4:$C$603,MATCH(D32,'Auction Log'!$B$4:$B$603,0)),"") ->  | F32: =IFERROR(INDEX('Auction-Rank'!$C$2:$C$955,MATCH(D32,'Auction-Rank'!$A$2:$A$955,0)),"") -> SS | H32: SS | I32: =IF(AND(F32="OF",'Guts-2'!$N$9=0),IF(MAX(Pre!J32:L32)=Pre!J32,"LF",IF(MAX(Pre!J32:L32)=Pre!K32,"CF",IF(MAX(Pre!J32:L32)=Pre!L32,"RF","LF"))),"") ->  | J32: =IFERROR(INDEX('Auction-Rank'!$U$2:$U$955,MATCH(D32,'Auction-Rank'!$A$2:$A$955,0)),TRUE) -> TRUE | K32: FALSE | L32: =IF(J32=FALSE,FALSE,IF(AND('Your Points Auction'!$R$6="Hide Drafted Players",K32=TRUE),FALSE,CHOOSE($I$1,TRUE,OR(RIGHT('Your Points Auction'!$R$5,LEN('Your Points Auction'!$R$5)-11)=H32,IF(RIGHT('Your Points Auction'!$R$5,LEN('Your Points Auction'!$R$5)-11)<>"C",NOT(ISERROR(SEARCH(RIGHT('Your Points Auction'!$R$5,LEN('Your Points Auction'!$R$5)-11),Pre!$CB32))),AND(NOT(ISERROR(SEARCH(RIGHT('Your Points Auction'!$R$5,LEN('Your Points Auction'!$R$5)-11),Pre!$CB32))),ISERROR(SEARCH("CF",Pre!$CB32)))),RIGHT('Your Points Auction'!$R$5,LEN('Your Points Auction'!$R$5)-11)=Pre!BP32),OR(H32="1B",H32="3B",ISNUMBER(SEARCH("1B",Pre!$CB32)),ISNUMBER(SEARCH("3B",Pre!$CB32))),OR(H32="2B",H32="SS",ISNUMBER(SEARCH("2B",Pre!$CB32)),ISNUMBER(SEARCH("SS",Pre!$CB32))),OR(H32="1B",H32="3B",H32="2B",H32="SS",ISNUMBER(SEARCH("1B",Pre!$CB32)),ISNUMBER(SEARCH("3B",Pre!$CB32)),ISNUMBER(SEARCH("2B",Pre!$CB32)),ISNUMBER(SEARCH("SS",Pre!$CB32))),OR(H32="SP",H32="RP",ISNUMBER(SEARCH("SP",Pre!$CB32)),ISNUMBER(SEARCH("RP",Pre!$CB32))),AND(H32<>"RP",H32<>"SP",NOT(ISNUMBER(SEARCH("RP",Pre!$CB32))),NOT(ISNUMBER(SEARCH("SP",Pre!$CB32)))),OR(H32="SP",H32="RP",ISNUMBER(SEARCH("SP",Pre!$CB32)),ISNUMBER(SEARCH("RP",Pre!$CB32)))))) -> TRUE | M32: =IF(LEFT($D32,15)="Unlisted Player",-1,IF('Inflation-Tracking'!J35="",-9999,'Inflation-Tracking'!J35)) -> 21.71939566 | N32: =IF(J32=FALSE,-0.5,IF(LEFT($D32,15)="Unlisted Player",-1,IF(Pre!C32<>"",Pre!C32,0))) -> 768.8302264 | O32: =IF('Auction-Rank'!W32="",9999,'Auction-Rank'!W32) -> 28 | P32: =IFERROR(IF(LEFT($D32,15)="Unlisted Player",-1001,IF(OR(H32="SP",H32="RP"),N32/VLOOKUP($D32,'Filter-P'!$A$1:$AC$356,4,FALSE),-1000)),-1000) -> -1000 | Q32: =IFERROR(IF(LEFT($D32,15)="Unlisted Player",-1001,IF(OR(H32="SP",H32="RP"),-1000,N32/VLOOKUP($D32,'Filter-H'!$A$1:$AE$428,2,FALSE))),-1000) -> 1.218334881 | R32: =IF(H32="",#N/A,H32&"."&1+SUMPRODUCT(($H$2:$H$937=H32)*($N$2:$N$937>N32))+COUNTIFS($N$2:N32,N32,$H$2:H32,H32)-1) -> SS.12 | S32: =IF(H32="",#N/A,1+SUMPRODUCT(($H$2:$H$937=H32)*($N$2:$N$937>N32))+COUNTIFS($N$2:N32,N32,$H$2:H32,H32)-1) -> 12 | U32: =IFERROR(Pre!DL32,"") -> Bench | V32: =IFERROR(ROUND(INDEX('Inflation-Tracking'!$J$5:$J$1040,MATCH($D32,'Inflation-Tracking'!$A$5:$A$1040,0)),1),-999) -> 21.7 | W32: =IFERROR(IF($N32=0,-1000,IF(LEFT($D32,15)="Unlisted Player",-1001,IF(OR($H32="SP",$H32="RP"),INDEX('Filter-P'!$M$3:$M$520,MATCH($D32,'Filter-P'!$A$3:$A$520,0),1),INDEX('Filter-H'!$U$3:$U$500,MATCH($D32,'Filter-H'!$A$3:$A$500,0),1)))),-1000) -> 241.3214426
A33: Corbin Burnes | B33: =IFERROR(INDEX($A$1:$A$936,SMALL(IF($A$1:$A$936<>"",ROW($A$1:$A$936)),ROW(A32))),"") -> Corbin Burnes | C33: =IFERROR(IF(L33=FALSE,"",CHOOSE(MATCH(RIGHT('Your Points Auction'!$R$4,LEN('Your Points Auction'!$R$4)-8),$M$1:$W$1,0),1+SUMPRODUCT(($L$2:$L$937=TRUE)*($M$2:$M$937>M33))+COUNTIFS($L$2:L33,L33,$M$2:M33,M33)-1,1+SUMPRODUCT(($L$2:$L$937=TRUE)*($N$2:$N$937>N33))+COUNTIFS($L$2:L33,L33,$N$2:N33,N33)-1,1+SUMPRODUCT(($L$2:$L$937=TRUE)*($O$2:$O$937<O33))+COUNTIFS($L$2:L33,L33,$O$2:O33,O33)-1,1+SUMPRODUCT(($L$2:$L$937=TRUE)*($P$2:$P$937>P33))+COUNTIFS($L$2:L33,L33,$P$2:P33,P33)-1,1+SUMPRODUCT(($L$2:$L$937=TRUE)*($Q$2:$Q$937>Q33))+COUNTIFS($L$2:L33,L33,$Q$2:Q33,Q33)-1,,,,,,1+SUMPRODUCT(($L$2:$L$937=TRUE)*($W$2:$W$937>W33))+COUNTIFS($L$2:L33,L33,$W$2:W33,W33)-1,)),"") -> 497 | D33: Tyler Anderson | E33: =IFERROR(INDEX('Auction Log'!$C$4:$C$603,MATCH(D33,'Auction Log'!$B$4:$B$603,0)),"") ->  | F33: =IFERROR(INDEX('Auction-Rank'!$C$2:$C$955,MATCH(D33,'Auction-Rank'!$A$2:$A$955,0)),"") -> RP | H33: RP | I33: =IF(AND(F33="OF",'Guts-2'!$N$9=0),IF(MAX(Pre!J33:L33)=Pre!J33,"LF",IF(MAX(Pre!J33:L33)=Pre!K33,"CF",IF(MAX(Pre!J33:L33)=Pre!L33,"RF","LF"))),"") ->  | J33: =IFERROR(INDEX('Auction-Rank'!$U$2:$U$955,MATCH(D33,'Auction-Rank'!$A$2:$A$955,0)),TRUE) -> TRUE | K33: FALSE | L33: =IF(J33=FALSE,FALSE,IF(AND('Your Points Auction'!$R$6="Hide Drafted Players",K33=TRUE),FALSE,CHOOSE($I$1,TRUE,OR(RIGHT('Your Points Auction'!$R$5,LEN('Your Points Auction'!$R$5)-11)=H33,IF(RIGHT('Your Points Auction'!$R$5,LEN('Your Points Auction'!$R$5)-11)<>"C",NOT(ISERROR(SEARCH(RIGHT('Your Points Auction'!$R$5,LEN('Your Points Auction'!$R$5)-11),Pre!$CB33))),AND(NOT(ISERROR(SEARCH(RIGHT('Your Points Auction'!$R$5,LEN('Your Points Auction'!$R$5)-11),Pre!$CB33))),ISERROR(SEARCH("CF",Pre!$CB33)))),RIGHT('Your Points Auction'!$R$5,LEN('Your Points Auction'!$R$5)-11)=Pre!BP33),OR(H33="1B",H33="3B",ISNUMBER(SEARCH("1B",Pre!$CB33)),ISNUMBER(SEARCH("3B",Pre!$CB33))),OR(H33="2B",H33="SS",ISNUMBER(SEARCH("2B",Pre!$CB33)),ISNUMBER(SEARCH("SS",Pre!$CB33))),OR(H33="1B",H33="3B",H33="2B",H33="SS",ISNUMBER(SEARCH("1B",Pre!$CB33)),ISNUMBER(SEARCH("3B",Pre!$CB33)),ISNUMBER(SEARCH("2B",Pre!$CB33)),ISNUMBER(SEARCH("SS",Pre!$CB33))),OR(H33="SP",H33="RP",ISNUMBER(SEARCH("SP",Pre!$CB33)),ISNUMBER(SEARCH("RP",Pre!$CB33))),AND(H33<>"RP",H33<>"SP",NOT(ISNUMBER(SEARCH("RP",Pre!$CB33))),NOT(ISNUMBER(SEARCH("SP",Pre!$CB33)))),OR(H33="SP",H33="RP",ISNUMBER(SEARCH("SP",Pre!$CB33)),ISNUMBER(SEARCH("RP",Pre!$CB33)))))) -> TRUE | M33: =IF(LEFT($D33,15)="Unlisted Player",-1,IF('Inflation-Tracking'!J36="",-9999,'Inflation-Tracking'!J36)) -> 1 | N33: =IF(J33=FALSE,-0.5,IF(LEFT($D33,15)="Unlisted Player",-1,IF(Pre!C33<>"",Pre!C33,0))) -> 310.5826607 | O33: =IF('Auction-Rank'!W33="",9999,'Auction-Rank'!W33) -> 535 | P33: =IFERROR(IF(LEFT($D33,15)="Unlisted Player",-1001,IF(OR(H33="SP",H33="RP"),N33/VLOOKUP($D33,'Filter-P'!$A$1:$AC$356,4,FALSE),-1000)),-1000) -> 2.875765376 | Q33: =IFERROR(IF(LEFT($D33,15)="Unlisted Player",-1001,IF(OR(H33="SP",H33="RP"),-1000,N33/VLOOKUP($D33,'Filter-H'!$A$1:$AE$428,2,FALSE))),-1000) -> -1000 | R33: =IF(H33="",#N/A,H33&"."&1+SUMPRODUCT(($H$2:$H$937=H33)*($N$2:$N$937>N33))+COUNTIFS($N$2:N33,N33,$H$2:H33,H33)-1) -> RP.104 | S33: =IF(H33="",#N/A,1+SUMPRODUCT(($H$2:$H$937=H33)*($N$2:$N$937>N33))+COUNTIFS($N$2:N33,N33,$H$2:H33,H33)-1) -> 104 | U33: =IFERROR(Pre!DL33,"") -> Bench | V33: =IFERROR(ROUND(INDEX('Inflation-Tracking'!$J$5:$J$1040,MATCH($D33,'Inflation-Tracking'!$A$5:$A$1040,0)),1),-999) -> 1 | W33: =IFERROR(IF($N33=0,-1000,IF(LEFT($D33,15)="Unlisted Player",-1001,IF(OR($H33="SP",$H33="RP"),INDEX('Filter-P'!$M$3:$M$520,MATCH($D33,'Filter-P'!$A$3:$A$520,0),1),INDEX('Filter-H'!$U$3:$U$500,MATCH($D33,'Filter-H'!$A$3:$A$500,0),1)))),-1000) -> -59.13193078
A34: Austin Riley | B34: =IFERROR(INDEX($A$1:$A$936,SMALL(IF($A$1:$A$936<>"",ROW($A$1:$A$936)),ROW(A33))),"") -> Austin Riley | C34: =IFERROR(IF(L34=FALSE,"",CHOOSE(MATCH(RIGHT('Your Points Auction'!$R$4,LEN('Your Points Auction'!$R$4)-8),$M$1:$W$1,0),1+SUMPRODUCT(($L$2:$L$937=TRUE)*($M$2:$M$937>M34))+COUNTIFS($L$2:L34,L34,$M$2:M34,M34)-1,1+SUMPRODUCT(($L$2:$L$937=TRUE)*($N$2:$N$937>N34))+COUNTIFS($L$2:L34,L34,$N$2:N34,N34)-1,1+SUMPRODUCT(($L$2:$L$937=TRUE)*($O$2:$O$937<O34))+COUNTIFS($L$2:L34,L34,$O$2:O34,O34)-1,1+SUMPRODUCT(($L$2:$L$937=TRUE)*($P$2:$P$937>P34))+COUNTIFS($L$2:L34,L34,$P$2:P34,P34)-1,1+SUMPRODUCT(($L$2:$L$937=TRUE)*($Q$2:$Q$937>Q34))+COUNTIFS($L$2:L34,L34,$Q$2:Q34,Q34)-1,,,,,,1+SUMPRODUCT(($L$2:$L$937=TRUE)*($W$2:$W$937>W34))+COUNTIFS($L$2:L34,L34,$W$2:W34,W34)-1,)),"") -> 269 | D34: Elvis Andrus | E34: =IFERROR(INDEX('Auction Log'!$C$4:$C$603,MATCH(D34,'Auction Log'!$B$4:$B$603,0)),"") ->  | F34: =IFERROR(INDEX('Auction-Rank'!$C$2:$C$955,MATCH(D34,'Auction-Rank'!$A$2:$A$955,0)),"") -> SS | H34: SS | I34: =IF(AND(F34="OF",'Guts-2'!$N$9=0),IF(MAX(Pre!J34:L34)=Pre!J34,"LF",IF(MAX(Pre!J34:L34)=Pre!K34,"CF",IF(MAX(Pre!J34:L34)=Pre!L34,"RF","LF"))),"") ->  | J34: =IFERROR(INDEX('Auction-Rank'!$U$2:$U$955,MATCH(D34,'Auction-Rank'!$A$2:$A$955,0)),TRUE) -> TRUE | K34: FALSE | L34: =IF(J34=FALSE,FALSE,IF(AND('Your Points Auction'!$R$6="Hide Drafted Players",K34=TRUE),FALSE,CHOOSE($I$1,TRUE,OR(RIGHT('Your Points Auction'!$R$5,LEN('Your Points Auction'!$R$5)-11)=H34,IF(RIGHT('Your Points Auction'!$R$5,LEN('Your Points Auction'!$R$5)-11)<>"C",NOT(ISERROR(SEARCH(RIGHT('Your Points Auction'!$R$5,LEN('Your Points Auction'!$R$5)-11),Pre!$CB34))),AND(NOT(ISERROR(SEARCH(RIGHT('Your Points Auction'!$R$5,LEN('Your Points Auction'!$R$5)-11),Pre!$CB34))),ISERROR(SEARCH("CF",Pre!$CB34)))),RIGHT('Your Points Auction'!$R$5,LEN('Your Points Auction'!$R$5)-11)=Pre!BP34),OR(H34="1B",H34="3B",ISNUMBER(SEARCH("1B",Pre!$CB34)),ISNUMBER(SEARCH("3B",Pre!$CB34))),OR(H34="2B",H34="SS",ISNUMBER(SEARCH("2B",Pre!$CB34)),ISNUMBER(SEARCH("SS",Pre!$CB34))),OR(H34="1B",H34="3B",H34="2B",H34="SS",ISNUMBER(SEARCH("1B",Pre!$CB34)),ISNUMBER(SEARCH("3B",Pre!$CB34)),ISNUMBER(SEARCH("2B",Pre!$CB34)),ISNUMBER(SEARCH("SS",Pre!$CB34))),OR(H34="SP",H34="RP",ISNUMBER(SEARCH("SP",Pre!$CB34)),ISNUMBER(SEARCH("RP",Pre!$CB34))),AND(H34<>"RP",H34<>"SP",NOT(ISNUMBER(SEARCH("RP",Pre!$CB34))),NOT(ISNUMBER(SEARCH("SP",Pre!$CB34)))),OR(H34="SP",H34="RP",ISNUMBER(SEARCH("SP",Pre!$CB34)),ISNUMBER(SEARCH("RP",Pre!$CB34)))))) -> TRUE | M34: =IF(LEFT($D34,15)="Unlisted Player",-1,IF('Inflation-Tracking'!J37="",-9999,'Inflation-Tracking'!J37)) -> 1.008582252 | N34: =IF(J34=FALSE,-0.5,IF(LEFT($D34,15)="Unlisted Player",-1,IF(Pre!C34<>"",Pre!C34,0))) -> 457.5952043 | O34: =IF('Auction-Rank'!W34="",9999,'Auction-Rank'!W34) -> 544 | P34: =IFERROR(IF(LEFT($D34,15)="Unlisted Player",-1001,IF(OR(H34="SP",H34="RP"),N34/VLOOKUP($D34,'Filter-P'!$A$1:$AC$356,4,FALSE),-1000)),-1000) -> -1000 | Q34: =IFERROR(IF(LEFT($D34,15)="Unlisted Player",-1001,IF(OR(H34="SP",H34="RP"),-1000,N34/VLOOKUP($D34,'Filter-H'!$A$1:$AE$428,2,FALSE))),-1000) -> 0.8883618798 | R34: =IF(H34="",#N/A,H34&"."&1+SUMPRODUCT(($H$2:$H$937=H34)*($N$2:$N$937>N34))+COUNTIFS($N$2:N34,N34,$H$2:H34,H34)-1) -> SS.43 | S34: =IF(H34="",#N/A,1+SUMPRODUCT(($H$2:$H$937=H34)*($N$2:$N$937>N34))+COUNTIFS($N$2:N34,N34,$H$2:H34,H34)-1) -> 43 | U34: =IFERROR(Pre!DL34,"") -> Bench | V34: =IFERROR(ROUND(INDEX('Inflation-Tracking'!$J$5:$J$1040,MATCH($D34,'Inflation-Tracking'!$A$5:$A$1040,0)),1),-999) -> 1 | W34: =IFERROR(IF($N34=0,-1000,IF(LEFT($D34,15)="Unlisted Player",-1001,IF(OR($H34="SP",$H34="RP"),INDEX('Filter-P'!$M$3:$M$520,MATCH($D34,'Filter-P'!$A$3:$A$520,0),1),INDEX('Filter-H'!$U$3:$U$500,MATCH($D34,'Filter-H'!$A$3:$A$500,0),1)))),-1000) -> -69.91357949
A35: Ozzie Albies | B35: =IFERROR(INDEX($A$1:$A$936,SMALL(IF($A$1:$A$936<>"",ROW($A$1:$A$936)),ROW(A34))),"") -> Ozzie Albies | C35: =IFERROR(IF(L35=FALSE,"",CHOOSE(MATCH(RIGHT('Your Points Auction'!$R$4,LEN('Your Points Auction'!$R$4)-8),$M$1:$W$1,0),1+SUMPRODUCT(($L$2:$L$937=TRUE)*($M$2:$M$937>M35))+COUNTIFS($L$2:L35,L35,$M$2:M35,M35)-1,1+SUMPRODUCT(($L$2:$L$937=TRUE)*($N$2:$N$937>N35))+COUNTIFS($L$2:L35,L35,$N$2:N35,N35)-1,1+SUMPRODUCT(($L$2:$L$937=TRUE)*($O$2:$O$937<O35))+COUNTIFS($L$2:L35,L35,$O$2:O35,O35)-1,1+SUMPRODUCT(($L$2:$L$937=TRUE)*($P$2:$P$937>P35))+COUNTIFS($L$2:L35,L35,$P$2:P35,P35)-1,1+SUMPRODUCT(($L$2:$L$937=TRUE)*($Q$2:$Q$937>Q35))+COUNTIFS($L$2:L35,L35,$Q$2:Q35,Q35)-1,,,,,,1+SUMPRODUCT(($L$2:$L$937=TRUE)*($W$2:$W$937>W35))+COUNTIFS($L$2:L35,L35,$W$2:W35,W35)-1,)),"") -> 498 | D35: Miguel Andujar | E35: =IFERROR(INDEX('Auction Log'!$C$4:$C$603,MATCH(D35,'Auction Log'!$B$4:$B$603,0)),"") ->  | F35: =IFERROR(INDEX('Auction-Rank'!$C$2:$C$955,MATCH(D35,'Auction-Rank'!$A$2:$A$955,0)),"") -> OF | H35: OF | I35: =IF(AND(F35="OF",'Guts-2'!$N$9=0),IF(MAX(Pre!J35:L35)=Pre!J35,"LF",IF(MAX(Pre!J35:L35)=Pre!K35,"CF",IF(MAX(Pre!J35:L35)=Pre!L35,"RF","LF"))),"") ->  | J35: =IFERROR(INDEX('Auction-Rank'!$U$2:$U$955,MATCH(D35,'Auction-Rank'!$A$2:$A$955,0)),TRUE) -> TRUE | K35: FALSE | L35: =IF(J35=FALSE,FALSE,IF(AND('Your Points Auction'!$R$6="Hide Drafted Players",K35=TRUE),FALSE,CHOOSE($I$1,TRUE,OR(RIGHT('Your Points Auction'!$R$5,LEN('Your Points Auction'!$R$5)-11)=H35,IF(RIGHT('Your Points Auction'!$R$5,LEN('Your Points Auction'!$R$5)-11)<>"C",NOT(ISERROR(SEARCH(RIGHT('Your Points Auction'!$R$5,LEN('Your Points Auction'!$R$5)-11),Pre!$CB35))),AND(NOT(ISERROR(SEARCH(RIGHT('Your Points Auction'!$R$5,LEN('Your Points Auction'!$R$5)-11),Pre!$CB35))),ISERROR(SEARCH("CF",Pre!$CB35)))),RIGHT('Your Points Auction'!$R$5,LEN('Your Points Auction'!$R$5)-11)=Pre!BP35),OR(H35="1B",H35="3B",ISNUMBER(SEARCH("1B",Pre!$CB35)),ISNUMBER(SEARCH("3B",Pre!$CB35))),OR(H35="2B",H35="SS",ISNUMBER(SEARCH("2B",Pre!$CB35)),ISNUMBER(SEARCH("SS",Pre!$CB35))),OR(H35="1B",H35="3B",H35="2B",H35="SS",ISNUMBER(SEARCH("1B",Pre!$CB35)),ISNUMBER(SEARCH("3B",Pre!$CB35)),ISNUMBER(SEARCH("2B",Pre!$CB35)),ISNUMBER(SEARCH("SS",Pre!$CB35))),OR(H35="SP",H35="RP",ISNUMBER(SEARCH("SP",Pre!$CB35)),ISNUMBER(SEARCH("RP",Pre!$CB35))),AND(H35<>"RP",H35<>"SP",NOT(ISNUMBER(SEARCH("RP",Pre!$CB35))),NOT(ISNUMBER(SEARCH("SP",Pre!$CB35)))),OR(H35="SP",H35="RP",ISNUMBER(SEARCH("SP",Pre!$CB35)),ISNUMBER(SEARCH("RP",Pre!$CB35)))))) -> TRUE | M35: =IF(LEFT($D35,15)="Unlisted Player",-1,IF('Inflation-Tracking'!J38="",-9999,'Inflation-Tracking'!J38)) -> 1 | N35: =IF(J35=FALSE,-0.5,IF(LEFT($D35,15)="Unlisted Player",-1,IF(Pre!C35<>"",Pre!C35,0))) -> 171.1236897 | O35: =IF('Auction-Rank'!W35="",9999,'Auction-Rank'!W35) -> 695 | P35: =IFERROR(IF(LEFT($D35,15)="Unlisted Player",-1001,IF(OR(H35="SP",H35="RP"),N35/VLOOKUP($D35,'Filter-P'!$A$1:$AC$356,4,FALSE),-1000)),-1000) -> -1000 | Q35: =IFERROR(IF(LEFT($D35,15)="Unlisted Player",-1001,IF(OR(H35="SP",H35="RP"),-1000,N35/VLOOKUP($D35,'Filter-H'!$A$1:$AE$428,2,FALSE))),-1000) -> 1.253194359 | R35: =IF(H35="",#N/A,H35&"."&1+SUMPRODUCT(($H$2:$H$937=H35)*($N$2:$N$937>N35))+COUNTIFS($N$2:N35,N35,$H$2:H35,H35)-1) -> OF.159 | S35: =IF(H35="",#N/A,1+SUMPRODUCT(($H$2:$H$937=H35)*($N$2:$N$937>N35))+COUNTIFS($N$2:N35,N35,$H$2:H35,H35)-1) -> 159 | U35: =IFERROR(Pre!DL35,"") -> Bench | V35: =IFERROR(ROUND(INDEX('Inflation-Tracking'!$J$5:$J$1040,MATCH($D35,'Inflation-Tracking'!$A$5:$A$1040,0)),1),-999) -> 1 | W35: =IFERROR(IF($N35=0,-1000,IF(LEFT($D35,15)="Unlisted Player",-1001,IF(OR($H35="SP",$H35="RP"),INDEX('Filter-P'!$M$3:$M$520,MATCH($D35,'Filter-P'!$A$3:$A$520,0),1),INDEX('Filter-H'!$U$3:$U$500,MATCH($D35,'Filter-H'!$A$3:$A$500,0),1)))),-1000) -> -422.6062736
A36: Nick Castellanos | B36: =IFERROR(INDEX($A$1:$A$936,SMALL(IF($A$1:$A$936<>"",ROW($A$1:$A$936)),ROW(A35))),"") -> Nick Castellanos | C36: =IFERROR(IF(L36=FALSE,"",CHOOSE(MATCH(RIGHT('Your Points Auction'!$R$4,LEN('Your Points Auction'!$R$4)-8),$M$1:$W$1,0),1+SUMPRODUCT(($L$2:$L$937=TRUE)*($M$2:$M$937>M36))+COUNTIFS($L$2:L36,L36,$M$2:M36,M36)-1,1+SUMPRODUCT(($L$2:$L$937=TRUE)*($N$2:$N$937>N36))+COUNTIFS($L$2:L36,L36,$N$2:N36,N36)-1,1+SUMPRODUCT(($L$2:$L$937=TRUE)*($O$2:$O$937<O36))+COUNTIFS($L$2:L36,L36,$O$2:O36,O36)-1,1+SUMPRODUCT(($L$2:$L$937=TRUE)*($P$2:$P$937>P36))+COUNTIFS($L$2:L36,L36,$P$2:P36,P36)-1,1+SUMPRODUCT(($L$2:$L$937=TRUE)*($Q$2:$Q$937>Q36))+COUNTIFS($L$2:L36,L36,$Q$2:Q36,Q36)-1,,,,,,1+SUMPRODUCT(($L$2:$L$937=TRUE)*($W$2:$W$937>W36))+COUNTIFS($L$2:L36,L36,$W$2:W36,W36)-1,)),"") -> 270 | D36: Aristides Aquino | E36: =IFERROR(INDEX('Auction Log'!$C$4:$C$603,MATCH(D36,'Auction Log'!$B$4:$B$603,0)),"") ->  | F36: =IFERROR(INDEX('Auction-Rank'!$C$2:$C$955,MATCH(D36,'Auction-Rank'!$A$2:$A$955,0)),"") -> OF | H36: OF | I36: =IF(AND(F36="OF",'Guts-2'!$N$9=0),IF(MAX(Pre!J36:L36)=Pre!J36,"LF",IF(MAX(Pre!J36:L36)=Pre!K36,"CF",IF(MAX(Pre!J36:L36)=Pre!L36,"RF","LF"))),"") ->  | J36: =IFERROR(INDEX('Auction-Rank'!$U$2:$U$955,MATCH(D36,'Auction-Rank'!$A$2:$A$955,0)),TRUE) -> TRUE | K36: FALSE | L36: =IF(J36=FALSE,FALSE,IF(AND('Your Points Auction'!$R$6="Hide Drafted Players",K36=TRUE),FALSE,CHOOSE($I$1,TRUE,OR(RIGHT('Your Points Auction'!$R$5,LEN('Your Points Auction'!$R$5)-11)=H36,IF(RIGHT('Your Points Auction'!$R$5,LEN('Your Points Auction'!$R$5)-11)<>"C",NOT(ISERROR(SEARCH(RIGHT('Your Points Auction'!$R$5,LEN('Your Points Auction'!$R$5)-11),Pre!$CB36))),AND(NOT(ISERROR(SEARCH(RIGHT('Your Points Auction'!$R$5,LEN('Your Points Auction'!$R$5)-11),Pre!$CB36))),ISERROR(SEARCH("CF",Pre!$CB36)))),RIGHT('Your Points Auction'!$R$5,LEN('Your Points Auction'!$R$5)-11)=Pre!BP36),OR(H36="1B",H36="3B",ISNUMBER(SEARCH("1B",Pre!$CB36)),ISNUMBER(SEARCH("3B",Pre!$CB36))),OR(H36="2B",H36="SS",ISNUMBER(SEARCH("2B",Pre!$CB36)),ISNUMBER(SEARCH("SS",Pre!$CB36))),OR(H36="1B",H36="3B",H36="2B",H36="SS",ISNUMBER(SEARCH("1B",Pre!$CB36)),ISNUMBER(SEARCH("3B",Pre!$CB36)),ISNUMBER(SEARCH("2B",Pre!$CB36)),ISNUMBER(SEARCH("SS",Pre!$CB36))),OR(H36="SP",H36="RP",ISNUMBER(SEARCH("SP",Pre!$CB36)),ISNUMBER(SEARCH("RP",Pre!$CB36))),AND(H36<>"RP",H36<>"SP",NOT(ISNUMBER(SEARCH("RP",Pre!$CB36))),NOT(ISNUMBER(SEARCH("SP",Pre!$CB36)))),OR(H36="SP",H36="RP",ISNUMBER(SEARCH("SP",Pre!$CB36)),ISNUMBER(SEARCH("RP",Pre!$CB36)))))) -> TRUE | M36: =IF(LEFT($D36,15)="Unlisted Player",-1,IF('Inflation-Tracking'!J39="",-9999,'Inflation-Tracking'!J39)) -> 1.008582252 | N36: =IF(J36=FALSE,-0.5,IF(LEFT($D36,15)="Unlisted Player",-1,IF(Pre!C36<>"",Pre!C36,0))) -> 475.9826445 | O36: =IF('Auction-Rank'!W36="",9999,'Auction-Rank'!W36) -> 548 | P36: =IFERROR(IF(LEFT($D36,15)="Unlisted Player",-1001,IF(OR(H36="SP",H36="RP"),N36/VLOOKUP($D36,'Filter-P'!$A$1:$AC$356,4,FALSE),-1000)),-1000) -> -1000 | Q36: =IFERROR(IF(LEFT($D36,15)="Unlisted Player",-1001,IF(OR(H36="SP",H36="RP"),-1000,N36/VLOOKUP($D36,'Filter-H'!$A$1:$AE$428,2,FALSE))),-1000) -> 1.231679763 | R36: =IF(H36="",#N/A,H36&"."&1+SUMPRODUCT(($H$2:$H$937=H36)*($N$2:$N$937>N36))+COUNTIFS($N$2:N36,N36,$H$2:H36,H36)-1) -> OF.89 | S36: =IF(H36="",#N/A,1+SUMPRODUCT(($H$2:$H$937=H36)*($N$2:$N$937>N36))+COUNTIFS($N$2:N36,N36,$H$2:H36,H36)-1) -> 89 | U36: =IFERROR(Pre!DL36,"") -> Bench | V36: =IFERROR(ROUND(INDEX('Inflation-Tracking'!$J$5:$J$1040,MATCH($D36,'Inflation-Tracking'!$A$5:$A$1040,0)),1),-999) -> 1 | W36: =IFERROR(IF($N36=0,-1000,IF(LEFT($D36,15)="Unlisted Player",-1001,IF(OR($H36="SP",$H36="RP"),INDEX('Filter-P'!$M$3:$M$520,MATCH($D36,'Filter-P'!$A$3:$A$520,0),1),INDEX('Filter-H'!$U$3:$U$500,MATCH($D36,'Filter-H'!$A$3:$A$500,0),1)))),-1000) -> -117.7473188
A37: Shane Bieber | B37: =IFERROR(INDEX($A$1:$A$936,SMALL(IF($A$1:$A$936<>"",ROW($A$1:$A$936)),ROW(A36))),"") -> Shane Bieber | C37: =IFERROR(IF(L37=FALSE,"",CHOOSE(MATCH(RIGHT('Your Points Auction'!$R$4,LEN('Your Points Auction'!$R$4)-8),$M$1:$W$1,0),1+SUMPRODUCT(($L$2:$L$937=TRUE)*($M$2:$M$937>M37))+COUNTIFS($L$2:L37,L37,$M$2:M37,M37)-1,1+SUMPRODUCT(($L$2:$L$937=TRUE)*($N$2:$N$937>N37))+COUNTIFS($L$2:L37,L37,$N$2:N37,N37)-1,1+SUMPRODUCT(($L$2:$L$937=TRUE)*($O$2:$O$937<O37))+COUNTIFS($L$2:L37,L37,$O$2:O37,O37)-1,1+SUMPRODUCT(($L$2:$L$937=TRUE)*($P$2:$P$937>P37))+COUNTIFS($L$2:L37,L37,$P$2:P37,P37)-1,1+SUMPRODUCT(($L$2:$L$937=TRUE)*($Q$2:$Q$937>Q37))+COUNTIFS($L$2:L37,L37,$Q$2:Q37,Q37)-1,,,,,,1+SUMPRODUCT(($L$2:$L$937=TRUE)*($W$2:$W$937>W37))+COUNTIFS($L$2:L37,L37,$W$2:W37,W37)-1,)),"") -> 499 | D37: Jonathan Arauz | E37: =IFERROR(INDEX('Auction Log'!$C$4:$C$603,MATCH(D37,'Auction Log'!$B$4:$B$603,0)),"") ->  | F37: =IFERROR(INDEX('Auction-Rank'!$C$2:$C$955,MATCH(D37,'Auction-Rank'!$A$2:$A$955,0)),"") -> SS | H37: SS | I37: =IF(AND(F37="OF",'Guts-2'!$N$9=0),IF(MAX(Pre!J37:L37)=Pre!J37,"LF",IF(MAX(Pre!J37:L37)=Pre!K37,"CF",IF(MAX(Pre!J37:L37)=Pre!L37,"RF","LF"))),"") ->  | J37: =IFERROR(INDEX('Auction-Rank'!$U$2:$U$955,MATCH(D37,'Auction-Rank'!$A$2:$A$955,0)),TRUE) -> TRUE | K37: FALSE | L37: =IF(J37=FALSE,FALSE,IF(AND('Your Points Auction'!$R$6="Hide Drafted Players",K37=TRUE),FALSE,CHOOSE($I$1,TRUE,OR(RIGHT('Your Points Auction'!$R$5,LEN('Your Points Auction'!$R$5)-11)=H37,IF(RIGHT('Your Points Auction'!$R$5,LEN('Your Points Auction'!$R$5)-11)<>"C",NOT(ISERROR(SEARCH(RIGHT('Your Points Auction'!$R$5,LEN('Your Points Auction'!$R$5)-11),Pre!$CB37))),AND(NOT(ISERROR(SEARCH(RIGHT('Your Points Auction'!$R$5,LEN('Your Points Auction'!$R$5)-11),Pre!$CB37))),ISERROR(SEARCH("CF",Pre!$CB37)))),RIGHT('Your Points Auction'!$R$5,LEN('Your Points Auction'!$R$5)-11)=Pre!BP37),OR(H37="1B",H37="3B",ISNUMBER(SEARCH("1B",Pre!$CB37)),ISNUMBER(SEARCH("3B",Pre!$CB37))),OR(H37="2B",H37="SS",ISNUMBER(SEARCH("2B",Pre!$CB37)),ISNUMBER(SEARCH("SS",Pre!$CB37))),OR(H37="1B",H37="3B",H37="2B",H37="SS",ISNUMBER(SEARCH("1B",Pre!$CB37)),ISNUMBER(SEARCH("3B",Pre!$CB37)),ISNUMBER(SEARCH("2B",Pre!$CB37)),ISNUMBER(SEARCH("SS",Pre!$CB37))),OR(H37="SP",H37="RP",ISNUMBER(SEARCH("SP",Pre!$CB37)),ISNUMBER(SEARCH("RP",Pre!$CB37))),AND(H37<>"RP",H37<>"SP",NOT(ISNUMBER(SEARCH("RP",Pre!$CB37))),NOT(ISNUMBER(SEARCH("SP",Pre!$CB37)))),OR(H37="SP",H37="RP",ISNUMBER(SEARCH("SP",Pre!$CB37)),ISNUMBER(SEARCH("RP",Pre!$CB37)))))) -> TRUE | M37: =IF(LEFT($D37,15)="Unlisted Player",-1,IF('Inflation-Tracking'!J40="",-9999,'Inflation-Tracking'!J40)) -> 1 | N37: =IF(J37=FALSE,-0.5,IF(LEFT($D37,15)="Unlisted Player",-1,IF(Pre!C37<>"",Pre!C37,0))) -> 144.102665 | O37: =IF('Auction-Rank'!W37="",9999,'Auction-Rank'!W37) -> 9999 | P37: =IFERROR(IF(LEFT($D37,15)="Unlisted Player",-1001,IF(OR(H37="SP",H37="RP"),N37/VLOOKUP($D37,'Filter-P'!$A$1:$AC$356,4,FALSE),-1000)),-1000) -> -1000 | Q37: =IFERROR(IF(LEFT($D37,15)="Unlisted Player",-1001,IF(OR(H37="SP",H37="RP"),-1000,N37/VLOOKUP($D37,'Filter-H'!$A$1:$AE$428,2,FALSE))),-1000) -> 0.9565394292 | R37: =IF(H37="",#N/A,H37&"."&1+SUMPRODUCT(($H$2:$H$937=H37)*($N$2:$N$937>N37))+COUNTIFS($N$2:N37,N37,$H$2:H37,H37)-1) -> SS.59 | S37: =IF(H37="",#N/A,1+SUMPRODUCT(($H$2:$H$937=H37)*($N$2:$N$937>N37))+COUNTIFS($N$2:N37,N37,$H$2:H37,H37)-1) -> 59 | U37: =IFERROR(Pre!DL37,"") -> Bench | V37: =IFERROR(ROUND(INDEX('Inflation-Tracking'!$J$5:$J$1040,MATCH($D37,'Inflation-Tracking'!$A$5:$A$1040,0)),1),-999) -> 1 | W37: =IFERROR(IF($N37=0,-1000,IF(LEFT($D37,15)="Unlisted Player",-1001,IF(OR($H37="SP",$H37="RP"),INDEX('Filter-P'!$M$3:$M$520,MATCH($D37,'Filter-P'!$A$3:$A$520,0),1),INDEX('Filter-H'!$U$3:$U$500,MATCH($D37,'Filter-H'!$A$3:$A$500,0),1)))),-1000) -> -383.4061188
A38: Wander Franco | B38: =IFERROR(INDEX($A$1:$A$936,SMALL(IF($A$1:$A$936<>"",ROW($A$1:$A$936)),ROW(A37))),"") -> Wander Franco | C38: =IFERROR(IF(L38=FALSE,"",CHOOSE(MATCH(RIGHT('Your Points Auction'!$R$4,LEN('Your Points Auction'!$R$4)-8),$M$1:$W$1,0),1+SUMPRODUCT(($L$2:$L$937=TRUE)*($M$2:$M$937>M38))+COUNTIFS($L$2:L38,L38,$M$2:M38,M38)-1,1+SUMPRODUCT(($L$2:$L$937=TRUE)*($N$2:$N$937>N38))+COUNTIFS($L$2:L38,L38,$N$2:N38,N38)-1,1+SUMPRODUCT(($L$2:$L$937=TRUE)*($O$2:$O$937<O38))+COUNTIFS($L$2:L38,L38,$O$2:O38,O38)-1,1+SUMPRODUCT(($L$2:$L$937=TRUE)*($P$2:$P$937>P38))+COUNTIFS($L$2:L38,L38,$P$2:P38,P38)-1,1+SUMPRODUCT(($L$2:$L$937=TRUE)*($Q$2:$Q$937>Q38))+COUNTIFS($L$2:L38,L38,$Q$2:Q38,Q38)-1,,,,,,1+SUMPRODUCT(($L$2:$L$937=TRUE)*($W$2:$W$937>W38))+COUNTIFS($L$2:L38,L38,$W$2:W38,W38)-1,)),"") -> 235 | D38: Chris Archer | E38: =IFERROR(INDEX('Auction Log'!$C$4:$C$603,MATCH(D38,'Auction Log'!$B$4:$B$603,0)),"") ->  | F38: =IFERROR(INDEX('Auction-Rank'!$C$2:$C$955,MATCH(D38,'Auction-Rank'!$A$2:$A$955,0)),"") -> RP | H38: RP | I38: =IF(AND(F38="OF",'Guts-2'!$N$9=0),IF(MAX(Pre!J38:L38)=Pre!J38,"LF",IF(MAX(Pre!J38:L38)=Pre!K38,"CF",IF(MAX(Pre!J38:L38)=Pre!L38,"RF","LF"))),"") ->  | J38: =IFERROR(INDEX('Auction-Rank'!$U$2:$U$955,MATCH(D38,'Auction-Rank'!$A$2:$A$955,0)),TRUE) -> TRUE | K38: FALSE | L38: =IF(J38=FALSE,FALSE,IF(AND('Your Points Auction'!$R$6="Hide Drafted Players",K38=TRUE),FALSE,CHOOSE($I$1,TRUE,OR(RIGHT('Your Points Auction'!$R$5,LEN('Your Points Auction'!$R$5)-11)=H38,IF(RIGHT('Your Points Auction'!$R$5,LEN('Your Points Auction'!$R$5)-11)<>"C",NOT(ISERROR(SEARCH(RIGHT('Your Points Auction'!$R$5,LEN('Your Points Auction'!$R$5)-11),Pre!$CB38))),AND(NOT(ISERROR(SEARCH(RIGHT('Your Points Auction'!$R$5,LEN('Your Points Auction'!$R$5)-11),Pre!$CB38))),ISERROR(SEARCH("CF",Pre!$CB38)))),RIGHT('Your Points Auction'!$R$5,LEN('Your Points Auction'!$R$5)-11)=Pre!BP38),OR(H38="1B",H38="3B",ISNUMBER(SEARCH("1B",Pre!$CB38)),ISNUMBER(SEARCH("3B",Pre!$CB38))),OR(H38="2B",H38="SS",ISNUMBER(SEARCH("2B",Pre!$CB38)),ISNUMBER(SEARCH("SS",Pre!$CB38))),OR(H38="1B",H38="3B",H38="2B",H38="SS",ISNUMBER(SEARCH("1B",Pre!$CB38)),ISNUMBER(SEARCH("3B",Pre!$CB38)),ISNUMBER(SEARCH("2B",Pre!$CB38)),ISNUMBER(SEARCH("SS",Pre!$CB38))),OR(H38="SP",H38="RP",ISNUMBER(SEARCH("SP",Pre!$CB38)),ISNUMBER(SEARCH("RP",Pre!$CB38))),AND(H38<>"RP",H38<>"SP",NOT(ISNUMBER(SEARCH("RP",Pre!$CB38))),NOT(ISNUMBER(SEARCH("SP",Pre!$CB38)))),OR(H38="SP",H38="RP",ISNUMBER(SEARCH("SP",Pre!$CB38)),ISNUMBER(SEARCH("RP",Pre!$CB38)))))) -> TRUE | M38: =IF(LEFT($D38,15)="Unlisted Player",-1,IF('Inflation-Tracking'!J41="",-9999,'Inflation-Tracking'!J41)) -> 3.04677438 | N38: =IF(J38=FALSE,-0.5,IF(LEFT($D38,15)="Unlisted Player",-1,IF(Pre!C38<>"",Pre!C38,0))) -> 401.2565232 | O38: =IF('Auction-Rank'!W38="",9999,'Auction-Rank'!W38) -> 596 | P38: =IFERROR(IF(LEFT($D38,15)="Unlisted Player",-1001,IF(OR(H38="SP",H38="RP"),N38/VLOOKUP($D38,'Filter-P'!$A$1:$AC$356,4,FALSE),-1000)),-1000) -> 3.681252507 | Q38: =IFERROR(IF(LEFT($D38,15)="Unlisted Player",-1001,IF(OR(H38="SP",H38="RP"),-1000,N38/VLOOKUP($D38,'Filter-H'!$A$1:$AE$428,2,FALSE))),-1000) -> -1000 | R38: =IF(H38="",#N/A,H38&"."&1+SUMPRODUCT(($H$2:$H$937=H38)*($N$2:$N$937>N38))+COUNTIFS($N$2:N38,N38,$H$2:H38,H38)-1) -> RP.48 | S38: =IF(H38="",#N/A,1+SUMPRODUCT(($H$2:$H$937=H38)*($N$2:$N$937>N38))+COUNTIFS($N$2:N38,N38,$H$2:H38,H38)-1) -> 48 | U38: =IFERROR(Pre!DL38,"") -> Bench | V38: =IFERROR(ROUND(INDEX('Inflation-Tracking'!$J$5:$J$1040,MATCH($D38,'Inflation-Tracking'!$A$5:$A$1040,0)),1),-999) -> 3 | W38: =IFERROR(IF($N38=0,-1000,IF(LEFT($D38,15)="Unlisted Player",-1001,IF(OR($H38="SP",$H38="RP"),INDEX('Filter-P'!$M$3:$M$520,MATCH($D38,'Filter-P'!$A$3:$A$520,0),1),INDEX('Filter-H'!$U$3:$U$500,MATCH($D38,'Filter-H'!$A$3:$A$500,0),1)))),-1000) -> 31.54193178
A39: Will Smith (C) | B39: =IFERROR(INDEX($A$1:$A$936,SMALL(IF($A$1:$A$936<>"",ROW($A$1:$A$936)),ROW(A38))),"") -> Will Smith (C) | C39: =IFERROR(IF(L39=FALSE,"",CHOOSE(MATCH(RIGHT('Your Points Auction'!$R$4,LEN('Your Points Auction'!$R$4)-8),$M$1:$W$1,0),1+SUMPRODUCT(($L$2:$L$937=TRUE)*($M$2:$M$937>M39))+COUNTIFS($L$2:L39,L39,$M$2:M39,M39)-1,1+SUMPRODUCT(($L$2:$L$937=TRUE)*($N$2:$N$937>N39))+COUNTIFS($L$2:L39,L39,$N$2:N39,N39)-1,1+SUMPRODUCT(($L$2:$L$937=TRUE)*($O$2:$O$937<O39))+COUNTIFS($L$2:L39,L39,$O$2:O39,O39)-1,1+SUMPRODUCT(($L$2:$L$937=TRUE)*($P$2:$P$937>P39))+COUNTIFS($L$2:L39,L39,$P$2:P39,P39)-1,1+SUMPRODUCT(($L$2:$L$937=TRUE)*($Q$2:$Q$937>Q39))+COUNTIFS($L$2:L39,L39,$Q$2:Q39,Q39)-1,,,,,,1+SUMPRODUCT(($L$2:$L$937=TRUE)*($W$2:$W$937>W39))+COUNTIFS($L$2:L39,L39,$W$2:W39,W39)-1,)),"") -> 500 | D39: Orlando Arcia | E39: =IFERROR(INDEX('Auction Log'!$C$4:$C$603,MATCH(D39,'Auction Log'!$B$4:$B$603,0)),"") ->  | F39: =IFERROR(INDEX('Auction-Rank'!$C$2:$C$955,MATCH(D39,'Auction-Rank'!$A$2:$A$955,0)),"") -> DH | H39: DH | I39: =IF(AND(F39="OF",'Guts-2'!$N$9=0),IF(MAX(Pre!J39:L39)=Pre!J39,"LF",IF(MAX(Pre!J39:L39)=Pre!K39,"CF",IF(MAX(Pre!J39:L39)=Pre!L39,"RF","LF"))),"") ->  | J39: =IFERROR(INDEX('Auction-Rank'!$U$2:$U$955,MATCH(D39,'Auction-Rank'!$A$2:$A$955,0)),TRUE) -> TRUE | K39: FALSE | L39: =IF(J39=FALSE,FALSE,IF(AND('Your Points Auction'!$R$6="Hide Drafted Players",K39=TRUE),FALSE,CHOOSE($I$1,TRUE,OR(RIGHT('Your Points Auction'!$R$5,LEN('Your Points Auction'!$R$5)-11)=H39,IF(RIGHT('Your Points Auction'!$R$5,LEN('Your Points Auction'!$R$5)-11)<>"C",NOT(ISERROR(SEARCH(RIGHT('Your Points Auction'!$R$5,LEN('Your Points Auction'!$R$5)-11),Pre!$CB39))),AND(NOT(ISERROR(SEARCH(RIGHT('Your Points Auction'!$R$5,LEN('Your Points Auction'!$R$5)-11),Pre!$CB39))),ISERROR(SEARCH("CF",Pre!$CB39)))),RIGHT('Your Points Auction'!$R$5,LEN('Your Points Auction'!$R$5)-11)=Pre!BP39),OR(H39="1B",H39="3B",ISNUMBER(SEARCH("1B",Pre!$CB39)),ISNUMBER(SEARCH("3B",Pre!$CB39))),OR(H39="2B",H39="SS",ISNUMBER(SEARCH("2B",Pre!$CB39)),ISNUMBER(SEARCH("SS",Pre!$CB39))),OR(H39="1B",H39="3B",H39="2B",H39="SS",ISNUMBER(SEARCH("1B",Pre!$CB39)),ISNUMBER(SEARCH("3B",Pre!$CB39)),ISNUMBER(SEARCH("2B",Pre!$CB39)),ISNUMBER(SEARCH("SS",Pre!$CB39))),OR(H39="SP",H39="RP",ISNUMBER(SEARCH("SP",Pre!$CB39)),ISNUMBER(SEARCH("RP",Pre!$CB39))),AND(H39<>"RP",H39<>"SP",NOT(ISNUMBER(SEARCH("RP",Pre!$CB39))),NOT(ISNUMBER(SEARCH("SP",Pre!$CB39)))),OR(H39="SP",H39="RP",ISNUMBER(SEARCH("SP",Pre!$CB39)),ISNUMBER(SEARCH("RP",Pre!$CB39)))))) -> TRUE | M39: =IF(LEFT($D39,15)="Unlisted Player",-1,IF('Inflation-Tracking'!J42="",-9999,'Inflation-Tracking'!J42)) -> 1 | N39: =IF(J39=FALSE,-0.5,IF(LEFT($D39,15)="Unlisted Player",-1,IF(Pre!C39<>"",Pre!C39,0))) -> 259.8755437 | O39: =IF('Auction-Rank'!W39="",9999,'Auction-Rank'!W39) -> 689 | P39: =IFERROR(IF(LEFT($D39,15)="Unlisted Player",-1001,IF(OR(H39="SP",H39="RP"),N39/VLOOKUP($D39,'Filter-P'!$A$1:$AC$356,4,FALSE),-1000)),-1000) -> -1000 | Q39: =IFERROR(IF(LEFT($D39,15)="Unlisted Player",-1001,IF(OR(H39="SP",H39="RP"),-1000,N39/VLOOKUP($D39,'Filter-H'!$A$1:$AE$428,2,FALSE))),-1000) -> 1.099769546 | R39: =IF(H39="",#N/A,H39&"."&1+SUMPRODUCT(($H$2:$H$937=H39)*($N$2:$N$937>N39))+COUNTIFS($N$2:N39,N39,$H$2:H39,H39)-1) -> DH.13 | S39: =IF(H39="",#N/A,1+SUMPRODUCT(($H$2:$H$937=H39)*($N$2:$N$937>N39))+COUNTIFS($N$2:N39,N39,$H$2:H39,H39)-1) -> 13 | U39: =IFERROR(Pre!DL39,"") -> Bench | V39: =IFERROR(ROUND(INDEX('Inflation-Tracking'!$J$5:$J$1040,MATCH($D39,'Inflation-Tracking'!$A$5:$A$1040,0)),1),-999) -> 1 | W39: =IFERROR(IF($N39=0,-1000,IF(LEFT($D39,15)="Unlisted Player",-1001,IF(OR($H39="SP",$H39="RP"),INDEX('Filter-P'!$M$3:$M$520,MATCH($D39,'Filter-P'!$A$3:$A$520,0),1),INDEX('Filter-H'!$U$3:$U$500,MATCH($D39,'Filter-H'!$A$3:$A$500,0),1)))),-1000) -> -391.7031491
A40: Aaron Nola | B40: =IFERROR(INDEX($A$1:$A$936,SMALL(IF($A$1:$A$936<>"",ROW($A$1:$A$936)),ROW(A39))),"") -> Aaron Nola | C40: =IFERROR(IF(L40=FALSE,"",CHOOSE(MATCH(RIGHT('Your Points Auction'!$R$4,LEN('Your Points Auction'!$R$4)-8),$M$1:$W$1,0),1+SUMPRODUCT(($L$2:$L$937=TRUE)*($M$2:$M$937>M40))+COUNTIFS($L$2:L40,L40,$M$2:M40,M40)-1,1+SUMPRODUCT(($L$2:$L$937=TRUE)*($N$2:$N$937>N40))+COUNTIFS($L$2:L40,L40,$N$2:N40,N40)-1,1+SUMPRODUCT(($L$2:$L$937=TRUE)*($O$2:$O$937<O40))+COUNTIFS($L$2:L40,L40,$O$2:O40,O40)-1,1+SUMPRODUCT(($L$2:$L$937=TRUE)*($P$2:$P$937>P40))+COUNTIFS($L$2:L40,L40,$P$2:P40,P40)-1,1+SUMPRODUCT(($L$2:$L$937=TRUE)*($Q$2:$Q$937>Q40))+COUNTIFS($L$2:L40,L40,$Q$2:Q40,Q40)-1,,,,,,1+SUMPRODUCT(($L$2:$L$937=TRUE)*($W$2:$W$937>W40))+COUNTIFS($L$2:L40,L40,$W$2:W40,W40)-1,)),"") -> 63 | D40: Nolan Arenado | E40: =IFERROR(INDEX('Auction Log'!$C$4:$C$603,MATCH(D40,'Auction Log'!$B$4:$B$603,0)),"") ->  | F40: =IFERROR(INDEX('Auction-Rank'!$C$2:$C$955,MATCH(D40,'Auction-Rank'!$A$2:$A$955,0)),"") -> 3B | H40: 3B | I40: =IF(AND(F40="OF",'Guts-2'!$N$9=0),IF(MAX(Pre!J40:L40)=Pre!J40,"LF",IF(MAX(Pre!J40:L40)=Pre!K40,"CF",IF(MAX(Pre!J40:L40)=Pre!L40,"RF","LF"))),"") ->  | J40: =IFERROR(INDEX('Auction-Rank'!$U$2:$U$955,MATCH(D40,'Auction-Rank'!$A$2:$A$955,0)),TRUE) -> TRUE | K40: FALSE | L40: =IF(J40=FALSE,FALSE,IF(AND('Your Points Auction'!$R$6="Hide Drafted Players",K40=TRUE),FALSE,CHOOSE($I$1,TRUE,OR(RIGHT('Your Points Auction'!$R$5,LEN('Your Points Auction'!$R$5)-11)=H40,IF(RIGHT('Your Points Auction'!$R$5,LEN('Your Points Auction'!$R$5)-11)<>"C",NOT(ISERROR(SEARCH(RIGHT('Your Points Auction'!$R$5,LEN('Your Points Auction'!$R$5)-11),Pre!$CB40))),AND(NOT(ISERROR(SEARCH(RIGHT('Your Points Auction'!$R$5,LEN('Your Points Auction'!$R$5)-11),Pre!$CB40))),ISERROR(SEARCH("CF",Pre!$CB40)))),RIGHT('Your Points Auction'!$R$5,LEN('Your Points Auction'!$R$5)-11)=Pre!BP40),OR(H40="1B",H40="3B",ISNUMBER(SEARCH("1B",Pre!$CB40)),ISNUMBER(SEARCH("3B",Pre!$CB40))),OR(H40="2B",H40="SS",ISNUMBER(SEARCH("2B",Pre!$CB40)),ISNUMBER(SEARCH("SS",Pre!$CB40))),OR(H40="1B",H40="3B",H40="2B",H40="SS",ISNUMBER(SEARCH("1B",Pre!$CB40)),ISNUMBER(SEARCH("3B",Pre!$CB40)),ISNUMBER(SEARCH("2B",Pre!$CB40)),ISNUMBER(SEARCH("SS",Pre!$CB40))),OR(H40="SP",H40="RP",ISNUMBER(SEARCH("SP",Pre!$CB40)),ISNUMBER(SEARCH("RP",Pre!$CB40))),AND(H40<>"RP",H40<>"SP",NOT(ISNUMBER(SEARCH("RP",Pre!$CB40))),NOT(ISNUMBER(SEARCH("SP",Pre!$CB40)))),OR(H40="SP",H40="RP",ISNUMBER(SEARCH("SP",Pre!$CB40)),ISNUMBER(SEARCH("RP",Pre!$CB40)))))) -> TRUE | M40: =IF(LEFT($D40,15)="Unlisted Player",-1,IF('Inflation-Tracking'!J43="",-9999,'Inflation-Tracking'!J43)) -> 18.50560682 | N40: =IF(J40=FALSE,-0.5,IF(LEFT($D40,15)="Unlisted Player",-1,IF(Pre!C40<>"",Pre!C40,0))) -> 838.9412539 | O40: =IF('Auction-Rank'!W40="",9999,'Auction-Rank'!W40) -> 61 | P40: =IFERROR(IF(LEFT($D40,15)="Unlisted Player",-1001,IF(OR(H40="SP",H40="RP"),N40/VLOOKUP($D40,'Filter-P'!$A$1:$AC$356,4,FALSE),-1000)),-1000) -> -1000 | Q40: =IFERROR(IF(LEFT($D40,15)="Unlisted Player",-1001,IF(OR(H40="SP",H40="RP"),-1000,N40/VLOOKUP($D40,'Filter-H'!$A$1:$AE$428,2,FALSE))),-1000) -> 1.295962391 | R40: =IF(H40="",#N/A,H40&"."&1+SUMPRODUCT(($H$2:$H$937=H40)*($N$2:$N$937>N40))+COUNTIFS($N$2:N40,N40,$H$2:H40,H40)-1) -> 3B.6 | S40: =IF(H40="",#N/A,1+SUMPRODUCT(($H$2:$H$937=H40)*($N$2:$N$937>N40))+COUNTIFS($N$2:N40,N40,$H$2:H40,H40)-1) -> 6 | U40: =IFERROR(Pre!DL40,"") -> Bench | V40: =IFERROR(ROUND(INDEX('Inflation-Tracking'!$J$5:$J$1040,MATCH($D40,'Inflation-Tracking'!$A$5:$A$1040,0)),1),-999) -> 18.5 | W40: =IFERROR(IF($N40=0,-1000,IF(LEFT($D40,15)="Unlisted Player",-1001,IF(OR($H40="SP",$H40="RP"),INDEX('Filter-P'!$M$3:$M$520,MATCH($D40,'Filter-P'!$A$3:$A$520,0),1),INDEX('Filter-H'!$U$3:$U$500,MATCH($D40,'Filter-H'!$A$3:$A$500,0),1)))),-1000) -> 203.8745233
A41: Fernando Tatis Jr. | B41: =IFERROR(INDEX($A$1:$A$936,SMALL(IF($A$1:$A$936<>"",ROW($A$1:$A$936)),ROW(A40))),"") -> Fernando Tatis Jr. | C41: =IFERROR(IF(L41=FALSE,"",CHOOSE(MATCH(RIGHT('Your Points Auction'!$R$4,LEN('Your Points Auction'!$R$4)-8),$M$1:$W$1,0),1+SUMPRODUCT(($L$2:$L$937=TRUE)*($M$2:$M$937>M41))+COUNTIFS($L$2:L41,L41,$M$2:M41,M41)-1,1+SUMPRODUCT(($L$2:$L$937=TRUE)*($N$2:$N$937>N41))+COUNTIFS($L$2:L41,L41,$N$2:N41,N41)-1,1+SUMPRODUCT(($L$2:$L$937=TRUE)*($O$2:$O$937<O41))+COUNTIFS($L$2:L41,L41,$O$2:O41,O41)-1,1+SUMPRODUCT(($L$2:$L$937=TRUE)*($P$2:$P$937>P41))+COUNTIFS($L$2:L41,L41,$P$2:P41,P41)-1,1+SUMPRODUCT(($L$2:$L$937=TRUE)*($Q$2:$Q$937>Q41))+COUNTIFS($L$2:L41,L41,$Q$2:Q41,Q41)-1,,,,,,1+SUMPRODUCT(($L$2:$L$937=TRUE)*($W$2:$W$937>W41))+COUNTIFS($L$2:L41,L41,$W$2:W41,W41)-1,)),"") -> 84 | D41: Randy Arozarena | E41: =IFERROR(INDEX('Auction Log'!$C$4:$C$603,MATCH(D41,'Auction Log'!$B$4:$B$603,0)),"") ->  | F41: =IFERROR(INDEX('Auction-Rank'!$C$2:$C$955,MATCH(D41,'Auction-Rank'!$A$2:$A$955,0)),"") -> OF | H41: OF | I41: =IF(AND(F41="OF",'Guts-2'!$N$9=0),IF(MAX(Pre!J41:L41)=Pre!J41,"LF",IF(MAX(Pre!J41:L41)=Pre!K41,"CF",IF(MAX(Pre!J41:L41)=Pre!L41,"RF","LF"))),"") ->  | J41: =IFERROR(INDEX('Auction-Rank'!$U$2:$U$955,MATCH(D41,'Auction-Rank'!$A$2:$A$955,0)),TRUE) -> TRUE | K41: FALSE | L41: =IF(J41=FALSE,FALSE,IF(AND('Your Points Auction'!$R$6="Hide Drafted Players",K41=TRUE),FALSE,CHOOSE($I$1,TRUE,OR(RIGHT('Your Points Auction'!$R$5,LEN('Your Points Auction'!$R$5)-11)=H41,IF(RIGHT('Your Points Auction'!$R$5,LEN('Your Points Auction'!$R$5)-11)<>"C",NOT(ISERROR(SEARCH(RIGHT('Your Points Auction'!$R$5,LEN('Your Points Auction'!$R$5)-11),Pre!$CB41))),AND(NOT(ISERROR(SEARCH(RIGHT('Your Points Auction'!$R$5,LEN('Your Points Auction'!$R$5)-11),Pre!$CB41))),ISERROR(SEARCH("CF",Pre!$CB41)))),RIGHT('Your Points Auction'!$R$5,LEN('Your Points Auction'!$R$5)-11)=Pre!BP41),OR(H41="1B",H41="3B",ISNUMBER(SEARCH("1B",Pre!$CB41)),ISNUMBER(SEARCH("3B",Pre!$CB41))),OR(H41="2B",H41="SS",ISNUMBER(SEARCH("2B",Pre!$CB41)),ISNUMBER(SEARCH("SS",Pre!$CB41))),OR(H41="1B",H41="3B",H41="2B",H41="SS",ISNUMBER(SEARCH("1B",Pre!$CB41)),ISNUMBER(SEARCH("3B",Pre!$CB41)),ISNUMBER(SEARCH("2B",Pre!$CB41)),ISNUMBER(SEARCH("SS",Pre!$CB41))),OR(H41="SP",H41="RP",ISNUMBER(SEARCH("SP",Pre!$CB41)),ISNUMBER(SEARCH("RP",Pre!$CB41))),AND(H41<>"RP",H41<>"SP",NOT(ISNUMBER(SEARCH("RP",Pre!$CB41))),NOT(ISNUMBER(SEARCH("SP",Pre!$CB41)))),OR(H41="SP",H41="RP",ISNUMBER(SEARCH("SP",Pre!$CB41)),ISNUMBER(SEARCH("RP",Pre!$CB41)))))) -> TRUE | M41: =IF(LEFT($D41,15)="Unlisted Player",-1,IF('Inflation-Tracking'!J44="",-9999,'Inflation-Tracking'!J44)) -> 15.38177746 | N41: =IF(J41=FALSE,-0.5,IF(LEFT($D41,15)="Unlisted Player",-1,IF(Pre!C41<>"",Pre!C41,0))) -> 761.205771 | O41: =IF('Auction-Rank'!W41="",9999,'Auction-Rank'!W41) -> 55 | P41: =IFERROR(IF(LEFT($D41,15)="Unlisted Player",-1001,IF(OR(H41="SP",H41="RP"),N41/VLOOKUP($D41,'Filter-P'!$A$1:$AC$356,4,FALSE),-1000)),-1000) -> -1000 | Q41: =IFERROR(IF(LEFT($D41,15)="Unlisted Player",-1001,IF(OR(H41="SP",H41="RP"),-1000,N41/VLOOKUP($D41,'Filter-H'!$A$1:$AE$428,2,FALSE))),-1000) -> 1.261318593 | R41: =IF(H41="",#N/A,H41&"."&1+SUMPRODUCT(($H$2:$H$937=H41)*($N$2:$N$937>N41))+COUNTIFS($N$2:N41,N41,$H$2:H41,H41)-1) -> OF.24 | S41: =IF(H41="",#N/A,1+SUMPRODUCT(($H$2:$H$937=H41)*($N$2:$N$937>N41))+COUNTIFS($N$2:N41,N41,$H$2:H41,H41)-1) -> 24 | U41: =IFERROR(Pre!DL41,"") -> Bench | V41: =IFERROR(ROUND(INDEX('Inflation-Tracking'!$J$5:$J$1040,MATCH($D41,'Inflation-Tracking'!$A$5:$A$1040,0)),1),-999) -> 15.4 | W41: =IFERROR(IF($N41=0,-1000,IF(LEFT($D41,15)="Unlisted Player",-1001,IF(OR($H41="SP",$H41="RP"),INDEX('Filter-P'!$M$3:$M$520,MATCH($D41,'Filter-P'!$A$3:$A$520,0),1),INDEX('Filter-H'!$U$3:$U$500,MATCH($D41,'Filter-H'!$A$3:$A$500,0),1)))),-1000) -> 167.4758076
A42: J.T. Realmuto | B42: =IFERROR(INDEX($A$1:$A$936,SMALL(IF($A$1:$A$936<>"",ROW($A$1:$A$936)),ROW(A41))),"") -> J.T. Realmuto | C42: =IFERROR(IF(L42=FALSE,"",CHOOSE(MATCH(RIGHT('Your Points Auction'!$R$4,LEN('Your Points Auction'!$R$4)-8),$M$1:$W$1,0),1+SUMPRODUCT(($L$2:$L$937=TRUE)*($M$2:$M$937>M42))+COUNTIFS($L$2:L42,L42,$M$2:M42,M42)-1,1+SUMPRODUCT(($L$2:$L$937=TRUE)*($N$2:$N$937>N42))+COUNTIFS($L$2:L42,L42,$N$2:N42,N42)-1,1+SUMPRODUCT(($L$2:$L$937=TRUE)*($O$2:$O$937<O42))+COUNTIFS($L$2:L42,L42,$O$2:O42,O42)-1,1+SUMPRODUCT(($L$2:$L$937=TRUE)*($P$2:$P$937>P42))+COUNTIFS($L$2:L42,L42,$P$2:P42,P42)-1,1+SUMPRODUCT(($L$2:$L$937=TRUE)*($Q$2:$Q$937>Q42))+COUNTIFS($L$2:L42,L42,$Q$2:Q42,Q42)-1,,,,,,1+SUMPRODUCT(($L$2:$L$937=TRUE)*($W$2:$W$937>W42))+COUNTIFS($L$2:L42,L42,$W$2:W42,W42)-1,)),"") -> 271 | D42: Luis Arraez | E42: =IFERROR(INDEX('Auction Log'!$C$4:$C$603,MATCH(D42,'Auction Log'!$B$4:$B$603,0)),"") ->  | F42: =IFERROR(INDEX('Auction-Rank'!$C$2:$C$955,MATCH(D42,'Auction-Rank'!$A$2:$A$955,0)),"") -> 3B | H42: 3B | I42: =IF(AND(F42="OF",'Guts-2'!$N$9=0),IF(MAX(Pre!J42:L42)=Pre!J42,"LF",IF(MAX(Pre!J42:L42)=Pre!K42,"CF",IF(MAX(Pre!J42:L42)=Pre!L42,"RF","LF"))),"") ->  | J42: =IFERROR(INDEX('Auction-Rank'!$U$2:$U$955,MATCH(D42,'Auction-Rank'!$A$2:$A$955,0)),TRUE) -> TRUE | K42: FALSE | L42: =IF(J42=FALSE,FALSE,IF(AND('Your Points Auction'!$R$6="Hide Drafted Players",K42=TRUE),FALSE,CHOOSE($I$1,TRUE,OR(RIGHT('Your Points Auction'!$R$5,LEN('Your Points Auction'!$R$5)-11)=H42,IF(RIGHT('Your Points Auction'!$R$5,LEN('Your Points Auction'!$R$5)-11)<>"C",NOT(ISERROR(SEARCH(RIGHT('Your Points Auction'!$R$5,LEN('Your Points Auction'!$R$5)-11),Pre!$CB42))),AND(NOT(ISERROR(SEARCH(RIGHT('Your Points Auction'!$R$5,LEN('Your Points Auction'!$R$5)-11),Pre!$CB42))),ISERROR(SEARCH("CF",Pre!$CB42)))),RIGHT('Your Points Auction'!$R$5,LEN('Your Points Auction'!$R$5)-11)=Pre!BP42),OR(H42="1B",H42="3B",ISNUMBER(SEARCH("1B",Pre!$CB42)),ISNUMBER(SEARCH("3B",Pre!$CB42))),OR(H42="2B",H42="SS",ISNUMBER(SEARCH("2B",Pre!$CB42)),ISNUMBER(SEARCH("SS",Pre!$CB42))),OR(H42="1B",H42="3B",H42="2B",H42="SS",ISNUMBER(SEARCH("1B",Pre!$CB42)),ISNUMBER(SEARCH("3B",Pre!$CB42)),ISNUMBER(SEARCH("2B",Pre!$CB42)),ISNUMBER(SEARCH("SS",Pre!$CB42))),OR(H42="SP",H42="RP",ISNUMBER(SEARCH("SP",Pre!$CB42)),ISNUMBER(SEARCH("RP",Pre!$CB42))),AND(H42<>"RP",H42<>"SP",NOT(ISNUMBER(SEARCH("RP",Pre!$CB42))),NOT(ISNUMBER(SEARCH("SP",Pre!$CB42)))),OR(H42="SP",H42="RP",ISNUMBER(SEARCH("SP",Pre!$CB42)),ISNUMBER(SEARCH("RP",Pre!$CB42)))))) -> TRUE | M42: =IF(LEFT($D42,15)="Unlisted Player",-1,IF('Inflation-Tracking'!J45="",-9999,'Inflation-Tracking'!J45)) -> 1.008582252 | N42: =IF(J42=FALSE,-0.5,IF(LEFT($D42,15)="Unlisted Player",-1,IF(Pre!C42<>"",Pre!C42,0))) -> 635.0667306 | O42: =IF('Auction-Rank'!W42="",9999,'Auction-Rank'!W42) -> 308 | P42: =IFERROR(IF(LEFT($D42,15)="Unlisted Player",-1001,IF(OR(H42="SP",H42="RP"),N42/VLOOKUP($D42,'Filter-P'!$A$1:$AC$356,4,FALSE),-1000)),-1000) -> -1000 | Q42: =IFERROR(IF(LEFT($D42,15)="Unlisted Player",-1001,IF(OR(H42="SP",H42="RP"),-1000,N42/VLOOKUP($D42,'Filter-H'!$A$1:$AE$428,2,FALSE))),-1000) -> 1.147572697 | R42: =IF(H42="",#N/A,H42&"."&1+SUMPRODUCT(($H$2:$H$937=H42)*($N$2:$N$937>N42))+COUNTIFS($N$2:N42,N42,$H$2:H42,H42)-1) -> 3B.14 | S42: =IF(H42="",#N/A,1+SUMPRODUCT(($H$2:$H$937=H42)*($N$2:$N$937>N42))+COUNTIFS($N$2:N42,N42,$H$2:H42,H42)-1) -> 14 | U42: =IFERROR(Pre!DL42,"") -> Bench | V42: =IFERROR(ROUND(INDEX('Inflation-Tracking'!$J$5:$J$1040,MATCH($D42,'Inflation-Tracking'!$A$5:$A$1040,0)),1),-999) -> 1 | W42: =IFERROR(IF($N42=0,-1000,IF(LEFT($D42,15)="Unlisted Player",-1001,IF(OR($H42="SP",$H42="RP"),INDEX('Filter-P'!$M$3:$M$520,MATCH($D42,'Filter-P'!$A$3:$A$520,0),1),INDEX('Filter-H'!$U$3:$U$500,MATCH($D42,'Filter-H'!$A$3:$A$500,0),1)))),-1000) -> 0
A43: Paul Goldschmidt | B43: =IFERROR(INDEX($A$1:$A$936,SMALL(IF($A$1:$A$936<>"",ROW($A$1:$A$936)),ROW(A42))),"") -> Paul Goldschmidt | C43: =IFERROR(IF(L43=FALSE,"",CHOOSE(MATCH(RIGHT('Your Points Auction'!$R$4,LEN('Your Points Auction'!$R$4)-8),$M$1:$W$1,0),1+SUMPRODUCT(($L$2:$L$937=TRUE)*($M$2:$M$937>M43))+COUNTIFS($L$2:L43,L43,$M$2:M43,M43)-1,1+SUMPRODUCT(($L$2:$L$937=TRUE)*($N$2:$N$937>N43))+COUNTIFS($L$2:L43,L43,$N$2:N43,N43)-1,1+SUMPRODUCT(($L$2:$L$937=TRUE)*($O$2:$O$937<O43))+COUNTIFS($L$2:L43,L43,$O$2:O43,O43)-1,1+SUMPRODUCT(($L$2:$L$937=TRUE)*($P$2:$P$937>P43))+COUNTIFS($L$2:L43,L43,$P$2:P43,P43)-1,1+SUMPRODUCT(($L$2:$L$937=TRUE)*($Q$2:$Q$937>Q43))+COUNTIFS($L$2:L43,L43,$Q$2:Q43,Q43)-1,,,,,,1+SUMPRODUCT(($L$2:$L$937=TRUE)*($W$2:$W$937>W43))+COUNTIFS($L$2:L43,L43,$W$2:W43,W43)-1,)),"") -> 501 | D43: Christian Arroyo | E43: =IFERROR(INDEX('Auction Log'!$C$4:$C$603,MATCH(D43,'Auction Log'!$B$4:$B$603,0)),"") ->  | F43: =IFERROR(INDEX('Auction-Rank'!$C$2:$C$955,MATCH(D43,'Auction-Rank'!$A$2:$A$955,0)),"") -> 2B | H43: 2B | I43: =IF(AND(F43="OF",'Guts-2'!$N$9=0),IF(MAX(Pre!J43:L43)=Pre!J43,"LF",IF(MAX(Pre!J43:L43)=Pre!K43,"CF",IF(MAX(Pre!J43:L43)=Pre!L43,"RF","LF"))),"") ->  | J43: =IFERROR(INDEX('Auction-Rank'!$U$2:$U$955,MATCH(D43,'Auction-Rank'!$A$2:$A$955,0)),TRUE) -> TRUE | K43: FALSE | L43: =IF(J43=FALSE,FALSE,IF(AND('Your Points Auction'!$R$6="Hide Drafted Players",K43=TRUE),FALSE,CHOOSE($I$1,TRUE,OR(RIGHT('Your Points Auction'!$R$5,LEN('Your Points Auction'!$R$5)-11)=H43,IF(RIGHT('Your Points Auction'!$R$5,LEN('Your Points Auction'!$R$5)-11)<>"C",NOT(ISERROR(SEARCH(RIGHT('Your Points Auction'!$R$5,LEN('Your Points Auction'!$R$5)-11),Pre!$CB43))),AND(NOT(ISERROR(SEARCH(RIGHT('Your Points Auction'!$R$5,LEN('Your Points Auction'!$R$5)-11),Pre!$CB43))),ISERROR(SEARCH("CF",Pre!$CB43)))),RIGHT('Your Points Auction'!$R$5,LEN('Your Points Auction'!$R$5)-11)=Pre!BP43),OR(H43="1B",H43="3B",ISNUMBER(SEARCH("1B",Pre!$CB43)),ISNUMBER(SEARCH("3B",Pre!$CB43))),OR(H43="2B",H43="SS",ISNUMBER(SEARCH("2B",Pre!$CB43)),ISNUMBER(SEARCH("SS",Pre!$CB43))),OR(H43="1B",H43="3B",H43="2B",H43="SS",ISNUMBER(SEARCH("1B",Pre!$CB43)),ISNUMBER(SEARCH("3B",Pre!$CB43)),ISNUMBER(SEARCH("2B",Pre!$CB43)),ISNUMBER(SEARCH("SS",Pre!$CB43))),OR(H43="SP",H43="RP",ISNUMBER(SEARCH("SP",Pre!$CB43)),ISNUMBER(SEARCH("RP",Pre!$CB43))),AND(H43<>"RP",H43<>"SP",NOT(ISNUMBER(SEARCH("RP",Pre!$CB43))),NOT(ISNUMBER(SEARCH("SP",Pre!$CB43)))),OR(H43="SP",H43="RP",ISNUMBER(SEARCH("SP",Pre!$CB43)),ISNUMBER(SEARCH("RP",Pre!$CB43)))))) -> TRUE | M43: =IF(LEFT($D43,15)="Unlisted Player",-1,IF('Inflation-Tracking'!J46="",-9999,'Inflation-Tracking'!J46)) -> 1 | N43: =IF(J43=FALSE,-0.5,IF(LEFT($D43,15)="Unlisted Player",-1,IF(Pre!C43<>"",Pre!C43,0))) -> 225.8064919 | O43: =IF('Auction-Rank'!W43="",9999,'Auction-Rank'!W43) -> 706 | P43: =IFERROR(IF(LEFT($D43,15)="Unlisted Player",-1001,IF(OR(H43="SP",H43="RP"),N43/VLOOKUP($D43,'Filter-P'!$A$1:$AC$356,4,FALSE),-1000)),-1000) -> -1000 | Q43: =IFERROR(IF(LEFT($D43,15)="Unlisted Player",-1001,IF(OR(H43="SP",H43="RP"),-1000,N43/VLOOKUP($D43,'Filter-H'!$A$1:$AE$428,2,FALSE))),-1000) -> 1.097213275 | R43: =IF(H43="",#N/A,H43&"."&1+SUMPRODUCT(($H$2:$H$937=H43)*($N$2:$N$937>N43))+COUNTIFS($N$2:N43,N43,$H$2:H43,H43)-1) -> 2B.47 | S43: =IF(H43="",#N/A,1+SUMPRODUCT(($H$2:$H$937=H43)*($N$2:$N$937>N43))+COUNTIFS($N$2:N43,N43,$H$2:H43,H43)-1) -> 47 | U43: =IFERROR(Pre!DL43,"") -> Bench | V43: =IFERROR(ROUND(INDEX('Inflation-Tracking'!$J$5:$J$1040,MATCH($D43,'Inflation-Tracking'!$A$5:$A$1040,0)),1),-999) -> 1 | W43: =IFERROR(IF($N43=0,-1000,IF(LEFT($D43,15)="Unlisted Player",-1001,IF(OR($H43="SP",$H43="RP"),INDEX('Filter-P'!$M$3:$M$520,MATCH($D43,'Filter-P'!$A$3:$A$520,0),1),INDEX('Filter-H'!$U$3:$U$500,MATCH($D43,'Filter-H'!$A$3:$A$500,0),1)))),-1000) -> -413.3791906
A44: Tim Anderson | B44: =IFERROR(INDEX($A$1:$A$936,SMALL(IF($A$1:$A$936<>"",ROW($A$1:$A$936)),ROW(A43))),"") -> Tim Anderson | C44: =IFERROR(IF(L44=FALSE,"",CHOOSE(MATCH(RIGHT('Your Points Auction'!$R$4,LEN('Your Points Auction'!$R$4)-8),$M$1:$W$1,0),1+SUMPRODUCT(($L$2:$L$937=TRUE)*($M$2:$M$937>M44))+COUNTIFS($L$2:L44,L44,$M$2:M44,M44)-1,1+SUMPRODUCT(($L$2:$L$937=TRUE)*($N$2:$N$937>N44))+COUNTIFS($L$2:L44,L44,$N$2:N44,N44)-1,1+SUMPRODUCT(($L$2:$L$937=TRUE)*($O$2:$O$937<O44))+COUNTIFS($L$2:L44,L44,$O$2:O44,O44)-1,1+SUMPRODUCT(($L$2:$L$937=TRUE)*($P$2:$P$937>P44))+COUNTIFS($L$2:L44,L44,$P$2:P44,P44)-1,1+SUMPRODUCT(($L$2:$L$937=TRUE)*($Q$2:$Q$937>Q44))+COUNTIFS($L$2:L44,L44,$Q$2:Q44,Q44)-1,,,,,,1+SUMPRODUCT(($L$2:$L$937=TRUE)*($W$2:$W$937>W44))+COUNTIFS($L$2:L44,L44,$W$2:W44,W44)-1,)),"") -> 201 | D44: Aaron Ashby | E44: =IFERROR(INDEX('Auction Log'!$C$4:$C$603,MATCH(D44,'Auction Log'!$B$4:$B$603,0)),"") ->  | F44: =IFERROR(INDEX('Auction-Rank'!$C$2:$C$955,MATCH(D44,'Auction-Rank'!$A$2:$A$955,0)),"") -> RP | H44: RP | I44: =IF(AND(F44="OF",'Guts-2'!$N$9=0),IF(MAX(Pre!J44:L44)=Pre!J44,"LF",IF(MAX(Pre!J44:L44)=Pre!K44,"CF",IF(MAX(Pre!J44:L44)=Pre!L44,"RF","LF"))),"") ->  | J44: =IFERROR(INDEX('Auction-Rank'!$U$2:$U$955,MATCH(D44,'Auction-Rank'!$A$2:$A$955,0)),TRUE) -> TRUE | K44: FALSE | L44: =IF(J44=FALSE,FALSE,IF(AND('Your Points Auction'!$R$6="Hide Drafted Players",K44=TRUE),FALSE,CHOOSE($I$1,TRUE,OR(RIGHT('Your Points Auction'!$R$5,LEN('Your Points Auction'!$R$5)-11)=H44,IF(RIGHT('Your Points Auction'!$R$5,LEN('Your Points Auction'!$R$5)-11)<>"C",NOT(ISERROR(SEARCH(RIGHT('Your Points Auction'!$R$5,LEN('Your Points Auction'!$R$5)-11),Pre!$CB44))),AND(NOT(ISERROR(SEARCH(RIGHT('Your Points Auction'!$R$5,LEN('Your Points Auction'!$R$5)-11),Pre!$CB44))),ISERROR(SEARCH("CF",Pre!$CB44)))),RIGHT('Your Points Auction'!$R$5,LEN('Your Points Auction'!$R$5)-11)=Pre!BP44),OR(H44="1B",H44="3B",ISNUMBER(SEARCH("1B",Pre!$CB44)),ISNUMBER(SEARCH("3B",Pre!$CB44))),OR(H44="2B",H44="SS",ISNUMBER(SEARCH("2B",Pre!$CB44)),ISNUMBER(SEARCH("SS",Pre!$CB44))),OR(H44="1B",H44="3B",H44="2B",H44="SS",ISNUMBER(SEARCH("1B",Pre!$CB44)),ISNUMBER(SEARCH("3B",Pre!$CB44)),ISNUMBER(SEARCH("2B",Pre!$CB44)),ISNUMBER(SEARCH("SS",Pre!$CB44))),OR(H44="SP",H44="RP",ISNUMBER(SEARCH("SP",Pre!$CB44)),ISNUMBER(SEARCH("RP",Pre!$CB44))),AND(H44<>"RP",H44<>"SP",NOT(ISNUMBER(SEARCH("RP",Pre!$CB44))),NOT(ISNUMBER(SEARCH("SP",Pre!$CB44)))),OR(H44="SP",H44="RP",ISNUMBER(SEARCH("SP",Pre!$CB44)),ISNUMBER(SEARCH("RP",Pre!$CB44)))))) -> TRUE | M44: =IF(LEFT($D44,15)="Unlisted Player",-1,IF('Inflation-Tracking'!J47="",-9999,'Inflation-Tracking'!J47)) -> 5.0491229 | N44: =IF(J44=FALSE,-0.5,IF(LEFT($D44,15)="Unlisted Player",-1,IF(Pre!C44<>"",Pre!C44,0))) -> 432.2116572 | O44: =IF('Auction-Rank'!W44="",9999,'Auction-Rank'!W44) -> 285 | P44: =IFERROR(IF(LEFT($D44,15)="Unlisted Player",-1001,IF(OR(H44="SP",H44="RP"),N44/VLOOKUP($D44,'Filter-P'!$A$1:$AC$356,4,FALSE),-1000)),-1000) -> 4.802351747 | Q44: =IFERROR(IF(LEFT($D44,15)="Unlisted Player",-1001,IF(OR(H44="SP",H44="RP"),-1000,N44/VLOOKUP($D44,'Filter-H'!$A$1:$AE$428,2,FALSE))),-1000) -> -1000 | R44: =IF(H44="",#N/A,H44&"."&1+SUMPRODUCT(($H$2:$H$937=H44)*($N$2:$N$937>N44))+COUNTIFS($N$2:N44,N44,$H$2:H44,H44)-1) -> RP.33 | S44: =IF(H44="",#N/A,1+SUMPRODUCT(($H$2:$H$937=H44)*($N$2:$N$937>N44))+COUNTIFS($N$2:N44,N44,$H$2:H44,H44)-1) -> 33 | U44: =IFERROR(Pre!DL44,"") -> Bench | V44: =IFERROR(ROUND(INDEX('Inflation-Tracking'!$J$5:$J$1040,MATCH($D44,'Inflation-Tracking'!$A$5:$A$1040,0)),1),-999) -> 5 | W44: =IFERROR(IF($N44=0,-1000,IF(LEFT($D44,15)="Unlisted Player",-1001,IF(OR($H44="SP",$H44="RP"),INDEX('Filter-P'!$M$3:$M$520,MATCH($D44,'Filter-P'!$A$3:$A$520,0),1),INDEX('Filter-H'!$U$3:$U$500,MATCH($D44,'Filter-H'!$A$3:$A$500,0),1)))),-1000) -> 62.49706581
A45: Robbie Ray | B45: =IFERROR(INDEX($A$1:$A$936,SMALL(IF($A$1:$A$936<>"",ROW($A$1:$A$936)),ROW(A44))),"") -> Robbie Ray | C45: =IFERROR(IF(L45=FALSE,"",CHOOSE(MATCH(RIGHT('Your Points Auction'!$R$4,LEN('Your Points Auction'!$R$4)-8),$M$1:$W$1,0),1+SUMPRODUCT(($L$2:$L$937=TRUE)*($M$2:$M$937>M45))+COUNTIFS($L$2:L45,L45,$M$2:M45,M45)-1,1+SUMPRODUCT(($L$2:$L$937=TRUE)*($N$2:$N$937>N45))+COUNTIFS($L$2:L45,L45,$N$2:N45,N45)-1,1+SUMPRODUCT(($L$2:$L$937=TRUE)*($O$2:$O$937<O45))+COUNTIFS($L$2:L45,L45,$O$2:O45,O45)-1,1+SUMPRODUCT(($L$2:$L$937=TRUE)*($P$2:$P$937>P45))+COUNTIFS($L$2:L45,L45,$P$2:P45,P45)-1,1+SUMPRODUCT(($L$2:$L$937=TRUE)*($Q$2:$Q$937>Q45))+COUNTIFS($L$2:L45,L45,$Q$2:Q45,Q45)-1,,,,,,1+SUMPRODUCT(($L$2:$L$937=TRUE)*($W$2:$W$937>W45))+COUNTIFS($L$2:L45,L45,$W$2:W45,W45)-1,)),"") -> 502 | D45: Willians Astudillo | E45: =IFERROR(INDEX('Auction Log'!$C$4:$C$603,MATCH(D45,'Auction Log'!$B$4:$B$603,0)),"") ->  | F45: =IFERROR(INDEX('Auction-Rank'!$C$2:$C$955,MATCH(D45,'Auction-Rank'!$A$2:$A$955,0)),"") -> 3B | H45: 3B | I45: =IF(AND(F45="OF",'Guts-2'!$N$9=0),IF(MAX(Pre!J45:L45)=Pre!J45,"LF",IF(MAX(Pre!J45:L45)=Pre!K45,"CF",IF(MAX(Pre!J45:L45)=Pre!L45,"RF","LF"))),"") ->  | J45: =IFERROR(INDEX('Auction-Rank'!$U$2:$U$955,MATCH(D45,'Auction-Rank'!$A$2:$A$955,0)),TRUE) -> TRUE | K45: FALSE | L45: =IF(J45=FALSE,FALSE,IF(AND('Your Points Auction'!$R$6="Hide Drafted Players",K45=TRUE),FALSE,CHOOSE($I$1,TRUE,OR(RIGHT('Your Points Auction'!$R$5,LEN('Your Points Auction'!$R$5)-11)=H45,IF(RIGHT('Your Points Auction'!$R$5,LEN('Your Points Auction'!$R$5)-11)<>"C",NOT(ISERROR(SEARCH(RIGHT('Your Points Auction'!$R$5,LEN('Your Points Auction'!$R$5)-11),Pre!$CB45))),AND(NOT(ISERROR(SEARCH(RIGHT('Your Points Auction'!$R$5,LEN('Your Points Auction'!$R$5)-11),Pre!$CB45))),ISERROR(SEARCH("CF",Pre!$CB45)))),RIGHT('Your Points Auction'!$R$5,LEN('Your Points Auction'!$R$5)-11)=Pre!BP45),OR(H45="1B",H45="3B",ISNUMBER(SEARCH("1B",Pre!$CB45)),ISNUMBER(SEARCH("3B",Pre!$CB45))),OR(H45="2B",H45="SS",ISNUMBER(SEARCH("2B",Pre!$CB45)),ISNUMBER(SEARCH("SS",Pre!$CB45))),OR(H45="1B",H45="3B",H45="2B",H45="SS",ISNUMBER(SEARCH("1B",Pre!$CB45)),ISNUMBER(SEARCH("3B",Pre!$CB45)),ISNUMBER(SEARCH("2B",Pre!$CB45)),ISNUMBER(SEARCH("SS",Pre!$CB45))),OR(H45="SP",H45="RP",ISNUMBER(SEARCH("SP",Pre!$CB45)),ISNUMBER(SEARCH("RP",Pre!$CB45))),AND(H45<>"RP",H45<>"SP",NOT(ISNUMBER(SEARCH("RP",Pre!$CB45))),NOT(ISNUMBER(SEARCH("SP",Pre!$CB45)))),OR(H45="SP",H45="RP",ISNUMBER(SEARCH("SP",Pre!$CB45)),ISNUMBER(SEARCH("RP",Pre!$CB45)))))) -> TRUE | M45: =IF(LEFT($D45,15)="Unlisted Player",-1,IF('Inflation-Tracking'!J48="",-9999,'Inflation-Tracking'!J48)) -> 1 | N45: =IF(J45=FALSE,-0.5,IF(LEFT($D45,15)="Unlisted Player",-1,IF(Pre!C45<>"",Pre!C45,0))) -> 0 | O45: =IF('Auction-Rank'!W45="",9999,'Auction-Rank'!W45) -> 9999 | P45: =IFERROR(IF(LEFT($D45,15)="Unlisted Player",-1001,IF(OR(H45="SP",H45="RP"),N45/VLOOKUP($D45,'Filter-P'!$A$1:$AC$356,4,FALSE),-1000)),-1000) -> -1000 | Q45: =IFERROR(IF(LEFT($D45,15)="Unlisted Player",-1001,IF(OR(H45="SP",H45="RP"),-1000,N45/VLOOKUP($D45,'Filter-H'!$A$1:$AE$428,2,FALSE))),-1000) -> -1000 | R45: =IF(H45="",#N/A,H45&"."&1+SUMPRODUCT(($H$2:$H$937=H45)*($N$2:$N$937>N45))+COUNTIFS($N$2:N45,N45,$H$2:H45,H45)-1) -> 3B.40 | S45: =IF(H45="",#N/A,1+SUMPRODUCT(($H$2:$H$937=H45)*($N$2:$N$937>N45))+COUNTIFS($N$2:N45,N45,$H$2:H45,H45)-1) -> 40 | U45: =IFERROR(Pre!DL45,"") -> Bench | V45: =IFERROR(ROUND(INDEX('Inflation-Tracking'!$J$5:$J$1040,MATCH($D45,'Inflation-Tracking'!$A$5:$A$1040,0)),1),-999) -> 1 | W45: =IFERROR(IF($N45=0,-1000,IF(LEFT($D45,15)="Unlisted Player",-1001,IF(OR($H45="SP",$H45="RP"),INDEX('Filter-P'!$M$3:$M$520,MATCH($D45,'Filter-P'!$A$3:$A$520,0),1),INDEX('Filter-H'!$U$3:$U$500,MATCH($D45,'Filter-H'!$A$3:$A$500,0),1)))),-1000) -> -1000
A46: Yasmani Grandal | B46: =IFERROR(INDEX($A$1:$A$936,SMALL(IF($A$1:$A$936<>"",ROW($A$1:$A$936)),ROW(A45))),"") -> Yasmani Grandal | C46: =IFERROR(IF(L46=FALSE,"",CHOOSE(MATCH(RIGHT('Your Points Auction'!$R$4,LEN('Your Points Auction'!$R$4)-8),$M$1:$W$1,0),1+SUMPRODUCT(($L$2:$L$937=TRUE)*($M$2:$M$937>M46))+COUNTIFS($L$2:L46,L46,$M$2:M46,M46)-1,1+SUMPRODUCT(($L$2:$L$937=TRUE)*($N$2:$N$937>N46))+COUNTIFS($L$2:L46,L46,$N$2:N46,N46)-1,1+SUMPRODUCT(($L$2:$L$937=TRUE)*($O$2:$O$937<O46))+COUNTIFS($L$2:L46,L46,$O$2:O46,O46)-1,1+SUMPRODUCT(($L$2:$L$937=TRUE)*($P$2:$P$937>P46))+COUNTIFS($L$2:L46,L46,$P$2:P46,P46)-1,1+SUMPRODUCT(($L$2:$L$937=TRUE)*($Q$2:$Q$937>Q46))+COUNTIFS($L$2:L46,L46,$Q$2:Q46,Q46)-1,,,,,,1+SUMPRODUCT(($L$2:$L$937=TRUE)*($W$2:$W$937>W46))+COUNTIFS($L$2:L46,L46,$W$2:W46,W46)-1,)),"") -> 195 | D46: Akil Baddoo | E46: =IFERROR(INDEX('Auction Log'!$C$4:$C$603,MATCH(D46,'Auction Log'!$B$4:$B$603,0)),"") ->  | F46: =IFERROR(INDEX('Auction-Rank'!$C$2:$C$955,MATCH(D46,'Auction-Rank'!$A$2:$A$955,0)),"") -> OF | H46: OF | I46: =IF(AND(F46="OF",'Guts-2'!$N$9=0),IF(MAX(Pre!J46:L46)=Pre!J46,"LF",IF(MAX(Pre!J46:L46)=Pre!K46,"CF",IF(MAX(Pre!J46:L46)=Pre!L46,"RF","LF"))),"") ->  | J46: =IFERROR(INDEX('Auction-Rank'!$U$2:$U$955,MATCH(D46,'Auction-Rank'!$A$2:$A$955,0)),TRUE) -> TRUE | K46: FALSE | L46: =IF(J46=FALSE,FALSE,IF(AND('Your Points Auction'!$R$6="Hide Drafted Players",K46=TRUE),FALSE,CHOOSE($I$1,TRUE,OR(RIGHT('Your Points Auction'!$R$5,LEN('Your Points Auction'!$R$5)-11)=H46,IF(RIGHT('Your Points Auction'!$R$5,LEN('Your Points Auction'!$R$5)-11)<>"C",NOT(ISERROR(SEARCH(RIGHT('Your Points Auction'!$R$5,LEN('Your Points Auction'!$R$5)-11),Pre!$CB46))),AND(NOT(ISERROR(SEARCH(RIGHT('Your Points Auction'!$R$5,LEN('Your Points Auction'!$R$5)-11),Pre!$CB46))),ISERROR(SEARCH("CF",Pre!$CB46)))),RIGHT('Your Points Auction'!$R$5,LEN('Your Points Auction'!$R$5)-11)=Pre!BP46),OR(H46="1B",H46="3B",ISNUMBER(SEARCH("1B",Pre!$CB46)),ISNUMBER(SEARCH("3B",Pre!$CB46))),OR(H46="2B",H46="SS",ISNUMBER(SEARCH("2B",Pre!$CB46)),ISNUMBER(SEARCH("SS",Pre!$CB46))),OR(H46="1B",H46="3B",H46="2B",H46="SS",ISNUMBER(SEARCH("1B",Pre!$CB46)),ISNUMBER(SEARCH("3B",Pre!$CB46)),ISNUMBER(SEARCH("2B",Pre!$CB46)),ISNUMBER(SEARCH("SS",Pre!$CB46))),OR(H46="SP",H46="RP",ISNUMBER(SEARCH("SP",Pre!$CB46)),ISNUMBER(SEARCH("RP",Pre!$CB46))),AND(H46<>"RP",H46<>"SP",NOT(ISNUMBER(SEARCH("RP",Pre!$CB46))),NOT(ISNUMBER(SEARCH("SP",Pre!$CB46)))),OR(H46="SP",H46="RP",ISNUMBER(SEARCH("SP",Pre!$CB46)),ISNUMBER(SEARCH("RP",Pre!$CB46)))))) -> TRUE | M46: =IF(LEFT($D46,15)="Unlisted Player",-1,IF('Inflation-Tracking'!J49="",-9999,'Inflation-Tracking'!J49)) -> 5.516311988 | N46: =IF(J46=FALSE,-0.5,IF(LEFT($D46,15)="Unlisted Player",-1,IF(Pre!C46<>"",Pre!C46,0))) -> 646.2538223 | O46: =IF('Auction-Rank'!W46="",9999,'Auction-Rank'!W46) -> 173 | P46: =IFERROR(IF(LEFT($D46,15)="Unlisted Player",-1001,IF(OR(H46="SP",H46="RP"),N46/VLOOKUP($D46,'Filter-P'!$A$1:$AC$356,4,FALSE),-1000)),-1000) -> -1000 | Q46: =IFERROR(IF(LEFT($D46,15)="Unlisted Player",-1001,IF(OR(H46="SP",H46="RP"),-1000,N46/VLOOKUP($D46,'Filter-H'!$A$1:$AE$428,2,FALSE))),-1000) -> 1.157642315 | R46: =IF(H46="",#N/A,H46&"."&1+SUMPRODUCT(($H$2:$H$937=H46)*($N$2:$N$937>N46))+COUNTIFS($N$2:N46,N46,$H$2:H46,H46)-1) -> OF.50 | S46: =IF(H46="",#N/A,1+SUMPRODUCT(($H$2:$H$937=H46)*($N$2:$N$937>N46))+COUNTIFS($N$2:N46,N46,$H$2:H46,H46)-1) -> 50 | U46: =IFERROR(Pre!DL46,"") -> Bench | V46: =IFERROR(ROUND(INDEX('Inflation-Tracking'!$J$5:$J$1040,MATCH($D46,'Inflation-Tracking'!$A$5:$A$1040,0)),1),-999) -> 5.5 | W46: =IFERROR(IF($N46=0,-1000,IF(LEFT($D46,15)="Unlisted Player",-1001,IF(OR($H46="SP",$H46="RP"),INDEX('Filter-P'!$M$3:$M$520,MATCH($D46,'Filter-P'!$A$3:$A$520,0),1),INDEX('Filter-H'!$U$3:$U$500,MATCH($D46,'Filter-H'!$A$3:$A$500,0),1)))),-1000) -> 52.52385898
A47: Tyler O'Neill | B47: =IFERROR(INDEX($A$1:$A$936,SMALL(IF($A$1:$A$936<>"",ROW($A$1:$A$936)),ROW(A46))),"") -> Tyler O'Neill | C47: =IFERROR(IF(L47=FALSE,"",CHOOSE(MATCH(RIGHT('Your Points Auction'!$R$4,LEN('Your Points Auction'!$R$4)-8),$M$1:$W$1,0),1+SUMPRODUCT(($L$2:$L$937=TRUE)*($M$2:$M$937>M47))+COUNTIFS($L$2:L47,L47,$M$2:M47,M47)-1,1+SUMPRODUCT(($L$2:$L$937=TRUE)*($N$2:$N$937>N47))+COUNTIFS($L$2:L47,L47,$N$2:N47,N47)-1,1+SUMPRODUCT(($L$2:$L$937=TRUE)*($O$2:$O$937<O47))+COUNTIFS($L$2:L47,L47,$O$2:O47,O47)-1,1+SUMPRODUCT(($L$2:$L$937=TRUE)*($P$2:$P$937>P47))+COUNTIFS($L$2:L47,L47,$P$2:P47,P47)-1,1+SUMPRODUCT(($L$2:$L$937=TRUE)*($Q$2:$Q$937>Q47))+COUNTIFS($L$2:L47,L47,$Q$2:Q47,Q47)-1,,,,,,1+SUMPRODUCT(($L$2:$L$937=TRUE)*($W$2:$W$937>W47))+COUNTIFS($L$2:L47,L47,$W$2:W47,W47)-1,)),"") -> 257 | D47: Harrison Bader | E47: =IFERROR(INDEX('Auction Log'!$C$4:$C$603,MATCH(D47,'Auction Log'!$B$4:$B$603,0)),"") ->  | F47: =IFERROR(INDEX('Auction-Rank'!$C$2:$C$955,MATCH(D47,'Auction-Rank'!$A$2:$A$955,0)),"") -> OF | H47: OF | I47: =IF(AND(F47="OF",'Guts-2'!$N$9=0),IF(MAX(Pre!J47:L47)=Pre!J47,"LF",IF(MAX(Pre!J47:L47)=Pre!K47,"CF",IF(MAX(Pre!J47:L47)=Pre!L47,"RF","LF"))),"") ->  | J47: =IFERROR(INDEX('Auction-Rank'!$U$2:$U$955,MATCH(D47,'Auction-Rank'!$A$2:$A$955,0)),TRUE) -> TRUE | K47: FALSE | L47: =IF(J47=FALSE,FALSE,IF(AND('Your Points Auction'!$R$6="Hide Drafted Players",K47=TRUE),FALSE,CHOOSE($I$1,TRUE,OR(RIGHT('Your Points Auction'!$R$5,LEN('Your Points Auction'!$R$5)-11)=H47,IF(RIGHT('Your Points Auction'!$R$5,LEN('Your Points Auction'!$R$5)-11)<>"C",NOT(ISERROR(SEARCH(RIGHT('Your Points Auction'!$R$5,LEN('Your Points Auction'!$R$5)-11),Pre!$CB47))),AND(NOT(ISERROR(SEARCH(RIGHT('Your Points Auction'!$R$5,LEN('Your Points Auction'!$R$5)-11),Pre!$CB47))),ISERROR(SEARCH("CF",Pre!$CB47)))),RIGHT('Your Points Auction'!$R$5,LEN('Your Points Auction'!$R$5)-11)=Pre!BP47),OR(H47="1B",H47="3B",ISNUMBER(SEARCH("1B",Pre!$CB47)),ISNUMBER(SEARCH("3B",Pre!$CB47))),OR(H47="2B",H47="SS",ISNUMBER(SEARCH("2B",Pre!$CB47)),ISNUMBER(SEARCH("SS",Pre!$CB47))),OR(H47="1B",H47="3B",H47="2B",H47="SS",ISNUMBER(SEARCH("1B",Pre!$CB47)),ISNUMBER(SEARCH("3B",Pre!$CB47)),ISNUMBER(SEARCH("2B",Pre!$CB47)),ISNUMBER(SEARCH("SS",Pre!$CB47))),OR(H47="SP",H47="RP",ISNUMBER(SEARCH("SP",Pre!$CB47)),ISNUMBER(SEARCH("RP",Pre!$CB47))),AND(H47<>"RP",H47<>"SP",NOT(ISNUMBER(SEARCH("RP",Pre!$CB47))),NOT(ISNUMBER(SEARCH("SP",Pre!$CB47)))),OR(H47="SP",H47="RP",ISNUMBER(SEARCH("SP",Pre!$CB47)),ISNUMBER(SEARCH("RP",Pre!$CB47)))))) -> TRUE | M47: =IF(LEFT($D47,15)="Unlisted Player",-1,IF('Inflation-Tracking'!J50="",-9999,'Inflation-Tracking'!J50)) -> 1.546250304 | N47: =IF(J47=FALSE,-0.5,IF(LEFT($D47,15)="Unlisted Player",-1,IF(Pre!C47<>"",Pre!C47,0))) -> 599.9948467 | O47: =IF('Auction-Rank'!W47="",9999,'Auction-Rank'!W47) -> 218 | P47: =IFERROR(IF(LEFT($D47,15)="Unlisted Player",-1001,IF(OR(H47="SP",H47="RP"),N47/VLOOKUP($D47,'Filter-P'!$A$1:$AC$356,4,FALSE),-1000)),-1000) -> -1000 | Q47: =IFERROR(IF(LEFT($D47,15)="Unlisted Player",-1001,IF(OR(H47="SP",H47="RP"),-1000,N47/VLOOKUP($D47,'Filter-H'!$A$1:$AE$428,2,FALSE))),-1000) -> 1.155280344 | R47: =IF(H47="",#N/A,H47&"."&1+SUMPRODUCT(($H$2:$H$937=H47)*($N$2:$N$937>N47))+COUNTIFS($N$2:N47,N47,$H$2:H47,H47)-1) -> OF.59 | S47: =IF(H47="",#N/A,1+SUMPRODUCT(($H$2:$H$937=H47)*($N$2:$N$937>N47))+COUNTIFS($N$2:N47,N47,$H$2:H47,H47)-1) -> 59 | U47: =IFERROR(Pre!DL47,"") -> Bench | V47: =IFERROR(ROUND(INDEX('Inflation-Tracking'!$J$5:$J$1040,MATCH($D47,'Inflation-Tracking'!$A$5:$A$1040,0)),1),-999) -> 1.5 | W47: =IFERROR(IF($N47=0,-1000,IF(LEFT($D47,15)="Unlisted Player",-1001,IF(OR($H47="SP",$H47="RP"),INDEX('Filter-P'!$M$3:$M$520,MATCH($D47,'Filter-P'!$A$3:$A$520,0),1),INDEX('Filter-H'!$U$3:$U$500,MATCH($D47,'Filter-H'!$A$3:$A$500,0),1)))),-1000) -> 6.264883343
A48: Cedric Mullins II | B48: =IFERROR(INDEX($A$1:$A$936,SMALL(IF($A$1:$A$936<>"",ROW($A$1:$A$936)),ROW(A47))),"") -> Cedric Mullins II | C48: =IFERROR(IF(L48=FALSE,"",CHOOSE(MATCH(RIGHT('Your Points Auction'!$R$4,LEN('Your Points Auction'!$R$4)-8),$M$1:$W$1,0),1+SUMPRODUCT(($L$2:$L$937=TRUE)*($M$2:$M$937>M48))+COUNTIFS($L$2:L48,L48,$M$2:M48,M48)-1,1+SUMPRODUCT(($L$2:$L$937=TRUE)*($N$2:$N$937>N48))+COUNTIFS($L$2:L48,L48,$N$2:N48,N48)-1,1+SUMPRODUCT(($L$2:$L$937=TRUE)*($O$2:$O$937<O48))+COUNTIFS($L$2:L48,L48,$O$2:O48,O48)-1,1+SUMPRODUCT(($L$2:$L$937=TRUE)*($P$2:$P$937>P48))+COUNTIFS($L$2:L48,L48,$P$2:P48,P48)-1,1+SUMPRODUCT(($L$2:$L$937=TRUE)*($Q$2:$Q$937>Q48))+COUNTIFS($L$2:L48,L48,$Q$2:Q48,Q48)-1,,,,,,1+SUMPRODUCT(($L$2:$L$937=TRUE)*($W$2:$W$937>W48))+COUNTIFS($L$2:L48,L48,$W$2:W48,W48)-1,)),"") -> 80 | D48: Javier Baez | E48: =IFERROR(INDEX('Auction Log'!$C$4:$C$603,MATCH(D48,'Auction Log'!$B$4:$B$603,0)),"") ->  | F48: =IFERROR(INDEX('Auction-Rank'!$C$2:$C$955,MATCH(D48,'Auction-Rank'!$A$2:$A$955,0)),"") -> SS | H48: SS | I48: =IF(AND(F48="OF",'Guts-2'!$N$9=0),IF(MAX(Pre!J48:L48)=Pre!J48,"LF",IF(MAX(Pre!J48:L48)=Pre!K48,"CF",IF(MAX(Pre!J48:L48)=Pre!L48,"RF","LF"))),"") ->  | J48: =IFERROR(INDEX('Auction-Rank'!$U$2:$U$955,MATCH(D48,'Auction-Rank'!$A$2:$A$955,0)),TRUE) -> TRUE | K48: FALSE | L48: =IF(J48=FALSE,FALSE,IF(AND('Your Points Auction'!$R$6="Hide Drafted Players",K48=TRUE),FALSE,CHOOSE($I$1,TRUE,OR(RIGHT('Your Points Auction'!$R$5,LEN('Your Points Auction'!$R$5)-11)=H48,IF(RIGHT('Your Points Auction'!$R$5,LEN('Your Points Auction'!$R$5)-11)<>"C",NOT(ISERROR(SEARCH(RIGHT('Your Points Auction'!$R$5,LEN('Your Points Auction'!$R$5)-11),Pre!$CB48))),AND(NOT(ISERROR(SEARCH(RIGHT('Your Points Auction'!$R$5,LEN('Your Points Auction'!$R$5)-11),Pre!$CB48))),ISERROR(SEARCH("CF",Pre!$CB48)))),RIGHT('Your Points Auction'!$R$5,LEN('Your Points Auction'!$R$5)-11)=Pre!BP48),OR(H48="1B",H48="3B",ISNUMBER(SEARCH("1B",Pre!$CB48)),ISNUMBER(SEARCH("3B",Pre!$CB48))),OR(H48="2B",H48="SS",ISNUMBER(SEARCH("2B",Pre!$CB48)),ISNUMBER(SEARCH("SS",Pre!$CB48))),OR(H48="1B",H48="3B",H48="2B",H48="SS",ISNUMBER(SEARCH("1B",Pre!$CB48)),ISNUMBER(SEARCH("3B",Pre!$CB48)),ISNUMBER(SEARCH("2B",Pre!$CB48)),ISNUMBER(SEARCH("SS",Pre!$CB48))),OR(H48="SP",H48="RP",ISNUMBER(SEARCH("SP",Pre!$CB48)),ISNUMBER(SEARCH("RP",Pre!$CB48))),AND(H48<>"RP",H48<>"SP",NOT(ISNUMBER(SEARCH("RP",Pre!$CB48))),NOT(ISNUMBER(SEARCH("SP",Pre!$CB48)))),OR(H48="SP",H48="RP",ISNUMBER(SEARCH("SP",Pre!$CB48)),ISNUMBER(SEARCH("RP",Pre!$CB48)))))) -> TRUE | M48: =IF(LEFT($D48,15)="Unlisted Player",-1,IF('Inflation-Tracking'!J51="",-9999,'Inflation-Tracking'!J51)) -> 15.73513326 | N48: =IF(J48=FALSE,-0.5,IF(LEFT($D48,15)="Unlisted Player",-1,IF(Pre!C48<>"",Pre!C48,0))) -> 699.1018769 | O48: =IF('Auction-Rank'!W48="",9999,'Auction-Rank'!W48) -> 63 | P48: =IFERROR(IF(LEFT($D48,15)="Unlisted Player",-1001,IF(OR(H48="SP",H48="RP"),N48/VLOOKUP($D48,'Filter-P'!$A$1:$AC$356,4,FALSE),-1000)),-1000) -> -1000 | Q48: =IFERROR(IF(LEFT($D48,15)="Unlisted Player",-1001,IF(OR(H48="SP",H48="RP"),-1000,N48/VLOOKUP($D48,'Filter-H'!$A$1:$AE$428,2,FALSE))),-1000) -> 1.180815602 | R48: =IF(H48="",#N/A,H48&"."&1+SUMPRODUCT(($H$2:$H$937=H48)*($N$2:$N$937>N48))+COUNTIFS($N$2:N48,N48,$H$2:H48,H48)-1) -> SS.16 | S48: =IF(H48="",#N/A,1+SUMPRODUCT(($H$2:$H$937=H48)*($N$2:$N$937>N48))+COUNTIFS($N$2:N48,N48,$H$2:H48,H48)-1) -> 16 | U48: =IFERROR(Pre!DL48,"") -> Bench | V48: =IFERROR(ROUND(INDEX('Inflation-Tracking'!$J$5:$J$1040,MATCH($D48,'Inflation-Tracking'!$A$5:$A$1040,0)),1),-999) -> 15.7 | W48: =IFERROR(IF($N48=0,-1000,IF(LEFT($D48,15)="Unlisted Player",-1001,IF(OR($H48="SP",$H48="RP"),INDEX('Filter-P'!$M$3:$M$520,MATCH($D48,'Filter-P'!$A$3:$A$520,0),1),INDEX('Filter-H'!$U$3:$U$500,MATCH($D48,'Filter-H'!$A$3:$A$500,0),1)))),-1000) -> 171.5930931
